Workbook

Sheet Instructions
C3: British Universities Competition Scoresheet Instructions
C5: When opening this spreadsheet ensure you select the 'ENABLE MACRO'S' option.
C7: General
C8: Enter data in white cells only. All coloured cells (yellow or green) are updated automatically.
C9: During a competition remember to save this file regularly to both your hard disk and a floppy disk/USB pen.
C10: Never Copy and Paste on any sheets.
C12: Set Up Sheet
C13: Enter the Club Name,Team Letter, website number, Swim Tow Time and the class of the teams in this sheet. These are automatically copied from here onto every other sheet.
C14: In all of the sheets, any scores or times that are entered in cells that do not the above are ignored.
C15: Enter the weighting for each of the events at the side of the sheet. These are copied to the relevent palces automatically.
C17: Incident Sheets
C18: Allocate the number of Judges to a incident use the controls at the top of the page. The + and - buttons will hide and show these controls
C19: For each judge, enter a description of what they are marking, their mark categories and the associated weightings in the white boxes provided.
C20: Enter each of the judges scores into this sheet.
C21: A blank cell is treated as a zero. However, for a team to be given a score and a position, one of the judges score cells must contain a number, even if it is a zero.
C22: The judges scores are added up automatically to give the total score.
C24: RopeThrow Sheet
C25: Assuming a team has finished, the seconds and the 1/100 second cells under the stopwatch time must be filled in. The minutes cell is optional.
C26: If a team did not finish or were disqualified, leave the stopwatch time empty.
C27: Next select the finish status from the pull down list:
C28: Finished - All persons successfully pulled in
C29: DNF3 Persons In - Did not finish in time, 3 persons pulled in
C30: DNF2 Persons In - Did not finish in time, 2 persons pulled in
C31: DNF1 Persons In - Did not finish in time, 1 person pulled in
C32: DNF0 Persons In - Did not finish in time, no one pulled in
C33: Disqualified - The team was completely disqualified and will be placed last in this event.
C34: Finally enter the number of penalties the team received in the penalties cell. A blank cell is treated as zero.
C35: Each penalty will result in the team being penalised by discounting one of the “casualties” successfully pulled in.
C36: Penalties are not taken into consideration for teams who were disqualified.
C37: If a team fails to finish within the allotted time, they will be ranked according to the median position of all teams that had successfully pulled in the same number of competitors, after the application of any penalties.
C38: The positions are calculated automatically when opening the sheet i.e. clicking on the tab at the bottom or by entering the Places or Results Sheets
C40: Swim & Tow, Meldey,Manikin Carry and Obstacle Sheets
C41: Enter the penalty size and The Swim and Tow margin Allowed into the top of the sheet.
C42: Agree with the judges the number of seconds per penalty and insert this into the penalty time cell at the top of the sheet.
C43: The seconds and the 1/100 second cells under the stopwatch time must be filled in. The minutes cell is optional.
C44: Select the finish status from the pull down list. This must be filled in.
C45: Finally enter the number of penalties the team received in the penalties cell. A blank cell is treated as zero.
C46: The number of penalties is multiplied by the penalty time and added onto the stopwatch time to give the total time.
C47: Penalties are not taken into consideration for teams who were disqualified.
C48: The Lifesaving point score is a comparision agiast the student record, of how close you are too it. If you were equal to the student record you would score 1000 points. (Still beingTrailed may produce incorrect Numbers)
C50: Competition Results and League Results Sheets
C51: Competition Results = The results are based on all classes of team i.e. Student, Fresher and Old Boys.
C52: League Results = This sheet is only for Calculations
C54: Enter the weighting for each of the events at the top of the sheet. The weightings must be decided before the start of the competition and declared to all competing teams.
C55: All other information is automatically copied from the other sheets. Therefore it is imperative to ensure all the other sheets are up to date.
C56: The final positions are calculated automatically when opening the sheet i.e. clicking on the tab at the bottom.
C57: If teams have an equal sum of total positions, then the wet incident score is taken into account to determine the final results.
C59: Places Sheet
C60: This sheet automatically sorts the teams into final place order from the information contained in the results sheet.
C63: Competition Places = Students, Freshers and Old Boys and Non-Counting Teams
C64: A League Places = A Team that are also Students or Freshers
C65: B League Places = Non-A Team that are also Students or Freshers
C66: Freshers Places = Freshers Only
C68: RLSS Sport League Sheet
C70: Used to produce XML output for RLSS Sport League. It is not required for scoring.
C72: IF you wish to output these results in a formatt for Sports League. Please contact web@bulsca.co.uk for some guidance.

Sheet Version History
C3: Version History
C5: Version 6
C6: Date: January 2006
C7: Status: First released to British Universities Lifesaving Association to be downloadable from the website.
C8: Written By: Simon Harrison
C10: Version 7
C11: Date: 25th February 2006
C12: Change Requested By: Steven Tedds (Birmingham)
C13: Problem / Change Request: Stu Richardson has come across something with regard to the competition scoresheet. Apparently at the moment it places any team that has been disqualified into last place. So, if there is only one team has been disqualified then this is fine. However, if more than one team is disqualified they are all awarded last place - for example at Nottingham, 3 teams were disqualified for one of the events and were all awarded 27th place - but these 3 should all have been given joint 25th (rather than having no team come 25th or 26th and then 3 teams with 27th) - does this makes sense?
C14: Status: This problem has been fixed in Version 7.
C15: Ammended By: Simon Harrison
C17: Version 8
C18: Date: 27th February 2006
C19: Change Requested By: Steven Tedds (Birmingham)
C20: Problem / Change Request: There is a problem with the swim event scoresheets and the rope throw scoresheet. The problem is concerning the allocation of DQ places and DNF places. If there is more than one team occupying a place just before the DNF/DQ places, then the DNF/DQ places are allocated wrong. For example, if the final three teams that finished an event have the same time (after allocation of any penalties) and occupied joint 10th place, then one would expect the next DQ/DNF team(s) to be in 13th place. However, the scoresheet is placing the next DQ/DNF team in 11th place, which is incorrect.
C21: Status: This problem has been fixed in Version 8.
C22: Ammended By: Simon Harrison
C24: Version 9
C25: Date: 12th October 2008
C26: Change Requested By: Dom Roberton (Southampton) and Oliver Coleman (Birmingham)
C27: Changes: The "Teams" worksheet has been updated to allow users to enter a website number (for the database) and a team class i.e. student, fresher or old boys. These are copied onto every other sheet automatically. The incident sheets have been completely overhauled to allow more information to be entered from the judges sheet. The method in which the places for the incidents are calculated has been simplified. Macros are no longer used on these sheets and instead built in excel functions are used. Swim&Tow, SpeedEvent1 and SpeedEvent2 sheets have been updated to make the place calculation more simple. Macros are no longer used. Provision for old boys and freshers teams has been included. Several new results and places spreadsheets have been created for this purpose.
C28: Ammended By: Simon Harrison
C30: Version 9.1
C31: Date: 2nd February 2009
C32: Change Requested By: Laura Thompson (Birmingham)
C33: Changes: To allow for 3 speed to be run in the same competition. The sorting and place calculation method calls were altered to accommodate this.
C34: Amended By: Oliver Coleman
C36: Version 9.2
C37: Date: 2nd February 2009
C38: Change Requested By: Oliver Coleman (Birmingham, Web Officer 2008/2009)
C39: Changes: Provision for Non-Student and Non-Counting Student Teams has now been allowed for, Changed from anusing if's to using vlookup instead
C40: Amended By: Oliver Coleman
C42: Version 9.3
C43: Date: 1st April 2009
C44: Change Requested By: Helen Killingley (Championships Co-Ordinator 2008/2009)
C45: Changes: To amend the dry weighting calculation as it was linked ot the wet weighting not the dry. Discovered at the 2009 BULSCA championships.
C46: Amended By: Oliver Coleman
C48: Version 10.0
C49: Date: 3rd May 2009
C50: Change Requested By: BULSCA General Committee
C51: Changes: Change Scoring to reflect the new League Scoring System as of the 2009/2010 Season. Also to incorporate the Swim and tow time Penalties for out side of the percentage errors
C52: Amended By: Oliver Coleman
C54: Change Requested By: Oliver Coleman (Birmingham, Web Officer 2009/2010)
C55: Changes: Have a Set up sheet with the details of weightings for different Event included on it
C56: Amended By: Oliver Coleman
C58: Change Requested By: Oliver Coleman (Birmingham, Web Officer 2009/2010)
C59: Changes: Remove the need to click sheet to run nessessary macros all now built in
C60: Amended By: Oliver Coleman
C61: Change Requested By: Oliver Coleman (Birmingham, Web Officer 2009/2010)
C62: Changes: Prevent Accidental Deletion by Locking sheet as they are Opened
C63: Amended By: Oliver Coleman
C65: Version 10.1
C66: Date: 20th October 2010
C67: Change Requested By: Oliver Coleman Web Offcier 2010/11
C68: Changes: changed the protection settign in the macros to allow for comments to be added into the SERC, allowing for Judges amendment or comment to be added to the scores
C69: Amended By: Oliver Coleman
C71: Version 10.2
C72: Date: 26th October 2010
C73: Change Requested By: Natalie Moore(Southampton)
C74: Changes: Prior to the fresher comp it was asked, why 'A' that were freshers teams did not count towards the top finishing Freshers team. It was agreed they should be counted. This change is to reflect that change. Extra sheet and columns now added to allow for this. Removed Freshers from League sheet,. Changed instruction on Places sheet
C75: Amended By: Oliver Coleman
C76: Version 11
C77: Date: 20th July 2011
C78: Change Requested By:Oli Coleman(Birmingham, Web Officer)
C79: Changes: Previously team had to unlock the dry and wet incidents to hide columns to make filling out the spreadsheets easier. Put in system to eliminate this. The hidding of colums is now also more important due to the change meantioned below
C80: Change Requested By:Stu Richardson(BULSCA Judges Panel)
C81: Changes: It was shown over the previous 2 season that 10 judging criteria per judge was not enough, particularly on a phone judge. Therefore the standard amount was increased. Was Max 6 Judges and Now Max is 10 Was Max 10 Marking Criteria per Judge and Max 25 Marking Criteria per Judge
C83: Change Requested By:Dom Roberton(Southampton)
C84: Changes: The screen flashes between sheets when calculating different results. This has been resolved by this version
C85: Amended By: Oliver Coleman
C87: Version 11.1
C88: Date: 22nd Feb 2012
C89: Change Requested By:Oli Coleman(Birmingham, Web Officer).
C90: Changes: Spotted in Birmingham Results 2012.Swim and tow penalty gave calculated the outside entry time peanaty allowing team an extra amount of time (15 seconds currently) before the peanalty was activated.. This has been corrected.
C92: Amended By: Oliver Coleman
C94: Version 11.2
C95: Date: 03rd March 2012
C96: Change Requested By: Plymouth Club
C97: Changes: A button to check that macros have been enabled
C99: Amended By: Oliver Coleman
C101: Version 12
C102: Date: 4 April 2012
C103: Change Requested By: Liz Ferris (Scorer BULSCA Champs)
C104: Changes: Highlight placing in each event. To be able to highlight any one clubs results. In addtion to being able to filter results.
C106: Amended By: Oliver Coleman
C107: Version 12.1
C108: Date: 25th October 2012
C109: Change Requested By: Becca Park(University of Brimingham)
C110: Changes: Swim tow result produce and erro if first 3 lines were used. A formula had been lsot. This has been fixed and amended.
C112: Amended By: Oliver Coleman
C113: Version 12.2
C114: Date: 2nd January 2013
C115: Change Requested By: Amy and Teddy(University of St. Andrews)
C116: Changes: 3 SERC were beign run. This has been doen before and was felt an addtional sheet on the spreadsheet to deal this eventuality was required.,
C118: Change Requested By: Oli Coleman (Web Officer)
C119: Changes: Freshers weigting is tied to league weighting has been split out, to give flexibility
C120: Amended By: Oliver Coleman
C121: Version 12.3
C122: Date: 10th Feb 2013
C123: Change Requested By: BULSCA Meeting
C124: Changes: Allow results to be exported to an XML formatt for the RLSS sports league
C126: Change Requested By: Oli Coleman (Web Officer) and Steve Tedds(Judges Panel)
C127: Changes: Clubs given a reletive score out of 1000 as to how close they were to the Student records for each of the events. (Still beign Trailed may produced incorrect numbers)
C128: Amended By: Oliver Coleman
C129: Version 13
C130: Date: 20th Feb 2013
C131: Change Requested By: BULSCA Meeting
C132: Changes: Non-Student onlly ranking to be produced in results to be calculated for the student Championships
C134: Amended By: Oliver Coleman
C136: Version 13.1
C137: Date: 10th March 2013
C138: Change Requested By: Sam O' Connor
C139: Changes: Show the League Placing on the Competition Result page to save having to wait for the release of results
C141: Amended By: Oliver Coleman
C143: Version 13.2
C144: Date: 20th May 2013
C145: Change Requested By: Oliver Coleman ( Web Offcier)
C146: Changes: in second and hundereths cells leading zeros are shown so .09 is 09 and not 9 as currently displayed. This is mainly asthetic but will enable the sheet to be easier to read
C148: Amended By: Oliver Coleman
C150: Version 13.3
C151: Date: 1st June 2013
C152: Change Requested By: Liz Ferris( Scorer BULSCA Champs)
C153: Changes: Noticed she could now highlioght club but wanted a facility to print the Competition places sheet 1 per club with the club highlighted without needing to selct these manually
C154: Change Requested By: Oliver Coleman (Web Offcier)
C155: Changes: Removed the need for macro's in the caculation of rope throw. This now means all the indervidal events results are calculated through excel function making it more accessible on machinces with higher security settings.
C157: Amended By: Oliver Coleman
C159: Version 14
C160: Date: 1st August 2013
C161: Change Requested By: Oliver Coleman (Web Officer 2007-2014)
C162: Changes: SERC now given a comparitive point total were first is awarded 1500 , so will be changeble at each comeptition. and rope throw point put into stages. These changes are the first steps toward potensialy using comapritive based scoring. SERC collums being kept hidden currently for clarity.
C164: Changed the way Rope Throw results point are caculated to included 0,1,2,3 in. The algrotitum takes the 750 to 1000 portion as beign 4 in and split the remaining 750up evenly across the 1,2,3 in depending on how many in each section. This should give a representation that can be sued in a whole competittion scoring approach
C166: Overall calculated by having fixed ceiling and then sumed together
C167: Amended By: Oliver Coleman (Web Officer 2007-2014)
C169: Version 14.1
C170: Date: 25th September
C171: Change Requested By: Oliver Coleman (Web Officer 2007-2014)
C172: Changes: Sheet set up for new scorign method. Using a comparative sytem by scalling point totals back to 500 for the scores.
C173: Tweaks to the Rope through points Calculation to make its inpact on the overall result more in line with the rest. By adding and diving in various manners
C175: Amended By: Oliver Coleman (Web Officer 2007-2014)
C177: Version 14.2
C178: Date: 3rd October2013
C179: Change Requested By: Oli Coleman,Alex Blanford and Matt Sedgewick
C180: Changes: During development was unsure on the ceiling applied during rope through.
C181: Rope Throw adjsuted to allow for the wide spread of abilty expected, Split intop small unit and then the mid-point of each group of competitiors taken
C182: On competition resutls the bottom score will always be An amount ste on the set up sheet to allow those DQ to score 0.
C183: This scaling ensure consitence of importnace of each event better, it also allow for a final total, normally 7000 to be chased as the perfect score
C184: Amended By: Oliver Coleman (Web Officer 2007-2014)
C185: Version 14.3
C186: Date: 4th October2013
C187: Change Requested By: Oli Coleman
C188: Changes: During testing ti was discovered, on gettign 4 in a time of close to 2 min 30 which is the liit would cause teams to score more points for slower times. This ahs been corrected in this version.
C192: Amended By: Oliver Coleman (Web Officer 2007-2014)
C193: Version 14.4
C194: Date: 4th October2013
C195: Change Requested By: Oli Coleman
C196: Changes: Comparitive scalling added to the League Process. Only Rope needs re-calculating bt all need rescalling accordingly
C200: Amended By: Oliver Coleman (Web Officer 2007-2014)
C201: Version 14.5
C202: Date: 28h October2013
C203: Change Requested By: Oli Coleman
C204: Changes: When only 1 Team Finished rope throw a Div by 0 occuered on the rope throw. This was seen on the Warwick 2013 result durign testing. This has been corrected.
C208: Amended By: Oliver Coleman (Web Officer 2007-2014)

Sheet Set UP
C3: Teams | Q3: Scoring
C5: Website Number | D5: Club | E5: Team | F5: Class (F, S, OB,NS,NC) | G5: Swim and Tow | I5: Time in Seconds | L5: Class | N5: must be in aphabetically order | Q5: Event | R5: League Weighting | S5: Compettion Weighting | T5: Freshers Weighting | U5: Non-Student Weighting | W5: Current Record (14/3/13)
G6: mins | H6: secs | Q6: Wet Incident | R6: 2 | S6: 2 | T6: 0 | U6: 2
B7: 1 | C7: 1418 | D7: Bradford On Avon Lifesaving Club | E7: B | F7: NS | G7: 9 | H7: 60 | I7: =G7*60+H7 -> 600 | K7: =IF(OR(F7=0,E7=0,D7=0,C7=0),-1,VLOOKUP(F7,N$7:O$11,2)+IF(OR(E7="A",E7="a",VLOOKUP(F7,N$7:O$11,2)=0),0,1)) -> 0 | L7: F = Fresher | N7: F | O7: 1 | Q7: Dry Incident | R7: 2 | S7: 2 | T7: 0 | U7: 2
B8: 2 | C8: 1419 | D8: Bradford On Avon Lifesaving Club | E8: A | F8: NS | G8: 9 | H8: 60 | I8: =G8*60+H8 -> 600 | K8: 0 | L8: S = Student | N8: NC | O8: 0 | Q8: Extra Incident | R8: 0 | S8: 0 | T8: 0 | U8: 0 | W8: Min | X8: Sec | Y8: 100th
B9: 3 | C9: 1417 | D9: Bradford On Avon Lifesaving Club | E9: C | F9: NS | G9: 9 | H9: 60 | I9: 600 | K9: 0 | L9: OB = Old Boys | N9: NS | O9: 0 | Q9: Rope Throw | R9: 1 | S9: 1 | T9: 0 | U9: 1 | W9: 1 | X9: 12 | Y9: 40 | Z9: =W9*60+X9+Y9/100 -> 72.4
B10: 4 | I10: 0 | K10: -1 | L10: NS=Non Student Team | N10: OB | O10: 0 | Q10: Swim and Tow | R10: 1 | S10: 1 | T10: 0 | U10: 1 | W10: 6 | X10: 34 | Y10: 85 | Z10: =W10*60+X10+Y10/100 -> 394.85
B11: 5 | C11: 1424 | D11: Keynsham | E11: B | F11: NS | G11: 9 | H11: 59 | I11: 599 | K11: 0 | L11: NC=Non -Counting Student Team | N11: S | O11: 1 | Q11: Medley | R11: 1 | S11: 1 | T11: 0 | U11: 1 | W11: 1 | X11: 53 | Y11: 0 | Z11: 113
B12: 6 | C12: 1423 | D12: Keynsham | E12: A | F12: NS | G12: 9 | H12: 59 | I12: 599 | K12: 0 | Q12: Manikin Carry | R12: 0 | S12: 0 | T12: 0 | U12: 0 | W12: 1 | X12: 36 | Y12: 60 | Z12: 96.6
B13: 7 | C13: 1433 | D13: University of Nottingham | E13: B | F13: S | G13: 9 | H13: 31 | I13: 571 | K13: 2 | L13: Club to Highlight | Q13: Obstacle | R13: 0 | S13: 0 | T13: 0 | U13: 0 | W13: 1 | X13: 57 | Y13: 23 | Z13: 117.23
B14: 8 | C14: 1441 | D14: University of Plymouth | E14: C | F14: NC | G14: 9 | H14: 0 | I14: 540 | K14: 0
B15: 9 | C15: 1440 | D15: University of Plymouth | E15: B | F15: S | G15: 8 | H15: 45 | I15: 525 | K15: 2 | Q15: DQ Amount | R15: 100
B16: 10 | C16: 1431 | D16: University of Nottingham | E16: C | F16: S | G16: 8 | H16: 57 | I16: 537 | K16: 2
B17: 11 | C17: 1445 | D17: University of Birmingham | E17: D | F17: NC | G17: 9 | H17: 14 | I17: 554 | K17: 0
B18: 12 | I18: 0 | K18: -1
B19: 13 | C19: 1426 | D19: London Universities | E19: B | F19: S | G19: 8 | H19: 30 | I19: 510 | K19: 2
B20: 14 | I20: 0 | K20: -1
B21: 15 | C21: 1427 | D21: University of Southampton | E21: A | F21: S | G21: 8 | H21: 10 | I21: 490 | K21: 1
B22: 16 | C22: 1444 | D22: University of Birmingham | E22: C | F22: S | G22: 8 | H22: 15 | I22: 495 | K22: 2
B23: 17 | C23: 1439 | D23: University of Plymouth | E23: A | F23: S | G23: 8 | H23: 30 | I23: 510 | K23: 1
B24: 18 | C24: 1461 | D24: Bristol University | E24: B | F24: S | G24: 8 | H24: 40 | I24: 520 | K24: 2
B25: 19 | C25: 1436 | D25: Loughborough University | E25: C | F25: S | G25: 7 | H25: 50 | I25: 470 | K25: 2
B26: 20 | C26: 1443 | D26: University of Birmingham | E26: B | F26: S | G26: 7 | H26: 43 | I26: 463 | K26: 2
B27: 21 | C27: 1434 | D27: Loughborough University | E27: A | F27: S | G27: 7 | H27: 30 | I27: 450 | K27: 1
B28: 22 | C28: 1435 | D28: Loughborough University | E28: B | F28: S | G28: 7 | H28: 40 | I28: 460 | K28: 2
B29: 23 | C29: 1457 | D29: University of Warwick | E29: B | F29: S | G29: 7 | H29: 50 | I29: 470 | K29: 2
B30: 24 | C30: 1429 | D30: University of Nottingham | E30: A | F30: S | G30: 7 | H30: 58 | I30: 478 | K30: 1
B31: 25 | C31: 1438 | D31: Swansea Universities Lifesaving | E31: B | F31: S | G31: 7 | H31: 25 | I31: 445 | K31: 2
B32: 26 | C32: 1442 | D32: University of Birmingham | E32: A | F32: S | G32: 7 | H32: 15 | I32: 435 | K32: 1
B33: 27 | C33: 1456 | D33: University of Warwick | E33: A | F33: S | G33: 7 | H33: 0 | I33: 420 | K33: 1
B34: 28 | C34: 1460 | D34: Bristol University | E34: A | F34: S | G34: 7 | H34: 5 | I34: 425 | K34: 1
B35: 29 | C35: 1437 | D35: Swansea Universities Lifesaving | E35: A | F35: S | G35: 7 | H35: 20 | I35: 440 | K35: 1
B36: 30 | C36: 1425 | D36: London Universities | E36: A | F36: S | G36: 7 | H36: 30 | I36: 450 | K36: 1
B37: 31 | I37: 0 | K37: -1
B38: 32 | I38: 0 | K38: -1
B39: 33 | I39: 0 | K39: -1
B40: 34 | I40: 0 | K40: -1
B41: 35 | I41: 0 | K41: -1
B42: 36 | I42: 0 | K42: -1
B43: 37 | I43: 0 | K43: -1
B44: 38 | I44: 0 | K44: -1
B45: 39 | I45: 0 | K45: =IF(OR(F45=0,E45=0,D45=0,C45=0),-1,VLOOKUP(F45,N$7:O$11,2)+IF(OR(E45="A",E45="a",VLOOKUP(F45,N$7:O$11,2)=0),0,1)) -> -1
B46: 40 | I46: 0 | K46: -1

Sheet Dry Incident
E1: JUDGE START HIDE ROW | F1: 1 | AG1: 2 | BH1: 3 | CI1: 4 | DJ1: 5 | EK1: 6 | FL1: 7 | GM1: 8 | HN1: 9 | IO1: 10 | JP1: 11 | JR1: h | JT1: h | JV1: h | JX1: h | JZ1: e
D2: No. Judges Required(1 to 10) | E2: 6
D3: Judge 1 Citeria (1 to 25) | E3: 7
D4: Judge 2 Citeria (1 to 25) | E4: 8
D5: Judge 3 Citeria (1 to 25) | E5: 7
D6: Judge 4 Citeria (1 to 25) | E6: 7
D7: Judge 5 Citeria (1 to 25) | E7: 10
D8: Judge 6 Citeria (1 to 25) | E8: 4
D9: Judge 7 Citeria (1 to 25)
D10: Judge 8 Citeria (1 to 25)
D11: Judge 9 Citeria (1 to 25)
D12: Judge 10 Citeria (1 to 25)
D15: ='Set UP'!Q6 -> Wet Incident
D16: Club to Highlight | F16: JUDGE 1 | AG16: JUDGE 2 | BH16: JUDGE 3 | CI16: JUDGE 4 | DJ16: JUDGE 5 | EK16: JUDGE 6 | FL16: Judge 7 | GM16: Judge 8 | HN16: Judge 9 | IO16: Judge 10 | JP16: ¬ OVERALL TOTAL | JQ16: ¬ POSITION (COMPETITION) | JR16: ¬ OVERALL (A LEAGUE RANK) | JS16: ¬ POSITION ( A LEAGUE) | JT16: ¬ OVERALL (B LEAGUE RANK) | JU16: POSITION ( BLEAGUE) | JV16: ¬ OVERALL (FRESHERS LEAGUE RANK) | JW16: POSITION ( FRESHERS LEAGUE) | JX16: ¬ OVERALL (Non- Student RANK) | JY16: POSITION ( Non-Students LEAGUE) | JZ16: Lifesaving Points (Competition)
F17: Chest pains & broken arm & hand bleed | AG17: shock & unconscious non breathing baby | BH17: head bleed & unconscious breathing | CI17: unconscious non breathing & panicking | DJ17: Phone | EK17: Overall | FL17: Judge 7 Description <Enter Here> | GM17: Judge 8 Description <Enter Here> | HN17: Judge 9 Description <Enter Here> | IO17: Judge 10 Description <Enter Here>
F18: Identification and assessment | G18: treatment | H18: regular reassessment (aftercare) | I18: identification and assessment | J18: treatment of arm | K18: treatment of bleed | L18: aftercare | M18: Mark Category 8 <Enter Here> | N18: Mark Category 9 <Enter Here> | O18: Mark Category 10 <Enter Here> | P18: Mark Category 11 <Enter Here> | Q18: Mark Category 12 <Enter Here> | R18: Mark Category 13 <Enter Here> | S18: Mark Category 14<Enter Here> | T18: Mark Category 15<Enter Here> | U18: Mark Category 16<Enter Here> | V18: Mark Category 17<Enter Here> | W18: Mark Category 18<Enter Here> | X18: Mark Category 19 <Enter Here> | Y18: Mark Category 20 <Enter Here> | Z18: Mark Category 21 <Enter Here> | AA18: Mark Category 22<Enter Here> | AB18: Mark Category 23 <Enter Here> | AC18: Mark Category 24<Enter Here> | AD18: Mark Category 25 <Enter Here> | AE18: Do not fill in required for hidding process | AF18: ¬ JUDGE 1 TOTAL | AG18: identification and assessment | AH18: treatment | AI18: aftercare | AJ18: identification and assessment | AK18: speed to first rescue breath | AL18: quality of CPR | AM18: use of pocket mask | AN18: continuous CPR | AO18: Mark Category 9 <Enter Here> | AP18: Mark Category 10 <Enter Here> | AQ18: Mark Category 11 <Enter Here> | AR18: Mark Category 12 <Enter Here> | AS18: Mark Category 13 <Enter Here> | AT18: Mark Category 14<Enter Here> | AU18: Mark Category 15 <Enter Here> | AV18: Mark Category 16<Enter Here> | AW18: Mark Category 17<Enter Here> | AX18: Mark Category 18<Enter Here> | AY18: Mark Category 19 <Enter Here> | AZ18: Mark Category 20 <Enter Here> | BA18: Mark Category 21 <Enter Here> | BB18: Mark Category 22<Enter Here> | BC18: Mark Category 23 <Enter Here> | BD18: Mark Category 24<Enter Here> | BE18: Mark Category 25 <Enter Here> | BF18: Do not fill in required for hidding process | BG18: ¬ JUDGE 2 TOTAL | BH18: identification and assessment | BI18: treatment | BJ18: use of gloves | BK18: aftercare | BL18: identification and assessment | BM18: quality of recovery position/ treatment | BN18: aftercare (regular reassessment) | BO18: Mark Category 8 <Enter Here> | BP18: Mark Category 9 <Enter Here> | BQ18: Mark Category 10 <Enter Here> | BR18: Mark Category 11 <Enter Here> | BS18: Mark Category 12 <Enter Here> | BT18: Mark Category 13 <Enter Here> | BU18: Mark Category 14<Enter Here> | BV18: Mark Category 15 <Enter Here> | BW18: Mark Category 16<Enter Here> | BX18: Mark Category 17<Enter Here> | BY18: Mark Category 18<Enter Here> | BZ18: Mark Category 19 <Enter Here> | CA18: Mark Category 20 <Enter Here> | CB18: Mark Category 21 <Enter Here> | CC18: Mark Category 22<Enter Here> | CD18: Mark Category 23 <Enter Here> | CE18: Mark Category 24<Enter Here> | CF18: Mark Category 25 <Enter Here> | CG18: Do not fill in required for hidding process | CH18: ¬ JUDGE 3 TOTAL | CI18: identification and assessment | CJ18: speed to first compression | CK18: quality of CPR | CL18: use of pocket mask | CM18: continuous CPR | CN18: use of bystander | CO18: treatment and reassurance | CP18: Mark Category 8 <Enter Here> | CQ18: Mark Category 9 <Enter Here> | CR18: Mark Category 10 <Enter Here> | CS18: Mark Category 11 <Enter Here> | CT18: Mark Category 12 <Enter Here> | CU18: Mark Category 13 <Enter Here> | CV18: Mark Category 14<Enter Here> | CW18: Mark Category 15 <Enter Here> | CX18: Mark Category 16<Enter Here> | CY18: Mark Category 17<Enter Here> | CZ18: Mark Category 18<Enter Here> | DA18: Mark Category 19 <Enter Here> | DB18: Mark Category 20 <Enter Here> | DC18: Mark Category 21 <Enter Here> | DD18: Mark Category 22<Enter Here> | DE18: Mark Category 23 <Enter Here> | DF18: Mark Category 24<Enter Here> | DG18: Mark Category 25 <Enter Here> | DH18: Do not fill in required for hidding process | DI18: ¬ JUDGE 4 TOTAL | DJ18: asked for ambulance | DK18: asked for police | DL18: asked for fire service | DM18: location | DN18: casualty information (unconscious non breathing adult and baby) | DO18: casualty info (chest pains and unconscious) | DP18: casualty info (head bleed, broken arm/ cut hand, shock, panicking) | DQ18: details of treatment provided | DR18: ask foe AED | DS18: other information | DT18: Mark Category 11 <Enter Here> | DU18: Mark Category 12 <Enter Here> | DV18: Mark Category 13 <Enter Here> | DW18: Mark Category 14<Enter Here> | DX18: Mark Category 15 <Enter Here> | DY18: Mark Category 16<Enter Here> | DZ18: Mark Category 17<Enter Here> | EA18: Mark Category 18<Enter Here> | EB18: Mark Category 19 <Enter Here> | EC18: Mark Category 20 <Enter Here> | ED18: Mark Category 21 <Enter Here> | EE18: Mark Category 22<Enter Here> | EF18: Mark Category 23 <Enter Here> | EG18: Mark Category 24<Enter Here> | EH18: Mark Category 25 <Enter Here> | EI18: Do not fill in required for hidding process | EJ18: ¬ JUDGE 5 TOTAL | EK18: effective prioritisation | EL18: effective communication | EM18: effective captaincy | EN18: safety and control of scenario | EO18: Mark Category 5 <Enter Here> | EP18: Mark Category 6 <Enter Here> | EQ18: Mark Category 7 <Enter Here> | ER18: Mark Category 8 <Enter Here> | ES18: Mark Category 9 <Enter Here> | ET18: Mark Category 10 <Enter Here> | EU18: Mark Category 11 <Enter Here> | EV18: Mark Category 12 <Enter Here> | EW18: Mark Category 13 <Enter Here> | EX18: Mark Category 14<Enter Here> | EY18: Mark Category 15 <Enter Here> | EZ18: Mark Category 16<Enter Here> | FA18: Mark Category 17<Enter Here> | FB18: Mark Category 18<Enter Here> | FC18: Mark Category 19 <Enter Here> | FD18: Mark Category 20 <Enter Here> | FE18: Mark Category 21 <Enter Here> | FF18: Mark Category 22<Enter Here> | FG18: Mark Category 23 <Enter Here> | FH18: Mark Category 24<Enter Here> | FI18: Mark Category 25 <Enter Here> | FJ18: Do not fill in required for hidding process | FK18: ¬ JUDGE 6 TOTAL | FL18: Mark Category 1 <Enter Here> | FM18: Mark Category 2 <Enter Here> | FN18: Mark Category 3 <Enter Here> | FO18: Mark Category 4 <Enter Here> | FP18: Mark Category 5 <Enter Here> | FQ18: Mark Category 6 <Enter Here> | FR18: Mark Category 7 <Enter Here> | FS18: Mark Category 8 <Enter Here> | FT18: Mark Category 9 <Enter Here> | FU18: Mark Category 10 <Enter Here> | FV18: Mark Category 11 <Enter Here> | FW18: Mark Category 12 <Enter Here> | FX18: Mark Category 13 <Enter Here> | FY18: Mark Category 14<Enter Here> | FZ18: Mark Category 15 <Enter Here> | GA18: Mark Category 16<Enter Here> | GB18: Mark Category 17<Enter Here> | GC18: Mark Category 18<Enter Here> | GD18: Mark Category 19 <Enter Here> | GE18: Mark Category 20 <Enter Here> | GF18: Mark Category 21 <Enter Here> | GG18: Mark Category 22<Enter Here> | GH18: Mark Category 23 <Enter Here> | GI18: Mark Category 24<Enter Here> | GJ18: Mark Category 25 <Enter Here> | GK18: Do not fill in required for hidding process | GL18: ¬ JUDGE 7 TOTAL | GM18: Mark Category 1 <Enter Here> | GN18: Mark Category 2 <Enter Here> | GO18: Mark Category 3 <Enter Here> | GP18: Mark Category 4 <Enter Here> | GQ18: Mark Category 5 <Enter Here> | GR18: Mark Category 6 <Enter Here> | GS18: Mark Category 7 <Enter Here> | GT18: Mark Category 8 <Enter Here> | GU18: Mark Category 9 <Enter Here> | GV18: Mark Category 10 <Enter Here> | GW18: Mark Category 11 <Enter Here> | GX18: Mark Category 12 <Enter Here> | GY18: Mark Category 13 <Enter Here> | GZ18: Mark Category 14<Enter Here> | HA18: Mark Category 15 <Enter Here> | HB18: Mark Category 16<Enter Here> | HC18: Mark Category 17<Enter Here> | HD18: Mark Category 18<Enter Here> | HE18: Mark Category 19 <Enter Here> | HF18: Mark Category 20 <Enter Here> | HG18: Mark Category 21 <Enter Here> | HH18: Mark Category 22<Enter Here> | HI18: Mark Category 23 <Enter Here> | HJ18: Mark Category 24<Enter Here> | HK18: Mark Category 25 <Enter Here> | HL18: Do not fill in required for hidding process | HM18: ¬ JUDGE 8 TOTAL | HN18: Mark Category 1 <Enter Here> | HO18: Mark Category 2 <Enter Here> | HP18: Mark Category 3 <Enter Here> | HQ18: Mark Category 4 <Enter Here> | HR18: Mark Category 5 <Enter Here> | HS18: Mark Category 6 <Enter Here> | HT18: Mark Category 7 <Enter Here> | HU18: Mark Category 8 <Enter Here> | HV18: Mark Category 9 <Enter Here> | HW18: Mark Category 10 <Enter Here> | HX18: Mark Category 11 <Enter Here> | HY18: Mark Category 12 <Enter Here> | HZ18: Mark Category 13 <Enter Here> | IA18: Mark Category 14<Enter Here> | IB18: Mark Category 15 <Enter Here> | IC18: Mark Category 16<Enter Here> | ID18: Mark Category 17<Enter Here> | IE18: Mark Category 18<Enter Here> | IF18: Mark Category 19 <Enter Here> | IG18: Mark Category 20 <Enter Here> | IH18: Mark Category 21 <Enter Here> | II18: Mark Category 22<Enter Here> | IJ18: Mark Category 23 <Enter Here> | IK18: Mark Category 24<Enter Here> | IL18: Mark Category 25 <Enter Here> | IM18: Do not fill in required for hidding process | IN18: ¬ JUDGE 9 TOTAL | IO18: Mark Category 1 <Enter Here> | IP18: Mark Category 2 <Enter Here> | IQ18: Mark Category 3 <Enter Here> | IR18: Mark Category 4 <Enter Here> | IS18: Mark Category 5 <Enter Here> | IT18: Mark Category 6 <Enter Here> | IU18: Mark Category 7 <Enter Here> | IV18: Mark Category 8 <Enter Here> | IW18: Mark Category 9 <Enter Here> | IX18: Mark Category 10 <Enter Here> | IY18: Mark Category 11 <Enter Here> | IZ18: Mark Category 12 <Enter Here> | JA18: Mark Category 13 <Enter Here> | JB18: Mark Category 14<Enter Here> | JC18: Mark Category 15 <Enter Here> | JD18: Mark Category 16<Enter Here> | JE18: Mark Category 17<Enter Here> | JF18: Mark Category 18<Enter Here> | JG18: Mark Category 19 <Enter Here> | JH18: Mark Category 20 <Enter Here> | JI18: Mark Category 21 <Enter Here> | JJ18: Mark Category 22<Enter Here> | JK18: Mark Category 23 <Enter Here> | JL18: Mark Category 24<Enter Here> | JM18: Mark Category 25 <Enter Here> | JN18: Do not fill in required for hidding process | JO18: ¬ JUDGE 10 TOTAL
E19: MARK WEIGHTING → | F19: 1 | G19: 1.5 | H19: 1.5 | I19: 1 | J19: 1 | K19: 1.5 | L19: 1 | AG19: 1 | AH19: 1 | AI19: 0.5 | AJ19: 1.5 | AK19: 2 | AL19: 1 | AM19: 1 | AN19: 1 | BH19: 1 | BI19: 1.5 | BJ19: 1 | BK19: 1 | BL19: 1 | BM19: 1.5 | BN19: 1 | CI19: 1.5 | CJ19: 2 | CK19: 1 | CL19: 1 | CM19: 1 | CN19: 1 | CO19: 1 | DJ19: 0.5 | DK19: 0.5 | DL19: 0.5 | DM19: 1 | DN19: 1.5 | DO19: 1 | DP19: 0.5 | DQ19: 0.5 | DR19: 1 | DS19: 0.3 | EK19: 3 | EL19: 1.5 | EM19: 1.5 | EN19: 1.5
C20: WEB
B21: 1 | C21: =IF(OR('Set UP'!$C7=0,'Set UP'!$D7=0,'Set UP'!$E7=0,'Set UP'!F7=0)," --",'Set UP'!C7) -> 1418 | D21: =IF(OR('Set UP'!$C7=0,'Set UP'!$D7=0,'Set UP'!$E7=0,'Set UP'!F7=0)," --",'Set UP'!D7&" "&'Set UP'!E7) -> Bradford On Avon Lifesaving Club B | E21: =IF(OR('Set UP'!$C7=0,'Set UP'!$D7=0,'Set UP'!$E7=0,'Set UP'!F7=0)," --",'Set UP'!F7) -> NS | F21: 0 | G21: 0 | H21: 0 | I21: 5 | J21: 0 | K21: 4 | L21: 1 | AF21: =IF(OR('Set UP'!$C7=0,'Set UP'!$D7=0,'Set UP'!$E7=0),"",(F$19*F21)+(G$19*G21)+(H$19*H21)+(I$19*I21)+(J$19*J21)+(K$19*K21)+(L$19*L21)+(M$19*M21)+(N$19*N21)+(O$19*O21)+(P$19*P21)+(Q$19*Q21)+(R$19*R21)+(S$19*S21)+(T$19*T21)+(U$19*U21)+(V$19*V21)+(W$19*W21)+(X$19*X21)+(Y$19*Y21)+(Z$19*Z21)+(AA$19*AA21)+(AB$19*AB21)+(AC$19*AC21)+(AD$19*AD21)) -> 12 | AG21: 3 | AH21: 7 | AI21: 2 | AJ21: 2 | AK21: 2 | AL21: 1 | AM21: 0 | AN21: 1 | BG21: =IF(OR('Set UP'!$C7=0,'Set UP'!$D7=0,'Set UP'!$E7=0),"",(AG$19*AG21)+(AH$19*AH21)+(AI$19*AI21)+(AJ$19*AJ21)+(AK$19*AK21)+(AL$19*AL21)+(AM$19*AM21)+(AN$19*AN21)+(AO$19*AO21)+(AP$19*AP21)+(AQ$19*AQ21)+(AR$19*AR21)+(AS$19*AS21)+(AT$19*AT21)+(AU$19*AU21)+(AV$19*AV21)+(AW$19*AW21)+(AX$19*AX21)+(AY$19*AY21)+(AZ$19*AZ21)+(BA$19*BA21)+(BB$19*BB21)+(BC$19*BC21)+(BD$19*BD21)+(BE$19*BE21)) -> 20 | BH21: 7 | BI21: 3 | BJ21: 0 | BK21: 0 | BL21: 8 | BM21: 5 | BN21: 0 | CH21: =IF(OR('Set UP'!$C7=0,'Set UP'!$D7=0,'Set UP'!$E7=0),"",(BH$19*BH21)+(BI$19*BI21)+(BJ$19*BJ21)+(BK$19*BK21)+(BL$19*BL21)+(BM$19*BM21)+(BN$19*BN21)+(BO$19*BO21)+(BP$19*BP21)+(BQ$19*BQ21)+(BR$19*BR21)+(BS$19*BS21)+(BT$19*BT21)+(BU$19*BU21)+(BV$19*BV21)+(BW$19*BW21)+(BX$19*BX21)+(BY$19*BY21)+(BZ$19*BZ21)+(CA$19*CA21)+(CB$19*CB21)+(CC$19*CC21)+(CD$19*CD21)+(CE$19*CE21)+(CF$19*CF21)) -> 27 | CI21: 6 | CJ21: 8 | CK21: 5 | CL21: 0 | CM21: 5 | CN21: 0 | CO21: 1 | DI21: =IF(OR('Set UP'!$C7=0,'Set UP'!$D7=0,'Set UP'!$E7=0),"",(CI$19*CI21)+(CJ$19*CJ21)+(CK$19*CK21)+(CL$19*CL21)+(CM$19*CM21)+(CN$19*CN21)+(CO$19*CO21)+(CP$19*CP21)+(CQ$19*CQ21)+(CR$19*CR21)+(CS$19*CS21)+(CT$19*CT21)+(CU$19*CU21)+(CV$19*CV21)+(CW$19*CW21)+(CX$19*CX21)+(CY$19*CY21)+(CZ$19*CZ21)+(DA$19*DA21)+(DB$19*DB21)+(DC$19*DC21)+(DD$19*DD21)+(DE$19*DE21)+(DF$19*DF21)+(DG$19*DG21)) -> 36 | DJ21: 0 | DK21: 0 | DL21: 0 | DM21: 0 | DN21: 0 | DO21: 0 | DP21: 0 | DQ21: 0 | DR21: 0 | DS21: 0 | EJ21: =IF(OR('Set UP'!$C7=0,'Set UP'!$D7=0,'Set UP'!$E7=0),"",(DJ$19*DJ21)+(DK$19*DK21)+(DL$19*DL21)+(DM$19*DM21)+(DN$19*DN21)+(DO$19*DO21)+(DP$19*DP21)+(DQ$19*DQ21)+(DR$19*DR21)+(DS$19*DS21)+(DT$19*DT21)+(DU$19*DU21)+(DV$19*DV21)+(DW$19*DW21)+(DX$19*DX21)+(DY$19*DY21)+(DZ$19*DZ21)+(EA$19*EA21)+(EB$19*EB21)+(EC$19*EC21)+(ED$19*ED21)+(EE$19*EE21)+(EF$19*EF21)+(EG$19*EG21)+(EH$19*EH21)) -> 0 | EK21: 0 | EL21: 0 | EM21: 1 | EN21: 2 | FK21: =IF(OR('Set UP'!$C7=0,'Set UP'!$D7=0,'Set UP'!$E7=0),"",(EK$19*EK21)+(EL$19*EL21)+(EM$19*EM21)+(EN$19*EN21)+(EO$19*EO21)+(EP$19*EP21)+(EQ$19*EQ21)+(ER$19*ER21)+(ES$19*ES21)+(ET$19*ET21)+(EU$19*EU21)+(EV$19*EV21)+(EW$19*EW21)+(EX$19*EX21)+(EY$19*EY21)+(EZ$19*EZ21)+(FA$19*FA21)+(FB$19*FB21)+(FC$19*FC21)+(FD$19*FD21)+(FE$19*FE21)+(FF$19*FF21)+(FG$19*FG21)+(FH$19*FH21)+(FI$19*FI21)) -> 4.5 | GL21: =IF(OR('Set UP'!$C7=0,'Set UP'!$D7=0,'Set UP'!$E7=0),"",(FL$19*FL21)+(FM$19*FM21)+(FN$19*FN21)+(FO$19*FO21)+(FP$19*FP21)+(FQ$19*FQ21)+(FR$19*FR21)+(FS$19*FS21)+(FT$19*FT21)+(FU$19*FU21)+(FV$19*FV21)+(FW$19*FW21)+(FX$19*FX21)+(FY$19*FY21)+(FZ$19*FZ21)+(GA$19*GA21)+(GB$19*GB21)+(GC$19*GC21)+(GD$19*GD21)+(GE$19*GE21)+(GF$19*GF21)+(GG$19*GG21)+(GH$19*GH21)+(GI$19*GI21)+(GJ$19*GJ21)) -> 0 | HM21: =IF(OR('Set UP'!$C7=0,'Set UP'!$D7=0,'Set UP'!$E7=0),"",(GM$19*GM21)+(GN$19*GN21)+(GO$19*GO21)+(GP$19*GP21)+(GQ$19*GQ21)+(GR$19*GR21)+(GS$19*GS21)+(GT$19*GT21)+(GU$19*GU21)+(GV$19*GV21)+(GW$19*GW21)+(GX$19*GX21)+(GY$19*GY21)+(GZ$19*GZ21)+(HA$19*HA21)+(HB$19*HB21)+(HC$19*HC21)+(HD$19*HD21)+(HE$19*HE21)+(HF$19*HF21)+(HG$19*HG21)+(HH$19*HH21)+(HI$19*HI21)+(HJ$19*HJ21)+(HK$19*HK21)) -> 0 | IN21: =IF(OR('Set UP'!$C7=0,'Set UP'!$D7=0,'Set UP'!$E7=0),"",(HN$19*HN21)+(HO$19*HO21)+(HP$19*HP21)+(HQ$19*HQ21)+(HR$19*HR21)+(HS$19*HS21)+(HT$19*HT21)+(HU$19*HU21)+(HV$19*HV21)+(HW$19*HW21)+(HX$19*HX21)+(HY$19*HY21)+(HZ$19*HZ21)+(IA$19*IA21)+(IB$19*IB21)+(IC$19*IC21)+(ID$19*ID21)+(IE$19*IE21)+(IF$19*IF21)+(IG$19*IG21)+(IH$19*IH21)+(II$19*II21)+(IJ$19*IJ21)+(IK$19*IK21)+(IL$19*IL21)) -> 0 | JO21: =IF(OR('Set UP'!$C7=0,'Set UP'!$D7=0,'Set UP'!$E7=0),"",(IO$19*IO21)+(IP$19*IP21)+(IQ$19*IQ21)+(IR$19*IR21)+(IS$19*IS21)+(IT$19*IT21)+(IU$19*IU21)+(IV$19*IV21)+(IW$19*IW21)+(IX$19*IX21)+(IY$19*IY21)+(IZ$19*IZ21)+(JA$19*JA21)+(JB$19*JB21)+(JC$19*JC21)+(JD$19*JD21)+(JE$19*JE21)+(JF$19*JF21)+(JG$19*JG21)+(JH$19*JH21)+(JI$19*JI21)+(JJ$19*JJ21)+(JK$19*JK21)+(JL$19*JL21)+(JM$19*JM21)) -> 0 | JP21: =IF(OR('Set UP'!$C7=0,'Set UP'!$D7=0,'Set UP'!$E7=0),"",(AF21+BG21+CH21+DI21+EJ21+FK21+GL21+HM21+IN21+JO21)) -> 99.5 | JQ21: =IF(OR('Set UP'!$C7=0,'Set UP'!$D7=0,'Set UP'!$E7=0),"",RANK(JP21,$JP$21:$JP$60,0)) -> 27 | JR21: =IF(OR('Set UP'!K7<>1,'Set UP'!C7=0,'Set UP'!D7=0,'Set UP'!E7=0,'Set UP'!F7=0),"",$JP21) ->  | JS21: =IF(OR('Set UP'!K7<>1,'Set UP'!C7=0,'Set UP'!D7=0,'Set UP'!E7=0,'Set UP'!F7=0),"",RANK(JR21,$JR$21:$JR$60,0)) ->  | JT21: =IF(OR('Set UP'!K7<>2,'Set UP'!C7=0,'Set UP'!D7=0,'Set UP'!E7=0,'Set UP'!F7=0),"",$JP21) ->  | JU21: =IF(OR('Set UP'!K7<>2,'Set UP'!C7=0,'Set UP'!D7=0,'Set UP'!E7=0,'Set UP'!F7=0),"",RANK(JT21,$JT$21:$JT$60,0)) ->  | JV21: =IF(OR('Set UP'!F7<>"F",'Set UP'!C7=0,'Set UP'!D7=0,'Set UP'!E7=0),"",$JP21) ->  | JW21: =IF(OR('Set UP'!F7<>"F",'Set UP'!C7=0,'Set UP'!D7=0,'Set UP'!E7=0),"",RANK(JV21,$JV$21:$JV$60,0)) ->  | JX21: =IF(OR('Set UP'!F7<>"NS",'Set UP'!C7=0,'Set UP'!D7=0,'Set UP'!E7=0),"",$JP21) -> 99.5 | JY21: =IF(OR('Set UP'!F7<>"NS",'Set UP'!C7=0,'Set UP'!D7=0,'Set UP'!E7=0),"",RANK(JX21,$JX$21:$JX$60,0)) -> 5 | JZ21: =IF(OR('Set UP'!$C7=0,'Set UP'!$D7=0,'Set UP'!$E7=0,JP21=0),"",JP21/MAX(JP$21:JP$60)*1000) -> 337.2881356
B22: 2 | C22: =IF(OR('Set UP'!$C8=0,'Set UP'!$D8=0,'Set UP'!$E8=0,'Set UP'!F8=0)," --",'Set UP'!C8) -> 1419 | D22: =IF(OR('Set UP'!$C8=0,'Set UP'!$D8=0,'Set UP'!$E8=0,'Set UP'!F8=0)," --",'Set UP'!D8&" "&'Set UP'!E8) -> Bradford On Avon Lifesaving Club A | E22: =IF(OR('Set UP'!$C8=0,'Set UP'!$D8=0,'Set UP'!$E8=0,'Set UP'!F8=0)," --",'Set UP'!F8) -> NS | F22: 5 | G22: 6 | H22: 3 | I22: 8 | J22: 0 | K22: 4 | L22: 5 | AF22: =IF(OR('Set UP'!$C8=0,'Set UP'!$D8=0,'Set UP'!$E8=0),"",(F$19*F22)+(G$19*G22)+(H$19*H22)+(I$19*I22)+(J$19*J22)+(K$19*K22)+(L$19*L22)+(M$19*M22)+(N$19*N22)+(O$19*O22)+(P$19*P22)+(Q$19*Q22)+(R$19*R22)+(S$19*S22)+(T$19*T22)+(U$19*U22)+(V$19*V22)+(W$19*W22)+(X$19*X22)+(Y$19*Y22)+(Z$19*Z22)+(AA$19*AA22)+(AB$19*AB22)+(AC$19*AC22)+(AD$19*AD22)) -> 37.5 | AG22: 5 | AH22: 7 | AI22: 7 | AJ22: 7 | AK22: 2 | AL22: 9 | AM22: 0 | AN22: 8 | BG22: =IF(OR('Set UP'!$C8=0,'Set UP'!$D8=0,'Set UP'!$E8=0),"",(AG$19*AG22)+(AH$19*AH22)+(AI$19*AI22)+(AJ$19*AJ22)+(AK$19*AK22)+(AL$19*AL22)+(AM$19*AM22)+(AN$19*AN22)+(AO$19*AO22)+(AP$19*AP22)+(AQ$19*AQ22)+(AR$19*AR22)+(AS$19*AS22)+(AT$19*AT22)+(AU$19*AU22)+(AV$19*AV22)+(AW$19*AW22)+(AX$19*AX22)+(AY$19*AY22)+(AZ$19*AZ22)+(BA$19*BA22)+(BB$19*BB22)+(BC$19*BC22)+(BD$19*BD22)+(BE$19*BE22)) -> 47 | BH22: 8 | BI22: 2 | BJ22: 0 | BK22: 2 | BL22: 8 | BM22: 5 | BN22: 0 | CH22: =IF(OR('Set UP'!$C8=0,'Set UP'!$D8=0,'Set UP'!$E8=0),"",(BH$19*BH22)+(BI$19*BI22)+(BJ$19*BJ22)+(BK$19*BK22)+(BL$19*BL22)+(BM$19*BM22)+(BN$19*BN22)+(BO$19*BO22)+(BP$19*BP22)+(BQ$19*BQ22)+(BR$19*BR22)+(BS$19*BS22)+(BT$19*BT22)+(BU$19*BU22)+(BV$19*BV22)+(BW$19*BW22)+(BX$19*BX22)+(BY$19*BY22)+(BZ$19*BZ22)+(CA$19*CA22)+(CB$19*CB22)+(CC$19*CC22)+(CD$19*CD22)+(CE$19*CE22)+(CF$19*CF22)) -> 28.5 | CI22: 6 | CJ22: 9 | CK22: 5 | CL22: 0 | CM22: 4 | CN22: 2 | CO22: 4 | DI22: =IF(OR('Set UP'!$C8=0,'Set UP'!$D8=0,'Set UP'!$E8=0),"",(CI$19*CI22)+(CJ$19*CJ22)+(CK$19*CK22)+(CL$19*CL22)+(CM$19*CM22)+(CN$19*CN22)+(CO$19*CO22)+(CP$19*CP22)+(CQ$19*CQ22)+(CR$19*CR22)+(CS$19*CS22)+(CT$19*CT22)+(CU$19*CU22)+(CV$19*CV22)+(CW$19*CW22)+(CX$19*CX22)+(CY$19*CY22)+(CZ$19*CZ22)+(DA$19*DA22)+(DB$19*DB22)+(DC$19*DC22)+(DD$19*DD22)+(DE$19*DE22)+(DF$19*DF22)+(DG$19*DG22)) -> 42 | DJ22: 0 | DK22: 0 | DL22: 0 | DM22: 10 | DN22: 0 | DO22: 0 | DP22: 0 | DQ22: 0 | DR22: 0 | DS22: 10 | EJ22: =IF(OR('Set UP'!$C8=0,'Set UP'!$D8=0,'Set UP'!$E8=0),"",(DJ$19*DJ22)+(DK$19*DK22)+(DL$19*DL22)+(DM$19*DM22)+(DN$19*DN22)+(DO$19*DO22)+(DP$19*DP22)+(DQ$19*DQ22)+(DR$19*DR22)+(DS$19*DS22)+(DT$19*DT22)+(DU$19*DU22)+(DV$19*DV22)+(DW$19*DW22)+(DX$19*DX22)+(DY$19*DY22)+(DZ$19*DZ22)+(EA$19*EA22)+(EB$19*EB22)+(EC$19*EC22)+(ED$19*ED22)+(EE$19*EE22)+(EF$19*EF22)+(EG$19*EG22)+(EH$19*EH22)) -> 13 | EK22: 4 | EL22: 5 | EM22: 5 | EN22: 6 | FK22: =IF(OR('Set UP'!$C8=0,'Set UP'!$D8=0,'Set UP'!$E8=0),"",(EK$19*EK22)+(EL$19*EL22)+(EM$19*EM22)+(EN$19*EN22)+(EO$19*EO22)+(EP$19*EP22)+(EQ$19*EQ22)+(ER$19*ER22)+(ES$19*ES22)+(ET$19*ET22)+(EU$19*EU22)+(EV$19*EV22)+(EW$19*EW22)+(EX$19*EX22)+(EY$19*EY22)+(EZ$19*EZ22)+(FA$19*FA22)+(FB$19*FB22)+(FC$19*FC22)+(FD$19*FD22)+(FE$19*FE22)+(FF$19*FF22)+(FG$19*FG22)+(FH$19*FH22)+(FI$19*FI22)) -> 36 | GL22: =IF(OR('Set UP'!$C8=0,'Set UP'!$D8=0,'Set UP'!$E8=0),"",(FL$19*FL22)+(FM$19*FM22)+(FN$19*FN22)+(FO$19*FO22)+(FP$19*FP22)+(FQ$19*FQ22)+(FR$19*FR22)+(FS$19*FS22)+(FT$19*FT22)+(FU$19*FU22)+(FV$19*FV22)+(FW$19*FW22)+(FX$19*FX22)+(FY$19*FY22)+(FZ$19*FZ22)+(GA$19*GA22)+(GB$19*GB22)+(GC$19*GC22)+(GD$19*GD22)+(GE$19*GE22)+(GF$19*GF22)+(GG$19*GG22)+(GH$19*GH22)+(GI$19*GI22)+(GJ$19*GJ22)) -> 0 | HM22: =IF(OR('Set UP'!$C8=0,'Set UP'!$D8=0,'Set UP'!$E8=0),"",(GM$19*GM22)+(GN$19*GN22)+(GO$19*GO22)+(GP$19*GP22)+(GQ$19*GQ22)+(GR$19*GR22)+(GS$19*GS22)+(GT$19*GT22)+(GU$19*GU22)+(GV$19*GV22)+(GW$19*GW22)+(GX$19*GX22)+(GY$19*GY22)+(GZ$19*GZ22)+(HA$19*HA22)+(HB$19*HB22)+(HC$19*HC22)+(HD$19*HD22)+(HE$19*HE22)+(HF$19*HF22)+(HG$19*HG22)+(HH$19*HH22)+(HI$19*HI22)+(HJ$19*HJ22)+(HK$19*HK22)) -> 0 | IN22: =IF(OR('Set UP'!$C8=0,'Set UP'!$D8=0,'Set UP'!$E8=0),"",(HN$19*HN22)+(HO$19*HO22)+(HP$19*HP22)+(HQ$19*HQ22)+(HR$19*HR22)+(HS$19*HS22)+(HT$19*HT22)+(HU$19*HU22)+(HV$19*HV22)+(HW$19*HW22)+(HX$19*HX22)+(HY$19*HY22)+(HZ$19*HZ22)+(IA$19*IA22)+(IB$19*IB22)+(IC$19*IC22)+(ID$19*ID22)+(IE$19*IE22)+(IF$19*IF22)+(IG$19*IG22)+(IH$19*IH22)+(II$19*II22)+(IJ$19*IJ22)+(IK$19*IK22)+(IL$19*IL22)) -> 0 | JO22: =IF(OR('Set UP'!$C8=0,'Set UP'!$D8=0,'Set UP'!$E8=0),"",(IO$19*IO22)+(IP$19*IP22)+(IQ$19*IQ22)+(IR$19*IR22)+(IS$19*IS22)+(IT$19*IT22)+(IU$19*IU22)+(IV$19*IV22)+(IW$19*IW22)+(IX$19*IX22)+(IY$19*IY22)+(IZ$19*IZ22)+(JA$19*JA22)+(JB$19*JB22)+(JC$19*JC22)+(JD$19*JD22)+(JE$19*JE22)+(JF$19*JF22)+(JG$19*JG22)+(JH$19*JH22)+(JI$19*JI22)+(JJ$19*JJ22)+(JK$19*JK22)+(JL$19*JL22)+(JM$19*JM22)) -> 0 | JP22: =IF(OR('Set UP'!$C8=0,'Set UP'!$D8=0,'Set UP'!$E8=0),"",(AF22+BG22+CH22+DI22+EJ22+FK22+GL22+HM22+IN22+JO22)) -> 204 | JQ22: =IF(OR('Set UP'!$C8=0,'Set UP'!$D8=0,'Set UP'!$E8=0),"",RANK(JP22,$JP$21:$JP$60,0)) -> 16 | JR22: =IF(OR('Set UP'!K8<>1,'Set UP'!C8=0,'Set UP'!D8=0,'Set UP'!E8=0,'Set UP'!F8=0),"",$JP22) ->  | JS22: =IF(OR('Set UP'!K8<>1,'Set UP'!C8=0,'Set UP'!D8=0,'Set UP'!E8=0,'Set UP'!F8=0),"",RANK(JR22,$JR$21:$JR$60,0)) ->  | JT22: =IF(OR('Set UP'!K8<>2,'Set UP'!C8=0,'Set UP'!D8=0,'Set UP'!E8=0,'Set UP'!F8=0),"",$JP22) ->  | JU22: =IF(OR('Set UP'!K8<>2,'Set UP'!C8=0,'Set UP'!D8=0,'Set UP'!E8=0,'Set UP'!F8=0),"",RANK(JT22,$JT$21:$JT$60,0)) ->  | JV22: =IF(OR('Set UP'!F8<>"F",'Set UP'!C8=0,'Set UP'!D8=0,'Set UP'!E8=0),"",$JP22) ->  | JW22: =IF(OR('Set UP'!F8<>"F",'Set UP'!C8=0,'Set UP'!D8=0,'Set UP'!E8=0),"",RANK(JV22,$JV$21:$JV$60,0)) ->  | JX22: =IF(OR('Set UP'!F8<>"NS",'Set UP'!C8=0,'Set UP'!D8=0,'Set UP'!E8=0),"",$JP22) -> 204 | JY22: =IF(OR('Set UP'!F8<>"NS",'Set UP'!C8=0,'Set UP'!D8=0,'Set UP'!E8=0),"",RANK(JX22,$JX$21:$JX$60,0)) -> 2 | JZ22: =IF(OR('Set UP'!$C8=0,'Set UP'!$D8=0,'Set UP'!$E8=0,JP22=0),"",JP22/MAX(JP$21:JP$60)*1000) -> 691.5254237
B23: 3 | C23: =IF(OR('Set UP'!$C9=0,'Set UP'!$D9=0,'Set UP'!$E9=0,'Set UP'!F9=0)," --",'Set UP'!C9) -> 1417 | D23: =IF(OR('Set UP'!$C9=0,'Set UP'!$D9=0,'Set UP'!$E9=0,'Set UP'!F9=0)," --",'Set UP'!D9&" "&'Set UP'!E9) -> Bradford On Avon Lifesaving Club C | E23: =IF(OR('Set UP'!$C9=0,'Set UP'!$D9=0,'Set UP'!$E9=0,'Set UP'!F9=0)," --",'Set UP'!F9) -> NS | F23: 0 | G23: 0 | H23: 0 | I23: 5 | J23: 0 | K23: 6 | L23: 0 | AF23: =IF(OR('Set UP'!$C9=0,'Set UP'!$D9=0,'Set UP'!$E9=0),"",(F$19*F23)+(G$19*G23)+(H$19*H23)+(I$19*I23)+(J$19*J23)+(K$19*K23)+(L$19*L23)+(M$19*M23)+(N$19*N23)+(O$19*O23)+(P$19*P23)+(Q$19*Q23)+(R$19*R23)+(S$19*S23)+(T$19*T23)+(U$19*U23)+(V$19*V23)+(W$19*W23)+(X$19*X23)+(Y$19*Y23)+(Z$19*Z23)+(AA$19*AA23)+(AB$19*AB23)+(AC$19*AC23)+(AD$19*AD23)) -> 14 | AG23: 2 | AH23: 2 | AI23: 0 | AJ23: 7 | AK23: 1 | AL23: 2 | AM23: 0 | AN23: 0 | BG23: =IF(OR('Set UP'!$C9=0,'Set UP'!$D9=0,'Set UP'!$E9=0),"",(AG$19*AG23)+(AH$19*AH23)+(AI$19*AI23)+(AJ$19*AJ23)+(AK$19*AK23)+(AL$19*AL23)+(AM$19*AM23)+(AN$19*AN23)+(AO$19*AO23)+(AP$19*AP23)+(AQ$19*AQ23)+(AR$19*AR23)+(AS$19*AS23)+(AT$19*AT23)+(AU$19*AU23)+(AV$19*AV23)+(AW$19*AW23)+(AX$19*AX23)+(AY$19*AY23)+(AZ$19*AZ23)+(BA$19*BA23)+(BB$19*BB23)+(BC$19*BC23)+(BD$19*BD23)+(BE$19*BE23)) -> 18.5 | BH23: 8 | BI23: 2 | BJ23: 0 | BK23: 0 | BL23: 6 | BM23: 7 | BN23: 0 | CH23: =IF(OR('Set UP'!$C9=0,'Set UP'!$D9=0,'Set UP'!$E9=0),"",(BH$19*BH23)+(BI$19*BI23)+(BJ$19*BJ23)+(BK$19*BK23)+(BL$19*BL23)+(BM$19*BM23)+(BN$19*BN23)+(BO$19*BO23)+(BP$19*BP23)+(BQ$19*BQ23)+(BR$19*BR23)+(BS$19*BS23)+(BT$19*BT23)+(BU$19*BU23)+(BV$19*BV23)+(BW$19*BW23)+(BX$19*BX23)+(BY$19*BY23)+(BZ$19*BZ23)+(CA$19*CA23)+(CB$19*CB23)+(CC$19*CC23)+(CD$19*CD23)+(CE$19*CE23)+(CF$19*CF23)) -> 27.5 | CI23: 4 | CJ23: 9 | CK23: 7 | CL23: 0 | CM23: 7 | CN23: 5 | CO23: 1 | DI23: =IF(OR('Set UP'!$C9=0,'Set UP'!$D9=0,'Set UP'!$E9=0),"",(CI$19*CI23)+(CJ$19*CJ23)+(CK$19*CK23)+(CL$19*CL23)+(CM$19*CM23)+(CN$19*CN23)+(CO$19*CO23)+(CP$19*CP23)+(CQ$19*CQ23)+(CR$19*CR23)+(CS$19*CS23)+(CT$19*CT23)+(CU$19*CU23)+(CV$19*CV23)+(CW$19*CW23)+(CX$19*CX23)+(CY$19*CY23)+(CZ$19*CZ23)+(DA$19*DA23)+(DB$19*DB23)+(DC$19*DC23)+(DD$19*DD23)+(DE$19*DE23)+(DF$19*DF23)+(DG$19*DG23)) -> 44 | DJ23: 10 | DK23: 0 | DL23: 0 | DM23: 5 | DN23: 10 | DO23: 0 | DP23: 0 | DQ23: 0 | DR23: 0 | DS23: 0 | EJ23: =IF(OR('Set UP'!$C9=0,'Set UP'!$D9=0,'Set UP'!$E9=0),"",(DJ$19*DJ23)+(DK$19*DK23)+(DL$19*DL23)+(DM$19*DM23)+(DN$19*DN23)+(DO$19*DO23)+(DP$19*DP23)+(DQ$19*DQ23)+(DR$19*DR23)+(DS$19*DS23)+(DT$19*DT23)+(DU$19*DU23)+(DV$19*DV23)+(DW$19*DW23)+(DX$19*DX23)+(DY$19*DY23)+(DZ$19*DZ23)+(EA$19*EA23)+(EB$19*EB23)+(EC$19*EC23)+(ED$19*ED23)+(EE$19*EE23)+(EF$19*EF23)+(EG$19*EG23)+(EH$19*EH23)) -> 25 | EK23: 6 | EL23: 3 | EM23: 4 | EN23: 8 | FK23: =IF(OR('Set UP'!$C9=0,'Set UP'!$D9=0,'Set UP'!$E9=0),"",(EK$19*EK23)+(EL$19*EL23)+(EM$19*EM23)+(EN$19*EN23)+(EO$19*EO23)+(EP$19*EP23)+(EQ$19*EQ23)+(ER$19*ER23)+(ES$19*ES23)+(ET$19*ET23)+(EU$19*EU23)+(EV$19*EV23)+(EW$19*EW23)+(EX$19*EX23)+(EY$19*EY23)+(EZ$19*EZ23)+(FA$19*FA23)+(FB$19*FB23)+(FC$19*FC23)+(FD$19*FD23)+(FE$19*FE23)+(FF$19*FF23)+(FG$19*FG23)+(FH$19*FH23)+(FI$19*FI23)) -> 40.5 | GL23: =IF(OR('Set UP'!$C9=0,'Set UP'!$D9=0,'Set UP'!$E9=0),"",(FL$19*FL23)+(FM$19*FM23)+(FN$19*FN23)+(FO$19*FO23)+(FP$19*FP23)+(FQ$19*FQ23)+(FR$19*FR23)+(FS$19*FS23)+(FT$19*FT23)+(FU$19*FU23)+(FV$19*FV23)+(FW$19*FW23)+(FX$19*FX23)+(FY$19*FY23)+(FZ$19*FZ23)+(GA$19*GA23)+(GB$19*GB23)+(GC$19*GC23)+(GD$19*GD23)+(GE$19*GE23)+(GF$19*GF23)+(GG$19*GG23)+(GH$19*GH23)+(GI$19*GI23)+(GJ$19*GJ23)) -> 0 | HM23: =IF(OR('Set UP'!$C9=0,'Set UP'!$D9=0,'Set UP'!$E9=0),"",(GM$19*GM23)+(GN$19*GN23)+(GO$19*GO23)+(GP$19*GP23)+(GQ$19*GQ23)+(GR$19*GR23)+(GS$19*GS23)+(GT$19*GT23)+(GU$19*GU23)+(GV$19*GV23)+(GW$19*GW23)+(GX$19*GX23)+(GY$19*GY23)+(GZ$19*GZ23)+(HA$19*HA23)+(HB$19*HB23)+(HC$19*HC23)+(HD$19*HD23)+(HE$19*HE23)+(HF$19*HF23)+(HG$19*HG23)+(HH$19*HH23)+(HI$19*HI23)+(HJ$19*HJ23)+(HK$19*HK23)) -> 0 | IN23: =IF(OR('Set UP'!$C9=0,'Set UP'!$D9=0,'Set UP'!$E9=0),"",(HN$19*HN23)+(HO$19*HO23)+(HP$19*HP23)+(HQ$19*HQ23)+(HR$19*HR23)+(HS$19*HS23)+(HT$19*HT23)+(HU$19*HU23)+(HV$19*HV23)+(HW$19*HW23)+(HX$19*HX23)+(HY$19*HY23)+(HZ$19*HZ23)+(IA$19*IA23)+(IB$19*IB23)+(IC$19*IC23)+(ID$19*ID23)+(IE$19*IE23)+(IF$19*IF23)+(IG$19*IG23)+(IH$19*IH23)+(II$19*II23)+(IJ$19*IJ23)+(IK$19*IK23)+(IL$19*IL23)) -> 0 | JO23: =IF(OR('Set UP'!$C9=0,'Set UP'!$D9=0,'Set UP'!$E9=0),"",(IO$19*IO23)+(IP$19*IP23)+(IQ$19*IQ23)+(IR$19*IR23)+(IS$19*IS23)+(IT$19*IT23)+(IU$19*IU23)+(IV$19*IV23)+(IW$19*IW23)+(IX$19*IX23)+(IY$19*IY23)+(IZ$19*IZ23)+(JA$19*JA23)+(JB$19*JB23)+(JC$19*JC23)+(JD$19*JD23)+(JE$19*JE23)+(JF$19*JF23)+(JG$19*JG23)+(JH$19*JH23)+(JI$19*JI23)+(JJ$19*JJ23)+(JK$19*JK23)+(JL$19*JL23)+(JM$19*JM23)) -> 0 | JP23: =IF(OR('Set UP'!$C9=0,'Set UP'!$D9=0,'Set UP'!$E9=0),"",(AF23+BG23+CH23+DI23+EJ23+FK23+GL23+HM23+IN23+JO23)) -> 169.5 | JQ23: =IF(OR('Set UP'!$C9=0,'Set UP'!$D9=0,'Set UP'!$E9=0),"",RANK(JP23,$JP$21:$JP$60,0)) -> 23 | JR23: =IF(OR('Set UP'!K9<>1,'Set UP'!C9=0,'Set UP'!D9=0,'Set UP'!E9=0,'Set UP'!F9=0),"",$JP23) ->  | JS23: =IF(OR('Set UP'!K9<>1,'Set UP'!C9=0,'Set UP'!D9=0,'Set UP'!E9=0,'Set UP'!F9=0),"",RANK(JR23,$JR$21:$JR$60,0)) ->  | JT23: =IF(OR('Set UP'!K9<>2,'Set UP'!C9=0,'Set UP'!D9=0,'Set UP'!E9=0,'Set UP'!F9=0),"",$JP23) ->  | JU23: =IF(OR('Set UP'!K9<>2,'Set UP'!C9=0,'Set UP'!D9=0,'Set UP'!E9=0,'Set UP'!F9=0),"",RANK(JT23,$JT$21:$JT$60,0)) ->  | JV23: =IF(OR('Set UP'!F9<>"F",'Set UP'!C9=0,'Set UP'!D9=0,'Set UP'!E9=0),"",$JP23) ->  | JW23: =IF(OR('Set UP'!F9<>"F",'Set UP'!C9=0,'Set UP'!D9=0,'Set UP'!E9=0),"",RANK(JV23,$JV$21:$JV$60,0)) ->  | JX23: =IF(OR('Set UP'!F9<>"NS",'Set UP'!C9=0,'Set UP'!D9=0,'Set UP'!E9=0),"",$JP23) -> 169.5 | JY23: =IF(OR('Set UP'!F9<>"NS",'Set UP'!C9=0,'Set UP'!D9=0,'Set UP'!E9=0),"",RANK(JX23,$JX$21:$JX$60,0)) -> 4 | JZ23: =IF(OR('Set UP'!$C9=0,'Set UP'!$D9=0,'Set UP'!$E9=0,JP23=0),"",JP23/MAX(JP$21:JP$60)*1000) -> 574.5762712
B24: 4 | C24: =IF(OR('Set UP'!$C10=0,'Set UP'!$D10=0,'Set UP'!$E10=0,'Set UP'!F10=0)," --",'Set UP'!C10) -> -- | D24: =IF(OR('Set UP'!$C10=0,'Set UP'!$D10=0,'Set UP'!$E10=0,'Set UP'!F10=0)," --",'Set UP'!D10&" "&'Set UP'!E10) -> -- | E24: =IF(OR('Set UP'!$C10=0,'Set UP'!$D10=0,'Set UP'!$E10=0,'Set UP'!F10=0)," --",'Set UP'!F10) -> -- | AF24: =IF(OR('Set UP'!$C10=0,'Set UP'!$D10=0,'Set UP'!$E10=0),"",(F$19*F24)+(G$19*G24)+(H$19*H24)+(I$19*I24)+(J$19*J24)+(K$19*K24)+(L$19*L24)+(M$19*M24)+(N$19*N24)+(O$19*O24)+(P$19*P24)+(Q$19*Q24)+(R$19*R24)+(S$19*S24)+(T$19*T24)+(U$19*U24)+(V$19*V24)+(W$19*W24)+(X$19*X24)+(Y$19*Y24)+(Z$19*Z24)+(AA$19*AA24)+(AB$19*AB24)+(AC$19*AC24)+(AD$19*AD24)) ->  | BG24: =IF(OR('Set UP'!$C10=0,'Set UP'!$D10=0,'Set UP'!$E10=0),"",(AG$19*AG24)+(AH$19*AH24)+(AI$19*AI24)+(AJ$19*AJ24)+(AK$19*AK24)+(AL$19*AL24)+(AM$19*AM24)+(AN$19*AN24)+(AO$19*AO24)+(AP$19*AP24)+(AQ$19*AQ24)+(AR$19*AR24)+(AS$19*AS24)+(AT$19*AT24)+(AU$19*AU24)+(AV$19*AV24)+(AW$19*AW24)+(AX$19*AX24)+(AY$19*AY24)+(AZ$19*AZ24)+(BA$19*BA24)+(BB$19*BB24)+(BC$19*BC24)+(BD$19*BD24)+(BE$19*BE24)) ->  | CH24: =IF(OR('Set UP'!$C10=0,'Set UP'!$D10=0,'Set UP'!$E10=0),"",(BH$19*BH24)+(BI$19*BI24)+(BJ$19*BJ24)+(BK$19*BK24)+(BL$19*BL24)+(BM$19*BM24)+(BN$19*BN24)+(BO$19*BO24)+(BP$19*BP24)+(BQ$19*BQ24)+(BR$19*BR24)+(BS$19*BS24)+(BT$19*BT24)+(BU$19*BU24)+(BV$19*BV24)+(BW$19*BW24)+(BX$19*BX24)+(BY$19*BY24)+(BZ$19*BZ24)+(CA$19*CA24)+(CB$19*CB24)+(CC$19*CC24)+(CD$19*CD24)+(CE$19*CE24)+(CF$19*CF24)) ->  | DI24: =IF(OR('Set UP'!$C10=0,'Set UP'!$D10=0,'Set UP'!$E10=0),"",(CI$19*CI24)+(CJ$19*CJ24)+(CK$19*CK24)+(CL$19*CL24)+(CM$19*CM24)+(CN$19*CN24)+(CO$19*CO24)+(CP$19*CP24)+(CQ$19*CQ24)+(CR$19*CR24)+(CS$19*CS24)+(CT$19*CT24)+(CU$19*CU24)+(CV$19*CV24)+(CW$19*CW24)+(CX$19*CX24)+(CY$19*CY24)+(CZ$19*CZ24)+(DA$19*DA24)+(DB$19*DB24)+(DC$19*DC24)+(DD$19*DD24)+(DE$19*DE24)+(DF$19*DF24)+(DG$19*DG24)) ->  | EJ24: =IF(OR('Set UP'!$C10=0,'Set UP'!$D10=0,'Set UP'!$E10=0),"",(DJ$19*DJ24)+(DK$19*DK24)+(DL$19*DL24)+(DM$19*DM24)+(DN$19*DN24)+(DO$19*DO24)+(DP$19*DP24)+(DQ$19*DQ24)+(DR$19*DR24)+(DS$19*DS24)+(DT$19*DT24)+(DU$19*DU24)+(DV$19*DV24)+(DW$19*DW24)+(DX$19*DX24)+(DY$19*DY24)+(DZ$19*DZ24)+(EA$19*EA24)+(EB$19*EB24)+(EC$19*EC24)+(ED$19*ED24)+(EE$19*EE24)+(EF$19*EF24)+(EG$19*EG24)+(EH$19*EH24)) ->  | FK24: =IF(OR('Set UP'!$C10=0,'Set UP'!$D10=0,'Set UP'!$E10=0),"",(EK$19*EK24)+(EL$19*EL24)+(EM$19*EM24)+(EN$19*EN24)+(EO$19*EO24)+(EP$19*EP24)+(EQ$19*EQ24)+(ER$19*ER24)+(ES$19*ES24)+(ET$19*ET24)+(EU$19*EU24)+(EV$19*EV24)+(EW$19*EW24)+(EX$19*EX24)+(EY$19*EY24)+(EZ$19*EZ24)+(FA$19*FA24)+(FB$19*FB24)+(FC$19*FC24)+(FD$19*FD24)+(FE$19*FE24)+(FF$19*FF24)+(FG$19*FG24)+(FH$19*FH24)+(FI$19*FI24)) ->  | GL24: =IF(OR('Set UP'!$C10=0,'Set UP'!$D10=0,'Set UP'!$E10=0),"",(FL$19*FL24)+(FM$19*FM24)+(FN$19*FN24)+(FO$19*FO24)+(FP$19*FP24)+(FQ$19*FQ24)+(FR$19*FR24)+(FS$19*FS24)+(FT$19*FT24)+(FU$19*FU24)+(FV$19*FV24)+(FW$19*FW24)+(FX$19*FX24)+(FY$19*FY24)+(FZ$19*FZ24)+(GA$19*GA24)+(GB$19*GB24)+(GC$19*GC24)+(GD$19*GD24)+(GE$19*GE24)+(GF$19*GF24)+(GG$19*GG24)+(GH$19*GH24)+(GI$19*GI24)+(GJ$19*GJ24)) ->  | HM24: =IF(OR('Set UP'!$C10=0,'Set UP'!$D10=0,'Set UP'!$E10=0),"",(GM$19*GM24)+(GN$19*GN24)+(GO$19*GO24)+(GP$19*GP24)+(GQ$19*GQ24)+(GR$19*GR24)+(GS$19*GS24)+(GT$19*GT24)+(GU$19*GU24)+(GV$19*GV24)+(GW$19*GW24)+(GX$19*GX24)+(GY$19*GY24)+(GZ$19*GZ24)+(HA$19*HA24)+(HB$19*HB24)+(HC$19*HC24)+(HD$19*HD24)+(HE$19*HE24)+(HF$19*HF24)+(HG$19*HG24)+(HH$19*HH24)+(HI$19*HI24)+(HJ$19*HJ24)+(HK$19*HK24)) ->  | IN24: =IF(OR('Set UP'!$C10=0,'Set UP'!$D10=0,'Set UP'!$E10=0),"",(HN$19*HN24)+(HO$19*HO24)+(HP$19*HP24)+(HQ$19*HQ24)+(HR$19*HR24)+(HS$19*HS24)+(HT$19*HT24)+(HU$19*HU24)+(HV$19*HV24)+(HW$19*HW24)+(HX$19*HX24)+(HY$19*HY24)+(HZ$19*HZ24)+(IA$19*IA24)+(IB$19*IB24)+(IC$19*IC24)+(ID$19*ID24)+(IE$19*IE24)+(IF$19*IF24)+(IG$19*IG24)+(IH$19*IH24)+(II$19*II24)+(IJ$19*IJ24)+(IK$19*IK24)+(IL$19*IL24)) ->  | JO24: =IF(OR('Set UP'!$C10=0,'Set UP'!$D10=0,'Set UP'!$E10=0),"",(IO$19*IO24)+(IP$19*IP24)+(IQ$19*IQ24)+(IR$19*IR24)+(IS$19*IS24)+(IT$19*IT24)+(IU$19*IU24)+(IV$19*IV24)+(IW$19*IW24)+(IX$19*IX24)+(IY$19*IY24)+(IZ$19*IZ24)+(JA$19*JA24)+(JB$19*JB24)+(JC$19*JC24)+(JD$19*JD24)+(JE$19*JE24)+(JF$19*JF24)+(JG$19*JG24)+(JH$19*JH24)+(JI$19*JI24)+(JJ$19*JJ24)+(JK$19*JK24)+(JL$19*JL24)+(JM$19*JM24)) ->  | JP24: =IF(OR('Set UP'!$C10=0,'Set UP'!$D10=0,'Set UP'!$E10=0),"",(AF24+BG24+CH24+DI24+EJ24+FK24+GL24+HM24+IN24+JO24)) ->  | JQ24: =IF(OR('Set UP'!$C10=0,'Set UP'!$D10=0,'Set UP'!$E10=0),"",RANK(JP24,$JP$21:$JP$60,0)) ->  | JR24: =IF(OR('Set UP'!K10<>1,'Set UP'!C10=0,'Set UP'!D10=0,'Set UP'!E10=0,'Set UP'!F10=0),"",$JP24) ->  | JS24: =IF(OR('Set UP'!K10<>1,'Set UP'!C10=0,'Set UP'!D10=0,'Set UP'!E10=0,'Set UP'!F10=0),"",RANK(JR24,$JR$21:$JR$60,0)) ->  | JT24: =IF(OR('Set UP'!K10<>2,'Set UP'!C10=0,'Set UP'!D10=0,'Set UP'!E10=0,'Set UP'!F10=0),"",$JP24) ->  | JU24: =IF(OR('Set UP'!K10<>2,'Set UP'!C10=0,'Set UP'!D10=0,'Set UP'!E10=0,'Set UP'!F10=0),"",RANK(JT24,$JT$21:$JT$60,0)) ->  | JV24: =IF(OR('Set UP'!F10<>"F",'Set UP'!C10=0,'Set UP'!D10=0,'Set UP'!E10=0),"",$JP24) ->  | JW24: =IF(OR('Set UP'!F10<>"F",'Set UP'!C10=0,'Set UP'!D10=0,'Set UP'!E10=0),"",RANK(JV24,$JV$21:$JV$60,0)) ->  | JX24: =IF(OR('Set UP'!F10<>"NS",'Set UP'!C10=0,'Set UP'!D10=0,'Set UP'!E10=0),"",$JP24) ->  | JY24: =IF(OR('Set UP'!F10<>"NS",'Set UP'!C10=0,'Set UP'!D10=0,'Set UP'!E10=0),"",RANK(JX24,$JX$21:$JX$60,0)) ->  | JZ24: =IF(OR('Set UP'!$C10=0,'Set UP'!$D10=0,'Set UP'!$E10=0,JP24=0),"",JP24/MAX(JP$21:JP$60)*1000) -> 
B25: 5 | C25: =IF(OR('Set UP'!$C11=0,'Set UP'!$D11=0,'Set UP'!$E11=0,'Set UP'!F11=0)," --",'Set UP'!C11) -> 1424 | D25: =IF(OR('Set UP'!$C11=0,'Set UP'!$D11=0,'Set UP'!$E11=0,'Set UP'!F11=0)," --",'Set UP'!D11&" "&'Set UP'!E11) -> Keynsham B | E25: =IF(OR('Set UP'!$C11=0,'Set UP'!$D11=0,'Set UP'!$E11=0,'Set UP'!F11=0)," --",'Set UP'!F11) -> NS | F25: 5 | G25: 4 | H25: 2 | I25: 5 | J25: 0 | K25: 6 | L25: 2 | AF25: =IF(OR('Set UP'!$C11=0,'Set UP'!$D11=0,'Set UP'!$E11=0),"",(F$19*F25)+(G$19*G25)+(H$19*H25)+(I$19*I25)+(J$19*J25)+(K$19*K25)+(L$19*L25)+(M$19*M25)+(N$19*N25)+(O$19*O25)+(P$19*P25)+(Q$19*Q25)+(R$19*R25)+(S$19*S25)+(T$19*T25)+(U$19*U25)+(V$19*V25)+(W$19*W25)+(X$19*X25)+(Y$19*Y25)+(Z$19*Z25)+(AA$19*AA25)+(AB$19*AB25)+(AC$19*AC25)+(AD$19*AD25)) -> 30 | AG25: 2 | AH25: 2 | AI25: 7 | AJ25: 8 | AK25: 8 | AL25: 5 | AM25: 0 | AN25: 7 | BG25: =IF(OR('Set UP'!$C11=0,'Set UP'!$D11=0,'Set UP'!$E11=0),"",(AG$19*AG25)+(AH$19*AH25)+(AI$19*AI25)+(AJ$19*AJ25)+(AK$19*AK25)+(AL$19*AL25)+(AM$19*AM25)+(AN$19*AN25)+(AO$19*AO25)+(AP$19*AP25)+(AQ$19*AQ25)+(AR$19*AR25)+(AS$19*AS25)+(AT$19*AT25)+(AU$19*AU25)+(AV$19*AV25)+(AW$19*AW25)+(AX$19*AX25)+(AY$19*AY25)+(AZ$19*AZ25)+(BA$19*BA25)+(BB$19*BB25)+(BC$19*BC25)+(BD$19*BD25)+(BE$19*BE25)) -> 47.5 | BH25: 8 | BI25: 2 | BJ25: 0 | BK25: 3 | BL25: 9 | BM25: 9 | BN25: 0 | CH25: =IF(OR('Set UP'!$C11=0,'Set UP'!$D11=0,'Set UP'!$E11=0),"",(BH$19*BH25)+(BI$19*BI25)+(BJ$19*BJ25)+(BK$19*BK25)+(BL$19*BL25)+(BM$19*BM25)+(BN$19*BN25)+(BO$19*BO25)+(BP$19*BP25)+(BQ$19*BQ25)+(BR$19*BR25)+(BS$19*BS25)+(BT$19*BT25)+(BU$19*BU25)+(BV$19*BV25)+(BW$19*BW25)+(BX$19*BX25)+(BY$19*BY25)+(BZ$19*BZ25)+(CA$19*CA25)+(CB$19*CB25)+(CC$19*CC25)+(CD$19*CD25)+(CE$19*CE25)+(CF$19*CF25)) -> 36.5 | CI25: 8 | CJ25: 6 | CK25: 7 | CL25: 8 | CM25: 8 | CN25: 4 | CO25: 5 | DI25: =IF(OR('Set UP'!$C11=0,'Set UP'!$D11=0,'Set UP'!$E11=0),"",(CI$19*CI25)+(CJ$19*CJ25)+(CK$19*CK25)+(CL$19*CL25)+(CM$19*CM25)+(CN$19*CN25)+(CO$19*CO25)+(CP$19*CP25)+(CQ$19*CQ25)+(CR$19*CR25)+(CS$19*CS25)+(CT$19*CT25)+(CU$19*CU25)+(CV$19*CV25)+(CW$19*CW25)+(CX$19*CX25)+(CY$19*CY25)+(CZ$19*CZ25)+(DA$19*DA25)+(DB$19*DB25)+(DC$19*DC25)+(DD$19*DD25)+(DE$19*DE25)+(DF$19*DF25)+(DG$19*DG25)) -> 56 | DJ25: 10 | DK25: 0 | DL25: 0 | DM25: 5 | DN25: 0 | DO25: 0 | DP25: 0 | DQ25: 0 | DR25: 0 | DS25: 0 | EJ25: =IF(OR('Set UP'!$C11=0,'Set UP'!$D11=0,'Set UP'!$E11=0),"",(DJ$19*DJ25)+(DK$19*DK25)+(DL$19*DL25)+(DM$19*DM25)+(DN$19*DN25)+(DO$19*DO25)+(DP$19*DP25)+(DQ$19*DQ25)+(DR$19*DR25)+(DS$19*DS25)+(DT$19*DT25)+(DU$19*DU25)+(DV$19*DV25)+(DW$19*DW25)+(DX$19*DX25)+(DY$19*DY25)+(DZ$19*DZ25)+(EA$19*EA25)+(EB$19*EB25)+(EC$19*EC25)+(ED$19*ED25)+(EE$19*EE25)+(EF$19*EF25)+(EG$19*EG25)+(EH$19*EH25)) -> 10 | EK25: 6 | EL25: 7 | EM25: 7 | EN25: 7 | FK25: =IF(OR('Set UP'!$C11=0,'Set UP'!$D11=0,'Set UP'!$E11=0),"",(EK$19*EK25)+(EL$19*EL25)+(EM$19*EM25)+(EN$19*EN25)+(EO$19*EO25)+(EP$19*EP25)+(EQ$19*EQ25)+(ER$19*ER25)+(ES$19*ES25)+(ET$19*ET25)+(EU$19*EU25)+(EV$19*EV25)+(EW$19*EW25)+(EX$19*EX25)+(EY$19*EY25)+(EZ$19*EZ25)+(FA$19*FA25)+(FB$19*FB25)+(FC$19*FC25)+(FD$19*FD25)+(FE$19*FE25)+(FF$19*FF25)+(FG$19*FG25)+(FH$19*FH25)+(FI$19*FI25)) -> 49.5 | GL25: =IF(OR('Set UP'!$C11=0,'Set UP'!$D11=0,'Set UP'!$E11=0),"",(FL$19*FL25)+(FM$19*FM25)+(FN$19*FN25)+(FO$19*FO25)+(FP$19*FP25)+(FQ$19*FQ25)+(FR$19*FR25)+(FS$19*FS25)+(FT$19*FT25)+(FU$19*FU25)+(FV$19*FV25)+(FW$19*FW25)+(FX$19*FX25)+(FY$19*FY25)+(FZ$19*FZ25)+(GA$19*GA25)+(GB$19*GB25)+(GC$19*GC25)+(GD$19*GD25)+(GE$19*GE25)+(GF$19*GF25)+(GG$19*GG25)+(GH$19*GH25)+(GI$19*GI25)+(GJ$19*GJ25)) -> 0 | HM25: =IF(OR('Set UP'!$C11=0,'Set UP'!$D11=0,'Set UP'!$E11=0),"",(GM$19*GM25)+(GN$19*GN25)+(GO$19*GO25)+(GP$19*GP25)+(GQ$19*GQ25)+(GR$19*GR25)+(GS$19*GS25)+(GT$19*GT25)+(GU$19*GU25)+(GV$19*GV25)+(GW$19*GW25)+(GX$19*GX25)+(GY$19*GY25)+(GZ$19*GZ25)+(HA$19*HA25)+(HB$19*HB25)+(HC$19*HC25)+(HD$19*HD25)+(HE$19*HE25)+(HF$19*HF25)+(HG$19*HG25)+(HH$19*HH25)+(HI$19*HI25)+(HJ$19*HJ25)+(HK$19*HK25)) -> 0 | IN25: =IF(OR('Set UP'!$C11=0,'Set UP'!$D11=0,'Set UP'!$E11=0),"",(HN$19*HN25)+(HO$19*HO25)+(HP$19*HP25)+(HQ$19*HQ25)+(HR$19*HR25)+(HS$19*HS25)+(HT$19*HT25)+(HU$19*HU25)+(HV$19*HV25)+(HW$19*HW25)+(HX$19*HX25)+(HY$19*HY25)+(HZ$19*HZ25)+(IA$19*IA25)+(IB$19*IB25)+(IC$19*IC25)+(ID$19*ID25)+(IE$19*IE25)+(IF$19*IF25)+(IG$19*IG25)+(IH$19*IH25)+(II$19*II25)+(IJ$19*IJ25)+(IK$19*IK25)+(IL$19*IL25)) -> 0 | JO25: =IF(OR('Set UP'!$C11=0,'Set UP'!$D11=0,'Set UP'!$E11=0),"",(IO$19*IO25)+(IP$19*IP25)+(IQ$19*IQ25)+(IR$19*IR25)+(IS$19*IS25)+(IT$19*IT25)+(IU$19*IU25)+(IV$19*IV25)+(IW$19*IW25)+(IX$19*IX25)+(IY$19*IY25)+(IZ$19*IZ25)+(JA$19*JA25)+(JB$19*JB25)+(JC$19*JC25)+(JD$19*JD25)+(JE$19*JE25)+(JF$19*JF25)+(JG$19*JG25)+(JH$19*JH25)+(JI$19*JI25)+(JJ$19*JJ25)+(JK$19*JK25)+(JL$19*JL25)+(JM$19*JM25)) -> 0 | JP25: =IF(OR('Set UP'!$C11=0,'Set UP'!$D11=0,'Set UP'!$E11=0),"",(AF25+BG25+CH25+DI25+EJ25+FK25+GL25+HM25+IN25+JO25)) -> 229.5 | JQ25: =IF(OR('Set UP'!$C11=0,'Set UP'!$D11=0,'Set UP'!$E11=0),"",RANK(JP25,$JP$21:$JP$60,0)) -> 14 | JR25: =IF(OR('Set UP'!K11<>1,'Set UP'!C11=0,'Set UP'!D11=0,'Set UP'!E11=0,'Set UP'!F11=0),"",$JP25) ->  | JS25: =IF(OR('Set UP'!K11<>1,'Set UP'!C11=0,'Set UP'!D11=0,'Set UP'!E11=0,'Set UP'!F11=0),"",RANK(JR25,$JR$21:$JR$60,0)) ->  | JT25: =IF(OR('Set UP'!K11<>2,'Set UP'!C11=0,'Set UP'!D11=0,'Set UP'!E11=0,'Set UP'!F11=0),"",$JP25) ->  | JU25: =IF(OR('Set UP'!K11<>2,'Set UP'!C11=0,'Set UP'!D11=0,'Set UP'!E11=0,'Set UP'!F11=0),"",RANK(JT25,$JT$21:$JT$60,0)) ->  | JV25: =IF(OR('Set UP'!F11<>"F",'Set UP'!C11=0,'Set UP'!D11=0,'Set UP'!E11=0),"",$JP25) ->  | JW25: =IF(OR('Set UP'!F11<>"F",'Set UP'!C11=0,'Set UP'!D11=0,'Set UP'!E11=0),"",RANK(JV25,$JV$21:$JV$60,0)) ->  | JX25: =IF(OR('Set UP'!F11<>"NS",'Set UP'!C11=0,'Set UP'!D11=0,'Set UP'!E11=0),"",$JP25) -> 229.5 | JY25: =IF(OR('Set UP'!F11<>"NS",'Set UP'!C11=0,'Set UP'!D11=0,'Set UP'!E11=0),"",RANK(JX25,$JX$21:$JX$60,0)) -> 1 | JZ25: =IF(OR('Set UP'!$C11=0,'Set UP'!$D11=0,'Set UP'!$E11=0,JP25=0),"",JP25/MAX(JP$21:JP$60)*1000) -> 777.9661017
B26: 6 | C26: =IF(OR('Set UP'!$C12=0,'Set UP'!$D12=0,'Set UP'!$E12=0,'Set UP'!F12=0)," --",'Set UP'!C12) -> 1423 | D26: =IF(OR('Set UP'!$C12=0,'Set UP'!$D12=0,'Set UP'!$E12=0,'Set UP'!F12=0)," --",'Set UP'!D12&" "&'Set UP'!E12) -> Keynsham A | E26: =IF(OR('Set UP'!$C12=0,'Set UP'!$D12=0,'Set UP'!$E12=0,'Set UP'!F12=0)," --",'Set UP'!F12) -> NS | F26: 5 | G26: 5 | H26: 0 | I26: 5 | J26: 0 | K26: 1 | L26: 0 | AF26: =IF(OR('Set UP'!$C12=0,'Set UP'!$D12=0,'Set UP'!$E12=0),"",(F$19*F26)+(G$19*G26)+(H$19*H26)+(I$19*I26)+(J$19*J26)+(K$19*K26)+(L$19*L26)+(M$19*M26)+(N$19*N26)+(O$19*O26)+(P$19*P26)+(Q$19*Q26)+(R$19*R26)+(S$19*S26)+(T$19*T26)+(U$19*U26)+(V$19*V26)+(W$19*W26)+(X$19*X26)+(Y$19*Y26)+(Z$19*Z26)+(AA$19*AA26)+(AB$19*AB26)+(AC$19*AC26)+(AD$19*AD26)) -> 19 | AG26: 2 | AH26: 4 | AI26: 4 | AJ26: 9 | AK26: 2 | AL26: 4 | AM26: 0 | AN26: 6 | BG26: =IF(OR('Set UP'!$C12=0,'Set UP'!$D12=0,'Set UP'!$E12=0),"",(AG$19*AG26)+(AH$19*AH26)+(AI$19*AI26)+(AJ$19*AJ26)+(AK$19*AK26)+(AL$19*AL26)+(AM$19*AM26)+(AN$19*AN26)+(AO$19*AO26)+(AP$19*AP26)+(AQ$19*AQ26)+(AR$19*AR26)+(AS$19*AS26)+(AT$19*AT26)+(AU$19*AU26)+(AV$19*AV26)+(AW$19*AW26)+(AX$19*AX26)+(AY$19*AY26)+(AZ$19*AZ26)+(BA$19*BA26)+(BB$19*BB26)+(BC$19*BC26)+(BD$19*BD26)+(BE$19*BE26)) -> 35.5 | BH26: 5 | BI26: 2 | BJ26: 0 | BK26: 2 | BL26: 6 | BM26: 5 | BN26: 0 | CH26: =IF(OR('Set UP'!$C12=0,'Set UP'!$D12=0,'Set UP'!$E12=0),"",(BH$19*BH26)+(BI$19*BI26)+(BJ$19*BJ26)+(BK$19*BK26)+(BL$19*BL26)+(BM$19*BM26)+(BN$19*BN26)+(BO$19*BO26)+(BP$19*BP26)+(BQ$19*BQ26)+(BR$19*BR26)+(BS$19*BS26)+(BT$19*BT26)+(BU$19*BU26)+(BV$19*BV26)+(BW$19*BW26)+(BX$19*BX26)+(BY$19*BY26)+(BZ$19*BZ26)+(CA$19*CA26)+(CB$19*CB26)+(CC$19*CC26)+(CD$19*CD26)+(CE$19*CE26)+(CF$19*CF26)) -> 23.5 | CI26: 6 | CJ26: 9 | CK26: 4 | CL26: 0 | CM26: 1 | CN26: 1 | CO26: 2 | DI26: =IF(OR('Set UP'!$C12=0,'Set UP'!$D12=0,'Set UP'!$E12=0),"",(CI$19*CI26)+(CJ$19*CJ26)+(CK$19*CK26)+(CL$19*CL26)+(CM$19*CM26)+(CN$19*CN26)+(CO$19*CO26)+(CP$19*CP26)+(CQ$19*CQ26)+(CR$19*CR26)+(CS$19*CS26)+(CT$19*CT26)+(CU$19*CU26)+(CV$19*CV26)+(CW$19*CW26)+(CX$19*CX26)+(CY$19*CY26)+(CZ$19*CZ26)+(DA$19*DA26)+(DB$19*DB26)+(DC$19*DC26)+(DD$19*DD26)+(DE$19*DE26)+(DF$19*DF26)+(DG$19*DG26)) -> 35 | DJ26: 10 | DK26: 0 | DL26: 0 | DM26: 0 | DN26: 5 | DO26: 5 | DP26: 0 | DQ26: 0 | DR26: 0 | DS26: 0 | EJ26: =IF(OR('Set UP'!$C12=0,'Set UP'!$D12=0,'Set UP'!$E12=0),"",(DJ$19*DJ26)+(DK$19*DK26)+(DL$19*DL26)+(DM$19*DM26)+(DN$19*DN26)+(DO$19*DO26)+(DP$19*DP26)+(DQ$19*DQ26)+(DR$19*DR26)+(DS$19*DS26)+(DT$19*DT26)+(DU$19*DU26)+(DV$19*DV26)+(DW$19*DW26)+(DX$19*DX26)+(DY$19*DY26)+(DZ$19*DZ26)+(EA$19*EA26)+(EB$19*EB26)+(EC$19*EC26)+(ED$19*ED26)+(EE$19*EE26)+(EF$19*EF26)+(EG$19*EG26)+(EH$19*EH26)) -> 17.5 | EK26: 6 | EL26: 9 | EM26: 6 | EN26: 6 | FK26: =IF(OR('Set UP'!$C12=0,'Set UP'!$D12=0,'Set UP'!$E12=0),"",(EK$19*EK26)+(EL$19*EL26)+(EM$19*EM26)+(EN$19*EN26)+(EO$19*EO26)+(EP$19*EP26)+(EQ$19*EQ26)+(ER$19*ER26)+(ES$19*ES26)+(ET$19*ET26)+(EU$19*EU26)+(EV$19*EV26)+(EW$19*EW26)+(EX$19*EX26)+(EY$19*EY26)+(EZ$19*EZ26)+(FA$19*FA26)+(FB$19*FB26)+(FC$19*FC26)+(FD$19*FD26)+(FE$19*FE26)+(FF$19*FF26)+(FG$19*FG26)+(FH$19*FH26)+(FI$19*FI26)) -> 49.5 | GL26: =IF(OR('Set UP'!$C12=0,'Set UP'!$D12=0,'Set UP'!$E12=0),"",(FL$19*FL26)+(FM$19*FM26)+(FN$19*FN26)+(FO$19*FO26)+(FP$19*FP26)+(FQ$19*FQ26)+(FR$19*FR26)+(FS$19*FS26)+(FT$19*FT26)+(FU$19*FU26)+(FV$19*FV26)+(FW$19*FW26)+(FX$19*FX26)+(FY$19*FY26)+(FZ$19*FZ26)+(GA$19*GA26)+(GB$19*GB26)+(GC$19*GC26)+(GD$19*GD26)+(GE$19*GE26)+(GF$19*GF26)+(GG$19*GG26)+(GH$19*GH26)+(GI$19*GI26)+(GJ$19*GJ26)) -> 0 | HM26: =IF(OR('Set UP'!$C12=0,'Set UP'!$D12=0,'Set UP'!$E12=0),"",(GM$19*GM26)+(GN$19*GN26)+(GO$19*GO26)+(GP$19*GP26)+(GQ$19*GQ26)+(GR$19*GR26)+(GS$19*GS26)+(GT$19*GT26)+(GU$19*GU26)+(GV$19*GV26)+(GW$19*GW26)+(GX$19*GX26)+(GY$19*GY26)+(GZ$19*GZ26)+(HA$19*HA26)+(HB$19*HB26)+(HC$19*HC26)+(HD$19*HD26)+(HE$19*HE26)+(HF$19*HF26)+(HG$19*HG26)+(HH$19*HH26)+(HI$19*HI26)+(HJ$19*HJ26)+(HK$19*HK26)) -> 0 | IN26: =IF(OR('Set UP'!$C12=0,'Set UP'!$D12=0,'Set UP'!$E12=0),"",(HN$19*HN26)+(HO$19*HO26)+(HP$19*HP26)+(HQ$19*HQ26)+(HR$19*HR26)+(HS$19*HS26)+(HT$19*HT26)+(HU$19*HU26)+(HV$19*HV26)+(HW$19*HW26)+(HX$19*HX26)+(HY$19*HY26)+(HZ$19*HZ26)+(IA$19*IA26)+(IB$19*IB26)+(IC$19*IC26)+(ID$19*ID26)+(IE$19*IE26)+(IF$19*IF26)+(IG$19*IG26)+(IH$19*IH26)+(II$19*II26)+(IJ$19*IJ26)+(IK$19*IK26)+(IL$19*IL26)) -> 0 | JO26: =IF(OR('Set UP'!$C12=0,'Set UP'!$D12=0,'Set UP'!$E12=0),"",(IO$19*IO26)+(IP$19*IP26)+(IQ$19*IQ26)+(IR$19*IR26)+(IS$19*IS26)+(IT$19*IT26)+(IU$19*IU26)+(IV$19*IV26)+(IW$19*IW26)+(IX$19*IX26)+(IY$19*IY26)+(IZ$19*IZ26)+(JA$19*JA26)+(JB$19*JB26)+(JC$19*JC26)+(JD$19*JD26)+(JE$19*JE26)+(JF$19*JF26)+(JG$19*JG26)+(JH$19*JH26)+(JI$19*JI26)+(JJ$19*JJ26)+(JK$19*JK26)+(JL$19*JL26)+(JM$19*JM26)) -> 0 | JP26: =IF(OR('Set UP'!$C12=0,'Set UP'!$D12=0,'Set UP'!$E12=0),"",(AF26+BG26+CH26+DI26+EJ26+FK26+GL26+HM26+IN26+JO26)) -> 180 | JQ26: =IF(OR('Set UP'!$C12=0,'Set UP'!$D12=0,'Set UP'!$E12=0),"",RANK(JP26,$JP$21:$JP$60,0)) -> 21 | JR26: =IF(OR('Set UP'!K12<>1,'Set UP'!C12=0,'Set UP'!D12=0,'Set UP'!E12=0,'Set UP'!F12=0),"",$JP26) ->  | JS26: =IF(OR('Set UP'!K12<>1,'Set UP'!C12=0,'Set UP'!D12=0,'Set UP'!E12=0,'Set UP'!F12=0),"",RANK(JR26,$JR$21:$JR$60,0)) ->  | JT26: =IF(OR('Set UP'!K12<>2,'Set UP'!C12=0,'Set UP'!D12=0,'Set UP'!E12=0,'Set UP'!F12=0),"",$JP26) ->  | JU26: =IF(OR('Set UP'!K12<>2,'Set UP'!C12=0,'Set UP'!D12=0,'Set UP'!E12=0,'Set UP'!F12=0),"",RANK(JT26,$JT$21:$JT$60,0)) ->  | JV26: =IF(OR('Set UP'!F12<>"F",'Set UP'!C12=0,'Set UP'!D12=0,'Set UP'!E12=0),"",$JP26) ->  | JW26: =IF(OR('Set UP'!F12<>"F",'Set UP'!C12=0,'Set UP'!D12=0,'Set UP'!E12=0),"",RANK(JV26,$JV$21:$JV$60,0)) ->  | JX26: =IF(OR('Set UP'!F12<>"NS",'Set UP'!C12=0,'Set UP'!D12=0,'Set UP'!E12=0),"",$JP26) -> 180 | JY26: =IF(OR('Set UP'!F12<>"NS",'Set UP'!C12=0,'Set UP'!D12=0,'Set UP'!E12=0),"",RANK(JX26,$JX$21:$JX$60,0)) -> 3 | JZ26: =IF(OR('Set UP'!$C12=0,'Set UP'!$D12=0,'Set UP'!$E12=0,JP26=0),"",JP26/MAX(JP$21:JP$60)*1000) -> 610.1694915
B27: 7 | C27: =IF(OR('Set UP'!$C13=0,'Set UP'!$D13=0,'Set UP'!$E13=0,'Set UP'!F13=0)," --",'Set UP'!C13) -> 1433 | D27: =IF(OR('Set UP'!$C13=0,'Set UP'!$D13=0,'Set UP'!$E13=0,'Set UP'!F13=0)," --",'Set UP'!D13&" "&'Set UP'!E13) -> University of Nottingham B | E27: =IF(OR('Set UP'!$C13=0,'Set UP'!$D13=0,'Set UP'!$E13=0,'Set UP'!F13=0)," --",'Set UP'!F13) -> S | F27: 5 | G27: 5 | H27: 0 | I27: 4 | J27: 0 | K27: 3 | L27: 0 | AF27: =IF(OR('Set UP'!$C13=0,'Set UP'!$D13=0,'Set UP'!$E13=0),"",(F$19*F27)+(G$19*G27)+(H$19*H27)+(I$19*I27)+(J$19*J27)+(K$19*K27)+(L$19*L27)+(M$19*M27)+(N$19*N27)+(O$19*O27)+(P$19*P27)+(Q$19*Q27)+(R$19*R27)+(S$19*S27)+(T$19*T27)+(U$19*U27)+(V$19*V27)+(W$19*W27)+(X$19*X27)+(Y$19*Y27)+(Z$19*Z27)+(AA$19*AA27)+(AB$19*AB27)+(AC$19*AC27)+(AD$19*AD27)) -> 21 | AG27: 0 | AH27: 4 | AI27: 3 | AJ27: 8 | AK27: 0 | AL27: 3 | AM27: 0 | AN27: 5 | BG27: =IF(OR('Set UP'!$C13=0,'Set UP'!$D13=0,'Set UP'!$E13=0),"",(AG$19*AG27)+(AH$19*AH27)+(AI$19*AI27)+(AJ$19*AJ27)+(AK$19*AK27)+(AL$19*AL27)+(AM$19*AM27)+(AN$19*AN27)+(AO$19*AO27)+(AP$19*AP27)+(AQ$19*AQ27)+(AR$19*AR27)+(AS$19*AS27)+(AT$19*AT27)+(AU$19*AU27)+(AV$19*AV27)+(AW$19*AW27)+(AX$19*AX27)+(AY$19*AY27)+(AZ$19*AZ27)+(BA$19*BA27)+(BB$19*BB27)+(BC$19*BC27)+(BD$19*BD27)+(BE$19*BE27)) -> 25.5 | BH27: 5 | BI27: 0 | BJ27: 0 | BK27: 0 | BL27: 9 | BM27: 6 | BN27: 0 | CH27: =IF(OR('Set UP'!$C13=0,'Set UP'!$D13=0,'Set UP'!$E13=0),"",(BH$19*BH27)+(BI$19*BI27)+(BJ$19*BJ27)+(BK$19*BK27)+(BL$19*BL27)+(BM$19*BM27)+(BN$19*BN27)+(BO$19*BO27)+(BP$19*BP27)+(BQ$19*BQ27)+(BR$19*BR27)+(BS$19*BS27)+(BT$19*BT27)+(BU$19*BU27)+(BV$19*BV27)+(BW$19*BW27)+(BX$19*BX27)+(BY$19*BY27)+(BZ$19*BZ27)+(CA$19*CA27)+(CB$19*CB27)+(CC$19*CC27)+(CD$19*CD27)+(CE$19*CE27)+(CF$19*CF27)) -> 23 | CI27: 7 | CJ27: 7 | CK27: 6 | CL27: 7 | CM27: 7 | CN27: 2 | CO27: 2 | DI27: =IF(OR('Set UP'!$C13=0,'Set UP'!$D13=0,'Set UP'!$E13=0),"",(CI$19*CI27)+(CJ$19*CJ27)+(CK$19*CK27)+(CL$19*CL27)+(CM$19*CM27)+(CN$19*CN27)+(CO$19*CO27)+(CP$19*CP27)+(CQ$19*CQ27)+(CR$19*CR27)+(CS$19*CS27)+(CT$19*CT27)+(CU$19*CU27)+(CV$19*CV27)+(CW$19*CW27)+(CX$19*CX27)+(CY$19*CY27)+(CZ$19*CZ27)+(DA$19*DA27)+(DB$19*DB27)+(DC$19*DC27)+(DD$19*DD27)+(DE$19*DE27)+(DF$19*DF27)+(DG$19*DG27)) -> 48.5 | DJ27: 10 | DK27: 0 | DL27: 0 | DM27: 10 | DN27: 10 | DO27: 10 | DP27: 7 | DQ27: 4 | DR27: 0 | DS27: 5 | EJ27: =IF(OR('Set UP'!$C13=0,'Set UP'!$D13=0,'Set UP'!$E13=0),"",(DJ$19*DJ27)+(DK$19*DK27)+(DL$19*DL27)+(DM$19*DM27)+(DN$19*DN27)+(DO$19*DO27)+(DP$19*DP27)+(DQ$19*DQ27)+(DR$19*DR27)+(DS$19*DS27)+(DT$19*DT27)+(DU$19*DU27)+(DV$19*DV27)+(DW$19*DW27)+(DX$19*DX27)+(DY$19*DY27)+(DZ$19*DZ27)+(EA$19*EA27)+(EB$19*EB27)+(EC$19*EC27)+(ED$19*ED27)+(EE$19*EE27)+(EF$19*EF27)+(EG$19*EG27)+(EH$19*EH27)) -> 47 | EK27: 6 | EL27: 4 | EM27: 4 | EN27: 4 | FK27: =IF(OR('Set UP'!$C13=0,'Set UP'!$D13=0,'Set UP'!$E13=0),"",(EK$19*EK27)+(EL$19*EL27)+(EM$19*EM27)+(EN$19*EN27)+(EO$19*EO27)+(EP$19*EP27)+(EQ$19*EQ27)+(ER$19*ER27)+(ES$19*ES27)+(ET$19*ET27)+(EU$19*EU27)+(EV$19*EV27)+(EW$19*EW27)+(EX$19*EX27)+(EY$19*EY27)+(EZ$19*EZ27)+(FA$19*FA27)+(FB$19*FB27)+(FC$19*FC27)+(FD$19*FD27)+(FE$19*FE27)+(FF$19*FF27)+(FG$19*FG27)+(FH$19*FH27)+(FI$19*FI27)) -> 36 | GL27: =IF(OR('Set UP'!$C13=0,'Set UP'!$D13=0,'Set UP'!$E13=0),"",(FL$19*FL27)+(FM$19*FM27)+(FN$19*FN27)+(FO$19*FO27)+(FP$19*FP27)+(FQ$19*FQ27)+(FR$19*FR27)+(FS$19*FS27)+(FT$19*FT27)+(FU$19*FU27)+(FV$19*FV27)+(FW$19*FW27)+(FX$19*FX27)+(FY$19*FY27)+(FZ$19*FZ27)+(GA$19*GA27)+(GB$19*GB27)+(GC$19*GC27)+(GD$19*GD27)+(GE$19*GE27)+(GF$19*GF27)+(GG$19*GG27)+(GH$19*GH27)+(GI$19*GI27)+(GJ$19*GJ27)) -> 0 | HM27: =IF(OR('Set UP'!$C13=0,'Set UP'!$D13=0,'Set UP'!$E13=0),"",(GM$19*GM27)+(GN$19*GN27)+(GO$19*GO27)+(GP$19*GP27)+(GQ$19*GQ27)+(GR$19*GR27)+(GS$19*GS27)+(GT$19*GT27)+(GU$19*GU27)+(GV$19*GV27)+(GW$19*GW27)+(GX$19*GX27)+(GY$19*GY27)+(GZ$19*GZ27)+(HA$19*HA27)+(HB$19*HB27)+(HC$19*HC27)+(HD$19*HD27)+(HE$19*HE27)+(HF$19*HF27)+(HG$19*HG27)+(HH$19*HH27)+(HI$19*HI27)+(HJ$19*HJ27)+(HK$19*HK27)) -> 0 | IN27: =IF(OR('Set UP'!$C13=0,'Set UP'!$D13=0,'Set UP'!$E13=0),"",(HN$19*HN27)+(HO$19*HO27)+(HP$19*HP27)+(HQ$19*HQ27)+(HR$19*HR27)+(HS$19*HS27)+(HT$19*HT27)+(HU$19*HU27)+(HV$19*HV27)+(HW$19*HW27)+(HX$19*HX27)+(HY$19*HY27)+(HZ$19*HZ27)+(IA$19*IA27)+(IB$19*IB27)+(IC$19*IC27)+(ID$19*ID27)+(IE$19*IE27)+(IF$19*IF27)+(IG$19*IG27)+(IH$19*IH27)+(II$19*II27)+(IJ$19*IJ27)+(IK$19*IK27)+(IL$19*IL27)) -> 0 | JO27: =IF(OR('Set UP'!$C13=0,'Set UP'!$D13=0,'Set UP'!$E13=0),"",(IO$19*IO27)+(IP$19*IP27)+(IQ$19*IQ27)+(IR$19*IR27)+(IS$19*IS27)+(IT$19*IT27)+(IU$19*IU27)+(IV$19*IV27)+(IW$19*IW27)+(IX$19*IX27)+(IY$19*IY27)+(IZ$19*IZ27)+(JA$19*JA27)+(JB$19*JB27)+(JC$19*JC27)+(JD$19*JD27)+(JE$19*JE27)+(JF$19*JF27)+(JG$19*JG27)+(JH$19*JH27)+(JI$19*JI27)+(JJ$19*JJ27)+(JK$19*JK27)+(JL$19*JL27)+(JM$19*JM27)) -> 0 | JP27: =IF(OR('Set UP'!$C13=0,'Set UP'!$D13=0,'Set UP'!$E13=0),"",(AF27+BG27+CH27+DI27+EJ27+FK27+GL27+HM27+IN27+JO27)) -> 201 | JQ27: =IF(OR('Set UP'!$C13=0,'Set UP'!$D13=0,'Set UP'!$E13=0),"",RANK(JP27,$JP$21:$JP$60,0)) -> 17 | JR27: =IF(OR('Set UP'!K13<>1,'Set UP'!C13=0,'Set UP'!D13=0,'Set UP'!E13=0,'Set UP'!F13=0),"",$JP27) ->  | JS27: =IF(OR('Set UP'!K13<>1,'Set UP'!C13=0,'Set UP'!D13=0,'Set UP'!E13=0,'Set UP'!F13=0),"",RANK(JR27,$JR$21:$JR$60,0)) ->  | JT27: =IF(OR('Set UP'!K13<>2,'Set UP'!C13=0,'Set UP'!D13=0,'Set UP'!E13=0,'Set UP'!F13=0),"",$JP27) -> 201 | JU27: =IF(OR('Set UP'!K13<>2,'Set UP'!C13=0,'Set UP'!D13=0,'Set UP'!E13=0,'Set UP'!F13=0),"",RANK(JT27,$JT$21:$JT$60,0)) -> 7 | JV27: =IF(OR('Set UP'!F13<>"F",'Set UP'!C13=0,'Set UP'!D13=0,'Set UP'!E13=0),"",$JP27) ->  | JW27: =IF(OR('Set UP'!F13<>"F",'Set UP'!C13=0,'Set UP'!D13=0,'Set UP'!E13=0),"",RANK(JV27,$JV$21:$JV$60,0)) ->  | JX27: =IF(OR('Set UP'!F13<>"NS",'Set UP'!C13=0,'Set UP'!D13=0,'Set UP'!E13=0),"",$JP27) ->  | JY27: =IF(OR('Set UP'!F13<>"NS",'Set UP'!C13=0,'Set UP'!D13=0,'Set UP'!E13=0),"",RANK(JX27,$JX$21:$JX$60,0)) ->  | JZ27: =IF(OR('Set UP'!$C13=0,'Set UP'!$D13=0,'Set UP'!$E13=0,JP27=0),"",JP27/MAX(JP$21:JP$60)*1000) -> 681.3559322
B28: 8 | C28: =IF(OR('Set UP'!$C14=0,'Set UP'!$D14=0,'Set UP'!$E14=0,'Set UP'!F14=0)," --",'Set UP'!C14) -> 1441 | D28: =IF(OR('Set UP'!$C14=0,'Set UP'!$D14=0,'Set UP'!$E14=0,'Set UP'!F14=0)," --",'Set UP'!D14&" "&'Set UP'!E14) -> University of Plymouth C | E28: =IF(OR('Set UP'!$C14=0,'Set UP'!$D14=0,'Set UP'!$E14=0,'Set UP'!F14=0)," --",'Set UP'!F14) -> NC | F28: 0 | G28: 0 | H28: 0 | I28: 6 | J28: 0 | K28: 3 | L28: 0 | AF28: =IF(OR('Set UP'!$C14=0,'Set UP'!$D14=0,'Set UP'!$E14=0),"",(F$19*F28)+(G$19*G28)+(H$19*H28)+(I$19*I28)+(J$19*J28)+(K$19*K28)+(L$19*L28)+(M$19*M28)+(N$19*N28)+(O$19*O28)+(P$19*P28)+(Q$19*Q28)+(R$19*R28)+(S$19*S28)+(T$19*T28)+(U$19*U28)+(V$19*V28)+(W$19*W28)+(X$19*X28)+(Y$19*Y28)+(Z$19*Z28)+(AA$19*AA28)+(AB$19*AB28)+(AC$19*AC28)+(AD$19*AD28)) -> 10.5 | AG28: 2 | AH28: 5 | AI28: 2 | AJ28: 5 | AK28: 2 | AL28: 2 | AM28: 0 | AN28: 0 | BG28: =IF(OR('Set UP'!$C14=0,'Set UP'!$D14=0,'Set UP'!$E14=0),"",(AG$19*AG28)+(AH$19*AH28)+(AI$19*AI28)+(AJ$19*AJ28)+(AK$19*AK28)+(AL$19*AL28)+(AM$19*AM28)+(AN$19*AN28)+(AO$19*AO28)+(AP$19*AP28)+(AQ$19*AQ28)+(AR$19*AR28)+(AS$19*AS28)+(AT$19*AT28)+(AU$19*AU28)+(AV$19*AV28)+(AW$19*AW28)+(AX$19*AX28)+(AY$19*AY28)+(AZ$19*AZ28)+(BA$19*BA28)+(BB$19*BB28)+(BC$19*BC28)+(BD$19*BD28)+(BE$19*BE28)) -> 21.5 | BH28: 8 | BI28: 4 | BJ28: 0 | BK28: 0 | BL28: 4 | BM28: 6 | BN28: 0 | CH28: =IF(OR('Set UP'!$C14=0,'Set UP'!$D14=0,'Set UP'!$E14=0),"",(BH$19*BH28)+(BI$19*BI28)+(BJ$19*BJ28)+(BK$19*BK28)+(BL$19*BL28)+(BM$19*BM28)+(BN$19*BN28)+(BO$19*BO28)+(BP$19*BP28)+(BQ$19*BQ28)+(BR$19*BR28)+(BS$19*BS28)+(BT$19*BT28)+(BU$19*BU28)+(BV$19*BV28)+(BW$19*BW28)+(BX$19*BX28)+(BY$19*BY28)+(BZ$19*BZ28)+(CA$19*CA28)+(CB$19*CB28)+(CC$19*CC28)+(CD$19*CD28)+(CE$19*CE28)+(CF$19*CF28)) -> 27 | CI28: 6 | CJ28: 8 | CK28: 5 | CL28: 5 | CM28: 7 | CN28: 2 | CO28: 1 | DI28: =IF(OR('Set UP'!$C14=0,'Set UP'!$D14=0,'Set UP'!$E14=0),"",(CI$19*CI28)+(CJ$19*CJ28)+(CK$19*CK28)+(CL$19*CL28)+(CM$19*CM28)+(CN$19*CN28)+(CO$19*CO28)+(CP$19*CP28)+(CQ$19*CQ28)+(CR$19*CR28)+(CS$19*CS28)+(CT$19*CT28)+(CU$19*CU28)+(CV$19*CV28)+(CW$19*CW28)+(CX$19*CX28)+(CY$19*CY28)+(CZ$19*CZ28)+(DA$19*DA28)+(DB$19*DB28)+(DC$19*DC28)+(DD$19*DD28)+(DE$19*DE28)+(DF$19*DF28)+(DG$19*DG28)) -> 45 | DJ28: 10 | DK28: 0 | DL28: 0 | DM28: 0 | DN28: 7 | DO28: 0 | DP28: 5 | DQ28: 0 | DR28: 0 | DS28: 0 | EJ28: =IF(OR('Set UP'!$C14=0,'Set UP'!$D14=0,'Set UP'!$E14=0),"",(DJ$19*DJ28)+(DK$19*DK28)+(DL$19*DL28)+(DM$19*DM28)+(DN$19*DN28)+(DO$19*DO28)+(DP$19*DP28)+(DQ$19*DQ28)+(DR$19*DR28)+(DS$19*DS28)+(DT$19*DT28)+(DU$19*DU28)+(DV$19*DV28)+(DW$19*DW28)+(DX$19*DX28)+(DY$19*DY28)+(DZ$19*DZ28)+(EA$19*EA28)+(EB$19*EB28)+(EC$19*EC28)+(ED$19*ED28)+(EE$19*EE28)+(EF$19*EF28)+(EG$19*EG28)+(EH$19*EH28)) -> 18 | EK28: 0 | EL28: 1 | EM28: 1 | EN28: 2 | FK28: =IF(OR('Set UP'!$C14=0,'Set UP'!$D14=0,'Set UP'!$E14=0),"",(EK$19*EK28)+(EL$19*EL28)+(EM$19*EM28)+(EN$19*EN28)+(EO$19*EO28)+(EP$19*EP28)+(EQ$19*EQ28)+(ER$19*ER28)+(ES$19*ES28)+(ET$19*ET28)+(EU$19*EU28)+(EV$19*EV28)+(EW$19*EW28)+(EX$19*EX28)+(EY$19*EY28)+(EZ$19*EZ28)+(FA$19*FA28)+(FB$19*FB28)+(FC$19*FC28)+(FD$19*FD28)+(FE$19*FE28)+(FF$19*FF28)+(FG$19*FG28)+(FH$19*FH28)+(FI$19*FI28)) -> 6 | GL28: =IF(OR('Set UP'!$C14=0,'Set UP'!$D14=0,'Set UP'!$E14=0),"",(FL$19*FL28)+(FM$19*FM28)+(FN$19*FN28)+(FO$19*FO28)+(FP$19*FP28)+(FQ$19*FQ28)+(FR$19*FR28)+(FS$19*FS28)+(FT$19*FT28)+(FU$19*FU28)+(FV$19*FV28)+(FW$19*FW28)+(FX$19*FX28)+(FY$19*FY28)+(FZ$19*FZ28)+(GA$19*GA28)+(GB$19*GB28)+(GC$19*GC28)+(GD$19*GD28)+(GE$19*GE28)+(GF$19*GF28)+(GG$19*GG28)+(GH$19*GH28)+(GI$19*GI28)+(GJ$19*GJ28)) -> 0 | HM28: =IF(OR('Set UP'!$C14=0,'Set UP'!$D14=0,'Set UP'!$E14=0),"",(GM$19*GM28)+(GN$19*GN28)+(GO$19*GO28)+(GP$19*GP28)+(GQ$19*GQ28)+(GR$19*GR28)+(GS$19*GS28)+(GT$19*GT28)+(GU$19*GU28)+(GV$19*GV28)+(GW$19*GW28)+(GX$19*GX28)+(GY$19*GY28)+(GZ$19*GZ28)+(HA$19*HA28)+(HB$19*HB28)+(HC$19*HC28)+(HD$19*HD28)+(HE$19*HE28)+(HF$19*HF28)+(HG$19*HG28)+(HH$19*HH28)+(HI$19*HI28)+(HJ$19*HJ28)+(HK$19*HK28)) -> 0 | IN28: =IF(OR('Set UP'!$C14=0,'Set UP'!$D14=0,'Set UP'!$E14=0),"",(HN$19*HN28)+(HO$19*HO28)+(HP$19*HP28)+(HQ$19*HQ28)+(HR$19*HR28)+(HS$19*HS28)+(HT$19*HT28)+(HU$19*HU28)+(HV$19*HV28)+(HW$19*HW28)+(HX$19*HX28)+(HY$19*HY28)+(HZ$19*HZ28)+(IA$19*IA28)+(IB$19*IB28)+(IC$19*IC28)+(ID$19*ID28)+(IE$19*IE28)+(IF$19*IF28)+(IG$19*IG28)+(IH$19*IH28)+(II$19*II28)+(IJ$19*IJ28)+(IK$19*IK28)+(IL$19*IL28)) -> 0 | JO28: =IF(OR('Set UP'!$C14=0,'Set UP'!$D14=0,'Set UP'!$E14=0),"",(IO$19*IO28)+(IP$19*IP28)+(IQ$19*IQ28)+(IR$19*IR28)+(IS$19*IS28)+(IT$19*IT28)+(IU$19*IU28)+(IV$19*IV28)+(IW$19*IW28)+(IX$19*IX28)+(IY$19*IY28)+(IZ$19*IZ28)+(JA$19*JA28)+(JB$19*JB28)+(JC$19*JC28)+(JD$19*JD28)+(JE$19*JE28)+(JF$19*JF28)+(JG$19*JG28)+(JH$19*JH28)+(JI$19*JI28)+(JJ$19*JJ28)+(JK$19*JK28)+(JL$19*JL28)+(JM$19*JM28)) -> 0 | JP28: =IF(OR('Set UP'!$C14=0,'Set UP'!$D14=0,'Set UP'!$E14=0),"",(AF28+BG28+CH28+DI28+EJ28+FK28+GL28+HM28+IN28+JO28)) -> 128 | JQ28: =IF(OR('Set UP'!$C14=0,'Set UP'!$D14=0,'Set UP'!$E14=0),"",RANK(JP28,$JP$21:$JP$60,0)) -> 26 | JR28: =IF(OR('Set UP'!K14<>1,'Set UP'!C14=0,'Set UP'!D14=0,'Set UP'!E14=0,'Set UP'!F14=0),"",$JP28) ->  | JS28: =IF(OR('Set UP'!K14<>1,'Set UP'!C14=0,'Set UP'!D14=0,'Set UP'!E14=0,'Set UP'!F14=0),"",RANK(JR28,$JR$21:$JR$60,0)) ->  | JT28: =IF(OR('Set UP'!K14<>2,'Set UP'!C14=0,'Set UP'!D14=0,'Set UP'!E14=0,'Set UP'!F14=0),"",$JP28) ->  | JU28: =IF(OR('Set UP'!K14<>2,'Set UP'!C14=0,'Set UP'!D14=0,'Set UP'!E14=0,'Set UP'!F14=0),"",RANK(JT28,$JT$21:$JT$60,0)) ->  | JV28: =IF(OR('Set UP'!F14<>"F",'Set UP'!C14=0,'Set UP'!D14=0,'Set UP'!E14=0),"",$JP28) ->  | JW28: =IF(OR('Set UP'!F14<>"F",'Set UP'!C14=0,'Set UP'!D14=0,'Set UP'!E14=0),"",RANK(JV28,$JV$21:$JV$60,0)) ->  | JX28: =IF(OR('Set UP'!F14<>"NS",'Set UP'!C14=0,'Set UP'!D14=0,'Set UP'!E14=0),"",$JP28) ->  | JY28: =IF(OR('Set UP'!F14<>"NS",'Set UP'!C14=0,'Set UP'!D14=0,'Set UP'!E14=0),"",RANK(JX28,$JX$21:$JX$60,0)) ->  | JZ28: =IF(OR('Set UP'!$C14=0,'Set UP'!$D14=0,'Set UP'!$E14=0,JP28=0),"",JP28/MAX(JP$21:JP$60)*1000) -> 433.8983051
B29: 9 | C29: =IF(OR('Set UP'!$C15=0,'Set UP'!$D15=0,'Set UP'!$E15=0,'Set UP'!F15=0)," --",'Set UP'!C15) -> 1440 | D29: =IF(OR('Set UP'!$C15=0,'Set UP'!$D15=0,'Set UP'!$E15=0,'Set UP'!F15=0)," --",'Set UP'!D15&" "&'Set UP'!E15) -> University of Plymouth B | E29: =IF(OR('Set UP'!$C15=0,'Set UP'!$D15=0,'Set UP'!$E15=0,'Set UP'!F15=0)," --",'Set UP'!F15) -> S | F29: 0 | G29: 0 | H29: 0 | I29: 7 | J29: 2 | K29: 5 | L29: 0 | AF29: =IF(OR('Set UP'!$C15=0,'Set UP'!$D15=0,'Set UP'!$E15=0),"",(F$19*F29)+(G$19*G29)+(H$19*H29)+(I$19*I29)+(J$19*J29)+(K$19*K29)+(L$19*L29)+(M$19*M29)+(N$19*N29)+(O$19*O29)+(P$19*P29)+(Q$19*Q29)+(R$19*R29)+(S$19*S29)+(T$19*T29)+(U$19*U29)+(V$19*V29)+(W$19*W29)+(X$19*X29)+(Y$19*Y29)+(Z$19*Z29)+(AA$19*AA29)+(AB$19*AB29)+(AC$19*AC29)+(AD$19*AD29)) -> 16.5 | AG29: 2 | AH29: 2 | AI29: 2 | AJ29: 6 | AK29: 2 | AL29: 6 | AM29: 7 | AN29: 7 | BG29: =IF(OR('Set UP'!$C15=0,'Set UP'!$D15=0,'Set UP'!$E15=0),"",(AG$19*AG29)+(AH$19*AH29)+(AI$19*AI29)+(AJ$19*AJ29)+(AK$19*AK29)+(AL$19*AL29)+(AM$19*AM29)+(AN$19*AN29)+(AO$19*AO29)+(AP$19*AP29)+(AQ$19*AQ29)+(AR$19*AR29)+(AS$19*AS29)+(AT$19*AT29)+(AU$19*AU29)+(AV$19*AV29)+(AW$19*AW29)+(AX$19*AX29)+(AY$19*AY29)+(AZ$19*AZ29)+(BA$19*BA29)+(BB$19*BB29)+(BC$19*BC29)+(BD$19*BD29)+(BE$19*BE29)) -> 38 | BH29: 8 | BI29: 9 | BJ29: 0 | BK29: 0 | BL29: 3 | BM29: 0 | BN29: 0 | CH29: =IF(OR('Set UP'!$C15=0,'Set UP'!$D15=0,'Set UP'!$E15=0),"",(BH$19*BH29)+(BI$19*BI29)+(BJ$19*BJ29)+(BK$19*BK29)+(BL$19*BL29)+(BM$19*BM29)+(BN$19*BN29)+(BO$19*BO29)+(BP$19*BP29)+(BQ$19*BQ29)+(BR$19*BR29)+(BS$19*BS29)+(BT$19*BT29)+(BU$19*BU29)+(BV$19*BV29)+(BW$19*BW29)+(BX$19*BX29)+(BY$19*BY29)+(BZ$19*BZ29)+(CA$19*CA29)+(CB$19*CB29)+(CC$19*CC29)+(CD$19*CD29)+(CE$19*CE29)+(CF$19*CF29)) -> 24.5 | CI29: 6 | CJ29: 7 | CK29: 6 | CL29: 10 | CM29: 5 | CN29: 2 | CO29: 2 | DI29: =IF(OR('Set UP'!$C15=0,'Set UP'!$D15=0,'Set UP'!$E15=0),"",(CI$19*CI29)+(CJ$19*CJ29)+(CK$19*CK29)+(CL$19*CL29)+(CM$19*CM29)+(CN$19*CN29)+(CO$19*CO29)+(CP$19*CP29)+(CQ$19*CQ29)+(CR$19*CR29)+(CS$19*CS29)+(CT$19*CT29)+(CU$19*CU29)+(CV$19*CV29)+(CW$19*CW29)+(CX$19*CX29)+(CY$19*CY29)+(CZ$19*CZ29)+(DA$19*DA29)+(DB$19*DB29)+(DC$19*DC29)+(DD$19*DD29)+(DE$19*DE29)+(DF$19*DF29)+(DG$19*DG29)) -> 48 | DJ29: 10 | DK29: 0 | DL29: 0 | DM29: 5 | DN29: 10 | DO29: 0 | DP29: 2 | DQ29: 0 | DR29: 0 | DS29: 5 | EJ29: =IF(OR('Set UP'!$C15=0,'Set UP'!$D15=0,'Set UP'!$E15=0),"",(DJ$19*DJ29)+(DK$19*DK29)+(DL$19*DL29)+(DM$19*DM29)+(DN$19*DN29)+(DO$19*DO29)+(DP$19*DP29)+(DQ$19*DQ29)+(DR$19*DR29)+(DS$19*DS29)+(DT$19*DT29)+(DU$19*DU29)+(DV$19*DV29)+(DW$19*DW29)+(DX$19*DX29)+(DY$19*DY29)+(DZ$19*DZ29)+(EA$19*EA29)+(EB$19*EB29)+(EC$19*EC29)+(ED$19*ED29)+(EE$19*EE29)+(EF$19*EF29)+(EG$19*EG29)+(EH$19*EH29)) -> 27.5 | EK29: 3 | EL29: 4 | EM29: 3 | EN29: 5 | FK29: =IF(OR('Set UP'!$C15=0,'Set UP'!$D15=0,'Set UP'!$E15=0),"",(EK$19*EK29)+(EL$19*EL29)+(EM$19*EM29)+(EN$19*EN29)+(EO$19*EO29)+(EP$19*EP29)+(EQ$19*EQ29)+(ER$19*ER29)+(ES$19*ES29)+(ET$19*ET29)+(EU$19*EU29)+(EV$19*EV29)+(EW$19*EW29)+(EX$19*EX29)+(EY$19*EY29)+(EZ$19*EZ29)+(FA$19*FA29)+(FB$19*FB29)+(FC$19*FC29)+(FD$19*FD29)+(FE$19*FE29)+(FF$19*FF29)+(FG$19*FG29)+(FH$19*FH29)+(FI$19*FI29)) -> 27 | GL29: =IF(OR('Set UP'!$C15=0,'Set UP'!$D15=0,'Set UP'!$E15=0),"",(FL$19*FL29)+(FM$19*FM29)+(FN$19*FN29)+(FO$19*FO29)+(FP$19*FP29)+(FQ$19*FQ29)+(FR$19*FR29)+(FS$19*FS29)+(FT$19*FT29)+(FU$19*FU29)+(FV$19*FV29)+(FW$19*FW29)+(FX$19*FX29)+(FY$19*FY29)+(FZ$19*FZ29)+(GA$19*GA29)+(GB$19*GB29)+(GC$19*GC29)+(GD$19*GD29)+(GE$19*GE29)+(GF$19*GF29)+(GG$19*GG29)+(GH$19*GH29)+(GI$19*GI29)+(GJ$19*GJ29)) -> 0 | HM29: =IF(OR('Set UP'!$C15=0,'Set UP'!$D15=0,'Set UP'!$E15=0),"",(GM$19*GM29)+(GN$19*GN29)+(GO$19*GO29)+(GP$19*GP29)+(GQ$19*GQ29)+(GR$19*GR29)+(GS$19*GS29)+(GT$19*GT29)+(GU$19*GU29)+(GV$19*GV29)+(GW$19*GW29)+(GX$19*GX29)+(GY$19*GY29)+(GZ$19*GZ29)+(HA$19*HA29)+(HB$19*HB29)+(HC$19*HC29)+(HD$19*HD29)+(HE$19*HE29)+(HF$19*HF29)+(HG$19*HG29)+(HH$19*HH29)+(HI$19*HI29)+(HJ$19*HJ29)+(HK$19*HK29)) -> 0 | IN29: =IF(OR('Set UP'!$C15=0,'Set UP'!$D15=0,'Set UP'!$E15=0),"",(HN$19*HN29)+(HO$19*HO29)+(HP$19*HP29)+(HQ$19*HQ29)+(HR$19*HR29)+(HS$19*HS29)+(HT$19*HT29)+(HU$19*HU29)+(HV$19*HV29)+(HW$19*HW29)+(HX$19*HX29)+(HY$19*HY29)+(HZ$19*HZ29)+(IA$19*IA29)+(IB$19*IB29)+(IC$19*IC29)+(ID$19*ID29)+(IE$19*IE29)+(IF$19*IF29)+(IG$19*IG29)+(IH$19*IH29)+(II$19*II29)+(IJ$19*IJ29)+(IK$19*IK29)+(IL$19*IL29)) -> 0 | JO29: =IF(OR('Set UP'!$C15=0,'Set UP'!$D15=0,'Set UP'!$E15=0),"",(IO$19*IO29)+(IP$19*IP29)+(IQ$19*IQ29)+(IR$19*IR29)+(IS$19*IS29)+(IT$19*IT29)+(IU$19*IU29)+(IV$19*IV29)+(IW$19*IW29)+(IX$19*IX29)+(IY$19*IY29)+(IZ$19*IZ29)+(JA$19*JA29)+(JB$19*JB29)+(JC$19*JC29)+(JD$19*JD29)+(JE$19*JE29)+(JF$19*JF29)+(JG$19*JG29)+(JH$19*JH29)+(JI$19*JI29)+(JJ$19*JJ29)+(JK$19*JK29)+(JL$19*JL29)+(JM$19*JM29)) -> 0 | JP29: =IF(OR('Set UP'!$C15=0,'Set UP'!$D15=0,'Set UP'!$E15=0),"",(AF29+BG29+CH29+DI29+EJ29+FK29+GL29+HM29+IN29+JO29)) -> 181.5 | JQ29: =IF(OR('Set UP'!$C15=0,'Set UP'!$D15=0,'Set UP'!$E15=0),"",RANK(JP29,$JP$21:$JP$60,0)) -> 20 | JR29: =IF(OR('Set UP'!K15<>1,'Set UP'!C15=0,'Set UP'!D15=0,'Set UP'!E15=0,'Set UP'!F15=0),"",$JP29) ->  | JS29: =IF(OR('Set UP'!K15<>1,'Set UP'!C15=0,'Set UP'!D15=0,'Set UP'!E15=0,'Set UP'!F15=0),"",RANK(JR29,$JR$21:$JR$60,0)) ->  | JT29: =IF(OR('Set UP'!K15<>2,'Set UP'!C15=0,'Set UP'!D15=0,'Set UP'!E15=0,'Set UP'!F15=0),"",$JP29) -> 181.5 | JU29: =IF(OR('Set UP'!K15<>2,'Set UP'!C15=0,'Set UP'!D15=0,'Set UP'!E15=0,'Set UP'!F15=0),"",RANK(JT29,$JT$21:$JT$60,0)) -> 10 | JV29: =IF(OR('Set UP'!F15<>"F",'Set UP'!C15=0,'Set UP'!D15=0,'Set UP'!E15=0),"",$JP29) ->  | JW29: =IF(OR('Set UP'!F15<>"F",'Set UP'!C15=0,'Set UP'!D15=0,'Set UP'!E15=0),"",RANK(JV29,$JV$21:$JV$60,0)) ->  | JX29: =IF(OR('Set UP'!F15<>"NS",'Set UP'!C15=0,'Set UP'!D15=0,'Set UP'!E15=0),"",$JP29) ->  | JY29: =IF(OR('Set UP'!F15<>"NS",'Set UP'!C15=0,'Set UP'!D15=0,'Set UP'!E15=0),"",RANK(JX29,$JX$21:$JX$60,0)) ->  | JZ29: =IF(OR('Set UP'!$C15=0,'Set UP'!$D15=0,'Set UP'!$E15=0,JP29=0),"",JP29/MAX(JP$21:JP$60)*1000) -> 615.2542373
B30: 10 | C30: =IF(OR('Set UP'!$C16=0,'Set UP'!$D16=0,'Set UP'!$E16=0,'Set UP'!F16=0)," --",'Set UP'!C16) -> 1431 | D30: =IF(OR('Set UP'!$C16=0,'Set UP'!$D16=0,'Set UP'!$E16=0,'Set UP'!F16=0)," --",'Set UP'!D16&" "&'Set UP'!E16) -> University of Nottingham C | E30: =IF(OR('Set UP'!$C16=0,'Set UP'!$D16=0,'Set UP'!$E16=0,'Set UP'!F16=0)," --",'Set UP'!F16) -> S | F30: 5 | G30: 5 | H30: 3 | I30: 7 | J30: 0 | K30: 0 | L30: 0 | AF30: =IF(OR('Set UP'!$C16=0,'Set UP'!$D16=0,'Set UP'!$E16=0),"",(F$19*F30)+(G$19*G30)+(H$19*H30)+(I$19*I30)+(J$19*J30)+(K$19*K30)+(L$19*L30)+(M$19*M30)+(N$19*N30)+(O$19*O30)+(P$19*P30)+(Q$19*Q30)+(R$19*R30)+(S$19*S30)+(T$19*T30)+(U$19*U30)+(V$19*V30)+(W$19*W30)+(X$19*X30)+(Y$19*Y30)+(Z$19*Z30)+(AA$19*AA30)+(AB$19*AB30)+(AC$19*AC30)+(AD$19*AD30)) -> 24 | AG30: 2 | AH30: 0 | AI30: 2 | AJ30: 8 | AK30: 8 | AL30: 5 | AM30: 0 | AN30: 8 | BG30: =IF(OR('Set UP'!$C16=0,'Set UP'!$D16=0,'Set UP'!$E16=0),"",(AG$19*AG30)+(AH$19*AH30)+(AI$19*AI30)+(AJ$19*AJ30)+(AK$19*AK30)+(AL$19*AL30)+(AM$19*AM30)+(AN$19*AN30)+(AO$19*AO30)+(AP$19*AP30)+(AQ$19*AQ30)+(AR$19*AR30)+(AS$19*AS30)+(AT$19*AT30)+(AU$19*AU30)+(AV$19*AV30)+(AW$19*AW30)+(AX$19*AX30)+(AY$19*AY30)+(AZ$19*AZ30)+(BA$19*BA30)+(BB$19*BB30)+(BC$19*BC30)+(BD$19*BD30)+(BE$19*BE30)) -> 44 | BH30: 8 | BI30: 2 | BJ30: 0 | BK30: 2 | BL30: 8 | BM30: 6 | BN30: 0 | CH30: =IF(OR('Set UP'!$C16=0,'Set UP'!$D16=0,'Set UP'!$E16=0),"",(BH$19*BH30)+(BI$19*BI30)+(BJ$19*BJ30)+(BK$19*BK30)+(BL$19*BL30)+(BM$19*BM30)+(BN$19*BN30)+(BO$19*BO30)+(BP$19*BP30)+(BQ$19*BQ30)+(BR$19*BR30)+(BS$19*BS30)+(BT$19*BT30)+(BU$19*BU30)+(BV$19*BV30)+(BW$19*BW30)+(BX$19*BX30)+(BY$19*BY30)+(BZ$19*BZ30)+(CA$19*CA30)+(CB$19*CB30)+(CC$19*CC30)+(CD$19*CD30)+(CE$19*CE30)+(CF$19*CF30)) -> 30 | CI30: 7 | CJ30: 9 | CK30: 6 | CL30: 0 | CM30: 6 | CN30: 5 | CO30: 1 | DI30: =IF(OR('Set UP'!$C16=0,'Set UP'!$D16=0,'Set UP'!$E16=0),"",(CI$19*CI30)+(CJ$19*CJ30)+(CK$19*CK30)+(CL$19*CL30)+(CM$19*CM30)+(CN$19*CN30)+(CO$19*CO30)+(CP$19*CP30)+(CQ$19*CQ30)+(CR$19*CR30)+(CS$19*CS30)+(CT$19*CT30)+(CU$19*CU30)+(CV$19*CV30)+(CW$19*CW30)+(CX$19*CX30)+(CY$19*CY30)+(CZ$19*CZ30)+(DA$19*DA30)+(DB$19*DB30)+(DC$19*DC30)+(DD$19*DD30)+(DE$19*DE30)+(DF$19*DF30)+(DG$19*DG30)) -> 46.5 | DJ30: 10 | DK30: 0 | DL30: 0 | DM30: 10 | DN30: 10 | DO30: 0 | DP30: 0 | DQ30: 0 | DR30: 0 | DS30: 0 | EJ30: =IF(OR('Set UP'!$C16=0,'Set UP'!$D16=0,'Set UP'!$E16=0),"",(DJ$19*DJ30)+(DK$19*DK30)+(DL$19*DL30)+(DM$19*DM30)+(DN$19*DN30)+(DO$19*DO30)+(DP$19*DP30)+(DQ$19*DQ30)+(DR$19*DR30)+(DS$19*DS30)+(DT$19*DT30)+(DU$19*DU30)+(DV$19*DV30)+(DW$19*DW30)+(DX$19*DX30)+(DY$19*DY30)+(DZ$19*DZ30)+(EA$19*EA30)+(EB$19*EB30)+(EC$19*EC30)+(ED$19*ED30)+(EE$19*EE30)+(EF$19*EF30)+(EG$19*EG30)+(EH$19*EH30)) -> 30 | EK30: 6 | EL30: 5 | EM30: 5 | EN30: 5 | FK30: =IF(OR('Set UP'!$C16=0,'Set UP'!$D16=0,'Set UP'!$E16=0),"",(EK$19*EK30)+(EL$19*EL30)+(EM$19*EM30)+(EN$19*EN30)+(EO$19*EO30)+(EP$19*EP30)+(EQ$19*EQ30)+(ER$19*ER30)+(ES$19*ES30)+(ET$19*ET30)+(EU$19*EU30)+(EV$19*EV30)+(EW$19*EW30)+(EX$19*EX30)+(EY$19*EY30)+(EZ$19*EZ30)+(FA$19*FA30)+(FB$19*FB30)+(FC$19*FC30)+(FD$19*FD30)+(FE$19*FE30)+(FF$19*FF30)+(FG$19*FG30)+(FH$19*FH30)+(FI$19*FI30)) -> 40.5 | GL30: =IF(OR('Set UP'!$C16=0,'Set UP'!$D16=0,'Set UP'!$E16=0),"",(FL$19*FL30)+(FM$19*FM30)+(FN$19*FN30)+(FO$19*FO30)+(FP$19*FP30)+(FQ$19*FQ30)+(FR$19*FR30)+(FS$19*FS30)+(FT$19*FT30)+(FU$19*FU30)+(FV$19*FV30)+(FW$19*FW30)+(FX$19*FX30)+(FY$19*FY30)+(FZ$19*FZ30)+(GA$19*GA30)+(GB$19*GB30)+(GC$19*GC30)+(GD$19*GD30)+(GE$19*GE30)+(GF$19*GF30)+(GG$19*GG30)+(GH$19*GH30)+(GI$19*GI30)+(GJ$19*GJ30)) -> 0 | HM30: =IF(OR('Set UP'!$C16=0,'Set UP'!$D16=0,'Set UP'!$E16=0),"",(GM$19*GM30)+(GN$19*GN30)+(GO$19*GO30)+(GP$19*GP30)+(GQ$19*GQ30)+(GR$19*GR30)+(GS$19*GS30)+(GT$19*GT30)+(GU$19*GU30)+(GV$19*GV30)+(GW$19*GW30)+(GX$19*GX30)+(GY$19*GY30)+(GZ$19*GZ30)+(HA$19*HA30)+(HB$19*HB30)+(HC$19*HC30)+(HD$19*HD30)+(HE$19*HE30)+(HF$19*HF30)+(HG$19*HG30)+(HH$19*HH30)+(HI$19*HI30)+(HJ$19*HJ30)+(HK$19*HK30)) -> 0 | IN30: =IF(OR('Set UP'!$C16=0,'Set UP'!$D16=0,'Set UP'!$E16=0),"",(HN$19*HN30)+(HO$19*HO30)+(HP$19*HP30)+(HQ$19*HQ30)+(HR$19*HR30)+(HS$19*HS30)+(HT$19*HT30)+(HU$19*HU30)+(HV$19*HV30)+(HW$19*HW30)+(HX$19*HX30)+(HY$19*HY30)+(HZ$19*HZ30)+(IA$19*IA30)+(IB$19*IB30)+(IC$19*IC30)+(ID$19*ID30)+(IE$19*IE30)+(IF$19*IF30)+(IG$19*IG30)+(IH$19*IH30)+(II$19*II30)+(IJ$19*IJ30)+(IK$19*IK30)+(IL$19*IL30)) -> 0 | JO30: =IF(OR('Set UP'!$C16=0,'Set UP'!$D16=0,'Set UP'!$E16=0),"",(IO$19*IO30)+(IP$19*IP30)+(IQ$19*IQ30)+(IR$19*IR30)+(IS$19*IS30)+(IT$19*IT30)+(IU$19*IU30)+(IV$19*IV30)+(IW$19*IW30)+(IX$19*IX30)+(IY$19*IY30)+(IZ$19*IZ30)+(JA$19*JA30)+(JB$19*JB30)+(JC$19*JC30)+(JD$19*JD30)+(JE$19*JE30)+(JF$19*JF30)+(JG$19*JG30)+(JH$19*JH30)+(JI$19*JI30)+(JJ$19*JJ30)+(JK$19*JK30)+(JL$19*JL30)+(JM$19*JM30)) -> 0 | JP30: =IF(OR('Set UP'!$C16=0,'Set UP'!$D16=0,'Set UP'!$E16=0),"",(AF30+BG30+CH30+DI30+EJ30+FK30+GL30+HM30+IN30+JO30)) -> 215 | JQ30: =IF(OR('Set UP'!$C16=0,'Set UP'!$D16=0,'Set UP'!$E16=0),"",RANK(JP30,$JP$21:$JP$60,0)) -> 15 | JR30: =IF(OR('Set UP'!K16<>1,'Set UP'!C16=0,'Set UP'!D16=0,'Set UP'!E16=0,'Set UP'!F16=0),"",$JP30) ->  | JS30: =IF(OR('Set UP'!K16<>1,'Set UP'!C16=0,'Set UP'!D16=0,'Set UP'!E16=0,'Set UP'!F16=0),"",RANK(JR30,$JR$21:$JR$60,0)) ->  | JT30: =IF(OR('Set UP'!K16<>2,'Set UP'!C16=0,'Set UP'!D16=0,'Set UP'!E16=0,'Set UP'!F16=0),"",$JP30) -> 215 | JU30: =IF(OR('Set UP'!K16<>2,'Set UP'!C16=0,'Set UP'!D16=0,'Set UP'!E16=0,'Set UP'!F16=0),"",RANK(JT30,$JT$21:$JT$60,0)) -> 6 | JV30: =IF(OR('Set UP'!F16<>"F",'Set UP'!C16=0,'Set UP'!D16=0,'Set UP'!E16=0),"",$JP30) ->  | JW30: =IF(OR('Set UP'!F16<>"F",'Set UP'!C16=0,'Set UP'!D16=0,'Set UP'!E16=0),"",RANK(JV30,$JV$21:$JV$60,0)) ->  | JX30: =IF(OR('Set UP'!F16<>"NS",'Set UP'!C16=0,'Set UP'!D16=0,'Set UP'!E16=0),"",$JP30) ->  | JY30: =IF(OR('Set UP'!F16<>"NS",'Set UP'!C16=0,'Set UP'!D16=0,'Set UP'!E16=0),"",RANK(JX30,$JX$21:$JX$60,0)) ->  | JZ30: =IF(OR('Set UP'!$C16=0,'Set UP'!$D16=0,'Set UP'!$E16=0,JP30=0),"",JP30/MAX(JP$21:JP$60)*1000) -> 728.8135593
B31: 11 | C31: =IF(OR('Set UP'!$C17=0,'Set UP'!$D17=0,'Set UP'!$E17=0,'Set UP'!F17=0)," --",'Set UP'!C17) -> 1445 | D31: =IF(OR('Set UP'!$C17=0,'Set UP'!$D17=0,'Set UP'!$E17=0,'Set UP'!F17=0)," --",'Set UP'!D17&" "&'Set UP'!E17) -> University of Birmingham D | E31: =IF(OR('Set UP'!$C17=0,'Set UP'!$D17=0,'Set UP'!$E17=0,'Set UP'!F17=0)," --",'Set UP'!F17) -> NC | F31: 5 | G31: 0 | H31: 0 | I31: 6 | J31: 0 | K31: 6 | L31: 2 | AF31: =IF(OR('Set UP'!$C17=0,'Set UP'!$D17=0,'Set UP'!$E17=0),"",(F$19*F31)+(G$19*G31)+(H$19*H31)+(I$19*I31)+(J$19*J31)+(K$19*K31)+(L$19*L31)+(M$19*M31)+(N$19*N31)+(O$19*O31)+(P$19*P31)+(Q$19*Q31)+(R$19*R31)+(S$19*S31)+(T$19*T31)+(U$19*U31)+(V$19*V31)+(W$19*W31)+(X$19*X31)+(Y$19*Y31)+(Z$19*Z31)+(AA$19*AA31)+(AB$19*AB31)+(AC$19*AC31)+(AD$19*AD31)) -> 22 | AG31: 2 | AH31: 1 | AI31: 5 | AJ31: 7 | AK31: 9 | AL31: 7 | AM31: 3 | AN31: 5 | BG31: =IF(OR('Set UP'!$C17=0,'Set UP'!$D17=0,'Set UP'!$E17=0),"",(AG$19*AG31)+(AH$19*AH31)+(AI$19*AI31)+(AJ$19*AJ31)+(AK$19*AK31)+(AL$19*AL31)+(AM$19*AM31)+(AN$19*AN31)+(AO$19*AO31)+(AP$19*AP31)+(AQ$19*AQ31)+(AR$19*AR31)+(AS$19*AS31)+(AT$19*AT31)+(AU$19*AU31)+(AV$19*AV31)+(AW$19*AW31)+(AX$19*AX31)+(AY$19*AY31)+(AZ$19*AZ31)+(BA$19*BA31)+(BB$19*BB31)+(BC$19*BC31)+(BD$19*BD31)+(BE$19*BE31)) -> 49 | BH31: 8 | BI31: 2 | BJ31: 0 | BK31: 0 | BL31: 6 | BM31: 6 | BN31: 0 | CH31: =IF(OR('Set UP'!$C17=0,'Set UP'!$D17=0,'Set UP'!$E17=0),"",(BH$19*BH31)+(BI$19*BI31)+(BJ$19*BJ31)+(BK$19*BK31)+(BL$19*BL31)+(BM$19*BM31)+(BN$19*BN31)+(BO$19*BO31)+(BP$19*BP31)+(BQ$19*BQ31)+(BR$19*BR31)+(BS$19*BS31)+(BT$19*BT31)+(BU$19*BU31)+(BV$19*BV31)+(BW$19*BW31)+(BX$19*BX31)+(BY$19*BY31)+(BZ$19*BZ31)+(CA$19*CA31)+(CB$19*CB31)+(CC$19*CC31)+(CD$19*CD31)+(CE$19*CE31)+(CF$19*CF31)) -> 26 | CI31: 9 | CJ31: 7 | CK31: 8 | CL31: 10 | CM31: 9 | CN31: 2 | CO31: 5 | DI31: =IF(OR('Set UP'!$C17=0,'Set UP'!$D17=0,'Set UP'!$E17=0),"",(CI$19*CI31)+(CJ$19*CJ31)+(CK$19*CK31)+(CL$19*CL31)+(CM$19*CM31)+(CN$19*CN31)+(CO$19*CO31)+(CP$19*CP31)+(CQ$19*CQ31)+(CR$19*CR31)+(CS$19*CS31)+(CT$19*CT31)+(CU$19*CU31)+(CV$19*CV31)+(CW$19*CW31)+(CX$19*CX31)+(CY$19*CY31)+(CZ$19*CZ31)+(DA$19*DA31)+(DB$19*DB31)+(DC$19*DC31)+(DD$19*DD31)+(DE$19*DE31)+(DF$19*DF31)+(DG$19*DG31)) -> 61.5 | DJ31: 10 | DK31: 0 | DL31: 0 | DM31: 10 | DN31: 10 | DO31: 10 | DP31: 4 | DQ31: 6 | DR31: 0 | DS31: 5 | EJ31: =IF(OR('Set UP'!$C17=0,'Set UP'!$D17=0,'Set UP'!$E17=0),"",(DJ$19*DJ31)+(DK$19*DK31)+(DL$19*DL31)+(DM$19*DM31)+(DN$19*DN31)+(DO$19*DO31)+(DP$19*DP31)+(DQ$19*DQ31)+(DR$19*DR31)+(DS$19*DS31)+(DT$19*DT31)+(DU$19*DU31)+(DV$19*DV31)+(DW$19*DW31)+(DX$19*DX31)+(DY$19*DY31)+(DZ$19*DZ31)+(EA$19*EA31)+(EB$19*EB31)+(EC$19*EC31)+(ED$19*ED31)+(EE$19*EE31)+(EF$19*EF31)+(EG$19*EG31)+(EH$19*EH31)) -> 46.5 | EK31: 8 | EL31: 4 | EM31: 5 | EN31: 6 | FK31: =IF(OR('Set UP'!$C17=0,'Set UP'!$D17=0,'Set UP'!$E17=0),"",(EK$19*EK31)+(EL$19*EL31)+(EM$19*EM31)+(EN$19*EN31)+(EO$19*EO31)+(EP$19*EP31)+(EQ$19*EQ31)+(ER$19*ER31)+(ES$19*ES31)+(ET$19*ET31)+(EU$19*EU31)+(EV$19*EV31)+(EW$19*EW31)+(EX$19*EX31)+(EY$19*EY31)+(EZ$19*EZ31)+(FA$19*FA31)+(FB$19*FB31)+(FC$19*FC31)+(FD$19*FD31)+(FE$19*FE31)+(FF$19*FF31)+(FG$19*FG31)+(FH$19*FH31)+(FI$19*FI31)) -> 46.5 | GL31: =IF(OR('Set UP'!$C17=0,'Set UP'!$D17=0,'Set UP'!$E17=0),"",(FL$19*FL31)+(FM$19*FM31)+(FN$19*FN31)+(FO$19*FO31)+(FP$19*FP31)+(FQ$19*FQ31)+(FR$19*FR31)+(FS$19*FS31)+(FT$19*FT31)+(FU$19*FU31)+(FV$19*FV31)+(FW$19*FW31)+(FX$19*FX31)+(FY$19*FY31)+(FZ$19*FZ31)+(GA$19*GA31)+(GB$19*GB31)+(GC$19*GC31)+(GD$19*GD31)+(GE$19*GE31)+(GF$19*GF31)+(GG$19*GG31)+(GH$19*GH31)+(GI$19*GI31)+(GJ$19*GJ31)) -> 0 | HM31: =IF(OR('Set UP'!$C17=0,'Set UP'!$D17=0,'Set UP'!$E17=0),"",(GM$19*GM31)+(GN$19*GN31)+(GO$19*GO31)+(GP$19*GP31)+(GQ$19*GQ31)+(GR$19*GR31)+(GS$19*GS31)+(GT$19*GT31)+(GU$19*GU31)+(GV$19*GV31)+(GW$19*GW31)+(GX$19*GX31)+(GY$19*GY31)+(GZ$19*GZ31)+(HA$19*HA31)+(HB$19*HB31)+(HC$19*HC31)+(HD$19*HD31)+(HE$19*HE31)+(HF$19*HF31)+(HG$19*HG31)+(HH$19*HH31)+(HI$19*HI31)+(HJ$19*HJ31)+(HK$19*HK31)) -> 0 | IN31: =IF(OR('Set UP'!$C17=0,'Set UP'!$D17=0,'Set UP'!$E17=0),"",(HN$19*HN31)+(HO$19*HO31)+(HP$19*HP31)+(HQ$19*HQ31)+(HR$19*HR31)+(HS$19*HS31)+(HT$19*HT31)+(HU$19*HU31)+(HV$19*HV31)+(HW$19*HW31)+(HX$19*HX31)+(HY$19*HY31)+(HZ$19*HZ31)+(IA$19*IA31)+(IB$19*IB31)+(IC$19*IC31)+(ID$19*ID31)+(IE$19*IE31)+(IF$19*IF31)+(IG$19*IG31)+(IH$19*IH31)+(II$19*II31)+(IJ$19*IJ31)+(IK$19*IK31)+(IL$19*IL31)) -> 0 | JO31: =IF(OR('Set UP'!$C17=0,'Set UP'!$D17=0,'Set UP'!$E17=0),"",(IO$19*IO31)+(IP$19*IP31)+(IQ$19*IQ31)+(IR$19*IR31)+(IS$19*IS31)+(IT$19*IT31)+(IU$19*IU31)+(IV$19*IV31)+(IW$19*IW31)+(IX$19*IX31)+(IY$19*IY31)+(IZ$19*IZ31)+(JA$19*JA31)+(JB$19*JB31)+(JC$19*JC31)+(JD$19*JD31)+(JE$19*JE31)+(JF$19*JF31)+(JG$19*JG31)+(JH$19*JH31)+(JI$19*JI31)+(JJ$19*JJ31)+(JK$19*JK31)+(JL$19*JL31)+(JM$19*JM31)) -> 0 | JP31: =IF(OR('Set UP'!$C17=0,'Set UP'!$D17=0,'Set UP'!$E17=0),"",(AF31+BG31+CH31+DI31+EJ31+FK31+GL31+HM31+IN31+JO31)) -> 251.5 | JQ31: =IF(OR('Set UP'!$C17=0,'Set UP'!$D17=0,'Set UP'!$E17=0),"",RANK(JP31,$JP$21:$JP$60,0)) -> 9 | JR31: =IF(OR('Set UP'!K17<>1,'Set UP'!C17=0,'Set UP'!D17=0,'Set UP'!E17=0,'Set UP'!F17=0),"",$JP31) ->  | JS31: =IF(OR('Set UP'!K17<>1,'Set UP'!C17=0,'Set UP'!D17=0,'Set UP'!E17=0,'Set UP'!F17=0),"",RANK(JR31,$JR$21:$JR$60,0)) ->  | JT31: =IF(OR('Set UP'!K17<>2,'Set UP'!C17=0,'Set UP'!D17=0,'Set UP'!E17=0,'Set UP'!F17=0),"",$JP31) ->  | JU31: =IF(OR('Set UP'!K17<>2,'Set UP'!C17=0,'Set UP'!D17=0,'Set UP'!E17=0,'Set UP'!F17=0),"",RANK(JT31,$JT$21:$JT$60,0)) ->  | JV31: =IF(OR('Set UP'!F17<>"F",'Set UP'!C17=0,'Set UP'!D17=0,'Set UP'!E17=0),"",$JP31) ->  | JW31: =IF(OR('Set UP'!F17<>"F",'Set UP'!C17=0,'Set UP'!D17=0,'Set UP'!E17=0),"",RANK(JV31,$JV$21:$JV$60,0)) ->  | JX31: =IF(OR('Set UP'!F17<>"NS",'Set UP'!C17=0,'Set UP'!D17=0,'Set UP'!E17=0),"",$JP31) ->  | JY31: =IF(OR('Set UP'!F17<>"NS",'Set UP'!C17=0,'Set UP'!D17=0,'Set UP'!E17=0),"",RANK(JX31,$JX$21:$JX$60,0)) ->  | JZ31: =IF(OR('Set UP'!$C17=0,'Set UP'!$D17=0,'Set UP'!$E17=0,JP31=0),"",JP31/MAX(JP$21:JP$60)*1000) -> 852.5423729
B32: 12 | C32: =IF(OR('Set UP'!$C18=0,'Set UP'!$D18=0,'Set UP'!$E18=0,'Set UP'!F18=0)," --",'Set UP'!C18) -> -- | D32: =IF(OR('Set UP'!$C18=0,'Set UP'!$D18=0,'Set UP'!$E18=0,'Set UP'!F18=0)," --",'Set UP'!D18&" "&'Set UP'!E18) -> -- | E32: =IF(OR('Set UP'!$C18=0,'Set UP'!$D18=0,'Set UP'!$E18=0,'Set UP'!F18=0)," --",'Set UP'!F18) -> -- | AF32: =IF(OR('Set UP'!$C18=0,'Set UP'!$D18=0,'Set UP'!$E18=0),"",(F$19*F32)+(G$19*G32)+(H$19*H32)+(I$19*I32)+(J$19*J32)+(K$19*K32)+(L$19*L32)+(M$19*M32)+(N$19*N32)+(O$19*O32)+(P$19*P32)+(Q$19*Q32)+(R$19*R32)+(S$19*S32)+(T$19*T32)+(U$19*U32)+(V$19*V32)+(W$19*W32)+(X$19*X32)+(Y$19*Y32)+(Z$19*Z32)+(AA$19*AA32)+(AB$19*AB32)+(AC$19*AC32)+(AD$19*AD32)) ->  | BG32: =IF(OR('Set UP'!$C18=0,'Set UP'!$D18=0,'Set UP'!$E18=0),"",(AG$19*AG32)+(AH$19*AH32)+(AI$19*AI32)+(AJ$19*AJ32)+(AK$19*AK32)+(AL$19*AL32)+(AM$19*AM32)+(AN$19*AN32)+(AO$19*AO32)+(AP$19*AP32)+(AQ$19*AQ32)+(AR$19*AR32)+(AS$19*AS32)+(AT$19*AT32)+(AU$19*AU32)+(AV$19*AV32)+(AW$19*AW32)+(AX$19*AX32)+(AY$19*AY32)+(AZ$19*AZ32)+(BA$19*BA32)+(BB$19*BB32)+(BC$19*BC32)+(BD$19*BD32)+(BE$19*BE32)) ->  | CH32: =IF(OR('Set UP'!$C18=0,'Set UP'!$D18=0,'Set UP'!$E18=0),"",(BH$19*BH32)+(BI$19*BI32)+(BJ$19*BJ32)+(BK$19*BK32)+(BL$19*BL32)+(BM$19*BM32)+(BN$19*BN32)+(BO$19*BO32)+(BP$19*BP32)+(BQ$19*BQ32)+(BR$19*BR32)+(BS$19*BS32)+(BT$19*BT32)+(BU$19*BU32)+(BV$19*BV32)+(BW$19*BW32)+(BX$19*BX32)+(BY$19*BY32)+(BZ$19*BZ32)+(CA$19*CA32)+(CB$19*CB32)+(CC$19*CC32)+(CD$19*CD32)+(CE$19*CE32)+(CF$19*CF32)) ->  | DI32: =IF(OR('Set UP'!$C18=0,'Set UP'!$D18=0,'Set UP'!$E18=0),"",(CI$19*CI32)+(CJ$19*CJ32)+(CK$19*CK32)+(CL$19*CL32)+(CM$19*CM32)+(CN$19*CN32)+(CO$19*CO32)+(CP$19*CP32)+(CQ$19*CQ32)+(CR$19*CR32)+(CS$19*CS32)+(CT$19*CT32)+(CU$19*CU32)+(CV$19*CV32)+(CW$19*CW32)+(CX$19*CX32)+(CY$19*CY32)+(CZ$19*CZ32)+(DA$19*DA32)+(DB$19*DB32)+(DC$19*DC32)+(DD$19*DD32)+(DE$19*DE32)+(DF$19*DF32)+(DG$19*DG32)) ->  | EJ32: =IF(OR('Set UP'!$C18=0,'Set UP'!$D18=0,'Set UP'!$E18=0),"",(DJ$19*DJ32)+(DK$19*DK32)+(DL$19*DL32)+(DM$19*DM32)+(DN$19*DN32)+(DO$19*DO32)+(DP$19*DP32)+(DQ$19*DQ32)+(DR$19*DR32)+(DS$19*DS32)+(DT$19*DT32)+(DU$19*DU32)+(DV$19*DV32)+(DW$19*DW32)+(DX$19*DX32)+(DY$19*DY32)+(DZ$19*DZ32)+(EA$19*EA32)+(EB$19*EB32)+(EC$19*EC32)+(ED$19*ED32)+(EE$19*EE32)+(EF$19*EF32)+(EG$19*EG32)+(EH$19*EH32)) ->  | FK32: =IF(OR('Set UP'!$C18=0,'Set UP'!$D18=0,'Set UP'!$E18=0),"",(EK$19*EK32)+(EL$19*EL32)+(EM$19*EM32)+(EN$19*EN32)+(EO$19*EO32)+(EP$19*EP32)+(EQ$19*EQ32)+(ER$19*ER32)+(ES$19*ES32)+(ET$19*ET32)+(EU$19*EU32)+(EV$19*EV32)+(EW$19*EW32)+(EX$19*EX32)+(EY$19*EY32)+(EZ$19*EZ32)+(FA$19*FA32)+(FB$19*FB32)+(FC$19*FC32)+(FD$19*FD32)+(FE$19*FE32)+(FF$19*FF32)+(FG$19*FG32)+(FH$19*FH32)+(FI$19*FI32)) ->  | GL32: =IF(OR('Set UP'!$C18=0,'Set UP'!$D18=0,'Set UP'!$E18=0),"",(FL$19*FL32)+(FM$19*FM32)+(FN$19*FN32)+(FO$19*FO32)+(FP$19*FP32)+(FQ$19*FQ32)+(FR$19*FR32)+(FS$19*FS32)+(FT$19*FT32)+(FU$19*FU32)+(FV$19*FV32)+(FW$19*FW32)+(FX$19*FX32)+(FY$19*FY32)+(FZ$19*FZ32)+(GA$19*GA32)+(GB$19*GB32)+(GC$19*GC32)+(GD$19*GD32)+(GE$19*GE32)+(GF$19*GF32)+(GG$19*GG32)+(GH$19*GH32)+(GI$19*GI32)+(GJ$19*GJ32)) ->  | HM32: =IF(OR('Set UP'!$C18=0,'Set UP'!$D18=0,'Set UP'!$E18=0),"",(GM$19*GM32)+(GN$19*GN32)+(GO$19*GO32)+(GP$19*GP32)+(GQ$19*GQ32)+(GR$19*GR32)+(GS$19*GS32)+(GT$19*GT32)+(GU$19*GU32)+(GV$19*GV32)+(GW$19*GW32)+(GX$19*GX32)+(GY$19*GY32)+(GZ$19*GZ32)+(HA$19*HA32)+(HB$19*HB32)+(HC$19*HC32)+(HD$19*HD32)+(HE$19*HE32)+(HF$19*HF32)+(HG$19*HG32)+(HH$19*HH32)+(HI$19*HI32)+(HJ$19*HJ32)+(HK$19*HK32)) ->  | IN32: =IF(OR('Set UP'!$C18=0,'Set UP'!$D18=0,'Set UP'!$E18=0),"",(HN$19*HN32)+(HO$19*HO32)+(HP$19*HP32)+(HQ$19*HQ32)+(HR$19*HR32)+(HS$19*HS32)+(HT$19*HT32)+(HU$19*HU32)+(HV$19*HV32)+(HW$19*HW32)+(HX$19*HX32)+(HY$19*HY32)+(HZ$19*HZ32)+(IA$19*IA32)+(IB$19*IB32)+(IC$19*IC32)+(ID$19*ID32)+(IE$19*IE32)+(IF$19*IF32)+(IG$19*IG32)+(IH$19*IH32)+(II$19*II32)+(IJ$19*IJ32)+(IK$19*IK32)+(IL$19*IL32)) ->  | JO32: =IF(OR('Set UP'!$C18=0,'Set UP'!$D18=0,'Set UP'!$E18=0),"",(IO$19*IO32)+(IP$19*IP32)+(IQ$19*IQ32)+(IR$19*IR32)+(IS$19*IS32)+(IT$19*IT32)+(IU$19*IU32)+(IV$19*IV32)+(IW$19*IW32)+(IX$19*IX32)+(IY$19*IY32)+(IZ$19*IZ32)+(JA$19*JA32)+(JB$19*JB32)+(JC$19*JC32)+(JD$19*JD32)+(JE$19*JE32)+(JF$19*JF32)+(JG$19*JG32)+(JH$19*JH32)+(JI$19*JI32)+(JJ$19*JJ32)+(JK$19*JK32)+(JL$19*JL32)+(JM$19*JM32)) ->  | JP32: =IF(OR('Set UP'!$C18=0,'Set UP'!$D18=0,'Set UP'!$E18=0),"",(AF32+BG32+CH32+DI32+EJ32+FK32+GL32+HM32+IN32+JO32)) ->  | JQ32: =IF(OR('Set UP'!$C18=0,'Set UP'!$D18=0,'Set UP'!$E18=0),"",RANK(JP32,$JP$21:$JP$60,0)) ->  | JR32: =IF(OR('Set UP'!K18<>1,'Set UP'!C18=0,'Set UP'!D18=0,'Set UP'!E18=0,'Set UP'!F18=0),"",$JP32) ->  | JS32: =IF(OR('Set UP'!K18<>1,'Set UP'!C18=0,'Set UP'!D18=0,'Set UP'!E18=0,'Set UP'!F18=0),"",RANK(JR32,$JR$21:$JR$60,0)) ->  | JT32: =IF(OR('Set UP'!K18<>2,'Set UP'!C18=0,'Set UP'!D18=0,'Set UP'!E18=0,'Set UP'!F18=0),"",$JP32) ->  | JU32: =IF(OR('Set UP'!K18<>2,'Set UP'!C18=0,'Set UP'!D18=0,'Set UP'!E18=0,'Set UP'!F18=0),"",RANK(JT32,$JT$21:$JT$60,0)) ->  | JV32: =IF(OR('Set UP'!F18<>"F",'Set UP'!C18=0,'Set UP'!D18=0,'Set UP'!E18=0),"",$JP32) ->  | JW32: =IF(OR('Set UP'!F18<>"F",'Set UP'!C18=0,'Set UP'!D18=0,'Set UP'!E18=0),"",RANK(JV32,$JV$21:$JV$60,0)) ->  | JX32: =IF(OR('Set UP'!F18<>"NS",'Set UP'!C18=0,'Set UP'!D18=0,'Set UP'!E18=0),"",$JP32) ->  | JY32: =IF(OR('Set UP'!F18<>"NS",'Set UP'!C18=0,'Set UP'!D18=0,'Set UP'!E18=0),"",RANK(JX32,$JX$21:$JX$60,0)) ->  | JZ32: =IF(OR('Set UP'!$C18=0,'Set UP'!$D18=0,'Set UP'!$E18=0,JP32=0),"",JP32/MAX(JP$21:JP$60)*1000) -> 
B33: 13 | C33: =IF(OR('Set UP'!$C19=0,'Set UP'!$D19=0,'Set UP'!$E19=0,'Set UP'!F19=0)," --",'Set UP'!C19) -> 1426 | D33: =IF(OR('Set UP'!$C19=0,'Set UP'!$D19=0,'Set UP'!$E19=0,'Set UP'!F19=0)," --",'Set UP'!D19&" "&'Set UP'!E19) -> London Universities B | E33: =IF(OR('Set UP'!$C19=0,'Set UP'!$D19=0,'Set UP'!$E19=0,'Set UP'!F19=0)," --",'Set UP'!F19) -> S | F33: 6 | G33: 5 | H33: 0 | I33: 5 | J33: 0 | K33: 5 | L33: 0 | AF33: =IF(OR('Set UP'!$C19=0,'Set UP'!$D19=0,'Set UP'!$E19=0),"",(F$19*F33)+(G$19*G33)+(H$19*H33)+(I$19*I33)+(J$19*J33)+(K$19*K33)+(L$19*L33)+(M$19*M33)+(N$19*N33)+(O$19*O33)+(P$19*P33)+(Q$19*Q33)+(R$19*R33)+(S$19*S33)+(T$19*T33)+(U$19*U33)+(V$19*V33)+(W$19*W33)+(X$19*X33)+(Y$19*Y33)+(Z$19*Z33)+(AA$19*AA33)+(AB$19*AB33)+(AC$19*AC33)+(AD$19*AD33)) -> 26 | AG33: 5 | AH33: 2 | AI33: 8 | AJ33: 8 | AK33: 7 | AL33: 7 | AM33: 0 | AN33: 7 | BG33: =IF(OR('Set UP'!$C19=0,'Set UP'!$D19=0,'Set UP'!$E19=0),"",(AG$19*AG33)+(AH$19*AH33)+(AI$19*AI33)+(AJ$19*AJ33)+(AK$19*AK33)+(AL$19*AL33)+(AM$19*AM33)+(AN$19*AN33)+(AO$19*AO33)+(AP$19*AP33)+(AQ$19*AQ33)+(AR$19*AR33)+(AS$19*AS33)+(AT$19*AT33)+(AU$19*AU33)+(AV$19*AV33)+(AW$19*AW33)+(AX$19*AX33)+(AY$19*AY33)+(AZ$19*AZ33)+(BA$19*BA33)+(BB$19*BB33)+(BC$19*BC33)+(BD$19*BD33)+(BE$19*BE33)) -> 51 | BH33: 8 | BI33: 2 | BJ33: 10 | BK33: 0 | BL33: 7 | BM33: 6 | BN33: 0 | CH33: =IF(OR('Set UP'!$C19=0,'Set UP'!$D19=0,'Set UP'!$E19=0),"",(BH$19*BH33)+(BI$19*BI33)+(BJ$19*BJ33)+(BK$19*BK33)+(BL$19*BL33)+(BM$19*BM33)+(BN$19*BN33)+(BO$19*BO33)+(BP$19*BP33)+(BQ$19*BQ33)+(BR$19*BR33)+(BS$19*BS33)+(BT$19*BT33)+(BU$19*BU33)+(BV$19*BV33)+(BW$19*BW33)+(BX$19*BX33)+(BY$19*BY33)+(BZ$19*BZ33)+(CA$19*CA33)+(CB$19*CB33)+(CC$19*CC33)+(CD$19*CD33)+(CE$19*CE33)+(CF$19*CF33)) -> 37 | CI33: 9 | CJ33: 10 | CK33: 6 | CL33: 5 | CM33: 7 | CN33: 0 | CO33: 0 | DI33: =IF(OR('Set UP'!$C19=0,'Set UP'!$D19=0,'Set UP'!$E19=0),"",(CI$19*CI33)+(CJ$19*CJ33)+(CK$19*CK33)+(CL$19*CL33)+(CM$19*CM33)+(CN$19*CN33)+(CO$19*CO33)+(CP$19*CP33)+(CQ$19*CQ33)+(CR$19*CR33)+(CS$19*CS33)+(CT$19*CT33)+(CU$19*CU33)+(CV$19*CV33)+(CW$19*CW33)+(CX$19*CX33)+(CY$19*CY33)+(CZ$19*CZ33)+(DA$19*DA33)+(DB$19*DB33)+(DC$19*DC33)+(DD$19*DD33)+(DE$19*DE33)+(DF$19*DF33)+(DG$19*DG33)) -> 51.5 | DJ33: 10 | DK33: 0 | DL33: 0 | DM33: 10 | DN33: 10 | DO33: 10 | DP33: 4 | DQ33: 3 | DR33: 10 | DS33: 10 | EJ33: =IF(OR('Set UP'!$C19=0,'Set UP'!$D19=0,'Set UP'!$E19=0),"",(DJ$19*DJ33)+(DK$19*DK33)+(DL$19*DL33)+(DM$19*DM33)+(DN$19*DN33)+(DO$19*DO33)+(DP$19*DP33)+(DQ$19*DQ33)+(DR$19*DR33)+(DS$19*DS33)+(DT$19*DT33)+(DU$19*DU33)+(DV$19*DV33)+(DW$19*DW33)+(DX$19*DX33)+(DY$19*DY33)+(DZ$19*DZ33)+(EA$19*EA33)+(EB$19*EB33)+(EC$19*EC33)+(ED$19*ED33)+(EE$19*EE33)+(EF$19*EF33)+(EG$19*EG33)+(EH$19*EH33)) -> 56.5 | EK33: 5 | EL33: 4 | EM33: 4 | EN33: 4 | FK33: =IF(OR('Set UP'!$C19=0,'Set UP'!$D19=0,'Set UP'!$E19=0),"",(EK$19*EK33)+(EL$19*EL33)+(EM$19*EM33)+(EN$19*EN33)+(EO$19*EO33)+(EP$19*EP33)+(EQ$19*EQ33)+(ER$19*ER33)+(ES$19*ES33)+(ET$19*ET33)+(EU$19*EU33)+(EV$19*EV33)+(EW$19*EW33)+(EX$19*EX33)+(EY$19*EY33)+(EZ$19*EZ33)+(FA$19*FA33)+(FB$19*FB33)+(FC$19*FC33)+(FD$19*FD33)+(FE$19*FE33)+(FF$19*FF33)+(FG$19*FG33)+(FH$19*FH33)+(FI$19*FI33)) -> 33 | GL33: =IF(OR('Set UP'!$C19=0,'Set UP'!$D19=0,'Set UP'!$E19=0),"",(FL$19*FL33)+(FM$19*FM33)+(FN$19*FN33)+(FO$19*FO33)+(FP$19*FP33)+(FQ$19*FQ33)+(FR$19*FR33)+(FS$19*FS33)+(FT$19*FT33)+(FU$19*FU33)+(FV$19*FV33)+(FW$19*FW33)+(FX$19*FX33)+(FY$19*FY33)+(FZ$19*FZ33)+(GA$19*GA33)+(GB$19*GB33)+(GC$19*GC33)+(GD$19*GD33)+(GE$19*GE33)+(GF$19*GF33)+(GG$19*GG33)+(GH$19*GH33)+(GI$19*GI33)+(GJ$19*GJ33)) -> 0 | HM33: =IF(OR('Set UP'!$C19=0,'Set UP'!$D19=0,'Set UP'!$E19=0),"",(GM$19*GM33)+(GN$19*GN33)+(GO$19*GO33)+(GP$19*GP33)+(GQ$19*GQ33)+(GR$19*GR33)+(GS$19*GS33)+(GT$19*GT33)+(GU$19*GU33)+(GV$19*GV33)+(GW$19*GW33)+(GX$19*GX33)+(GY$19*GY33)+(GZ$19*GZ33)+(HA$19*HA33)+(HB$19*HB33)+(HC$19*HC33)+(HD$19*HD33)+(HE$19*HE33)+(HF$19*HF33)+(HG$19*HG33)+(HH$19*HH33)+(HI$19*HI33)+(HJ$19*HJ33)+(HK$19*HK33)) -> 0 | IN33: =IF(OR('Set UP'!$C19=0,'Set UP'!$D19=0,'Set UP'!$E19=0),"",(HN$19*HN33)+(HO$19*HO33)+(HP$19*HP33)+(HQ$19*HQ33)+(HR$19*HR33)+(HS$19*HS33)+(HT$19*HT33)+(HU$19*HU33)+(HV$19*HV33)+(HW$19*HW33)+(HX$19*HX33)+(HY$19*HY33)+(HZ$19*HZ33)+(IA$19*IA33)+(IB$19*IB33)+(IC$19*IC33)+(ID$19*ID33)+(IE$19*IE33)+(IF$19*IF33)+(IG$19*IG33)+(IH$19*IH33)+(II$19*II33)+(IJ$19*IJ33)+(IK$19*IK33)+(IL$19*IL33)) -> 0 | JO33: =IF(OR('Set UP'!$C19=0,'Set UP'!$D19=0,'Set UP'!$E19=0),"",(IO$19*IO33)+(IP$19*IP33)+(IQ$19*IQ33)+(IR$19*IR33)+(IS$19*IS33)+(IT$19*IT33)+(IU$19*IU33)+(IV$19*IV33)+(IW$19*IW33)+(IX$19*IX33)+(IY$19*IY33)+(IZ$19*IZ33)+(JA$19*JA33)+(JB$19*JB33)+(JC$19*JC33)+(JD$19*JD33)+(JE$19*JE33)+(JF$19*JF33)+(JG$19*JG33)+(JH$19*JH33)+(JI$19*JI33)+(JJ$19*JJ33)+(JK$19*JK33)+(JL$19*JL33)+(JM$19*JM33)) -> 0 | JP33: =IF(OR('Set UP'!$C19=0,'Set UP'!$D19=0,'Set UP'!$E19=0),"",(AF33+BG33+CH33+DI33+EJ33+FK33+GL33+HM33+IN33+JO33)) -> 255 | JQ33: =IF(OR('Set UP'!$C19=0,'Set UP'!$D19=0,'Set UP'!$E19=0),"",RANK(JP33,$JP$21:$JP$60,0)) -> 8 | JR33: =IF(OR('Set UP'!K19<>1,'Set UP'!C19=0,'Set UP'!D19=0,'Set UP'!E19=0,'Set UP'!F19=0),"",$JP33) ->  | JS33: =IF(OR('Set UP'!K19<>1,'Set UP'!C19=0,'Set UP'!D19=0,'Set UP'!E19=0,'Set UP'!F19=0),"",RANK(JR33,$JR$21:$JR$60,0)) ->  | JT33: =IF(OR('Set UP'!K19<>2,'Set UP'!C19=0,'Set UP'!D19=0,'Set UP'!E19=0,'Set UP'!F19=0),"",$JP33) -> 255 | JU33: =IF(OR('Set UP'!K19<>2,'Set UP'!C19=0,'Set UP'!D19=0,'Set UP'!E19=0,'Set UP'!F19=0),"",RANK(JT33,$JT$21:$JT$60,0)) -> 5 | JV33: =IF(OR('Set UP'!F19<>"F",'Set UP'!C19=0,'Set UP'!D19=0,'Set UP'!E19=0),"",$JP33) ->  | JW33: =IF(OR('Set UP'!F19<>"F",'Set UP'!C19=0,'Set UP'!D19=0,'Set UP'!E19=0),"",RANK(JV33,$JV$21:$JV$60,0)) ->  | JX33: =IF(OR('Set UP'!F19<>"NS",'Set UP'!C19=0,'Set UP'!D19=0,'Set UP'!E19=0),"",$JP33) ->  | JY33: =IF(OR('Set UP'!F19<>"NS",'Set UP'!C19=0,'Set UP'!D19=0,'Set UP'!E19=0),"",RANK(JX33,$JX$21:$JX$60,0)) ->  | JZ33: =IF(OR('Set UP'!$C19=0,'Set UP'!$D19=0,'Set UP'!$E19=0,JP33=0),"",JP33/MAX(JP$21:JP$60)*1000) -> 864.4067797
B34: 14 | C34: =IF(OR('Set UP'!$C20=0,'Set UP'!$D20=0,'Set UP'!$E20=0,'Set UP'!F20=0)," --",'Set UP'!C20) -> -- | D34: =IF(OR('Set UP'!$C20=0,'Set UP'!$D20=0,'Set UP'!$E20=0,'Set UP'!F20=0)," --",'Set UP'!D20&" "&'Set UP'!E20) -> -- | E34: =IF(OR('Set UP'!$C20=0,'Set UP'!$D20=0,'Set UP'!$E20=0,'Set UP'!F20=0)," --",'Set UP'!F20) -> -- | AF34: =IF(OR('Set UP'!$C20=0,'Set UP'!$D20=0,'Set UP'!$E20=0),"",(F$19*F34)+(G$19*G34)+(H$19*H34)+(I$19*I34)+(J$19*J34)+(K$19*K34)+(L$19*L34)+(M$19*M34)+(N$19*N34)+(O$19*O34)+(P$19*P34)+(Q$19*Q34)+(R$19*R34)+(S$19*S34)+(T$19*T34)+(U$19*U34)+(V$19*V34)+(W$19*W34)+(X$19*X34)+(Y$19*Y34)+(Z$19*Z34)+(AA$19*AA34)+(AB$19*AB34)+(AC$19*AC34)+(AD$19*AD34)) ->  | BG34: =IF(OR('Set UP'!$C20=0,'Set UP'!$D20=0,'Set UP'!$E20=0),"",(AG$19*AG34)+(AH$19*AH34)+(AI$19*AI34)+(AJ$19*AJ34)+(AK$19*AK34)+(AL$19*AL34)+(AM$19*AM34)+(AN$19*AN34)+(AO$19*AO34)+(AP$19*AP34)+(AQ$19*AQ34)+(AR$19*AR34)+(AS$19*AS34)+(AT$19*AT34)+(AU$19*AU34)+(AV$19*AV34)+(AW$19*AW34)+(AX$19*AX34)+(AY$19*AY34)+(AZ$19*AZ34)+(BA$19*BA34)+(BB$19*BB34)+(BC$19*BC34)+(BD$19*BD34)+(BE$19*BE34)) ->  | CH34: =IF(OR('Set UP'!$C20=0,'Set UP'!$D20=0,'Set UP'!$E20=0),"",(BH$19*BH34)+(BI$19*BI34)+(BJ$19*BJ34)+(BK$19*BK34)+(BL$19*BL34)+(BM$19*BM34)+(BN$19*BN34)+(BO$19*BO34)+(BP$19*BP34)+(BQ$19*BQ34)+(BR$19*BR34)+(BS$19*BS34)+(BT$19*BT34)+(BU$19*BU34)+(BV$19*BV34)+(BW$19*BW34)+(BX$19*BX34)+(BY$19*BY34)+(BZ$19*BZ34)+(CA$19*CA34)+(CB$19*CB34)+(CC$19*CC34)+(CD$19*CD34)+(CE$19*CE34)+(CF$19*CF34)) ->  | DI34: =IF(OR('Set UP'!$C20=0,'Set UP'!$D20=0,'Set UP'!$E20=0),"",(CI$19*CI34)+(CJ$19*CJ34)+(CK$19*CK34)+(CL$19*CL34)+(CM$19*CM34)+(CN$19*CN34)+(CO$19*CO34)+(CP$19*CP34)+(CQ$19*CQ34)+(CR$19*CR34)+(CS$19*CS34)+(CT$19*CT34)+(CU$19*CU34)+(CV$19*CV34)+(CW$19*CW34)+(CX$19*CX34)+(CY$19*CY34)+(CZ$19*CZ34)+(DA$19*DA34)+(DB$19*DB34)+(DC$19*DC34)+(DD$19*DD34)+(DE$19*DE34)+(DF$19*DF34)+(DG$19*DG34)) ->  | EJ34: =IF(OR('Set UP'!$C20=0,'Set UP'!$D20=0,'Set UP'!$E20=0),"",(DJ$19*DJ34)+(DK$19*DK34)+(DL$19*DL34)+(DM$19*DM34)+(DN$19*DN34)+(DO$19*DO34)+(DP$19*DP34)+(DQ$19*DQ34)+(DR$19*DR34)+(DS$19*DS34)+(DT$19*DT34)+(DU$19*DU34)+(DV$19*DV34)+(DW$19*DW34)+(DX$19*DX34)+(DY$19*DY34)+(DZ$19*DZ34)+(EA$19*EA34)+(EB$19*EB34)+(EC$19*EC34)+(ED$19*ED34)+(EE$19*EE34)+(EF$19*EF34)+(EG$19*EG34)+(EH$19*EH34)) ->  | FK34: =IF(OR('Set UP'!$C20=0,'Set UP'!$D20=0,'Set UP'!$E20=0),"",(EK$19*EK34)+(EL$19*EL34)+(EM$19*EM34)+(EN$19*EN34)+(EO$19*EO34)+(EP$19*EP34)+(EQ$19*EQ34)+(ER$19*ER34)+(ES$19*ES34)+(ET$19*ET34)+(EU$19*EU34)+(EV$19*EV34)+(EW$19*EW34)+(EX$19*EX34)+(EY$19*EY34)+(EZ$19*EZ34)+(FA$19*FA34)+(FB$19*FB34)+(FC$19*FC34)+(FD$19*FD34)+(FE$19*FE34)+(FF$19*FF34)+(FG$19*FG34)+(FH$19*FH34)+(FI$19*FI34)) ->  | GL34: =IF(OR('Set UP'!$C20=0,'Set UP'!$D20=0,'Set UP'!$E20=0),"",(FL$19*FL34)+(FM$19*FM34)+(FN$19*FN34)+(FO$19*FO34)+(FP$19*FP34)+(FQ$19*FQ34)+(FR$19*FR34)+(FS$19*FS34)+(FT$19*FT34)+(FU$19*FU34)+(FV$19*FV34)+(FW$19*FW34)+(FX$19*FX34)+(FY$19*FY34)+(FZ$19*FZ34)+(GA$19*GA34)+(GB$19*GB34)+(GC$19*GC34)+(GD$19*GD34)+(GE$19*GE34)+(GF$19*GF34)+(GG$19*GG34)+(GH$19*GH34)+(GI$19*GI34)+(GJ$19*GJ34)) ->  | HM34: =IF(OR('Set UP'!$C20=0,'Set UP'!$D20=0,'Set UP'!$E20=0),"",(GM$19*GM34)+(GN$19*GN34)+(GO$19*GO34)+(GP$19*GP34)+(GQ$19*GQ34)+(GR$19*GR34)+(GS$19*GS34)+(GT$19*GT34)+(GU$19*GU34)+(GV$19*GV34)+(GW$19*GW34)+(GX$19*GX34)+(GY$19*GY34)+(GZ$19*GZ34)+(HA$19*HA34)+(HB$19*HB34)+(HC$19*HC34)+(HD$19*HD34)+(HE$19*HE34)+(HF$19*HF34)+(HG$19*HG34)+(HH$19*HH34)+(HI$19*HI34)+(HJ$19*HJ34)+(HK$19*HK34)) ->  | IN34: =IF(OR('Set UP'!$C20=0,'Set UP'!$D20=0,'Set UP'!$E20=0),"",(HN$19*HN34)+(HO$19*HO34)+(HP$19*HP34)+(HQ$19*HQ34)+(HR$19*HR34)+(HS$19*HS34)+(HT$19*HT34)+(HU$19*HU34)+(HV$19*HV34)+(HW$19*HW34)+(HX$19*HX34)+(HY$19*HY34)+(HZ$19*HZ34)+(IA$19*IA34)+(IB$19*IB34)+(IC$19*IC34)+(ID$19*ID34)+(IE$19*IE34)+(IF$19*IF34)+(IG$19*IG34)+(IH$19*IH34)+(II$19*II34)+(IJ$19*IJ34)+(IK$19*IK34)+(IL$19*IL34)) ->  | JO34: =IF(OR('Set UP'!$C20=0,'Set UP'!$D20=0,'Set UP'!$E20=0),"",(IO$19*IO34)+(IP$19*IP34)+(IQ$19*IQ34)+(IR$19*IR34)+(IS$19*IS34)+(IT$19*IT34)+(IU$19*IU34)+(IV$19*IV34)+(IW$19*IW34)+(IX$19*IX34)+(IY$19*IY34)+(IZ$19*IZ34)+(JA$19*JA34)+(JB$19*JB34)+(JC$19*JC34)+(JD$19*JD34)+(JE$19*JE34)+(JF$19*JF34)+(JG$19*JG34)+(JH$19*JH34)+(JI$19*JI34)+(JJ$19*JJ34)+(JK$19*JK34)+(JL$19*JL34)+(JM$19*JM34)) ->  | JP34: =IF(OR('Set UP'!$C20=0,'Set UP'!$D20=0,'Set UP'!$E20=0),"",(AF34+BG34+CH34+DI34+EJ34+FK34+GL34+HM34+IN34+JO34)) ->  | JQ34: =IF(OR('Set UP'!$C20=0,'Set UP'!$D20=0,'Set UP'!$E20=0),"",RANK(JP34,$JP$21:$JP$60,0)) ->  | JR34: =IF(OR('Set UP'!K20<>1,'Set UP'!C20=0,'Set UP'!D20=0,'Set UP'!E20=0,'Set UP'!F20=0),"",$JP34) ->  | JS34: =IF(OR('Set UP'!K20<>1,'Set UP'!C20=0,'Set UP'!D20=0,'Set UP'!E20=0,'Set UP'!F20=0),"",RANK(JR34,$JR$21:$JR$60,0)) ->  | JT34: =IF(OR('Set UP'!K20<>2,'Set UP'!C20=0,'Set UP'!D20=0,'Set UP'!E20=0,'Set UP'!F20=0),"",$JP34) ->  | JU34: =IF(OR('Set UP'!K20<>2,'Set UP'!C20=0,'Set UP'!D20=0,'Set UP'!E20=0,'Set UP'!F20=0),"",RANK(JT34,$JT$21:$JT$60,0)) ->  | JV34: =IF(OR('Set UP'!F20<>"F",'Set UP'!C20=0,'Set UP'!D20=0,'Set UP'!E20=0),"",$JP34) ->  | JW34: =IF(OR('Set UP'!F20<>"F",'Set UP'!C20=0,'Set UP'!D20=0,'Set UP'!E20=0),"",RANK(JV34,$JV$21:$JV$60,0)) ->  | JX34: =IF(OR('Set UP'!F20<>"NS",'Set UP'!C20=0,'Set UP'!D20=0,'Set UP'!E20=0),"",$JP34) ->  | JY34: =IF(OR('Set UP'!F20<>"NS",'Set UP'!C20=0,'Set UP'!D20=0,'Set UP'!E20=0),"",RANK(JX34,$JX$21:$JX$60,0)) ->  | JZ34: =IF(OR('Set UP'!$C20=0,'Set UP'!$D20=0,'Set UP'!$E20=0,JP34=0),"",JP34/MAX(JP$21:JP$60)*1000) -> 
B35: 15 | C35: =IF(OR('Set UP'!$C21=0,'Set UP'!$D21=0,'Set UP'!$E21=0,'Set UP'!F21=0)," --",'Set UP'!C21) -> 1427 | D35: =IF(OR('Set UP'!$C21=0,'Set UP'!$D21=0,'Set UP'!$E21=0,'Set UP'!F21=0)," --",'Set UP'!D21&" "&'Set UP'!E21) -> University of Southampton A | E35: =IF(OR('Set UP'!$C21=0,'Set UP'!$D21=0,'Set UP'!$E21=0,'Set UP'!F21=0)," --",'Set UP'!F21) -> S | F35: 5 | G35: 5 | H35: 2 | I35: 6 | J35: 3 | K35: 4 | L35: 2 | AF35: =IF(OR('Set UP'!$C21=0,'Set UP'!$D21=0,'Set UP'!$E21=0),"",(F$19*F35)+(G$19*G35)+(H$19*H35)+(I$19*I35)+(J$19*J35)+(K$19*K35)+(L$19*L35)+(M$19*M35)+(N$19*N35)+(O$19*O35)+(P$19*P35)+(Q$19*Q35)+(R$19*R35)+(S$19*S35)+(T$19*T35)+(U$19*U35)+(V$19*V35)+(W$19*W35)+(X$19*X35)+(Y$19*Y35)+(Z$19*Z35)+(AA$19*AA35)+(AB$19*AB35)+(AC$19*AC35)+(AD$19*AD35)) -> 32.5 | AG35: 4 | AH35: 5 | AI35: 5 | AJ35: 7 | AK35: 4 | AL35: 7 | AM35: 0 | AN35: 8 | BG35: =IF(OR('Set UP'!$C21=0,'Set UP'!$D21=0,'Set UP'!$E21=0),"",(AG$19*AG35)+(AH$19*AH35)+(AI$19*AI35)+(AJ$19*AJ35)+(AK$19*AK35)+(AL$19*AL35)+(AM$19*AM35)+(AN$19*AN35)+(AO$19*AO35)+(AP$19*AP35)+(AQ$19*AQ35)+(AR$19*AR35)+(AS$19*AS35)+(AT$19*AT35)+(AU$19*AU35)+(AV$19*AV35)+(AW$19*AW35)+(AX$19*AX35)+(AY$19*AY35)+(AZ$19*AZ35)+(BA$19*BA35)+(BB$19*BB35)+(BC$19*BC35)+(BD$19*BD35)+(BE$19*BE35)) -> 45 | BH35: 8 | BI35: 2 | BJ35: 0 | BK35: 0 | BL35: 8 | BM35: 7 | BN35: 0 | CH35: =IF(OR('Set UP'!$C21=0,'Set UP'!$D21=0,'Set UP'!$E21=0),"",(BH$19*BH35)+(BI$19*BI35)+(BJ$19*BJ35)+(BK$19*BK35)+(BL$19*BL35)+(BM$19*BM35)+(BN$19*BN35)+(BO$19*BO35)+(BP$19*BP35)+(BQ$19*BQ35)+(BR$19*BR35)+(BS$19*BS35)+(BT$19*BT35)+(BU$19*BU35)+(BV$19*BV35)+(BW$19*BW35)+(BX$19*BX35)+(BY$19*BY35)+(BZ$19*BZ35)+(CA$19*CA35)+(CB$19*CB35)+(CC$19*CC35)+(CD$19*CD35)+(CE$19*CE35)+(CF$19*CF35)) -> 29.5 | CI35: 7 | CJ35: 9 | CK35: 9 | CL35: 5 | CM35: 9 | CN35: 2 | CO35: 5 | DI35: =IF(OR('Set UP'!$C21=0,'Set UP'!$D21=0,'Set UP'!$E21=0),"",(CI$19*CI35)+(CJ$19*CJ35)+(CK$19*CK35)+(CL$19*CL35)+(CM$19*CM35)+(CN$19*CN35)+(CO$19*CO35)+(CP$19*CP35)+(CQ$19*CQ35)+(CR$19*CR35)+(CS$19*CS35)+(CT$19*CT35)+(CU$19*CU35)+(CV$19*CV35)+(CW$19*CW35)+(CX$19*CX35)+(CY$19*CY35)+(CZ$19*CZ35)+(DA$19*DA35)+(DB$19*DB35)+(DC$19*DC35)+(DD$19*DD35)+(DE$19*DE35)+(DF$19*DF35)+(DG$19*DG35)) -> 58.5 | DJ35: 10 | DK35: 0 | DL35: 0 | DM35: 10 | DN35: 10 | DO35: 10 | DP35: 6 | DQ35: 3 | DR35: 0 | DS35: 0 | EJ35: =IF(OR('Set UP'!$C21=0,'Set UP'!$D21=0,'Set UP'!$E21=0),"",(DJ$19*DJ35)+(DK$19*DK35)+(DL$19*DL35)+(DM$19*DM35)+(DN$19*DN35)+(DO$19*DO35)+(DP$19*DP35)+(DQ$19*DQ35)+(DR$19*DR35)+(DS$19*DS35)+(DT$19*DT35)+(DU$19*DU35)+(DV$19*DV35)+(DW$19*DW35)+(DX$19*DX35)+(DY$19*DY35)+(DZ$19*DZ35)+(EA$19*EA35)+(EB$19*EB35)+(EC$19*EC35)+(ED$19*ED35)+(EE$19*EE35)+(EF$19*EF35)+(EG$19*EG35)+(EH$19*EH35)) -> 44.5 | EK35: 6 | EL35: 2 | EM35: 6 | EN35: 5 | FK35: =IF(OR('Set UP'!$C21=0,'Set UP'!$D21=0,'Set UP'!$E21=0),"",(EK$19*EK35)+(EL$19*EL35)+(EM$19*EM35)+(EN$19*EN35)+(EO$19*EO35)+(EP$19*EP35)+(EQ$19*EQ35)+(ER$19*ER35)+(ES$19*ES35)+(ET$19*ET35)+(EU$19*EU35)+(EV$19*EV35)+(EW$19*EW35)+(EX$19*EX35)+(EY$19*EY35)+(EZ$19*EZ35)+(FA$19*FA35)+(FB$19*FB35)+(FC$19*FC35)+(FD$19*FD35)+(FE$19*FE35)+(FF$19*FF35)+(FG$19*FG35)+(FH$19*FH35)+(FI$19*FI35)) -> 37.5 | GL35: =IF(OR('Set UP'!$C21=0,'Set UP'!$D21=0,'Set UP'!$E21=0),"",(FL$19*FL35)+(FM$19*FM35)+(FN$19*FN35)+(FO$19*FO35)+(FP$19*FP35)+(FQ$19*FQ35)+(FR$19*FR35)+(FS$19*FS35)+(FT$19*FT35)+(FU$19*FU35)+(FV$19*FV35)+(FW$19*FW35)+(FX$19*FX35)+(FY$19*FY35)+(FZ$19*FZ35)+(GA$19*GA35)+(GB$19*GB35)+(GC$19*GC35)+(GD$19*GD35)+(GE$19*GE35)+(GF$19*GF35)+(GG$19*GG35)+(GH$19*GH35)+(GI$19*GI35)+(GJ$19*GJ35)) -> 0 | HM35: =IF(OR('Set UP'!$C21=0,'Set UP'!$D21=0,'Set UP'!$E21=0),"",(GM$19*GM35)+(GN$19*GN35)+(GO$19*GO35)+(GP$19*GP35)+(GQ$19*GQ35)+(GR$19*GR35)+(GS$19*GS35)+(GT$19*GT35)+(GU$19*GU35)+(GV$19*GV35)+(GW$19*GW35)+(GX$19*GX35)+(GY$19*GY35)+(GZ$19*GZ35)+(HA$19*HA35)+(HB$19*HB35)+(HC$19*HC35)+(HD$19*HD35)+(HE$19*HE35)+(HF$19*HF35)+(HG$19*HG35)+(HH$19*HH35)+(HI$19*HI35)+(HJ$19*HJ35)+(HK$19*HK35)) -> 0 | IN35: =IF(OR('Set UP'!$C21=0,'Set UP'!$D21=0,'Set UP'!$E21=0),"",(HN$19*HN35)+(HO$19*HO35)+(HP$19*HP35)+(HQ$19*HQ35)+(HR$19*HR35)+(HS$19*HS35)+(HT$19*HT35)+(HU$19*HU35)+(HV$19*HV35)+(HW$19*HW35)+(HX$19*HX35)+(HY$19*HY35)+(HZ$19*HZ35)+(IA$19*IA35)+(IB$19*IB35)+(IC$19*IC35)+(ID$19*ID35)+(IE$19*IE35)+(IF$19*IF35)+(IG$19*IG35)+(IH$19*IH35)+(II$19*II35)+(IJ$19*IJ35)+(IK$19*IK35)+(IL$19*IL35)) -> 0 | JO35: =IF(OR('Set UP'!$C21=0,'Set UP'!$D21=0,'Set UP'!$E21=0),"",(IO$19*IO35)+(IP$19*IP35)+(IQ$19*IQ35)+(IR$19*IR35)+(IS$19*IS35)+(IT$19*IT35)+(IU$19*IU35)+(IV$19*IV35)+(IW$19*IW35)+(IX$19*IX35)+(IY$19*IY35)+(IZ$19*IZ35)+(JA$19*JA35)+(JB$19*JB35)+(JC$19*JC35)+(JD$19*JD35)+(JE$19*JE35)+(JF$19*JF35)+(JG$19*JG35)+(JH$19*JH35)+(JI$19*JI35)+(JJ$19*JJ35)+(JK$19*JK35)+(JL$19*JL35)+(JM$19*JM35)) -> 0 | JP35: =IF(OR('Set UP'!$C21=0,'Set UP'!$D21=0,'Set UP'!$E21=0),"",(AF35+BG35+CH35+DI35+EJ35+FK35+GL35+HM35+IN35+JO35)) -> 247.5 | JQ35: =IF(OR('Set UP'!$C21=0,'Set UP'!$D21=0,'Set UP'!$E21=0),"",RANK(JP35,$JP$21:$JP$60,0)) -> 11 | JR35: =IF(OR('Set UP'!K21<>1,'Set UP'!C21=0,'Set UP'!D21=0,'Set UP'!E21=0,'Set UP'!F21=0),"",$JP35) -> 247.5 | JS35: =IF(OR('Set UP'!K21<>1,'Set UP'!C21=0,'Set UP'!D21=0,'Set UP'!E21=0,'Set UP'!F21=0),"",RANK(JR35,$JR$21:$JR$60,0)) -> 5 | JT35: =IF(OR('Set UP'!K21<>2,'Set UP'!C21=0,'Set UP'!D21=0,'Set UP'!E21=0,'Set UP'!F21=0),"",$JP35) ->  | JU35: =IF(OR('Set UP'!K21<>2,'Set UP'!C21=0,'Set UP'!D21=0,'Set UP'!E21=0,'Set UP'!F21=0),"",RANK(JT35,$JT$21:$JT$60,0)) ->  | JV35: =IF(OR('Set UP'!F21<>"F",'Set UP'!C21=0,'Set UP'!D21=0,'Set UP'!E21=0),"",$JP35) ->  | JW35: =IF(OR('Set UP'!F21<>"F",'Set UP'!C21=0,'Set UP'!D21=0,'Set UP'!E21=0),"",RANK(JV35,$JV$21:$JV$60,0)) ->  | JX35: =IF(OR('Set UP'!F21<>"NS",'Set UP'!C21=0,'Set UP'!D21=0,'Set UP'!E21=0),"",$JP35) ->  | JY35: =IF(OR('Set UP'!F21<>"NS",'Set UP'!C21=0,'Set UP'!D21=0,'Set UP'!E21=0),"",RANK(JX35,$JX$21:$JX$60,0)) ->  | JZ35: =IF(OR('Set UP'!$C21=0,'Set UP'!$D21=0,'Set UP'!$E21=0,JP35=0),"",JP35/MAX(JP$21:JP$60)*1000) -> 838.9830508
B36: 16 | C36: =IF(OR('Set UP'!$C22=0,'Set UP'!$D22=0,'Set UP'!$E22=0,'Set UP'!F22=0)," --",'Set UP'!C22) -> 1444 | D36: =IF(OR('Set UP'!$C22=0,'Set UP'!$D22=0,'Set UP'!$E22=0,'Set UP'!F22=0)," --",'Set UP'!D22&" "&'Set UP'!E22) -> University of Birmingham C | E36: =IF(OR('Set UP'!$C22=0,'Set UP'!$D22=0,'Set UP'!$E22=0,'Set UP'!F22=0)," --",'Set UP'!F22) -> S | F36: 0 | G36: 0 | H36: 0 | I36: 5 | J36: 0 | K36: 5 | L36: 0 | AF36: =IF(OR('Set UP'!$C22=0,'Set UP'!$D22=0,'Set UP'!$E22=0),"",(F$19*F36)+(G$19*G36)+(H$19*H36)+(I$19*I36)+(J$19*J36)+(K$19*K36)+(L$19*L36)+(M$19*M36)+(N$19*N36)+(O$19*O36)+(P$19*P36)+(Q$19*Q36)+(R$19*R36)+(S$19*S36)+(T$19*T36)+(U$19*U36)+(V$19*V36)+(W$19*W36)+(X$19*X36)+(Y$19*Y36)+(Z$19*Z36)+(AA$19*AA36)+(AB$19*AB36)+(AC$19*AC36)+(AD$19*AD36)) -> 12.5 | AG36: 2 | AH36: 4 | AI36: 8 | AJ36: 6 | AK36: 8 | AL36: 6 | AM36: 5 | AN36: 7 | BG36: =IF(OR('Set UP'!$C22=0,'Set UP'!$D22=0,'Set UP'!$E22=0),"",(AG$19*AG36)+(AH$19*AH36)+(AI$19*AI36)+(AJ$19*AJ36)+(AK$19*AK36)+(AL$19*AL36)+(AM$19*AM36)+(AN$19*AN36)+(AO$19*AO36)+(AP$19*AP36)+(AQ$19*AQ36)+(AR$19*AR36)+(AS$19*AS36)+(AT$19*AT36)+(AU$19*AU36)+(AV$19*AV36)+(AW$19*AW36)+(AX$19*AX36)+(AY$19*AY36)+(AZ$19*AZ36)+(BA$19*BA36)+(BB$19*BB36)+(BC$19*BC36)+(BD$19*BD36)+(BE$19*BE36)) -> 53 | BH36: 8 | BI36: 4 | BJ36: 10 | BK36: 0 | BL36: 9 | BM36: 5 | BN36: 0 | CH36: =IF(OR('Set UP'!$C22=0,'Set UP'!$D22=0,'Set UP'!$E22=0),"",(BH$19*BH36)+(BI$19*BI36)+(BJ$19*BJ36)+(BK$19*BK36)+(BL$19*BL36)+(BM$19*BM36)+(BN$19*BN36)+(BO$19*BO36)+(BP$19*BP36)+(BQ$19*BQ36)+(BR$19*BR36)+(BS$19*BS36)+(BT$19*BT36)+(BU$19*BU36)+(BV$19*BV36)+(BW$19*BW36)+(BX$19*BX36)+(BY$19*BY36)+(BZ$19*BZ36)+(CA$19*CA36)+(CB$19*CB36)+(CC$19*CC36)+(CD$19*CD36)+(CE$19*CE36)+(CF$19*CF36)) -> 40.5 | CI36: 8 | CJ36: 7 | CK36: 8 | CL36: 6 | CM36: 8 | CN36: 4 | CO36: 7 | DI36: =IF(OR('Set UP'!$C22=0,'Set UP'!$D22=0,'Set UP'!$E22=0),"",(CI$19*CI36)+(CJ$19*CJ36)+(CK$19*CK36)+(CL$19*CL36)+(CM$19*CM36)+(CN$19*CN36)+(CO$19*CO36)+(CP$19*CP36)+(CQ$19*CQ36)+(CR$19*CR36)+(CS$19*CS36)+(CT$19*CT36)+(CU$19*CU36)+(CV$19*CV36)+(CW$19*CW36)+(CX$19*CX36)+(CY$19*CY36)+(CZ$19*CZ36)+(DA$19*DA36)+(DB$19*DB36)+(DC$19*DC36)+(DD$19*DD36)+(DE$19*DE36)+(DF$19*DF36)+(DG$19*DG36)) -> 59 | DJ36: 10 | DK36: 0 | DL36: 0 | DM36: 10 | DN36: 10 | DO36: 0 | DP36: 0 | DQ36: 8 | DR36: 10 | DS36: 7 | EJ36: =IF(OR('Set UP'!$C22=0,'Set UP'!$D22=0,'Set UP'!$E22=0),"",(DJ$19*DJ36)+(DK$19*DK36)+(DL$19*DL36)+(DM$19*DM36)+(DN$19*DN36)+(DO$19*DO36)+(DP$19*DP36)+(DQ$19*DQ36)+(DR$19*DR36)+(DS$19*DS36)+(DT$19*DT36)+(DU$19*DU36)+(DV$19*DV36)+(DW$19*DW36)+(DX$19*DX36)+(DY$19*DY36)+(DZ$19*DZ36)+(EA$19*EA36)+(EB$19*EB36)+(EC$19*EC36)+(ED$19*ED36)+(EE$19*EE36)+(EF$19*EF36)+(EG$19*EG36)+(EH$19*EH36)) -> 46.1 | EK36: 7 | EL36: 5 | EM36: 6 | EN36: 6 | FK36: =IF(OR('Set UP'!$C22=0,'Set UP'!$D22=0,'Set UP'!$E22=0),"",(EK$19*EK36)+(EL$19*EL36)+(EM$19*EM36)+(EN$19*EN36)+(EO$19*EO36)+(EP$19*EP36)+(EQ$19*EQ36)+(ER$19*ER36)+(ES$19*ES36)+(ET$19*ET36)+(EU$19*EU36)+(EV$19*EV36)+(EW$19*EW36)+(EX$19*EX36)+(EY$19*EY36)+(EZ$19*EZ36)+(FA$19*FA36)+(FB$19*FB36)+(FC$19*FC36)+(FD$19*FD36)+(FE$19*FE36)+(FF$19*FF36)+(FG$19*FG36)+(FH$19*FH36)+(FI$19*FI36)) -> 46.5 | GL36: =IF(OR('Set UP'!$C22=0,'Set UP'!$D22=0,'Set UP'!$E22=0),"",(FL$19*FL36)+(FM$19*FM36)+(FN$19*FN36)+(FO$19*FO36)+(FP$19*FP36)+(FQ$19*FQ36)+(FR$19*FR36)+(FS$19*FS36)+(FT$19*FT36)+(FU$19*FU36)+(FV$19*FV36)+(FW$19*FW36)+(FX$19*FX36)+(FY$19*FY36)+(FZ$19*FZ36)+(GA$19*GA36)+(GB$19*GB36)+(GC$19*GC36)+(GD$19*GD36)+(GE$19*GE36)+(GF$19*GF36)+(GG$19*GG36)+(GH$19*GH36)+(GI$19*GI36)+(GJ$19*GJ36)) -> 0 | HM36: =IF(OR('Set UP'!$C22=0,'Set UP'!$D22=0,'Set UP'!$E22=0),"",(GM$19*GM36)+(GN$19*GN36)+(GO$19*GO36)+(GP$19*GP36)+(GQ$19*GQ36)+(GR$19*GR36)+(GS$19*GS36)+(GT$19*GT36)+(GU$19*GU36)+(GV$19*GV36)+(GW$19*GW36)+(GX$19*GX36)+(GY$19*GY36)+(GZ$19*GZ36)+(HA$19*HA36)+(HB$19*HB36)+(HC$19*HC36)+(HD$19*HD36)+(HE$19*HE36)+(HF$19*HF36)+(HG$19*HG36)+(HH$19*HH36)+(HI$19*HI36)+(HJ$19*HJ36)+(HK$19*HK36)) -> 0 | IN36: =IF(OR('Set UP'!$C22=0,'Set UP'!$D22=0,'Set UP'!$E22=0),"",(HN$19*HN36)+(HO$19*HO36)+(HP$19*HP36)+(HQ$19*HQ36)+(HR$19*HR36)+(HS$19*HS36)+(HT$19*HT36)+(HU$19*HU36)+(HV$19*HV36)+(HW$19*HW36)+(HX$19*HX36)+(HY$19*HY36)+(HZ$19*HZ36)+(IA$19*IA36)+(IB$19*IB36)+(IC$19*IC36)+(ID$19*ID36)+(IE$19*IE36)+(IF$19*IF36)+(IG$19*IG36)+(IH$19*IH36)+(II$19*II36)+(IJ$19*IJ36)+(IK$19*IK36)+(IL$19*IL36)) -> 0 | JO36: =IF(OR('Set UP'!$C22=0,'Set UP'!$D22=0,'Set UP'!$E22=0),"",(IO$19*IO36)+(IP$19*IP36)+(IQ$19*IQ36)+(IR$19*IR36)+(IS$19*IS36)+(IT$19*IT36)+(IU$19*IU36)+(IV$19*IV36)+(IW$19*IW36)+(IX$19*IX36)+(IY$19*IY36)+(IZ$19*IZ36)+(JA$19*JA36)+(JB$19*JB36)+(JC$19*JC36)+(JD$19*JD36)+(JE$19*JE36)+(JF$19*JF36)+(JG$19*JG36)+(JH$19*JH36)+(JI$19*JI36)+(JJ$19*JJ36)+(JK$19*JK36)+(JL$19*JL36)+(JM$19*JM36)) -> 0 | JP36: =IF(OR('Set UP'!$C22=0,'Set UP'!$D22=0,'Set UP'!$E22=0),"",(AF36+BG36+CH36+DI36+EJ36+FK36+GL36+HM36+IN36+JO36)) -> 257.6 | JQ36: =IF(OR('Set UP'!$C22=0,'Set UP'!$D22=0,'Set UP'!$E22=0),"",RANK(JP36,$JP$21:$JP$60,0)) -> 7 | JR36: =IF(OR('Set UP'!K22<>1,'Set UP'!C22=0,'Set UP'!D22=0,'Set UP'!E22=0,'Set UP'!F22=0),"",$JP36) ->  | JS36: =IF(OR('Set UP'!K22<>1,'Set UP'!C22=0,'Set UP'!D22=0,'Set UP'!E22=0,'Set UP'!F22=0),"",RANK(JR36,$JR$21:$JR$60,0)) ->  | JT36: =IF(OR('Set UP'!K22<>2,'Set UP'!C22=0,'Set UP'!D22=0,'Set UP'!E22=0,'Set UP'!F22=0),"",$JP36) -> 257.6 | JU36: =IF(OR('Set UP'!K22<>2,'Set UP'!C22=0,'Set UP'!D22=0,'Set UP'!E22=0,'Set UP'!F22=0),"",RANK(JT36,$JT$21:$JT$60,0)) -> 4 | JV36: =IF(OR('Set UP'!F22<>"F",'Set UP'!C22=0,'Set UP'!D22=0,'Set UP'!E22=0),"",$JP36) ->  | JW36: =IF(OR('Set UP'!F22<>"F",'Set UP'!C22=0,'Set UP'!D22=0,'Set UP'!E22=0),"",RANK(JV36,$JV$21:$JV$60,0)) ->  | JX36: =IF(OR('Set UP'!F22<>"NS",'Set UP'!C22=0,'Set UP'!D22=0,'Set UP'!E22=0),"",$JP36) ->  | JY36: =IF(OR('Set UP'!F22<>"NS",'Set UP'!C22=0,'Set UP'!D22=0,'Set UP'!E22=0),"",RANK(JX36,$JX$21:$JX$60,0)) ->  | JZ36: =IF(OR('Set UP'!$C22=0,'Set UP'!$D22=0,'Set UP'!$E22=0,JP36=0),"",JP36/MAX(JP$21:JP$60)*1000) -> 873.220339
B37: 17 | C37: =IF(OR('Set UP'!$C23=0,'Set UP'!$D23=0,'Set UP'!$E23=0,'Set UP'!F23=0)," --",'Set UP'!C23) -> 1439 | D37: =IF(OR('Set UP'!$C23=0,'Set UP'!$D23=0,'Set UP'!$E23=0,'Set UP'!F23=0)," --",'Set UP'!D23&" "&'Set UP'!E23) -> University of Plymouth A | E37: =IF(OR('Set UP'!$C23=0,'Set UP'!$D23=0,'Set UP'!$E23=0,'Set UP'!F23=0)," --",'Set UP'!F23) -> S | F37: 5 | G37: 5 | H37: 3 | I37: 7 | J37: 0 | K37: 5 | L37: 1 | AF37: =IF(OR('Set UP'!$C23=0,'Set UP'!$D23=0,'Set UP'!$E23=0),"",(F$19*F37)+(G$19*G37)+(H$19*H37)+(I$19*I37)+(J$19*J37)+(K$19*K37)+(L$19*L37)+(M$19*M37)+(N$19*N37)+(O$19*O37)+(P$19*P37)+(Q$19*Q37)+(R$19*R37)+(S$19*S37)+(T$19*T37)+(U$19*U37)+(V$19*V37)+(W$19*W37)+(X$19*X37)+(Y$19*Y37)+(Z$19*Z37)+(AA$19*AA37)+(AB$19*AB37)+(AC$19*AC37)+(AD$19*AD37)) -> 32.5 | AG37: 8 | AH37: 8 | AI37: 8 | AJ37: 5 | AK37: 2 | AL37: 6 | AM37: 0 | AN37: 7 | BG37: =IF(OR('Set UP'!$C23=0,'Set UP'!$D23=0,'Set UP'!$E23=0),"",(AG$19*AG37)+(AH$19*AH37)+(AI$19*AI37)+(AJ$19*AJ37)+(AK$19*AK37)+(AL$19*AL37)+(AM$19*AM37)+(AN$19*AN37)+(AO$19*AO37)+(AP$19*AP37)+(AQ$19*AQ37)+(AR$19*AR37)+(AS$19*AS37)+(AT$19*AT37)+(AU$19*AU37)+(AV$19*AV37)+(AW$19*AW37)+(AX$19*AX37)+(AY$19*AY37)+(AZ$19*AZ37)+(BA$19*BA37)+(BB$19*BB37)+(BC$19*BC37)+(BD$19*BD37)+(BE$19*BE37)) -> 44.5 | BH37: 8 | BI37: 8 | BJ37: 10 | BK37: 0 | BL37: 8 | BM37: 7 | BN37: 0 | CH37: =IF(OR('Set UP'!$C23=0,'Set UP'!$D23=0,'Set UP'!$E23=0),"",(BH$19*BH37)+(BI$19*BI37)+(BJ$19*BJ37)+(BK$19*BK37)+(BL$19*BL37)+(BM$19*BM37)+(BN$19*BN37)+(BO$19*BO37)+(BP$19*BP37)+(BQ$19*BQ37)+(BR$19*BR37)+(BS$19*BS37)+(BT$19*BT37)+(BU$19*BU37)+(BV$19*BV37)+(BW$19*BW37)+(BX$19*BX37)+(BY$19*BY37)+(BZ$19*BZ37)+(CA$19*CA37)+(CB$19*CB37)+(CC$19*CC37)+(CD$19*CD37)+(CE$19*CE37)+(CF$19*CF37)) -> 48.5 | CI37: 6 | CJ37: 0 | CK37: 3 | CL37: 2 | CM37: 2 | CN37: 1 | CO37: 4 | DI37: =IF(OR('Set UP'!$C23=0,'Set UP'!$D23=0,'Set UP'!$E23=0),"",(CI$19*CI37)+(CJ$19*CJ37)+(CK$19*CK37)+(CL$19*CL37)+(CM$19*CM37)+(CN$19*CN37)+(CO$19*CO37)+(CP$19*CP37)+(CQ$19*CQ37)+(CR$19*CR37)+(CS$19*CS37)+(CT$19*CT37)+(CU$19*CU37)+(CV$19*CV37)+(CW$19*CW37)+(CX$19*CX37)+(CY$19*CY37)+(CZ$19*CZ37)+(DA$19*DA37)+(DB$19*DB37)+(DC$19*DC37)+(DD$19*DD37)+(DE$19*DE37)+(DF$19*DF37)+(DG$19*DG37)) -> 21 | DJ37: 10 | DK37: 0 | DL37: 0 | DM37: 10 | DN37: 0 | DO37: 0 | DP37: 0 | DQ37: 0 | DR37: 0 | DS37: 0 | EJ37: =IF(OR('Set UP'!$C23=0,'Set UP'!$D23=0,'Set UP'!$E23=0),"",(DJ$19*DJ37)+(DK$19*DK37)+(DL$19*DL37)+(DM$19*DM37)+(DN$19*DN37)+(DO$19*DO37)+(DP$19*DP37)+(DQ$19*DQ37)+(DR$19*DR37)+(DS$19*DS37)+(DT$19*DT37)+(DU$19*DU37)+(DV$19*DV37)+(DW$19*DW37)+(DX$19*DX37)+(DY$19*DY37)+(DZ$19*DZ37)+(EA$19*EA37)+(EB$19*EB37)+(EC$19*EC37)+(ED$19*ED37)+(EE$19*EE37)+(EF$19*EF37)+(EG$19*EG37)+(EH$19*EH37)) -> 15 | EK37: 0 | EL37: 4 | EM37: 0 | EN37: 4 | FK37: =IF(OR('Set UP'!$C23=0,'Set UP'!$D23=0,'Set UP'!$E23=0),"",(EK$19*EK37)+(EL$19*EL37)+(EM$19*EM37)+(EN$19*EN37)+(EO$19*EO37)+(EP$19*EP37)+(EQ$19*EQ37)+(ER$19*ER37)+(ES$19*ES37)+(ET$19*ET37)+(EU$19*EU37)+(EV$19*EV37)+(EW$19*EW37)+(EX$19*EX37)+(EY$19*EY37)+(EZ$19*EZ37)+(FA$19*FA37)+(FB$19*FB37)+(FC$19*FC37)+(FD$19*FD37)+(FE$19*FE37)+(FF$19*FF37)+(FG$19*FG37)+(FH$19*FH37)+(FI$19*FI37)) -> 12 | GL37: =IF(OR('Set UP'!$C23=0,'Set UP'!$D23=0,'Set UP'!$E23=0),"",(FL$19*FL37)+(FM$19*FM37)+(FN$19*FN37)+(FO$19*FO37)+(FP$19*FP37)+(FQ$19*FQ37)+(FR$19*FR37)+(FS$19*FS37)+(FT$19*FT37)+(FU$19*FU37)+(FV$19*FV37)+(FW$19*FW37)+(FX$19*FX37)+(FY$19*FY37)+(FZ$19*FZ37)+(GA$19*GA37)+(GB$19*GB37)+(GC$19*GC37)+(GD$19*GD37)+(GE$19*GE37)+(GF$19*GF37)+(GG$19*GG37)+(GH$19*GH37)+(GI$19*GI37)+(GJ$19*GJ37)) -> 0 | HM37: =IF(OR('Set UP'!$C23=0,'Set UP'!$D23=0,'Set UP'!$E23=0),"",(GM$19*GM37)+(GN$19*GN37)+(GO$19*GO37)+(GP$19*GP37)+(GQ$19*GQ37)+(GR$19*GR37)+(GS$19*GS37)+(GT$19*GT37)+(GU$19*GU37)+(GV$19*GV37)+(GW$19*GW37)+(GX$19*GX37)+(GY$19*GY37)+(GZ$19*GZ37)+(HA$19*HA37)+(HB$19*HB37)+(HC$19*HC37)+(HD$19*HD37)+(HE$19*HE37)+(HF$19*HF37)+(HG$19*HG37)+(HH$19*HH37)+(HI$19*HI37)+(HJ$19*HJ37)+(HK$19*HK37)) -> 0 | IN37: =IF(OR('Set UP'!$C23=0,'Set UP'!$D23=0,'Set UP'!$E23=0),"",(HN$19*HN37)+(HO$19*HO37)+(HP$19*HP37)+(HQ$19*HQ37)+(HR$19*HR37)+(HS$19*HS37)+(HT$19*HT37)+(HU$19*HU37)+(HV$19*HV37)+(HW$19*HW37)+(HX$19*HX37)+(HY$19*HY37)+(HZ$19*HZ37)+(IA$19*IA37)+(IB$19*IB37)+(IC$19*IC37)+(ID$19*ID37)+(IE$19*IE37)+(IF$19*IF37)+(IG$19*IG37)+(IH$19*IH37)+(II$19*II37)+(IJ$19*IJ37)+(IK$19*IK37)+(IL$19*IL37)) -> 0 | JO37: =IF(OR('Set UP'!$C23=0,'Set UP'!$D23=0,'Set UP'!$E23=0),"",(IO$19*IO37)+(IP$19*IP37)+(IQ$19*IQ37)+(IR$19*IR37)+(IS$19*IS37)+(IT$19*IT37)+(IU$19*IU37)+(IV$19*IV37)+(IW$19*IW37)+(IX$19*IX37)+(IY$19*IY37)+(IZ$19*IZ37)+(JA$19*JA37)+(JB$19*JB37)+(JC$19*JC37)+(JD$19*JD37)+(JE$19*JE37)+(JF$19*JF37)+(JG$19*JG37)+(JH$19*JH37)+(JI$19*JI37)+(JJ$19*JJ37)+(JK$19*JK37)+(JL$19*JL37)+(JM$19*JM37)) -> 0 | JP37: =IF(OR('Set UP'!$C23=0,'Set UP'!$D23=0,'Set UP'!$E23=0),"",(AF37+BG37+CH37+DI37+EJ37+FK37+GL37+HM37+IN37+JO37)) -> 173.5 | JQ37: =IF(OR('Set UP'!$C23=0,'Set UP'!$D23=0,'Set UP'!$E23=0),"",RANK(JP37,$JP$21:$JP$60,0)) -> 22 | JR37: =IF(OR('Set UP'!K23<>1,'Set UP'!C23=0,'Set UP'!D23=0,'Set UP'!E23=0,'Set UP'!F23=0),"",$JP37) -> 173.5 | JS37: =IF(OR('Set UP'!K23<>1,'Set UP'!C23=0,'Set UP'!D23=0,'Set UP'!E23=0,'Set UP'!F23=0),"",RANK(JR37,$JR$21:$JR$60,0)) -> 8 | JT37: =IF(OR('Set UP'!K23<>2,'Set UP'!C23=0,'Set UP'!D23=0,'Set UP'!E23=0,'Set UP'!F23=0),"",$JP37) ->  | JU37: =IF(OR('Set UP'!K23<>2,'Set UP'!C23=0,'Set UP'!D23=0,'Set UP'!E23=0,'Set UP'!F23=0),"",RANK(JT37,$JT$21:$JT$60,0)) ->  | JV37: =IF(OR('Set UP'!F23<>"F",'Set UP'!C23=0,'Set UP'!D23=0,'Set UP'!E23=0),"",$JP37) ->  | JW37: =IF(OR('Set UP'!F23<>"F",'Set UP'!C23=0,'Set UP'!D23=0,'Set UP'!E23=0),"",RANK(JV37,$JV$21:$JV$60,0)) ->  | JX37: =IF(OR('Set UP'!F23<>"NS",'Set UP'!C23=0,'Set UP'!D23=0,'Set UP'!E23=0),"",$JP37) ->  | JY37: =IF(OR('Set UP'!F23<>"NS",'Set UP'!C23=0,'Set UP'!D23=0,'Set UP'!E23=0),"",RANK(JX37,$JX$21:$JX$60,0)) ->  | JZ37: =IF(OR('Set UP'!$C23=0,'Set UP'!$D23=0,'Set UP'!$E23=0,JP37=0),"",JP37/MAX(JP$21:JP$60)*1000) -> 588.1355932
B38: 18 | C38: =IF(OR('Set UP'!$C24=0,'Set UP'!$D24=0,'Set UP'!$E24=0,'Set UP'!F24=0)," --",'Set UP'!C24) -> 1461 | D38: =IF(OR('Set UP'!$C24=0,'Set UP'!$D24=0,'Set UP'!$E24=0,'Set UP'!F24=0)," --",'Set UP'!D24&" "&'Set UP'!E24) -> Bristol University B | E38: =IF(OR('Set UP'!$C24=0,'Set UP'!$D24=0,'Set UP'!$E24=0,'Set UP'!F24=0)," --",'Set UP'!F24) -> S | F38: 5 | G38: 2 | H38: 0 | I38: 5 | J38: 0 | K38: 7 | L38: 0 | AF38: =IF(OR('Set UP'!$C24=0,'Set UP'!$D24=0,'Set UP'!$E24=0),"",(F$19*F38)+(G$19*G38)+(H$19*H38)+(I$19*I38)+(J$19*J38)+(K$19*K38)+(L$19*L38)+(M$19*M38)+(N$19*N38)+(O$19*O38)+(P$19*P38)+(Q$19*Q38)+(R$19*R38)+(S$19*S38)+(T$19*T38)+(U$19*U38)+(V$19*V38)+(W$19*W38)+(X$19*X38)+(Y$19*Y38)+(Z$19*Z38)+(AA$19*AA38)+(AB$19*AB38)+(AC$19*AC38)+(AD$19*AD38)) -> 23.5 | AG38: 7 | AH38: 4 | AI38: 4 | AJ38: 6 | AK38: 5 | AL38: 3 | AM38: 8 | AN38: 6 | BG38: =IF(OR('Set UP'!$C24=0,'Set UP'!$D24=0,'Set UP'!$E24=0),"",(AG$19*AG38)+(AH$19*AH38)+(AI$19*AI38)+(AJ$19*AJ38)+(AK$19*AK38)+(AL$19*AL38)+(AM$19*AM38)+(AN$19*AN38)+(AO$19*AO38)+(AP$19*AP38)+(AQ$19*AQ38)+(AR$19*AR38)+(AS$19*AS38)+(AT$19*AT38)+(AU$19*AU38)+(AV$19*AV38)+(AW$19*AW38)+(AX$19*AX38)+(AY$19*AY38)+(AZ$19*AZ38)+(BA$19*BA38)+(BB$19*BB38)+(BC$19*BC38)+(BD$19*BD38)+(BE$19*BE38)) -> 49 | BH38: 8 | BI38: 0 | BJ38: 10 | BK38: 0 | BL38: 8 | BM38: 7 | BN38: 0 | CH38: =IF(OR('Set UP'!$C24=0,'Set UP'!$D24=0,'Set UP'!$E24=0),"",(BH$19*BH38)+(BI$19*BI38)+(BJ$19*BJ38)+(BK$19*BK38)+(BL$19*BL38)+(BM$19*BM38)+(BN$19*BN38)+(BO$19*BO38)+(BP$19*BP38)+(BQ$19*BQ38)+(BR$19*BR38)+(BS$19*BS38)+(BT$19*BT38)+(BU$19*BU38)+(BV$19*BV38)+(BW$19*BW38)+(BX$19*BX38)+(BY$19*BY38)+(BZ$19*BZ38)+(CA$19*CA38)+(CB$19*CB38)+(CC$19*CC38)+(CD$19*CD38)+(CE$19*CE38)+(CF$19*CF38)) -> 36.5 | CI38: 9 | CJ38: 9 | CK38: 9 | CL38: 10 | CM38: 8 | CN38: 2 | CO38: 2 | DI38: =IF(OR('Set UP'!$C24=0,'Set UP'!$D24=0,'Set UP'!$E24=0),"",(CI$19*CI38)+(CJ$19*CJ38)+(CK$19*CK38)+(CL$19*CL38)+(CM$19*CM38)+(CN$19*CN38)+(CO$19*CO38)+(CP$19*CP38)+(CQ$19*CQ38)+(CR$19*CR38)+(CS$19*CS38)+(CT$19*CT38)+(CU$19*CU38)+(CV$19*CV38)+(CW$19*CW38)+(CX$19*CX38)+(CY$19*CY38)+(CZ$19*CZ38)+(DA$19*DA38)+(DB$19*DB38)+(DC$19*DC38)+(DD$19*DD38)+(DE$19*DE38)+(DF$19*DF38)+(DG$19*DG38)) -> 62.5 | DJ38: 10 | DK38: 0 | DL38: 0 | DM38: 10 | DN38: 10 | DO38: 10 | DP38: 6 | DQ38: 3 | DR38: 0 | DS38: 5 | EJ38: =IF(OR('Set UP'!$C24=0,'Set UP'!$D24=0,'Set UP'!$E24=0),"",(DJ$19*DJ38)+(DK$19*DK38)+(DL$19*DL38)+(DM$19*DM38)+(DN$19*DN38)+(DO$19*DO38)+(DP$19*DP38)+(DQ$19*DQ38)+(DR$19*DR38)+(DS$19*DS38)+(DT$19*DT38)+(DU$19*DU38)+(DV$19*DV38)+(DW$19*DW38)+(DX$19*DX38)+(DY$19*DY38)+(DZ$19*DZ38)+(EA$19*EA38)+(EB$19*EB38)+(EC$19*EC38)+(ED$19*ED38)+(EE$19*EE38)+(EF$19*EF38)+(EG$19*EG38)+(EH$19*EH38)) -> 46 | EK38: 6 | EL38: 6 | EM38: 5 | EN38: 6 | FK38: =IF(OR('Set UP'!$C24=0,'Set UP'!$D24=0,'Set UP'!$E24=0),"",(EK$19*EK38)+(EL$19*EL38)+(EM$19*EM38)+(EN$19*EN38)+(EO$19*EO38)+(EP$19*EP38)+(EQ$19*EQ38)+(ER$19*ER38)+(ES$19*ES38)+(ET$19*ET38)+(EU$19*EU38)+(EV$19*EV38)+(EW$19*EW38)+(EX$19*EX38)+(EY$19*EY38)+(EZ$19*EZ38)+(FA$19*FA38)+(FB$19*FB38)+(FC$19*FC38)+(FD$19*FD38)+(FE$19*FE38)+(FF$19*FF38)+(FG$19*FG38)+(FH$19*FH38)+(FI$19*FI38)) -> 43.5 | GL38: =IF(OR('Set UP'!$C24=0,'Set UP'!$D24=0,'Set UP'!$E24=0),"",(FL$19*FL38)+(FM$19*FM38)+(FN$19*FN38)+(FO$19*FO38)+(FP$19*FP38)+(FQ$19*FQ38)+(FR$19*FR38)+(FS$19*FS38)+(FT$19*FT38)+(FU$19*FU38)+(FV$19*FV38)+(FW$19*FW38)+(FX$19*FX38)+(FY$19*FY38)+(FZ$19*FZ38)+(GA$19*GA38)+(GB$19*GB38)+(GC$19*GC38)+(GD$19*GD38)+(GE$19*GE38)+(GF$19*GF38)+(GG$19*GG38)+(GH$19*GH38)+(GI$19*GI38)+(GJ$19*GJ38)) -> 0 | HM38: =IF(OR('Set UP'!$C24=0,'Set UP'!$D24=0,'Set UP'!$E24=0),"",(GM$19*GM38)+(GN$19*GN38)+(GO$19*GO38)+(GP$19*GP38)+(GQ$19*GQ38)+(GR$19*GR38)+(GS$19*GS38)+(GT$19*GT38)+(GU$19*GU38)+(GV$19*GV38)+(GW$19*GW38)+(GX$19*GX38)+(GY$19*GY38)+(GZ$19*GZ38)+(HA$19*HA38)+(HB$19*HB38)+(HC$19*HC38)+(HD$19*HD38)+(HE$19*HE38)+(HF$19*HF38)+(HG$19*HG38)+(HH$19*HH38)+(HI$19*HI38)+(HJ$19*HJ38)+(HK$19*HK38)) -> 0 | IN38: =IF(OR('Set UP'!$C24=0,'Set UP'!$D24=0,'Set UP'!$E24=0),"",(HN$19*HN38)+(HO$19*HO38)+(HP$19*HP38)+(HQ$19*HQ38)+(HR$19*HR38)+(HS$19*HS38)+(HT$19*HT38)+(HU$19*HU38)+(HV$19*HV38)+(HW$19*HW38)+(HX$19*HX38)+(HY$19*HY38)+(HZ$19*HZ38)+(IA$19*IA38)+(IB$19*IB38)+(IC$19*IC38)+(ID$19*ID38)+(IE$19*IE38)+(IF$19*IF38)+(IG$19*IG38)+(IH$19*IH38)+(II$19*II38)+(IJ$19*IJ38)+(IK$19*IK38)+(IL$19*IL38)) -> 0 | JO38: =IF(OR('Set UP'!$C24=0,'Set UP'!$D24=0,'Set UP'!$E24=0),"",(IO$19*IO38)+(IP$19*IP38)+(IQ$19*IQ38)+(IR$19*IR38)+(IS$19*IS38)+(IT$19*IT38)+(IU$19*IU38)+(IV$19*IV38)+(IW$19*IW38)+(IX$19*IX38)+(IY$19*IY38)+(IZ$19*IZ38)+(JA$19*JA38)+(JB$19*JB38)+(JC$19*JC38)+(JD$19*JD38)+(JE$19*JE38)+(JF$19*JF38)+(JG$19*JG38)+(JH$19*JH38)+(JI$19*JI38)+(JJ$19*JJ38)+(JK$19*JK38)+(JL$19*JL38)+(JM$19*JM38)) -> 0 | JP38: =IF(OR('Set UP'!$C24=0,'Set UP'!$D24=0,'Set UP'!$E24=0),"",(AF38+BG38+CH38+DI38+EJ38+FK38+GL38+HM38+IN38+JO38)) -> 261 | JQ38: =IF(OR('Set UP'!$C24=0,'Set UP'!$D24=0,'Set UP'!$E24=0),"",RANK(JP38,$JP$21:$JP$60,0)) -> 6 | JR38: =IF(OR('Set UP'!K24<>1,'Set UP'!C24=0,'Set UP'!D24=0,'Set UP'!E24=0,'Set UP'!F24=0),"",$JP38) ->  | JS38: =IF(OR('Set UP'!K24<>1,'Set UP'!C24=0,'Set UP'!D24=0,'Set UP'!E24=0,'Set UP'!F24=0),"",RANK(JR38,$JR$21:$JR$60,0)) ->  | JT38: =IF(OR('Set UP'!K24<>2,'Set UP'!C24=0,'Set UP'!D24=0,'Set UP'!E24=0,'Set UP'!F24=0),"",$JP38) -> 261 | JU38: =IF(OR('Set UP'!K24<>2,'Set UP'!C24=0,'Set UP'!D24=0,'Set UP'!E24=0,'Set UP'!F24=0),"",RANK(JT38,$JT$21:$JT$60,0)) -> 3 | JV38: =IF(OR('Set UP'!F24<>"F",'Set UP'!C24=0,'Set UP'!D24=0,'Set UP'!E24=0),"",$JP38) ->  | JW38: =IF(OR('Set UP'!F24<>"F",'Set UP'!C24=0,'Set UP'!D24=0,'Set UP'!E24=0),"",RANK(JV38,$JV$21:$JV$60,0)) ->  | JX38: =IF(OR('Set UP'!F24<>"NS",'Set UP'!C24=0,'Set UP'!D24=0,'Set UP'!E24=0),"",$JP38) ->  | JY38: =IF(OR('Set UP'!F24<>"NS",'Set UP'!C24=0,'Set UP'!D24=0,'Set UP'!E24=0),"",RANK(JX38,$JX$21:$JX$60,0)) ->  | JZ38: =IF(OR('Set UP'!$C24=0,'Set UP'!$D24=0,'Set UP'!$E24=0,JP38=0),"",JP38/MAX(JP$21:JP$60)*1000) -> 884.7457627
B39: 19 | C39: =IF(OR('Set UP'!$C25=0,'Set UP'!$D25=0,'Set UP'!$E25=0,'Set UP'!F25=0)," --",'Set UP'!C25) -> 1436 | D39: =IF(OR('Set UP'!$C25=0,'Set UP'!$D25=0,'Set UP'!$E25=0,'Set UP'!F25=0)," --",'Set UP'!D25&" "&'Set UP'!E25) -> Loughborough University C | E39: =IF(OR('Set UP'!$C25=0,'Set UP'!$D25=0,'Set UP'!$E25=0,'Set UP'!F25=0)," --",'Set UP'!F25) -> S | F39: 5 | G39: 6 | H39: 4 | I39: 5 | J39: 0 | K39: 0 | L39: 0 | AF39: =IF(OR('Set UP'!$C25=0,'Set UP'!$D25=0,'Set UP'!$E25=0),"",(F$19*F39)+(G$19*G39)+(H$19*H39)+(I$19*I39)+(J$19*J39)+(K$19*K39)+(L$19*L39)+(M$19*M39)+(N$19*N39)+(O$19*O39)+(P$19*P39)+(Q$19*Q39)+(R$19*R39)+(S$19*S39)+(T$19*T39)+(U$19*U39)+(V$19*V39)+(W$19*W39)+(X$19*X39)+(Y$19*Y39)+(Z$19*Z39)+(AA$19*AA39)+(AB$19*AB39)+(AC$19*AC39)+(AD$19*AD39)) -> 25 | AG39: 4 | AH39: 0 | AI39: 5 | AJ39: 9 | AK39: 6 | AL39: 8 | AM39: 2 | AN39: 8 | BG39: =IF(OR('Set UP'!$C25=0,'Set UP'!$D25=0,'Set UP'!$E25=0),"",(AG$19*AG39)+(AH$19*AH39)+(AI$19*AI39)+(AJ$19*AJ39)+(AK$19*AK39)+(AL$19*AL39)+(AM$19*AM39)+(AN$19*AN39)+(AO$19*AO39)+(AP$19*AP39)+(AQ$19*AQ39)+(AR$19*AR39)+(AS$19*AS39)+(AT$19*AT39)+(AU$19*AU39)+(AV$19*AV39)+(AW$19*AW39)+(AX$19*AX39)+(AY$19*AY39)+(AZ$19*AZ39)+(BA$19*BA39)+(BB$19*BB39)+(BC$19*BC39)+(BD$19*BD39)+(BE$19*BE39)) -> 50 | BH39: 8 | BI39: 3 | BJ39: 10 | BK39: 0 | BL39: 9 | BM39: 6 | BN39: 0 | CH39: =IF(OR('Set UP'!$C25=0,'Set UP'!$D25=0,'Set UP'!$E25=0),"",(BH$19*BH39)+(BI$19*BI39)+(BJ$19*BJ39)+(BK$19*BK39)+(BL$19*BL39)+(BM$19*BM39)+(BN$19*BN39)+(BO$19*BO39)+(BP$19*BP39)+(BQ$19*BQ39)+(BR$19*BR39)+(BS$19*BS39)+(BT$19*BT39)+(BU$19*BU39)+(BV$19*BV39)+(BW$19*BW39)+(BX$19*BX39)+(BY$19*BY39)+(BZ$19*BZ39)+(CA$19*CA39)+(CB$19*CB39)+(CC$19*CC39)+(CD$19*CD39)+(CE$19*CE39)+(CF$19*CF39)) -> 40.5 | CI39: 9 | CJ39: 9 | CK39: 9 | CL39: 10 | CM39: 8 | CN39: 3 | CO39: 5 | DI39: =IF(OR('Set UP'!$C25=0,'Set UP'!$D25=0,'Set UP'!$E25=0),"",(CI$19*CI39)+(CJ$19*CJ39)+(CK$19*CK39)+(CL$19*CL39)+(CM$19*CM39)+(CN$19*CN39)+(CO$19*CO39)+(CP$19*CP39)+(CQ$19*CQ39)+(CR$19*CR39)+(CS$19*CS39)+(CT$19*CT39)+(CU$19*CU39)+(CV$19*CV39)+(CW$19*CW39)+(CX$19*CX39)+(CY$19*CY39)+(CZ$19*CZ39)+(DA$19*DA39)+(DB$19*DB39)+(DC$19*DC39)+(DD$19*DD39)+(DE$19*DE39)+(DF$19*DF39)+(DG$19*DG39)) -> 66.5 | DJ39: 10 | DK39: 10 | DL39: 0 | DM39: 10 | DN39: 10 | DO39: 10 | DP39: 6 | DQ39: 0 | DR39: 0 | DS39: 0 | EJ39: =IF(OR('Set UP'!$C25=0,'Set UP'!$D25=0,'Set UP'!$E25=0),"",(DJ$19*DJ39)+(DK$19*DK39)+(DL$19*DL39)+(DM$19*DM39)+(DN$19*DN39)+(DO$19*DO39)+(DP$19*DP39)+(DQ$19*DQ39)+(DR$19*DR39)+(DS$19*DS39)+(DT$19*DT39)+(DU$19*DU39)+(DV$19*DV39)+(DW$19*DW39)+(DX$19*DX39)+(DY$19*DY39)+(DZ$19*DZ39)+(EA$19*EA39)+(EB$19*EB39)+(EC$19*EC39)+(ED$19*ED39)+(EE$19*EE39)+(EF$19*EF39)+(EG$19*EG39)+(EH$19*EH39)) -> 48 | EK39: 6 | EL39: 5 | EM39: 4 | EN39: 6 | FK39: =IF(OR('Set UP'!$C25=0,'Set UP'!$D25=0,'Set UP'!$E25=0),"",(EK$19*EK39)+(EL$19*EL39)+(EM$19*EM39)+(EN$19*EN39)+(EO$19*EO39)+(EP$19*EP39)+(EQ$19*EQ39)+(ER$19*ER39)+(ES$19*ES39)+(ET$19*ET39)+(EU$19*EU39)+(EV$19*EV39)+(EW$19*EW39)+(EX$19*EX39)+(EY$19*EY39)+(EZ$19*EZ39)+(FA$19*FA39)+(FB$19*FB39)+(FC$19*FC39)+(FD$19*FD39)+(FE$19*FE39)+(FF$19*FF39)+(FG$19*FG39)+(FH$19*FH39)+(FI$19*FI39)) -> 40.5 | GL39: =IF(OR('Set UP'!$C25=0,'Set UP'!$D25=0,'Set UP'!$E25=0),"",(FL$19*FL39)+(FM$19*FM39)+(FN$19*FN39)+(FO$19*FO39)+(FP$19*FP39)+(FQ$19*FQ39)+(FR$19*FR39)+(FS$19*FS39)+(FT$19*FT39)+(FU$19*FU39)+(FV$19*FV39)+(FW$19*FW39)+(FX$19*FX39)+(FY$19*FY39)+(FZ$19*FZ39)+(GA$19*GA39)+(GB$19*GB39)+(GC$19*GC39)+(GD$19*GD39)+(GE$19*GE39)+(GF$19*GF39)+(GG$19*GG39)+(GH$19*GH39)+(GI$19*GI39)+(GJ$19*GJ39)) -> 0 | HM39: =IF(OR('Set UP'!$C25=0,'Set UP'!$D25=0,'Set UP'!$E25=0),"",(GM$19*GM39)+(GN$19*GN39)+(GO$19*GO39)+(GP$19*GP39)+(GQ$19*GQ39)+(GR$19*GR39)+(GS$19*GS39)+(GT$19*GT39)+(GU$19*GU39)+(GV$19*GV39)+(GW$19*GW39)+(GX$19*GX39)+(GY$19*GY39)+(GZ$19*GZ39)+(HA$19*HA39)+(HB$19*HB39)+(HC$19*HC39)+(HD$19*HD39)+(HE$19*HE39)+(HF$19*HF39)+(HG$19*HG39)+(HH$19*HH39)+(HI$19*HI39)+(HJ$19*HJ39)+(HK$19*HK39)) -> 0 | IN39: =IF(OR('Set UP'!$C25=0,'Set UP'!$D25=0,'Set UP'!$E25=0),"",(HN$19*HN39)+(HO$19*HO39)+(HP$19*HP39)+(HQ$19*HQ39)+(HR$19*HR39)+(HS$19*HS39)+(HT$19*HT39)+(HU$19*HU39)+(HV$19*HV39)+(HW$19*HW39)+(HX$19*HX39)+(HY$19*HY39)+(HZ$19*HZ39)+(IA$19*IA39)+(IB$19*IB39)+(IC$19*IC39)+(ID$19*ID39)+(IE$19*IE39)+(IF$19*IF39)+(IG$19*IG39)+(IH$19*IH39)+(II$19*II39)+(IJ$19*IJ39)+(IK$19*IK39)+(IL$19*IL39)) -> 0 | JO39: =IF(OR('Set UP'!$C25=0,'Set UP'!$D25=0,'Set UP'!$E25=0),"",(IO$19*IO39)+(IP$19*IP39)+(IQ$19*IQ39)+(IR$19*IR39)+(IS$19*IS39)+(IT$19*IT39)+(IU$19*IU39)+(IV$19*IV39)+(IW$19*IW39)+(IX$19*IX39)+(IY$19*IY39)+(IZ$19*IZ39)+(JA$19*JA39)+(JB$19*JB39)+(JC$19*JC39)+(JD$19*JD39)+(JE$19*JE39)+(JF$19*JF39)+(JG$19*JG39)+(JH$19*JH39)+(JI$19*JI39)+(JJ$19*JJ39)+(JK$19*JK39)+(JL$19*JL39)+(JM$19*JM39)) -> 0 | JP39: =IF(OR('Set UP'!$C25=0,'Set UP'!$D25=0,'Set UP'!$E25=0),"",(AF39+BG39+CH39+DI39+EJ39+FK39+GL39+HM39+IN39+JO39)) -> 270.5 | JQ39: =IF(OR('Set UP'!$C25=0,'Set UP'!$D25=0,'Set UP'!$E25=0),"",RANK(JP39,$JP$21:$JP$60,0)) -> 3 | JR39: =IF(OR('Set UP'!K25<>1,'Set UP'!C25=0,'Set UP'!D25=0,'Set UP'!E25=0,'Set UP'!F25=0),"",$JP39) ->  | JS39: =IF(OR('Set UP'!K25<>1,'Set UP'!C25=0,'Set UP'!D25=0,'Set UP'!E25=0,'Set UP'!F25=0),"",RANK(JR39,$JR$21:$JR$60,0)) ->  | JT39: =IF(OR('Set UP'!K25<>2,'Set UP'!C25=0,'Set UP'!D25=0,'Set UP'!E25=0,'Set UP'!F25=0),"",$JP39) -> 270.5 | JU39: =IF(OR('Set UP'!K25<>2,'Set UP'!C25=0,'Set UP'!D25=0,'Set UP'!E25=0,'Set UP'!F25=0),"",RANK(JT39,$JT$21:$JT$60,0)) -> 1 | JV39: =IF(OR('Set UP'!F25<>"F",'Set UP'!C25=0,'Set UP'!D25=0,'Set UP'!E25=0),"",$JP39) ->  | JW39: =IF(OR('Set UP'!F25<>"F",'Set UP'!C25=0,'Set UP'!D25=0,'Set UP'!E25=0),"",RANK(JV39,$JV$21:$JV$60,0)) ->  | JX39: =IF(OR('Set UP'!F25<>"NS",'Set UP'!C25=0,'Set UP'!D25=0,'Set UP'!E25=0),"",$JP39) ->  | JY39: =IF(OR('Set UP'!F25<>"NS",'Set UP'!C25=0,'Set UP'!D25=0,'Set UP'!E25=0),"",RANK(JX39,$JX$21:$JX$60,0)) ->  | JZ39: =IF(OR('Set UP'!$C25=0,'Set UP'!$D25=0,'Set UP'!$E25=0,JP39=0),"",JP39/MAX(JP$21:JP$60)*1000) -> 916.9491525
B40: 20 | C40: =IF(OR('Set UP'!$C26=0,'Set UP'!$D26=0,'Set UP'!$E26=0,'Set UP'!F26=0)," --",'Set UP'!C26) -> 1443 | D40: =IF(OR('Set UP'!$C26=0,'Set UP'!$D26=0,'Set UP'!$E26=0,'Set UP'!F26=0)," --",'Set UP'!D26&" "&'Set UP'!E26) -> University of Birmingham B | E40: =IF(OR('Set UP'!$C26=0,'Set UP'!$D26=0,'Set UP'!$E26=0,'Set UP'!F26=0)," --",'Set UP'!F26) -> S | F40: 5 | G40: 3 | H40: 0 | I40: 5 | J40: 0 | K40: 5 | L40: 2 | AF40: =IF(OR('Set UP'!$C26=0,'Set UP'!$D26=0,'Set UP'!$E26=0),"",(F$19*F40)+(G$19*G40)+(H$19*H40)+(I$19*I40)+(J$19*J40)+(K$19*K40)+(L$19*L40)+(M$19*M40)+(N$19*N40)+(O$19*O40)+(P$19*P40)+(Q$19*Q40)+(R$19*R40)+(S$19*S40)+(T$19*T40)+(U$19*U40)+(V$19*V40)+(W$19*W40)+(X$19*X40)+(Y$19*Y40)+(Z$19*Z40)+(AA$19*AA40)+(AB$19*AB40)+(AC$19*AC40)+(AD$19*AD40)) -> 24 | AG40: 2 | AH40: 4 | AI40: 3 | AJ40: 6 | AK40: 2 | AL40: 5 | AM40: 8 | AN40: 6 | BG40: =IF(OR('Set UP'!$C26=0,'Set UP'!$D26=0,'Set UP'!$E26=0),"",(AG$19*AG40)+(AH$19*AH40)+(AI$19*AI40)+(AJ$19*AJ40)+(AK$19*AK40)+(AL$19*AL40)+(AM$19*AM40)+(AN$19*AN40)+(AO$19*AO40)+(AP$19*AP40)+(AQ$19*AQ40)+(AR$19*AR40)+(AS$19*AS40)+(AT$19*AT40)+(AU$19*AU40)+(AV$19*AV40)+(AW$19*AW40)+(AX$19*AX40)+(AY$19*AY40)+(AZ$19*AZ40)+(BA$19*BA40)+(BB$19*BB40)+(BC$19*BC40)+(BD$19*BD40)+(BE$19*BE40)) -> 39.5 | BH40: 8 | BI40: 8 | BJ40: 10 | BK40: 0 | BL40: 9 | BM40: 7 | BN40: 0 | CH40: =IF(OR('Set UP'!$C26=0,'Set UP'!$D26=0,'Set UP'!$E26=0),"",(BH$19*BH40)+(BI$19*BI40)+(BJ$19*BJ40)+(BK$19*BK40)+(BL$19*BL40)+(BM$19*BM40)+(BN$19*BN40)+(BO$19*BO40)+(BP$19*BP40)+(BQ$19*BQ40)+(BR$19*BR40)+(BS$19*BS40)+(BT$19*BT40)+(BU$19*BU40)+(BV$19*BV40)+(BW$19*BW40)+(BX$19*BX40)+(BY$19*BY40)+(BZ$19*BZ40)+(CA$19*CA40)+(CB$19*CB40)+(CC$19*CC40)+(CD$19*CD40)+(CE$19*CE40)+(CF$19*CF40)) -> 49.5 | CI40: 9 | CJ40: 8 | CK40: 7 | CL40: 8 | CM40: 8 | CN40: 2 | CO40: 4 | DI40: =IF(OR('Set UP'!$C26=0,'Set UP'!$D26=0,'Set UP'!$E26=0),"",(CI$19*CI40)+(CJ$19*CJ40)+(CK$19*CK40)+(CL$19*CL40)+(CM$19*CM40)+(CN$19*CN40)+(CO$19*CO40)+(CP$19*CP40)+(CQ$19*CQ40)+(CR$19*CR40)+(CS$19*CS40)+(CT$19*CT40)+(CU$19*CU40)+(CV$19*CV40)+(CW$19*CW40)+(CX$19*CX40)+(CY$19*CY40)+(CZ$19*CZ40)+(DA$19*DA40)+(DB$19*DB40)+(DC$19*DC40)+(DD$19*DD40)+(DE$19*DE40)+(DF$19*DF40)+(DG$19*DG40)) -> 58.5 | DJ40: 10 | DK40: 0 | DL40: 0 | DM40: 10 | DN40: 10 | DO40: 10 | DP40: 4 | DQ40: 6 | DR40: 0 | DS40: 10 | EJ40: =IF(OR('Set UP'!$C26=0,'Set UP'!$D26=0,'Set UP'!$E26=0),"",(DJ$19*DJ40)+(DK$19*DK40)+(DL$19*DL40)+(DM$19*DM40)+(DN$19*DN40)+(DO$19*DO40)+(DP$19*DP40)+(DQ$19*DQ40)+(DR$19*DR40)+(DS$19*DS40)+(DT$19*DT40)+(DU$19*DU40)+(DV$19*DV40)+(DW$19*DW40)+(DX$19*DX40)+(DY$19*DY40)+(DZ$19*DZ40)+(EA$19*EA40)+(EB$19*EB40)+(EC$19*EC40)+(ED$19*ED40)+(EE$19*EE40)+(EF$19*EF40)+(EG$19*EG40)+(EH$19*EH40)) -> 48 | EK40: 6 | EL40: 7 | EM40: 6 | EN40: 6 | FK40: =IF(OR('Set UP'!$C26=0,'Set UP'!$D26=0,'Set UP'!$E26=0),"",(EK$19*EK40)+(EL$19*EL40)+(EM$19*EM40)+(EN$19*EN40)+(EO$19*EO40)+(EP$19*EP40)+(EQ$19*EQ40)+(ER$19*ER40)+(ES$19*ES40)+(ET$19*ET40)+(EU$19*EU40)+(EV$19*EV40)+(EW$19*EW40)+(EX$19*EX40)+(EY$19*EY40)+(EZ$19*EZ40)+(FA$19*FA40)+(FB$19*FB40)+(FC$19*FC40)+(FD$19*FD40)+(FE$19*FE40)+(FF$19*FF40)+(FG$19*FG40)+(FH$19*FH40)+(FI$19*FI40)) -> 46.5 | GL40: =IF(OR('Set UP'!$C26=0,'Set UP'!$D26=0,'Set UP'!$E26=0),"",(FL$19*FL40)+(FM$19*FM40)+(FN$19*FN40)+(FO$19*FO40)+(FP$19*FP40)+(FQ$19*FQ40)+(FR$19*FR40)+(FS$19*FS40)+(FT$19*FT40)+(FU$19*FU40)+(FV$19*FV40)+(FW$19*FW40)+(FX$19*FX40)+(FY$19*FY40)+(FZ$19*FZ40)+(GA$19*GA40)+(GB$19*GB40)+(GC$19*GC40)+(GD$19*GD40)+(GE$19*GE40)+(GF$19*GF40)+(GG$19*GG40)+(GH$19*GH40)+(GI$19*GI40)+(GJ$19*GJ40)) -> 0 | HM40: =IF(OR('Set UP'!$C26=0,'Set UP'!$D26=0,'Set UP'!$E26=0),"",(GM$19*GM40)+(GN$19*GN40)+(GO$19*GO40)+(GP$19*GP40)+(GQ$19*GQ40)+(GR$19*GR40)+(GS$19*GS40)+(GT$19*GT40)+(GU$19*GU40)+(GV$19*GV40)+(GW$19*GW40)+(GX$19*GX40)+(GY$19*GY40)+(GZ$19*GZ40)+(HA$19*HA40)+(HB$19*HB40)+(HC$19*HC40)+(HD$19*HD40)+(HE$19*HE40)+(HF$19*HF40)+(HG$19*HG40)+(HH$19*HH40)+(HI$19*HI40)+(HJ$19*HJ40)+(HK$19*HK40)) -> 0 | IN40: =IF(OR('Set UP'!$C26=0,'Set UP'!$D26=0,'Set UP'!$E26=0),"",(HN$19*HN40)+(HO$19*HO40)+(HP$19*HP40)+(HQ$19*HQ40)+(HR$19*HR40)+(HS$19*HS40)+(HT$19*HT40)+(HU$19*HU40)+(HV$19*HV40)+(HW$19*HW40)+(HX$19*HX40)+(HY$19*HY40)+(HZ$19*HZ40)+(IA$19*IA40)+(IB$19*IB40)+(IC$19*IC40)+(ID$19*ID40)+(IE$19*IE40)+(IF$19*IF40)+(IG$19*IG40)+(IH$19*IH40)+(II$19*II40)+(IJ$19*IJ40)+(IK$19*IK40)+(IL$19*IL40)) -> 0 | JO40: =IF(OR('Set UP'!$C26=0,'Set UP'!$D26=0,'Set UP'!$E26=0),"",(IO$19*IO40)+(IP$19*IP40)+(IQ$19*IQ40)+(IR$19*IR40)+(IS$19*IS40)+(IT$19*IT40)+(IU$19*IU40)+(IV$19*IV40)+(IW$19*IW40)+(IX$19*IX40)+(IY$19*IY40)+(IZ$19*IZ40)+(JA$19*JA40)+(JB$19*JB40)+(JC$19*JC40)+(JD$19*JD40)+(JE$19*JE40)+(JF$19*JF40)+(JG$19*JG40)+(JH$19*JH40)+(JI$19*JI40)+(JJ$19*JJ40)+(JK$19*JK40)+(JL$19*JL40)+(JM$19*JM40)) -> 0 | JP40: =IF(OR('Set UP'!$C26=0,'Set UP'!$D26=0,'Set UP'!$E26=0),"",(AF40+BG40+CH40+DI40+EJ40+FK40+GL40+HM40+IN40+JO40)) -> 266 | JQ40: =IF(OR('Set UP'!$C26=0,'Set UP'!$D26=0,'Set UP'!$E26=0),"",RANK(JP40,$JP$21:$JP$60,0)) -> 5 | JR40: =IF(OR('Set UP'!K26<>1,'Set UP'!C26=0,'Set UP'!D26=0,'Set UP'!E26=0,'Set UP'!F26=0),"",$JP40) ->  | JS40: =IF(OR('Set UP'!K26<>1,'Set UP'!C26=0,'Set UP'!D26=0,'Set UP'!E26=0,'Set UP'!F26=0),"",RANK(JR40,$JR$21:$JR$60,0)) ->  | JT40: =IF(OR('Set UP'!K26<>2,'Set UP'!C26=0,'Set UP'!D26=0,'Set UP'!E26=0,'Set UP'!F26=0),"",$JP40) -> 266 | JU40: =IF(OR('Set UP'!K26<>2,'Set UP'!C26=0,'Set UP'!D26=0,'Set UP'!E26=0,'Set UP'!F26=0),"",RANK(JT40,$JT$21:$JT$60,0)) -> 2 | JV40: =IF(OR('Set UP'!F26<>"F",'Set UP'!C26=0,'Set UP'!D26=0,'Set UP'!E26=0),"",$JP40) ->  | JW40: =IF(OR('Set UP'!F26<>"F",'Set UP'!C26=0,'Set UP'!D26=0,'Set UP'!E26=0),"",RANK(JV40,$JV$21:$JV$60,0)) ->  | JX40: =IF(OR('Set UP'!F26<>"NS",'Set UP'!C26=0,'Set UP'!D26=0,'Set UP'!E26=0),"",$JP40) ->  | JY40: =IF(OR('Set UP'!F26<>"NS",'Set UP'!C26=0,'Set UP'!D26=0,'Set UP'!E26=0),"",RANK(JX40,$JX$21:$JX$60,0)) ->  | JZ40: =IF(OR('Set UP'!$C26=0,'Set UP'!$D26=0,'Set UP'!$E26=0,JP40=0),"",JP40/MAX(JP$21:JP$60)*1000) -> 901.6949153
B41: 21 | C41: =IF(OR('Set UP'!$C27=0,'Set UP'!$D27=0,'Set UP'!$E27=0,'Set UP'!F27=0)," --",'Set UP'!C27) -> 1434 | D41: =IF(OR('Set UP'!$C27=0,'Set UP'!$D27=0,'Set UP'!$E27=0,'Set UP'!F27=0)," --",'Set UP'!D27&" "&'Set UP'!E27) -> Loughborough University A | E41: =IF(OR('Set UP'!$C27=0,'Set UP'!$D27=0,'Set UP'!$E27=0,'Set UP'!F27=0)," --",'Set UP'!F27) -> S | F41: 5 | G41: 5 | H41: 2 | I41: 4 | J41: 0 | K41: 7 | L41: 0 | AF41: =IF(OR('Set UP'!$C27=0,'Set UP'!$D27=0,'Set UP'!$E27=0),"",(F$19*F41)+(G$19*G41)+(H$19*H41)+(I$19*I41)+(J$19*J41)+(K$19*K41)+(L$19*L41)+(M$19*M41)+(N$19*N41)+(O$19*O41)+(P$19*P41)+(Q$19*Q41)+(R$19*R41)+(S$19*S41)+(T$19*T41)+(U$19*U41)+(V$19*V41)+(W$19*W41)+(X$19*X41)+(Y$19*Y41)+(Z$19*Z41)+(AA$19*AA41)+(AB$19*AB41)+(AC$19*AC41)+(AD$19*AD41)) -> 30 | AG41: 2 | AH41: 7 | AI41: 6 | AJ41: 6 | AK41: 5 | AL41: 5 | AM41: 8 | AN41: 7 | BG41: =IF(OR('Set UP'!$C27=0,'Set UP'!$D27=0,'Set UP'!$E27=0),"",(AG$19*AG41)+(AH$19*AH41)+(AI$19*AI41)+(AJ$19*AJ41)+(AK$19*AK41)+(AL$19*AL41)+(AM$19*AM41)+(AN$19*AN41)+(AO$19*AO41)+(AP$19*AP41)+(AQ$19*AQ41)+(AR$19*AR41)+(AS$19*AS41)+(AT$19*AT41)+(AU$19*AU41)+(AV$19*AV41)+(AW$19*AW41)+(AX$19*AX41)+(AY$19*AY41)+(AZ$19*AZ41)+(BA$19*BA41)+(BB$19*BB41)+(BC$19*BC41)+(BD$19*BD41)+(BE$19*BE41)) -> 51 | BH41: 8 | BI41: 4 | BJ41: 10 | BK41: 0 | BL41: 8 | BM41: 2 | BN41: 2 | CH41: =IF(OR('Set UP'!$C27=0,'Set UP'!$D27=0,'Set UP'!$E27=0),"",(BH$19*BH41)+(BI$19*BI41)+(BJ$19*BJ41)+(BK$19*BK41)+(BL$19*BL41)+(BM$19*BM41)+(BN$19*BN41)+(BO$19*BO41)+(BP$19*BP41)+(BQ$19*BQ41)+(BR$19*BR41)+(BS$19*BS41)+(BT$19*BT41)+(BU$19*BU41)+(BV$19*BV41)+(BW$19*BW41)+(BX$19*BX41)+(BY$19*BY41)+(BZ$19*BZ41)+(CA$19*CA41)+(CB$19*CB41)+(CC$19*CC41)+(CD$19*CD41)+(CE$19*CE41)+(CF$19*CF41)) -> 37 | CI41: 3 | CJ41: 8 | CK41: 3 | CL41: 0 | CM41: 5 | CN41: 1 | CO41: 5 | DI41: =IF(OR('Set UP'!$C27=0,'Set UP'!$D27=0,'Set UP'!$E27=0),"",(CI$19*CI41)+(CJ$19*CJ41)+(CK$19*CK41)+(CL$19*CL41)+(CM$19*CM41)+(CN$19*CN41)+(CO$19*CO41)+(CP$19*CP41)+(CQ$19*CQ41)+(CR$19*CR41)+(CS$19*CS41)+(CT$19*CT41)+(CU$19*CU41)+(CV$19*CV41)+(CW$19*CW41)+(CX$19*CX41)+(CY$19*CY41)+(CZ$19*CZ41)+(DA$19*DA41)+(DB$19*DB41)+(DC$19*DC41)+(DD$19*DD41)+(DE$19*DE41)+(DF$19*DF41)+(DG$19*DG41)) -> 34.5 | DJ41: 10 | DK41: 10 | DL41: 10 | DM41: 10 | DN41: 10 | DO41: 8 | DP41: 4 | DQ41: 3 | DR41: 10 | DS41: 0 | EJ41: =IF(OR('Set UP'!$C27=0,'Set UP'!$D27=0,'Set UP'!$E27=0),"",(DJ$19*DJ41)+(DK$19*DK41)+(DL$19*DL41)+(DM$19*DM41)+(DN$19*DN41)+(DO$19*DO41)+(DP$19*DP41)+(DQ$19*DQ41)+(DR$19*DR41)+(DS$19*DS41)+(DT$19*DT41)+(DU$19*DU41)+(DV$19*DV41)+(DW$19*DW41)+(DX$19*DX41)+(DY$19*DY41)+(DZ$19*DZ41)+(EA$19*EA41)+(EB$19*EB41)+(EC$19*EC41)+(ED$19*ED41)+(EE$19*EE41)+(EF$19*EF41)+(EG$19*EG41)+(EH$19*EH41)) -> 61.5 | EK41: 5 | EL41: 5 | EM41: 3 | EN41: 6 | FK41: =IF(OR('Set UP'!$C27=0,'Set UP'!$D27=0,'Set UP'!$E27=0),"",(EK$19*EK41)+(EL$19*EL41)+(EM$19*EM41)+(EN$19*EN41)+(EO$19*EO41)+(EP$19*EP41)+(EQ$19*EQ41)+(ER$19*ER41)+(ES$19*ES41)+(ET$19*ET41)+(EU$19*EU41)+(EV$19*EV41)+(EW$19*EW41)+(EX$19*EX41)+(EY$19*EY41)+(EZ$19*EZ41)+(FA$19*FA41)+(FB$19*FB41)+(FC$19*FC41)+(FD$19*FD41)+(FE$19*FE41)+(FF$19*FF41)+(FG$19*FG41)+(FH$19*FH41)+(FI$19*FI41)) -> 36 | GL41: =IF(OR('Set UP'!$C27=0,'Set UP'!$D27=0,'Set UP'!$E27=0),"",(FL$19*FL41)+(FM$19*FM41)+(FN$19*FN41)+(FO$19*FO41)+(FP$19*FP41)+(FQ$19*FQ41)+(FR$19*FR41)+(FS$19*FS41)+(FT$19*FT41)+(FU$19*FU41)+(FV$19*FV41)+(FW$19*FW41)+(FX$19*FX41)+(FY$19*FY41)+(FZ$19*FZ41)+(GA$19*GA41)+(GB$19*GB41)+(GC$19*GC41)+(GD$19*GD41)+(GE$19*GE41)+(GF$19*GF41)+(GG$19*GG41)+(GH$19*GH41)+(GI$19*GI41)+(GJ$19*GJ41)) -> 0 | HM41: =IF(OR('Set UP'!$C27=0,'Set UP'!$D27=0,'Set UP'!$E27=0),"",(GM$19*GM41)+(GN$19*GN41)+(GO$19*GO41)+(GP$19*GP41)+(GQ$19*GQ41)+(GR$19*GR41)+(GS$19*GS41)+(GT$19*GT41)+(GU$19*GU41)+(GV$19*GV41)+(GW$19*GW41)+(GX$19*GX41)+(GY$19*GY41)+(GZ$19*GZ41)+(HA$19*HA41)+(HB$19*HB41)+(HC$19*HC41)+(HD$19*HD41)+(HE$19*HE41)+(HF$19*HF41)+(HG$19*HG41)+(HH$19*HH41)+(HI$19*HI41)+(HJ$19*HJ41)+(HK$19*HK41)) -> 0 | IN41: =IF(OR('Set UP'!$C27=0,'Set UP'!$D27=0,'Set UP'!$E27=0),"",(HN$19*HN41)+(HO$19*HO41)+(HP$19*HP41)+(HQ$19*HQ41)+(HR$19*HR41)+(HS$19*HS41)+(HT$19*HT41)+(HU$19*HU41)+(HV$19*HV41)+(HW$19*HW41)+(HX$19*HX41)+(HY$19*HY41)+(HZ$19*HZ41)+(IA$19*IA41)+(IB$19*IB41)+(IC$19*IC41)+(ID$19*ID41)+(IE$19*IE41)+(IF$19*IF41)+(IG$19*IG41)+(IH$19*IH41)+(II$19*II41)+(IJ$19*IJ41)+(IK$19*IK41)+(IL$19*IL41)) -> 0 | JO41: =IF(OR('Set UP'!$C27=0,'Set UP'!$D27=0,'Set UP'!$E27=0),"",(IO$19*IO41)+(IP$19*IP41)+(IQ$19*IQ41)+(IR$19*IR41)+(IS$19*IS41)+(IT$19*IT41)+(IU$19*IU41)+(IV$19*IV41)+(IW$19*IW41)+(IX$19*IX41)+(IY$19*IY41)+(IZ$19*IZ41)+(JA$19*JA41)+(JB$19*JB41)+(JC$19*JC41)+(JD$19*JD41)+(JE$19*JE41)+(JF$19*JF41)+(JG$19*JG41)+(JH$19*JH41)+(JI$19*JI41)+(JJ$19*JJ41)+(JK$19*JK41)+(JL$19*JL41)+(JM$19*JM41)) -> 0 | JP41: =IF(OR('Set UP'!$C27=0,'Set UP'!$D27=0,'Set UP'!$E27=0),"",(AF41+BG41+CH41+DI41+EJ41+FK41+GL41+HM41+IN41+JO41)) -> 250 | JQ41: =IF(OR('Set UP'!$C27=0,'Set UP'!$D27=0,'Set UP'!$E27=0),"",RANK(JP41,$JP$21:$JP$60,0)) -> 10 | JR41: =IF(OR('Set UP'!K27<>1,'Set UP'!C27=0,'Set UP'!D27=0,'Set UP'!E27=0,'Set UP'!F27=0),"",$JP41) -> 250 | JS41: =IF(OR('Set UP'!K27<>1,'Set UP'!C27=0,'Set UP'!D27=0,'Set UP'!E27=0,'Set UP'!F27=0),"",RANK(JR41,$JR$21:$JR$60,0)) -> 4 | JT41: =IF(OR('Set UP'!K27<>2,'Set UP'!C27=0,'Set UP'!D27=0,'Set UP'!E27=0,'Set UP'!F27=0),"",$JP41) ->  | JU41: =IF(OR('Set UP'!K27<>2,'Set UP'!C27=0,'Set UP'!D27=0,'Set UP'!E27=0,'Set UP'!F27=0),"",RANK(JT41,$JT$21:$JT$60,0)) ->  | JV41: =IF(OR('Set UP'!F27<>"F",'Set UP'!C27=0,'Set UP'!D27=0,'Set UP'!E27=0),"",$JP41) ->  | JW41: =IF(OR('Set UP'!F27<>"F",'Set UP'!C27=0,'Set UP'!D27=0,'Set UP'!E27=0),"",RANK(JV41,$JV$21:$JV$60,0)) ->  | JX41: =IF(OR('Set UP'!F27<>"NS",'Set UP'!C27=0,'Set UP'!D27=0,'Set UP'!E27=0),"",$JP41) ->  | JY41: =IF(OR('Set UP'!F27<>"NS",'Set UP'!C27=0,'Set UP'!D27=0,'Set UP'!E27=0),"",RANK(JX41,$JX$21:$JX$60,0)) ->  | JZ41: =IF(OR('Set UP'!$C27=0,'Set UP'!$D27=0,'Set UP'!$E27=0,JP41=0),"",JP41/MAX(JP$21:JP$60)*1000) -> 847.4576271
B42: 22 | C42: =IF(OR('Set UP'!$C28=0,'Set UP'!$D28=0,'Set UP'!$E28=0,'Set UP'!F28=0)," --",'Set UP'!C28) -> 1435 | D42: =IF(OR('Set UP'!$C28=0,'Set UP'!$D28=0,'Set UP'!$E28=0,'Set UP'!F28=0)," --",'Set UP'!D28&" "&'Set UP'!E28) -> Loughborough University B | E42: =IF(OR('Set UP'!$C28=0,'Set UP'!$D28=0,'Set UP'!$E28=0,'Set UP'!F28=0)," --",'Set UP'!F28) -> S | F42: 5 | G42: 0 | H42: 0 | I42: 5 | J42: 0 | K42: 1 | L42: 0 | AF42: =IF(OR('Set UP'!$C28=0,'Set UP'!$D28=0,'Set UP'!$E28=0),"",(F$19*F42)+(G$19*G42)+(H$19*H42)+(I$19*I42)+(J$19*J42)+(K$19*K42)+(L$19*L42)+(M$19*M42)+(N$19*N42)+(O$19*O42)+(P$19*P42)+(Q$19*Q42)+(R$19*R42)+(S$19*S42)+(T$19*T42)+(U$19*U42)+(V$19*V42)+(W$19*W42)+(X$19*X42)+(Y$19*Y42)+(Z$19*Z42)+(AA$19*AA42)+(AB$19*AB42)+(AC$19*AC42)+(AD$19*AD42)) -> 11.5 | AG42: 0 | AH42: 2 | AI42: 0 | AJ42: 7 | AK42: 2 | AL42: 7 | AM42: 0 | AN42: 8 | BG42: =IF(OR('Set UP'!$C28=0,'Set UP'!$D28=0,'Set UP'!$E28=0),"",(AG$19*AG42)+(AH$19*AH42)+(AI$19*AI42)+(AJ$19*AJ42)+(AK$19*AK42)+(AL$19*AL42)+(AM$19*AM42)+(AN$19*AN42)+(AO$19*AO42)+(AP$19*AP42)+(AQ$19*AQ42)+(AR$19*AR42)+(AS$19*AS42)+(AT$19*AT42)+(AU$19*AU42)+(AV$19*AV42)+(AW$19*AW42)+(AX$19*AX42)+(AY$19*AY42)+(AZ$19*AZ42)+(BA$19*BA42)+(BB$19*BB42)+(BC$19*BC42)+(BD$19*BD42)+(BE$19*BE42)) -> 31.5 | BH42: 8 | BI42: 9 | BJ42: 10 | BK42: 0 | BL42: 8 | BM42: 7 | BN42: 0 | CH42: =IF(OR('Set UP'!$C28=0,'Set UP'!$D28=0,'Set UP'!$E28=0),"",(BH$19*BH42)+(BI$19*BI42)+(BJ$19*BJ42)+(BK$19*BK42)+(BL$19*BL42)+(BM$19*BM42)+(BN$19*BN42)+(BO$19*BO42)+(BP$19*BP42)+(BQ$19*BQ42)+(BR$19*BR42)+(BS$19*BS42)+(BT$19*BT42)+(BU$19*BU42)+(BV$19*BV42)+(BW$19*BW42)+(BX$19*BX42)+(BY$19*BY42)+(BZ$19*BZ42)+(CA$19*CA42)+(CB$19*CB42)+(CC$19*CC42)+(CD$19*CD42)+(CE$19*CE42)+(CF$19*CF42)) -> 50 | CI42: 7 | CJ42: 9 | CK42: 5 | CL42: 10 | CM42: 6 | CN42: 2 | CO42: 8 | DI42: =IF(OR('Set UP'!$C28=0,'Set UP'!$D28=0,'Set UP'!$E28=0),"",(CI$19*CI42)+(CJ$19*CJ42)+(CK$19*CK42)+(CL$19*CL42)+(CM$19*CM42)+(CN$19*CN42)+(CO$19*CO42)+(CP$19*CP42)+(CQ$19*CQ42)+(CR$19*CR42)+(CS$19*CS42)+(CT$19*CT42)+(CU$19*CU42)+(CV$19*CV42)+(CW$19*CW42)+(CX$19*CX42)+(CY$19*CY42)+(CZ$19*CZ42)+(DA$19*DA42)+(DB$19*DB42)+(DC$19*DC42)+(DD$19*DD42)+(DE$19*DE42)+(DF$19*DF42)+(DG$19*DG42)) -> 59.5 | DJ42: 0 | DK42: 0 | DL42: 0 | DM42: 0 | DN42: 0 | DO42: 5 | DP42: 6 | DQ42: 0 | DR42: 0 | DS42: 3 | EJ42: =IF(OR('Set UP'!$C28=0,'Set UP'!$D28=0,'Set UP'!$E28=0),"",(DJ$19*DJ42)+(DK$19*DK42)+(DL$19*DL42)+(DM$19*DM42)+(DN$19*DN42)+(DO$19*DO42)+(DP$19*DP42)+(DQ$19*DQ42)+(DR$19*DR42)+(DS$19*DS42)+(DT$19*DT42)+(DU$19*DU42)+(DV$19*DV42)+(DW$19*DW42)+(DX$19*DX42)+(DY$19*DY42)+(DZ$19*DZ42)+(EA$19*EA42)+(EB$19*EB42)+(EC$19*EC42)+(ED$19*ED42)+(EE$19*EE42)+(EF$19*EF42)+(EG$19*EG42)+(EH$19*EH42)) -> 8.9 | EK42: 5 | EL42: 4 | EM42: 3 | EN42: 4 | FK42: =IF(OR('Set UP'!$C28=0,'Set UP'!$D28=0,'Set UP'!$E28=0),"",(EK$19*EK42)+(EL$19*EL42)+(EM$19*EM42)+(EN$19*EN42)+(EO$19*EO42)+(EP$19*EP42)+(EQ$19*EQ42)+(ER$19*ER42)+(ES$19*ES42)+(ET$19*ET42)+(EU$19*EU42)+(EV$19*EV42)+(EW$19*EW42)+(EX$19*EX42)+(EY$19*EY42)+(EZ$19*EZ42)+(FA$19*FA42)+(FB$19*FB42)+(FC$19*FC42)+(FD$19*FD42)+(FE$19*FE42)+(FF$19*FF42)+(FG$19*FG42)+(FH$19*FH42)+(FI$19*FI42)) -> 31.5 | GL42: =IF(OR('Set UP'!$C28=0,'Set UP'!$D28=0,'Set UP'!$E28=0),"",(FL$19*FL42)+(FM$19*FM42)+(FN$19*FN42)+(FO$19*FO42)+(FP$19*FP42)+(FQ$19*FQ42)+(FR$19*FR42)+(FS$19*FS42)+(FT$19*FT42)+(FU$19*FU42)+(FV$19*FV42)+(FW$19*FW42)+(FX$19*FX42)+(FY$19*FY42)+(FZ$19*FZ42)+(GA$19*GA42)+(GB$19*GB42)+(GC$19*GC42)+(GD$19*GD42)+(GE$19*GE42)+(GF$19*GF42)+(GG$19*GG42)+(GH$19*GH42)+(GI$19*GI42)+(GJ$19*GJ42)) -> 0 | HM42: =IF(OR('Set UP'!$C28=0,'Set UP'!$D28=0,'Set UP'!$E28=0),"",(GM$19*GM42)+(GN$19*GN42)+(GO$19*GO42)+(GP$19*GP42)+(GQ$19*GQ42)+(GR$19*GR42)+(GS$19*GS42)+(GT$19*GT42)+(GU$19*GU42)+(GV$19*GV42)+(GW$19*GW42)+(GX$19*GX42)+(GY$19*GY42)+(GZ$19*GZ42)+(HA$19*HA42)+(HB$19*HB42)+(HC$19*HC42)+(HD$19*HD42)+(HE$19*HE42)+(HF$19*HF42)+(HG$19*HG42)+(HH$19*HH42)+(HI$19*HI42)+(HJ$19*HJ42)+(HK$19*HK42)) -> 0 | IN42: =IF(OR('Set UP'!$C28=0,'Set UP'!$D28=0,'Set UP'!$E28=0),"",(HN$19*HN42)+(HO$19*HO42)+(HP$19*HP42)+(HQ$19*HQ42)+(HR$19*HR42)+(HS$19*HS42)+(HT$19*HT42)+(HU$19*HU42)+(HV$19*HV42)+(HW$19*HW42)+(HX$19*HX42)+(HY$19*HY42)+(HZ$19*HZ42)+(IA$19*IA42)+(IB$19*IB42)+(IC$19*IC42)+(ID$19*ID42)+(IE$19*IE42)+(IF$19*IF42)+(IG$19*IG42)+(IH$19*IH42)+(II$19*II42)+(IJ$19*IJ42)+(IK$19*IK42)+(IL$19*IL42)) -> 0 | JO42: =IF(OR('Set UP'!$C28=0,'Set UP'!$D28=0,'Set UP'!$E28=0),"",(IO$19*IO42)+(IP$19*IP42)+(IQ$19*IQ42)+(IR$19*IR42)+(IS$19*IS42)+(IT$19*IT42)+(IU$19*IU42)+(IV$19*IV42)+(IW$19*IW42)+(IX$19*IX42)+(IY$19*IY42)+(IZ$19*IZ42)+(JA$19*JA42)+(JB$19*JB42)+(JC$19*JC42)+(JD$19*JD42)+(JE$19*JE42)+(JF$19*JF42)+(JG$19*JG42)+(JH$19*JH42)+(JI$19*JI42)+(JJ$19*JJ42)+(JK$19*JK42)+(JL$19*JL42)+(JM$19*JM42)) -> 0 | JP42: =IF(OR('Set UP'!$C28=0,'Set UP'!$D28=0,'Set UP'!$E28=0),"",(AF42+BG42+CH42+DI42+EJ42+FK42+GL42+HM42+IN42+JO42)) -> 192.9 | JQ42: =IF(OR('Set UP'!$C28=0,'Set UP'!$D28=0,'Set UP'!$E28=0),"",RANK(JP42,$JP$21:$JP$60,0)) -> 19 | JR42: =IF(OR('Set UP'!K28<>1,'Set UP'!C28=0,'Set UP'!D28=0,'Set UP'!E28=0,'Set UP'!F28=0),"",$JP42) ->  | JS42: =IF(OR('Set UP'!K28<>1,'Set UP'!C28=0,'Set UP'!D28=0,'Set UP'!E28=0,'Set UP'!F28=0),"",RANK(JR42,$JR$21:$JR$60,0)) ->  | JT42: =IF(OR('Set UP'!K28<>2,'Set UP'!C28=0,'Set UP'!D28=0,'Set UP'!E28=0,'Set UP'!F28=0),"",$JP42) -> 192.9 | JU42: =IF(OR('Set UP'!K28<>2,'Set UP'!C28=0,'Set UP'!D28=0,'Set UP'!E28=0,'Set UP'!F28=0),"",RANK(JT42,$JT$21:$JT$60,0)) -> 9 | JV42: =IF(OR('Set UP'!F28<>"F",'Set UP'!C28=0,'Set UP'!D28=0,'Set UP'!E28=0),"",$JP42) ->  | JW42: =IF(OR('Set UP'!F28<>"F",'Set UP'!C28=0,'Set UP'!D28=0,'Set UP'!E28=0),"",RANK(JV42,$JV$21:$JV$60,0)) ->  | JX42: =IF(OR('Set UP'!F28<>"NS",'Set UP'!C28=0,'Set UP'!D28=0,'Set UP'!E28=0),"",$JP42) ->  | JY42: =IF(OR('Set UP'!F28<>"NS",'Set UP'!C28=0,'Set UP'!D28=0,'Set UP'!E28=0),"",RANK(JX42,$JX$21:$JX$60,0)) ->  | JZ42: =IF(OR('Set UP'!$C28=0,'Set UP'!$D28=0,'Set UP'!$E28=0,JP42=0),"",JP42/MAX(JP$21:JP$60)*1000) -> 653.8983051
B43: 23 | C43: =IF(OR('Set UP'!$C29=0,'Set UP'!$D29=0,'Set UP'!$E29=0,'Set UP'!F29=0)," --",'Set UP'!C29) -> 1457 | D43: =IF(OR('Set UP'!$C29=0,'Set UP'!$D29=0,'Set UP'!$E29=0,'Set UP'!F29=0)," --",'Set UP'!D29&" "&'Set UP'!E29) -> University of Warwick B | E43: =IF(OR('Set UP'!$C29=0,'Set UP'!$D29=0,'Set UP'!$E29=0,'Set UP'!F29=0)," --",'Set UP'!F29) -> S | F43: 5 | G43: 5 | H43: 0 | I43: 7 | J43: 0 | K43: 0 | L43: 0 | AF43: =IF(OR('Set UP'!$C29=0,'Set UP'!$D29=0,'Set UP'!$E29=0),"",(F$19*F43)+(G$19*G43)+(H$19*H43)+(I$19*I43)+(J$19*J43)+(K$19*K43)+(L$19*L43)+(M$19*M43)+(N$19*N43)+(O$19*O43)+(P$19*P43)+(Q$19*Q43)+(R$19*R43)+(S$19*S43)+(T$19*T43)+(U$19*U43)+(V$19*V43)+(W$19*W43)+(X$19*X43)+(Y$19*Y43)+(Z$19*Z43)+(AA$19*AA43)+(AB$19*AB43)+(AC$19*AC43)+(AD$19*AD43)) -> 19.5 | AG43: 2 | AH43: 1 | AI43: 2 | AJ43: 7 | AK43: 2 | AL43: 5 | AM43: 0 | AN43: 8 | BG43: =IF(OR('Set UP'!$C29=0,'Set UP'!$D29=0,'Set UP'!$E29=0),"",(AG$19*AG43)+(AH$19*AH43)+(AI$19*AI43)+(AJ$19*AJ43)+(AK$19*AK43)+(AL$19*AL43)+(AM$19*AM43)+(AN$19*AN43)+(AO$19*AO43)+(AP$19*AP43)+(AQ$19*AQ43)+(AR$19*AR43)+(AS$19*AS43)+(AT$19*AT43)+(AU$19*AU43)+(AV$19*AV43)+(AW$19*AW43)+(AX$19*AX43)+(AY$19*AY43)+(AZ$19*AZ43)+(BA$19*BA43)+(BB$19*BB43)+(BC$19*BC43)+(BD$19*BD43)+(BE$19*BE43)) -> 31.5 | BH43: 8 | BI43: 2 | BJ43: 0 | BK43: 0 | BL43: 7 | BM43: 5 | BN43: 0 | CH43: =IF(OR('Set UP'!$C29=0,'Set UP'!$D29=0,'Set UP'!$E29=0),"",(BH$19*BH43)+(BI$19*BI43)+(BJ$19*BJ43)+(BK$19*BK43)+(BL$19*BL43)+(BM$19*BM43)+(BN$19*BN43)+(BO$19*BO43)+(BP$19*BP43)+(BQ$19*BQ43)+(BR$19*BR43)+(BS$19*BS43)+(BT$19*BT43)+(BU$19*BU43)+(BV$19*BV43)+(BW$19*BW43)+(BX$19*BX43)+(BY$19*BY43)+(BZ$19*BZ43)+(CA$19*CA43)+(CB$19*CB43)+(CC$19*CC43)+(CD$19*CD43)+(CE$19*CE43)+(CF$19*CF43)) -> 25.5 | CI43: 9 | CJ43: 6 | CK43: 6 | CL43: 2 | CM43: 6 | CN43: 2 | CO43: 3 | DI43: =IF(OR('Set UP'!$C29=0,'Set UP'!$D29=0,'Set UP'!$E29=0),"",(CI$19*CI43)+(CJ$19*CJ43)+(CK$19*CK43)+(CL$19*CL43)+(CM$19*CM43)+(CN$19*CN43)+(CO$19*CO43)+(CP$19*CP43)+(CQ$19*CQ43)+(CR$19*CR43)+(CS$19*CS43)+(CT$19*CT43)+(CU$19*CU43)+(CV$19*CV43)+(CW$19*CW43)+(CX$19*CX43)+(CY$19*CY43)+(CZ$19*CZ43)+(DA$19*DA43)+(DB$19*DB43)+(DC$19*DC43)+(DD$19*DD43)+(DE$19*DE43)+(DF$19*DF43)+(DG$19*DG43)) -> 44.5 | DJ43: 0 | DK43: 0 | DL43: 0 | DM43: 10 | DN43: 10 | DO43: 10 | DP43: 4 | DQ43: 0 | DR43: 0 | DS43: 5 | EJ43: =IF(OR('Set UP'!$C29=0,'Set UP'!$D29=0,'Set UP'!$E29=0),"",(DJ$19*DJ43)+(DK$19*DK43)+(DL$19*DL43)+(DM$19*DM43)+(DN$19*DN43)+(DO$19*DO43)+(DP$19*DP43)+(DQ$19*DQ43)+(DR$19*DR43)+(DS$19*DS43)+(DT$19*DT43)+(DU$19*DU43)+(DV$19*DV43)+(DW$19*DW43)+(DX$19*DX43)+(DY$19*DY43)+(DZ$19*DZ43)+(EA$19*EA43)+(EB$19*EB43)+(EC$19*EC43)+(ED$19*ED43)+(EE$19*EE43)+(EF$19*EF43)+(EG$19*EG43)+(EH$19*EH43)) -> 38.5 | EK43: 3 | EL43: 6 | EM43: 6 | EN43: 7 | FK43: =IF(OR('Set UP'!$C29=0,'Set UP'!$D29=0,'Set UP'!$E29=0),"",(EK$19*EK43)+(EL$19*EL43)+(EM$19*EM43)+(EN$19*EN43)+(EO$19*EO43)+(EP$19*EP43)+(EQ$19*EQ43)+(ER$19*ER43)+(ES$19*ES43)+(ET$19*ET43)+(EU$19*EU43)+(EV$19*EV43)+(EW$19*EW43)+(EX$19*EX43)+(EY$19*EY43)+(EZ$19*EZ43)+(FA$19*FA43)+(FB$19*FB43)+(FC$19*FC43)+(FD$19*FD43)+(FE$19*FE43)+(FF$19*FF43)+(FG$19*FG43)+(FH$19*FH43)+(FI$19*FI43)) -> 37.5 | GL43: =IF(OR('Set UP'!$C29=0,'Set UP'!$D29=0,'Set UP'!$E29=0),"",(FL$19*FL43)+(FM$19*FM43)+(FN$19*FN43)+(FO$19*FO43)+(FP$19*FP43)+(FQ$19*FQ43)+(FR$19*FR43)+(FS$19*FS43)+(FT$19*FT43)+(FU$19*FU43)+(FV$19*FV43)+(FW$19*FW43)+(FX$19*FX43)+(FY$19*FY43)+(FZ$19*FZ43)+(GA$19*GA43)+(GB$19*GB43)+(GC$19*GC43)+(GD$19*GD43)+(GE$19*GE43)+(GF$19*GF43)+(GG$19*GG43)+(GH$19*GH43)+(GI$19*GI43)+(GJ$19*GJ43)) -> 0 | HM43: =IF(OR('Set UP'!$C29=0,'Set UP'!$D29=0,'Set UP'!$E29=0),"",(GM$19*GM43)+(GN$19*GN43)+(GO$19*GO43)+(GP$19*GP43)+(GQ$19*GQ43)+(GR$19*GR43)+(GS$19*GS43)+(GT$19*GT43)+(GU$19*GU43)+(GV$19*GV43)+(GW$19*GW43)+(GX$19*GX43)+(GY$19*GY43)+(GZ$19*GZ43)+(HA$19*HA43)+(HB$19*HB43)+(HC$19*HC43)+(HD$19*HD43)+(HE$19*HE43)+(HF$19*HF43)+(HG$19*HG43)+(HH$19*HH43)+(HI$19*HI43)+(HJ$19*HJ43)+(HK$19*HK43)) -> 0 | IN43: =IF(OR('Set UP'!$C29=0,'Set UP'!$D29=0,'Set UP'!$E29=0),"",(HN$19*HN43)+(HO$19*HO43)+(HP$19*HP43)+(HQ$19*HQ43)+(HR$19*HR43)+(HS$19*HS43)+(HT$19*HT43)+(HU$19*HU43)+(HV$19*HV43)+(HW$19*HW43)+(HX$19*HX43)+(HY$19*HY43)+(HZ$19*HZ43)+(IA$19*IA43)+(IB$19*IB43)+(IC$19*IC43)+(ID$19*ID43)+(IE$19*IE43)+(IF$19*IF43)+(IG$19*IG43)+(IH$19*IH43)+(II$19*II43)+(IJ$19*IJ43)+(IK$19*IK43)+(IL$19*IL43)) -> 0 | JO43: =IF(OR('Set UP'!$C29=0,'Set UP'!$D29=0,'Set UP'!$E29=0),"",(IO$19*IO43)+(IP$19*IP43)+(IQ$19*IQ43)+(IR$19*IR43)+(IS$19*IS43)+(IT$19*IT43)+(IU$19*IU43)+(IV$19*IV43)+(IW$19*IW43)+(IX$19*IX43)+(IY$19*IY43)+(IZ$19*IZ43)+(JA$19*JA43)+(JB$19*JB43)+(JC$19*JC43)+(JD$19*JD43)+(JE$19*JE43)+(JF$19*JF43)+(JG$19*JG43)+(JH$19*JH43)+(JI$19*JI43)+(JJ$19*JJ43)+(JK$19*JK43)+(JL$19*JL43)+(JM$19*JM43)) -> 0 | JP43: =IF(OR('Set UP'!$C29=0,'Set UP'!$D29=0,'Set UP'!$E29=0),"",(AF43+BG43+CH43+DI43+EJ43+FK43+GL43+HM43+IN43+JO43)) -> 197 | JQ43: =IF(OR('Set UP'!$C29=0,'Set UP'!$D29=0,'Set UP'!$E29=0),"",RANK(JP43,$JP$21:$JP$60,0)) -> 18 | JR43: =IF(OR('Set UP'!K29<>1,'Set UP'!C29=0,'Set UP'!D29=0,'Set UP'!E29=0,'Set UP'!F29=0),"",$JP43) ->  | JS43: =IF(OR('Set UP'!K29<>1,'Set UP'!C29=0,'Set UP'!D29=0,'Set UP'!E29=0,'Set UP'!F29=0),"",RANK(JR43,$JR$21:$JR$60,0)) ->  | JT43: =IF(OR('Set UP'!K29<>2,'Set UP'!C29=0,'Set UP'!D29=0,'Set UP'!E29=0,'Set UP'!F29=0),"",$JP43) -> 197 | JU43: =IF(OR('Set UP'!K29<>2,'Set UP'!C29=0,'Set UP'!D29=0,'Set UP'!E29=0,'Set UP'!F29=0),"",RANK(JT43,$JT$21:$JT$60,0)) -> 8 | JV43: =IF(OR('Set UP'!F29<>"F",'Set UP'!C29=0,'Set UP'!D29=0,'Set UP'!E29=0),"",$JP43) ->  | JW43: =IF(OR('Set UP'!F29<>"F",'Set UP'!C29=0,'Set UP'!D29=0,'Set UP'!E29=0),"",RANK(JV43,$JV$21:$JV$60,0)) ->  | JX43: =IF(OR('Set UP'!F29<>"NS",'Set UP'!C29=0,'Set UP'!D29=0,'Set UP'!E29=0),"",$JP43) ->  | JY43: =IF(OR('Set UP'!F29<>"NS",'Set UP'!C29=0,'Set UP'!D29=0,'Set UP'!E29=0),"",RANK(JX43,$JX$21:$JX$60,0)) ->  | JZ43: =IF(OR('Set UP'!$C29=0,'Set UP'!$D29=0,'Set UP'!$E29=0,JP43=0),"",JP43/MAX(JP$21:JP$60)*1000) -> 667.7966102
B44: 24 | C44: =IF(OR('Set UP'!$C30=0,'Set UP'!$D30=0,'Set UP'!$E30=0,'Set UP'!F30=0)," --",'Set UP'!C30) -> 1429 | D44: =IF(OR('Set UP'!$C30=0,'Set UP'!$D30=0,'Set UP'!$E30=0,'Set UP'!F30=0)," --",'Set UP'!D30&" "&'Set UP'!E30) -> University of Nottingham A | E44: =IF(OR('Set UP'!$C30=0,'Set UP'!$D30=0,'Set UP'!$E30=0,'Set UP'!F30=0)," --",'Set UP'!F30) -> S | F44: 5 | G44: 5 | H44: 2 | I44: 5 | J44: 0 | K44: 7 | L44: 0 | AF44: =IF(OR('Set UP'!$C30=0,'Set UP'!$D30=0,'Set UP'!$E30=0),"",(F$19*F44)+(G$19*G44)+(H$19*H44)+(I$19*I44)+(J$19*J44)+(K$19*K44)+(L$19*L44)+(M$19*M44)+(N$19*N44)+(O$19*O44)+(P$19*P44)+(Q$19*Q44)+(R$19*R44)+(S$19*S44)+(T$19*T44)+(U$19*U44)+(V$19*V44)+(W$19*W44)+(X$19*X44)+(Y$19*Y44)+(Z$19*Z44)+(AA$19*AA44)+(AB$19*AB44)+(AC$19*AC44)+(AD$19*AD44)) -> 31 | AG44: 0 | AH44: 2 | AI44: 3 | AJ44: 9 | AK44: 5 | AL44: 3 | AM44: 3 | AN44: 4 | BG44: =IF(OR('Set UP'!$C30=0,'Set UP'!$D30=0,'Set UP'!$E30=0),"",(AG$19*AG44)+(AH$19*AH44)+(AI$19*AI44)+(AJ$19*AJ44)+(AK$19*AK44)+(AL$19*AL44)+(AM$19*AM44)+(AN$19*AN44)+(AO$19*AO44)+(AP$19*AP44)+(AQ$19*AQ44)+(AR$19*AR44)+(AS$19*AS44)+(AT$19*AT44)+(AU$19*AU44)+(AV$19*AV44)+(AW$19*AW44)+(AX$19*AX44)+(AY$19*AY44)+(AZ$19*AZ44)+(BA$19*BA44)+(BB$19*BB44)+(BC$19*BC44)+(BD$19*BD44)+(BE$19*BE44)) -> 37 | BH44: 8 | BI44: 4 | BJ44: 0 | BK44: 0 | BL44: 9 | BM44: 7 | BN44: 0 | CH44: =IF(OR('Set UP'!$C30=0,'Set UP'!$D30=0,'Set UP'!$E30=0),"",(BH$19*BH44)+(BI$19*BI44)+(BJ$19*BJ44)+(BK$19*BK44)+(BL$19*BL44)+(BM$19*BM44)+(BN$19*BN44)+(BO$19*BO44)+(BP$19*BP44)+(BQ$19*BQ44)+(BR$19*BR44)+(BS$19*BS44)+(BT$19*BT44)+(BU$19*BU44)+(BV$19*BV44)+(BW$19*BW44)+(BX$19*BX44)+(BY$19*BY44)+(BZ$19*BZ44)+(CA$19*CA44)+(CB$19*CB44)+(CC$19*CC44)+(CD$19*CD44)+(CE$19*CE44)+(CF$19*CF44)) -> 33.5 | CI44: 9 | CJ44: 7 | CK44: 6 | CL44: 8 | CM44: 6 | CN44: 5 | CO44: 6 | DI44: =IF(OR('Set UP'!$C30=0,'Set UP'!$D30=0,'Set UP'!$E30=0),"",(CI$19*CI44)+(CJ$19*CJ44)+(CK$19*CK44)+(CL$19*CL44)+(CM$19*CM44)+(CN$19*CN44)+(CO$19*CO44)+(CP$19*CP44)+(CQ$19*CQ44)+(CR$19*CR44)+(CS$19*CS44)+(CT$19*CT44)+(CU$19*CU44)+(CV$19*CV44)+(CW$19*CW44)+(CX$19*CX44)+(CY$19*CY44)+(CZ$19*CZ44)+(DA$19*DA44)+(DB$19*DB44)+(DC$19*DC44)+(DD$19*DD44)+(DE$19*DE44)+(DF$19*DF44)+(DG$19*DG44)) -> 58.5 | DJ44: 10 | DK44: 0 | DL44: 0 | DM44: 0 | DN44: 10 | DO44: 0 | DP44: 2 | DQ44: 0 | DR44: 0 | DS44: 0 | EJ44: =IF(OR('Set UP'!$C30=0,'Set UP'!$D30=0,'Set UP'!$E30=0),"",(DJ$19*DJ44)+(DK$19*DK44)+(DL$19*DL44)+(DM$19*DM44)+(DN$19*DN44)+(DO$19*DO44)+(DP$19*DP44)+(DQ$19*DQ44)+(DR$19*DR44)+(DS$19*DS44)+(DT$19*DT44)+(DU$19*DU44)+(DV$19*DV44)+(DW$19*DW44)+(DX$19*DX44)+(DY$19*DY44)+(DZ$19*DZ44)+(EA$19*EA44)+(EB$19*EB44)+(EC$19*EC44)+(ED$19*ED44)+(EE$19*EE44)+(EF$19*EF44)+(EG$19*EG44)+(EH$19*EH44)) -> 21 | EK44: 9 | EL44: 5 | EM44: 7 | EN44: 6 | FK44: =IF(OR('Set UP'!$C30=0,'Set UP'!$D30=0,'Set UP'!$E30=0),"",(EK$19*EK44)+(EL$19*EL44)+(EM$19*EM44)+(EN$19*EN44)+(EO$19*EO44)+(EP$19*EP44)+(EQ$19*EQ44)+(ER$19*ER44)+(ES$19*ES44)+(ET$19*ET44)+(EU$19*EU44)+(EV$19*EV44)+(EW$19*EW44)+(EX$19*EX44)+(EY$19*EY44)+(EZ$19*EZ44)+(FA$19*FA44)+(FB$19*FB44)+(FC$19*FC44)+(FD$19*FD44)+(FE$19*FE44)+(FF$19*FF44)+(FG$19*FG44)+(FH$19*FH44)+(FI$19*FI44)) -> 54 | GL44: =IF(OR('Set UP'!$C30=0,'Set UP'!$D30=0,'Set UP'!$E30=0),"",(FL$19*FL44)+(FM$19*FM44)+(FN$19*FN44)+(FO$19*FO44)+(FP$19*FP44)+(FQ$19*FQ44)+(FR$19*FR44)+(FS$19*FS44)+(FT$19*FT44)+(FU$19*FU44)+(FV$19*FV44)+(FW$19*FW44)+(FX$19*FX44)+(FY$19*FY44)+(FZ$19*FZ44)+(GA$19*GA44)+(GB$19*GB44)+(GC$19*GC44)+(GD$19*GD44)+(GE$19*GE44)+(GF$19*GF44)+(GG$19*GG44)+(GH$19*GH44)+(GI$19*GI44)+(GJ$19*GJ44)) -> 0 | HM44: =IF(OR('Set UP'!$C30=0,'Set UP'!$D30=0,'Set UP'!$E30=0),"",(GM$19*GM44)+(GN$19*GN44)+(GO$19*GO44)+(GP$19*GP44)+(GQ$19*GQ44)+(GR$19*GR44)+(GS$19*GS44)+(GT$19*GT44)+(GU$19*GU44)+(GV$19*GV44)+(GW$19*GW44)+(GX$19*GX44)+(GY$19*GY44)+(GZ$19*GZ44)+(HA$19*HA44)+(HB$19*HB44)+(HC$19*HC44)+(HD$19*HD44)+(HE$19*HE44)+(HF$19*HF44)+(HG$19*HG44)+(HH$19*HH44)+(HI$19*HI44)+(HJ$19*HJ44)+(HK$19*HK44)) -> 0 | IN44: =IF(OR('Set UP'!$C30=0,'Set UP'!$D30=0,'Set UP'!$E30=0),"",(HN$19*HN44)+(HO$19*HO44)+(HP$19*HP44)+(HQ$19*HQ44)+(HR$19*HR44)+(HS$19*HS44)+(HT$19*HT44)+(HU$19*HU44)+(HV$19*HV44)+(HW$19*HW44)+(HX$19*HX44)+(HY$19*HY44)+(HZ$19*HZ44)+(IA$19*IA44)+(IB$19*IB44)+(IC$19*IC44)+(ID$19*ID44)+(IE$19*IE44)+(IF$19*IF44)+(IG$19*IG44)+(IH$19*IH44)+(II$19*II44)+(IJ$19*IJ44)+(IK$19*IK44)+(IL$19*IL44)) -> 0 | JO44: =IF(OR('Set UP'!$C30=0,'Set UP'!$D30=0,'Set UP'!$E30=0),"",(IO$19*IO44)+(IP$19*IP44)+(IQ$19*IQ44)+(IR$19*IR44)+(IS$19*IS44)+(IT$19*IT44)+(IU$19*IU44)+(IV$19*IV44)+(IW$19*IW44)+(IX$19*IX44)+(IY$19*IY44)+(IZ$19*IZ44)+(JA$19*JA44)+(JB$19*JB44)+(JC$19*JC44)+(JD$19*JD44)+(JE$19*JE44)+(JF$19*JF44)+(JG$19*JG44)+(JH$19*JH44)+(JI$19*JI44)+(JJ$19*JJ44)+(JK$19*JK44)+(JL$19*JL44)+(JM$19*JM44)) -> 0 | JP44: =IF(OR('Set UP'!$C30=0,'Set UP'!$D30=0,'Set UP'!$E30=0),"",(AF44+BG44+CH44+DI44+EJ44+FK44+GL44+HM44+IN44+JO44)) -> 235 | JQ44: =IF(OR('Set UP'!$C30=0,'Set UP'!$D30=0,'Set UP'!$E30=0),"",RANK(JP44,$JP$21:$JP$60,0)) -> 13 | JR44: =IF(OR('Set UP'!K30<>1,'Set UP'!C30=0,'Set UP'!D30=0,'Set UP'!E30=0,'Set UP'!F30=0),"",$JP44) -> 235 | JS44: =IF(OR('Set UP'!K30<>1,'Set UP'!C30=0,'Set UP'!D30=0,'Set UP'!E30=0,'Set UP'!F30=0),"",RANK(JR44,$JR$21:$JR$60,0)) -> 7 | JT44: =IF(OR('Set UP'!K30<>2,'Set UP'!C30=0,'Set UP'!D30=0,'Set UP'!E30=0,'Set UP'!F30=0),"",$JP44) ->  | JU44: =IF(OR('Set UP'!K30<>2,'Set UP'!C30=0,'Set UP'!D30=0,'Set UP'!E30=0,'Set UP'!F30=0),"",RANK(JT44,$JT$21:$JT$60,0)) ->  | JV44: =IF(OR('Set UP'!F30<>"F",'Set UP'!C30=0,'Set UP'!D30=0,'Set UP'!E30=0),"",$JP44) ->  | JW44: =IF(OR('Set UP'!F30<>"F",'Set UP'!C30=0,'Set UP'!D30=0,'Set UP'!E30=0),"",RANK(JV44,$JV$21:$JV$60,0)) ->  | JX44: =IF(OR('Set UP'!F30<>"NS",'Set UP'!C30=0,'Set UP'!D30=0,'Set UP'!E30=0),"",$JP44) ->  | JY44: =IF(OR('Set UP'!F30<>"NS",'Set UP'!C30=0,'Set UP'!D30=0,'Set UP'!E30=0),"",RANK(JX44,$JX$21:$JX$60,0)) ->  | JZ44: =IF(OR('Set UP'!$C30=0,'Set UP'!$D30=0,'Set UP'!$E30=0,JP44=0),"",JP44/MAX(JP$21:JP$60)*1000) -> 796.6101695
B45: 25 | C45: =IF(OR('Set UP'!$C31=0,'Set UP'!$D31=0,'Set UP'!$E31=0,'Set UP'!F31=0)," --",'Set UP'!C31) -> 1438 | D45: =IF(OR('Set UP'!$C31=0,'Set UP'!$D31=0,'Set UP'!$E31=0,'Set UP'!F31=0)," --",'Set UP'!D31&" "&'Set UP'!E31) -> Swansea Universities Lifesaving B | E45: =IF(OR('Set UP'!$C31=0,'Set UP'!$D31=0,'Set UP'!$E31=0,'Set UP'!F31=0)," --",'Set UP'!F31) -> S | F45: 0 | G45: 0 | H45: 0 | I45: 7 | J45: 2 | K45: 3 | L45: 2 | AF45: =IF(OR('Set UP'!$C31=0,'Set UP'!$D31=0,'Set UP'!$E31=0),"",(F$19*F45)+(G$19*G45)+(H$19*H45)+(I$19*I45)+(J$19*J45)+(K$19*K45)+(L$19*L45)+(M$19*M45)+(N$19*N45)+(O$19*O45)+(P$19*P45)+(Q$19*Q45)+(R$19*R45)+(S$19*S45)+(T$19*T45)+(U$19*U45)+(V$19*V45)+(W$19*W45)+(X$19*X45)+(Y$19*Y45)+(Z$19*Z45)+(AA$19*AA45)+(AB$19*AB45)+(AC$19*AC45)+(AD$19*AD45)) -> 15.5 | AG45: 1 | AH45: 3 | AI45: 1 | AJ45: 7 | AK45: 2 | AL45: 4 | AM45: 0 | AN45: 4 | BG45: =IF(OR('Set UP'!$C31=0,'Set UP'!$D31=0,'Set UP'!$E31=0),"",(AG$19*AG45)+(AH$19*AH45)+(AI$19*AI45)+(AJ$19*AJ45)+(AK$19*AK45)+(AL$19*AL45)+(AM$19*AM45)+(AN$19*AN45)+(AO$19*AO45)+(AP$19*AP45)+(AQ$19*AQ45)+(AR$19*AR45)+(AS$19*AS45)+(AT$19*AT45)+(AU$19*AU45)+(AV$19*AV45)+(AW$19*AW45)+(AX$19*AX45)+(AY$19*AY45)+(AZ$19*AZ45)+(BA$19*BA45)+(BB$19*BB45)+(BC$19*BC45)+(BD$19*BD45)+(BE$19*BE45)) -> 27 | BH45: 8 | BI45: 2 | BJ45: 0 | BK45: 0 | BL45: 7 | BM45: 4 | BN45: 0 | CH45: =IF(OR('Set UP'!$C31=0,'Set UP'!$D31=0,'Set UP'!$E31=0),"",(BH$19*BH45)+(BI$19*BI45)+(BJ$19*BJ45)+(BK$19*BK45)+(BL$19*BL45)+(BM$19*BM45)+(BN$19*BN45)+(BO$19*BO45)+(BP$19*BP45)+(BQ$19*BQ45)+(BR$19*BR45)+(BS$19*BS45)+(BT$19*BT45)+(BU$19*BU45)+(BV$19*BV45)+(BW$19*BW45)+(BX$19*BX45)+(BY$19*BY45)+(BZ$19*BZ45)+(CA$19*CA45)+(CB$19*CB45)+(CC$19*CC45)+(CD$19*CD45)+(CE$19*CE45)+(CF$19*CF45)) -> 24 | CI45: 7 | CJ45: 5 | CK45: 3 | CL45: 0 | CM45: 3 | CN45: 3 | CO45: 1 | DI45: =IF(OR('Set UP'!$C31=0,'Set UP'!$D31=0,'Set UP'!$E31=0),"",(CI$19*CI45)+(CJ$19*CJ45)+(CK$19*CK45)+(CL$19*CL45)+(CM$19*CM45)+(CN$19*CN45)+(CO$19*CO45)+(CP$19*CP45)+(CQ$19*CQ45)+(CR$19*CR45)+(CS$19*CS45)+(CT$19*CT45)+(CU$19*CU45)+(CV$19*CV45)+(CW$19*CW45)+(CX$19*CX45)+(CY$19*CY45)+(CZ$19*CZ45)+(DA$19*DA45)+(DB$19*DB45)+(DC$19*DC45)+(DD$19*DD45)+(DE$19*DE45)+(DF$19*DF45)+(DG$19*DG45)) -> 30.5 | DJ45: 0 | DK45: 0 | DL45: 0 | DM45: 10 | DN45: 10 | DO45: 5 | DP45: 0 | DQ45: 1 | DR45: 0 | DS45: 0 | EJ45: =IF(OR('Set UP'!$C31=0,'Set UP'!$D31=0,'Set UP'!$E31=0),"",(DJ$19*DJ45)+(DK$19*DK45)+(DL$19*DL45)+(DM$19*DM45)+(DN$19*DN45)+(DO$19*DO45)+(DP$19*DP45)+(DQ$19*DQ45)+(DR$19*DR45)+(DS$19*DS45)+(DT$19*DT45)+(DU$19*DU45)+(DV$19*DV45)+(DW$19*DW45)+(DX$19*DX45)+(DY$19*DY45)+(DZ$19*DZ45)+(EA$19*EA45)+(EB$19*EB45)+(EC$19*EC45)+(ED$19*ED45)+(EE$19*EE45)+(EF$19*EF45)+(EG$19*EG45)+(EH$19*EH45)) -> 30.5 | EK45: 1 | EL45: 1 | EM45: 1 | EN45: 2 | FK45: =IF(OR('Set UP'!$C31=0,'Set UP'!$D31=0,'Set UP'!$E31=0),"",(EK$19*EK45)+(EL$19*EL45)+(EM$19*EM45)+(EN$19*EN45)+(EO$19*EO45)+(EP$19*EP45)+(EQ$19*EQ45)+(ER$19*ER45)+(ES$19*ES45)+(ET$19*ET45)+(EU$19*EU45)+(EV$19*EV45)+(EW$19*EW45)+(EX$19*EX45)+(EY$19*EY45)+(EZ$19*EZ45)+(FA$19*FA45)+(FB$19*FB45)+(FC$19*FC45)+(FD$19*FD45)+(FE$19*FE45)+(FF$19*FF45)+(FG$19*FG45)+(FH$19*FH45)+(FI$19*FI45)) -> 9 | GL45: =IF(OR('Set UP'!$C31=0,'Set UP'!$D31=0,'Set UP'!$E31=0),"",(FL$19*FL45)+(FM$19*FM45)+(FN$19*FN45)+(FO$19*FO45)+(FP$19*FP45)+(FQ$19*FQ45)+(FR$19*FR45)+(FS$19*FS45)+(FT$19*FT45)+(FU$19*FU45)+(FV$19*FV45)+(FW$19*FW45)+(FX$19*FX45)+(FY$19*FY45)+(FZ$19*FZ45)+(GA$19*GA45)+(GB$19*GB45)+(GC$19*GC45)+(GD$19*GD45)+(GE$19*GE45)+(GF$19*GF45)+(GG$19*GG45)+(GH$19*GH45)+(GI$19*GI45)+(GJ$19*GJ45)) -> 0 | HM45: =IF(OR('Set UP'!$C31=0,'Set UP'!$D31=0,'Set UP'!$E31=0),"",(GM$19*GM45)+(GN$19*GN45)+(GO$19*GO45)+(GP$19*GP45)+(GQ$19*GQ45)+(GR$19*GR45)+(GS$19*GS45)+(GT$19*GT45)+(GU$19*GU45)+(GV$19*GV45)+(GW$19*GW45)+(GX$19*GX45)+(GY$19*GY45)+(GZ$19*GZ45)+(HA$19*HA45)+(HB$19*HB45)+(HC$19*HC45)+(HD$19*HD45)+(HE$19*HE45)+(HF$19*HF45)+(HG$19*HG45)+(HH$19*HH45)+(HI$19*HI45)+(HJ$19*HJ45)+(HK$19*HK45)) -> 0 | IN45: =IF(OR('Set UP'!$C31=0,'Set UP'!$D31=0,'Set UP'!$E31=0),"",(HN$19*HN45)+(HO$19*HO45)+(HP$19*HP45)+(HQ$19*HQ45)+(HR$19*HR45)+(HS$19*HS45)+(HT$19*HT45)+(HU$19*HU45)+(HV$19*HV45)+(HW$19*HW45)+(HX$19*HX45)+(HY$19*HY45)+(HZ$19*HZ45)+(IA$19*IA45)+(IB$19*IB45)+(IC$19*IC45)+(ID$19*ID45)+(IE$19*IE45)+(IF$19*IF45)+(IG$19*IG45)+(IH$19*IH45)+(II$19*II45)+(IJ$19*IJ45)+(IK$19*IK45)+(IL$19*IL45)) -> 0 | JO45: =IF(OR('Set UP'!$C31=0,'Set UP'!$D31=0,'Set UP'!$E31=0),"",(IO$19*IO45)+(IP$19*IP45)+(IQ$19*IQ45)+(IR$19*IR45)+(IS$19*IS45)+(IT$19*IT45)+(IU$19*IU45)+(IV$19*IV45)+(IW$19*IW45)+(IX$19*IX45)+(IY$19*IY45)+(IZ$19*IZ45)+(JA$19*JA45)+(JB$19*JB45)+(JC$19*JC45)+(JD$19*JD45)+(JE$19*JE45)+(JF$19*JF45)+(JG$19*JG45)+(JH$19*JH45)+(JI$19*JI45)+(JJ$19*JJ45)+(JK$19*JK45)+(JL$19*JL45)+(JM$19*JM45)) -> 0 | JP45: =IF(OR('Set UP'!$C31=0,'Set UP'!$D31=0,'Set UP'!$E31=0),"",(AF45+BG45+CH45+DI45+EJ45+FK45+GL45+HM45+IN45+JO45)) -> 136.5 | JQ45: =IF(OR('Set UP'!$C31=0,'Set UP'!$D31=0,'Set UP'!$E31=0),"",RANK(JP45,$JP$21:$JP$60,0)) -> 25 | JR45: =IF(OR('Set UP'!K31<>1,'Set UP'!C31=0,'Set UP'!D31=0,'Set UP'!E31=0,'Set UP'!F31=0),"",$JP45) ->  | JS45: =IF(OR('Set UP'!K31<>1,'Set UP'!C31=0,'Set UP'!D31=0,'Set UP'!E31=0,'Set UP'!F31=0),"",RANK(JR45,$JR$21:$JR$60,0)) ->  | JT45: =IF(OR('Set UP'!K31<>2,'Set UP'!C31=0,'Set UP'!D31=0,'Set UP'!E31=0,'Set UP'!F31=0),"",$JP45) -> 136.5 | JU45: =IF(OR('Set UP'!K31<>2,'Set UP'!C31=0,'Set UP'!D31=0,'Set UP'!E31=0,'Set UP'!F31=0),"",RANK(JT45,$JT$21:$JT$60,0)) -> 11 | JV45: =IF(OR('Set UP'!F31<>"F",'Set UP'!C31=0,'Set UP'!D31=0,'Set UP'!E31=0),"",$JP45) ->  | JW45: =IF(OR('Set UP'!F31<>"F",'Set UP'!C31=0,'Set UP'!D31=0,'Set UP'!E31=0),"",RANK(JV45,$JV$21:$JV$60,0)) ->  | JX45: =IF(OR('Set UP'!F31<>"NS",'Set UP'!C31=0,'Set UP'!D31=0,'Set UP'!E31=0),"",$JP45) ->  | JY45: =IF(OR('Set UP'!F31<>"NS",'Set UP'!C31=0,'Set UP'!D31=0,'Set UP'!E31=0),"",RANK(JX45,$JX$21:$JX$60,0)) ->  | JZ45: =IF(OR('Set UP'!$C31=0,'Set UP'!$D31=0,'Set UP'!$E31=0,JP45=0),"",JP45/MAX(JP$21:JP$60)*1000) -> 462.7118644
B46: 26 | C46: =IF(OR('Set UP'!$C32=0,'Set UP'!$D32=0,'Set UP'!$E32=0,'Set UP'!F32=0)," --",'Set UP'!C32) -> 1442 | D46: =IF(OR('Set UP'!$C32=0,'Set UP'!$D32=0,'Set UP'!$E32=0,'Set UP'!F32=0)," --",'Set UP'!D32&" "&'Set UP'!E32) -> University of Birmingham A | E46: =IF(OR('Set UP'!$C32=0,'Set UP'!$D32=0,'Set UP'!$E32=0,'Set UP'!F32=0)," --",'Set UP'!F32) -> S | F46: 5 | G46: 4 | H46: 1 | I46: 6 | J46: 0 | K46: 7 | L46: 2 | AF46: =IF(OR('Set UP'!$C32=0,'Set UP'!$D32=0,'Set UP'!$E32=0),"",(F$19*F46)+(G$19*G46)+(H$19*H46)+(I$19*I46)+(J$19*J46)+(K$19*K46)+(L$19*L46)+(M$19*M46)+(N$19*N46)+(O$19*O46)+(P$19*P46)+(Q$19*Q46)+(R$19*R46)+(S$19*S46)+(T$19*T46)+(U$19*U46)+(V$19*V46)+(W$19*W46)+(X$19*X46)+(Y$19*Y46)+(Z$19*Z46)+(AA$19*AA46)+(AB$19*AB46)+(AC$19*AC46)+(AD$19*AD46)) -> 31 | AG46: 8 | AH46: 8 | AI46: 7 | AJ46: 6 | AK46: 7 | AL46: 6 | AM46: 8 | AN46: 8 | BG46: =IF(OR('Set UP'!$C32=0,'Set UP'!$D32=0,'Set UP'!$E32=0),"",(AG$19*AG46)+(AH$19*AH46)+(AI$19*AI46)+(AJ$19*AJ46)+(AK$19*AK46)+(AL$19*AL46)+(AM$19*AM46)+(AN$19*AN46)+(AO$19*AO46)+(AP$19*AP46)+(AQ$19*AQ46)+(AR$19*AR46)+(AS$19*AS46)+(AT$19*AT46)+(AU$19*AU46)+(AV$19*AV46)+(AW$19*AW46)+(AX$19*AX46)+(AY$19*AY46)+(AZ$19*AZ46)+(BA$19*BA46)+(BB$19*BB46)+(BC$19*BC46)+(BD$19*BD46)+(BE$19*BE46)) -> 64.5 | BH46: 8 | BI46: 9 | BJ46: 10 | BK46: 3 | BL46: 9 | BM46: 10 | BN46: 0 | CH46: =IF(OR('Set UP'!$C32=0,'Set UP'!$D32=0,'Set UP'!$E32=0),"",(BH$19*BH46)+(BI$19*BI46)+(BJ$19*BJ46)+(BK$19*BK46)+(BL$19*BL46)+(BM$19*BM46)+(BN$19*BN46)+(BO$19*BO46)+(BP$19*BP46)+(BQ$19*BQ46)+(BR$19*BR46)+(BS$19*BS46)+(BT$19*BT46)+(BU$19*BU46)+(BV$19*BV46)+(BW$19*BW46)+(BX$19*BX46)+(BY$19*BY46)+(BZ$19*BZ46)+(CA$19*CA46)+(CB$19*CB46)+(CC$19*CC46)+(CD$19*CD46)+(CE$19*CE46)+(CF$19*CF46)) -> 58.5 | CI46: 8 | CJ46: 1 | CK46: 4 | CL46: 2 | CM46: 2 | CN46: 2 | CO46: 1 | DI46: =IF(OR('Set UP'!$C32=0,'Set UP'!$D32=0,'Set UP'!$E32=0),"",(CI$19*CI46)+(CJ$19*CJ46)+(CK$19*CK46)+(CL$19*CL46)+(CM$19*CM46)+(CN$19*CN46)+(CO$19*CO46)+(CP$19*CP46)+(CQ$19*CQ46)+(CR$19*CR46)+(CS$19*CS46)+(CT$19*CT46)+(CU$19*CU46)+(CV$19*CV46)+(CW$19*CW46)+(CX$19*CX46)+(CY$19*CY46)+(CZ$19*CZ46)+(DA$19*DA46)+(DB$19*DB46)+(DC$19*DC46)+(DD$19*DD46)+(DE$19*DE46)+(DF$19*DF46)+(DG$19*DG46)) -> 25 | DJ46: 10 | DK46: 0 | DL46: 0 | DM46: 10 | DN46: 10 | DO46: 10 | DP46: 6 | DQ46: 6 | DR46: 10 | DS46: 10 | EJ46: =IF(OR('Set UP'!$C32=0,'Set UP'!$D32=0,'Set UP'!$E32=0),"",(DJ$19*DJ46)+(DK$19*DK46)+(DL$19*DL46)+(DM$19*DM46)+(DN$19*DN46)+(DO$19*DO46)+(DP$19*DP46)+(DQ$19*DQ46)+(DR$19*DR46)+(DS$19*DS46)+(DT$19*DT46)+(DU$19*DU46)+(DV$19*DV46)+(DW$19*DW46)+(DX$19*DX46)+(DY$19*DY46)+(DZ$19*DZ46)+(EA$19*EA46)+(EB$19*EB46)+(EC$19*EC46)+(ED$19*ED46)+(EE$19*EE46)+(EF$19*EF46)+(EG$19*EG46)+(EH$19*EH46)) -> 59 | EK46: 3 | EL46: 5 | EM46: 6 | EN46: 4 | FK46: =IF(OR('Set UP'!$C32=0,'Set UP'!$D32=0,'Set UP'!$E32=0),"",(EK$19*EK46)+(EL$19*EL46)+(EM$19*EM46)+(EN$19*EN46)+(EO$19*EO46)+(EP$19*EP46)+(EQ$19*EQ46)+(ER$19*ER46)+(ES$19*ES46)+(ET$19*ET46)+(EU$19*EU46)+(EV$19*EV46)+(EW$19*EW46)+(EX$19*EX46)+(EY$19*EY46)+(EZ$19*EZ46)+(FA$19*FA46)+(FB$19*FB46)+(FC$19*FC46)+(FD$19*FD46)+(FE$19*FE46)+(FF$19*FF46)+(FG$19*FG46)+(FH$19*FH46)+(FI$19*FI46)) -> 31.5 | GL46: =IF(OR('Set UP'!$C32=0,'Set UP'!$D32=0,'Set UP'!$E32=0),"",(FL$19*FL46)+(FM$19*FM46)+(FN$19*FN46)+(FO$19*FO46)+(FP$19*FP46)+(FQ$19*FQ46)+(FR$19*FR46)+(FS$19*FS46)+(FT$19*FT46)+(FU$19*FU46)+(FV$19*FV46)+(FW$19*FW46)+(FX$19*FX46)+(FY$19*FY46)+(FZ$19*FZ46)+(GA$19*GA46)+(GB$19*GB46)+(GC$19*GC46)+(GD$19*GD46)+(GE$19*GE46)+(GF$19*GF46)+(GG$19*GG46)+(GH$19*GH46)+(GI$19*GI46)+(GJ$19*GJ46)) -> 0 | HM46: =IF(OR('Set UP'!$C32=0,'Set UP'!$D32=0,'Set UP'!$E32=0),"",(GM$19*GM46)+(GN$19*GN46)+(GO$19*GO46)+(GP$19*GP46)+(GQ$19*GQ46)+(GR$19*GR46)+(GS$19*GS46)+(GT$19*GT46)+(GU$19*GU46)+(GV$19*GV46)+(GW$19*GW46)+(GX$19*GX46)+(GY$19*GY46)+(GZ$19*GZ46)+(HA$19*HA46)+(HB$19*HB46)+(HC$19*HC46)+(HD$19*HD46)+(HE$19*HE46)+(HF$19*HF46)+(HG$19*HG46)+(HH$19*HH46)+(HI$19*HI46)+(HJ$19*HJ46)+(HK$19*HK46)) -> 0 | IN46: =IF(OR('Set UP'!$C32=0,'Set UP'!$D32=0,'Set UP'!$E32=0),"",(HN$19*HN46)+(HO$19*HO46)+(HP$19*HP46)+(HQ$19*HQ46)+(HR$19*HR46)+(HS$19*HS46)+(HT$19*HT46)+(HU$19*HU46)+(HV$19*HV46)+(HW$19*HW46)+(HX$19*HX46)+(HY$19*HY46)+(HZ$19*HZ46)+(IA$19*IA46)+(IB$19*IB46)+(IC$19*IC46)+(ID$19*ID46)+(IE$19*IE46)+(IF$19*IF46)+(IG$19*IG46)+(IH$19*IH46)+(II$19*II46)+(IJ$19*IJ46)+(IK$19*IK46)+(IL$19*IL46)) -> 0 | JO46: =IF(OR('Set UP'!$C32=0,'Set UP'!$D32=0,'Set UP'!$E32=0),"",(IO$19*IO46)+(IP$19*IP46)+(IQ$19*IQ46)+(IR$19*IR46)+(IS$19*IS46)+(IT$19*IT46)+(IU$19*IU46)+(IV$19*IV46)+(IW$19*IW46)+(IX$19*IX46)+(IY$19*IY46)+(IZ$19*IZ46)+(JA$19*JA46)+(JB$19*JB46)+(JC$19*JC46)+(JD$19*JD46)+(JE$19*JE46)+(JF$19*JF46)+(JG$19*JG46)+(JH$19*JH46)+(JI$19*JI46)+(JJ$19*JJ46)+(JK$19*JK46)+(JL$19*JL46)+(JM$19*JM46)) -> 0 | JP46: =IF(OR('Set UP'!$C32=0,'Set UP'!$D32=0,'Set UP'!$E32=0),"",(AF46+BG46+CH46+DI46+EJ46+FK46+GL46+HM46+IN46+JO46)) -> 269.5 | JQ46: =IF(OR('Set UP'!$C32=0,'Set UP'!$D32=0,'Set UP'!$E32=0),"",RANK(JP46,$JP$21:$JP$60,0)) -> 4 | JR46: =IF(OR('Set UP'!K32<>1,'Set UP'!C32=0,'Set UP'!D32=0,'Set UP'!E32=0,'Set UP'!F32=0),"",$JP46) -> 269.5 | JS46: =IF(OR('Set UP'!K32<>1,'Set UP'!C32=0,'Set UP'!D32=0,'Set UP'!E32=0,'Set UP'!F32=0),"",RANK(JR46,$JR$21:$JR$60,0)) -> 3 | JT46: =IF(OR('Set UP'!K32<>2,'Set UP'!C32=0,'Set UP'!D32=0,'Set UP'!E32=0,'Set UP'!F32=0),"",$JP46) ->  | JU46: =IF(OR('Set UP'!K32<>2,'Set UP'!C32=0,'Set UP'!D32=0,'Set UP'!E32=0,'Set UP'!F32=0),"",RANK(JT46,$JT$21:$JT$60,0)) ->  | JV46: =IF(OR('Set UP'!F32<>"F",'Set UP'!C32=0,'Set UP'!D32=0,'Set UP'!E32=0),"",$JP46) ->  | JW46: =IF(OR('Set UP'!F32<>"F",'Set UP'!C32=0,'Set UP'!D32=0,'Set UP'!E32=0),"",RANK(JV46,$JV$21:$JV$60,0)) ->  | JX46: =IF(OR('Set UP'!F32<>"NS",'Set UP'!C32=0,'Set UP'!D32=0,'Set UP'!E32=0),"",$JP46) ->  | JY46: =IF(OR('Set UP'!F32<>"NS",'Set UP'!C32=0,'Set UP'!D32=0,'Set UP'!E32=0),"",RANK(JX46,$JX$21:$JX$60,0)) ->  | JZ46: =IF(OR('Set UP'!$C32=0,'Set UP'!$D32=0,'Set UP'!$E32=0,JP46=0),"",JP46/MAX(JP$21:JP$60)*1000) -> 913.559322
B47: 27 | C47: =IF(OR('Set UP'!$C33=0,'Set UP'!$D33=0,'Set UP'!$E33=0,'Set UP'!F33=0)," --",'Set UP'!C33) -> 1456 | D47: =IF(OR('Set UP'!$C33=0,'Set UP'!$D33=0,'Set UP'!$E33=0,'Set UP'!F33=0)," --",'Set UP'!D33&" "&'Set UP'!E33) -> University of Warwick A | E47: =IF(OR('Set UP'!$C33=0,'Set UP'!$D33=0,'Set UP'!$E33=0,'Set UP'!F33=0)," --",'Set UP'!F33) -> S | F47: 5 | G47: 5 | H47: 2 | I47: 7 | J47: 2 | K47: 6 | L47: 0 | AF47: =IF(OR('Set UP'!$C33=0,'Set UP'!$D33=0,'Set UP'!$E33=0),"",(F$19*F47)+(G$19*G47)+(H$19*H47)+(I$19*I47)+(J$19*J47)+(K$19*K47)+(L$19*L47)+(M$19*M47)+(N$19*N47)+(O$19*O47)+(P$19*P47)+(Q$19*Q47)+(R$19*R47)+(S$19*S47)+(T$19*T47)+(U$19*U47)+(V$19*V47)+(W$19*W47)+(X$19*X47)+(Y$19*Y47)+(Z$19*Z47)+(AA$19*AA47)+(AB$19*AB47)+(AC$19*AC47)+(AD$19*AD47)) -> 33.5 | AG47: 5 | AH47: 5 | AI47: 4 | AJ47: 8 | AK47: 6 | AL47: 7 | AM47: 8 | AN47: 8 | BG47: =IF(OR('Set UP'!$C33=0,'Set UP'!$D33=0,'Set UP'!$E33=0),"",(AG$19*AG47)+(AH$19*AH47)+(AI$19*AI47)+(AJ$19*AJ47)+(AK$19*AK47)+(AL$19*AL47)+(AM$19*AM47)+(AN$19*AN47)+(AO$19*AO47)+(AP$19*AP47)+(AQ$19*AQ47)+(AR$19*AR47)+(AS$19*AS47)+(AT$19*AT47)+(AU$19*AU47)+(AV$19*AV47)+(AW$19*AW47)+(AX$19*AX47)+(AY$19*AY47)+(AZ$19*AZ47)+(BA$19*BA47)+(BB$19*BB47)+(BC$19*BC47)+(BD$19*BD47)+(BE$19*BE47)) -> 59 | BH47: 8 | BI47: 4 | BJ47: 10 | BK47: 2 | BL47: 9 | BM47: 7 | BN47: 0 | CH47: =IF(OR('Set UP'!$C33=0,'Set UP'!$D33=0,'Set UP'!$E33=0),"",(BH$19*BH47)+(BI$19*BI47)+(BJ$19*BJ47)+(BK$19*BK47)+(BL$19*BL47)+(BM$19*BM47)+(BN$19*BN47)+(BO$19*BO47)+(BP$19*BP47)+(BQ$19*BQ47)+(BR$19*BR47)+(BS$19*BS47)+(BT$19*BT47)+(BU$19*BU47)+(BV$19*BV47)+(BW$19*BW47)+(BX$19*BX47)+(BY$19*BY47)+(BZ$19*BZ47)+(CA$19*CA47)+(CB$19*CB47)+(CC$19*CC47)+(CD$19*CD47)+(CE$19*CE47)+(CF$19*CF47)) -> 45.5 | CI47: 9 | CJ47: 9 | CK47: 9 | CL47: 5 | CM47: 9 | CN47: 0 | CO47: 1 | DI47: =IF(OR('Set UP'!$C33=0,'Set UP'!$D33=0,'Set UP'!$E33=0),"",(CI$19*CI47)+(CJ$19*CJ47)+(CK$19*CK47)+(CL$19*CL47)+(CM$19*CM47)+(CN$19*CN47)+(CO$19*CO47)+(CP$19*CP47)+(CQ$19*CQ47)+(CR$19*CR47)+(CS$19*CS47)+(CT$19*CT47)+(CU$19*CU47)+(CV$19*CV47)+(CW$19*CW47)+(CX$19*CX47)+(CY$19*CY47)+(CZ$19*CZ47)+(DA$19*DA47)+(DB$19*DB47)+(DC$19*DC47)+(DD$19*DD47)+(DE$19*DE47)+(DF$19*DF47)+(DG$19*DG47)) -> 55.5 | DJ47: 10 | DK47: 0 | DL47: 0 | DM47: 10 | DN47: 10 | DO47: 10 | DP47: 6 | DQ47: 0 | DR47: 0 | DS47: 0 | EJ47: =IF(OR('Set UP'!$C33=0,'Set UP'!$D33=0,'Set UP'!$E33=0),"",(DJ$19*DJ47)+(DK$19*DK47)+(DL$19*DL47)+(DM$19*DM47)+(DN$19*DN47)+(DO$19*DO47)+(DP$19*DP47)+(DQ$19*DQ47)+(DR$19*DR47)+(DS$19*DS47)+(DT$19*DT47)+(DU$19*DU47)+(DV$19*DV47)+(DW$19*DW47)+(DX$19*DX47)+(DY$19*DY47)+(DZ$19*DZ47)+(EA$19*EA47)+(EB$19*EB47)+(EC$19*EC47)+(ED$19*ED47)+(EE$19*EE47)+(EF$19*EF47)+(EG$19*EG47)+(EH$19*EH47)) -> 43 | EK47: 7 | EL47: 9 | EM47: 9 | EN47: 7 | FK47: =IF(OR('Set UP'!$C33=0,'Set UP'!$D33=0,'Set UP'!$E33=0),"",(EK$19*EK47)+(EL$19*EL47)+(EM$19*EM47)+(EN$19*EN47)+(EO$19*EO47)+(EP$19*EP47)+(EQ$19*EQ47)+(ER$19*ER47)+(ES$19*ES47)+(ET$19*ET47)+(EU$19*EU47)+(EV$19*EV47)+(EW$19*EW47)+(EX$19*EX47)+(EY$19*EY47)+(EZ$19*EZ47)+(FA$19*FA47)+(FB$19*FB47)+(FC$19*FC47)+(FD$19*FD47)+(FE$19*FE47)+(FF$19*FF47)+(FG$19*FG47)+(FH$19*FH47)+(FI$19*FI47)) -> 58.5 | GL47: =IF(OR('Set UP'!$C33=0,'Set UP'!$D33=0,'Set UP'!$E33=0),"",(FL$19*FL47)+(FM$19*FM47)+(FN$19*FN47)+(FO$19*FO47)+(FP$19*FP47)+(FQ$19*FQ47)+(FR$19*FR47)+(FS$19*FS47)+(FT$19*FT47)+(FU$19*FU47)+(FV$19*FV47)+(FW$19*FW47)+(FX$19*FX47)+(FY$19*FY47)+(FZ$19*FZ47)+(GA$19*GA47)+(GB$19*GB47)+(GC$19*GC47)+(GD$19*GD47)+(GE$19*GE47)+(GF$19*GF47)+(GG$19*GG47)+(GH$19*GH47)+(GI$19*GI47)+(GJ$19*GJ47)) -> 0 | HM47: =IF(OR('Set UP'!$C33=0,'Set UP'!$D33=0,'Set UP'!$E33=0),"",(GM$19*GM47)+(GN$19*GN47)+(GO$19*GO47)+(GP$19*GP47)+(GQ$19*GQ47)+(GR$19*GR47)+(GS$19*GS47)+(GT$19*GT47)+(GU$19*GU47)+(GV$19*GV47)+(GW$19*GW47)+(GX$19*GX47)+(GY$19*GY47)+(GZ$19*GZ47)+(HA$19*HA47)+(HB$19*HB47)+(HC$19*HC47)+(HD$19*HD47)+(HE$19*HE47)+(HF$19*HF47)+(HG$19*HG47)+(HH$19*HH47)+(HI$19*HI47)+(HJ$19*HJ47)+(HK$19*HK47)) -> 0 | IN47: =IF(OR('Set UP'!$C33=0,'Set UP'!$D33=0,'Set UP'!$E33=0),"",(HN$19*HN47)+(HO$19*HO47)+(HP$19*HP47)+(HQ$19*HQ47)+(HR$19*HR47)+(HS$19*HS47)+(HT$19*HT47)+(HU$19*HU47)+(HV$19*HV47)+(HW$19*HW47)+(HX$19*HX47)+(HY$19*HY47)+(HZ$19*HZ47)+(IA$19*IA47)+(IB$19*IB47)+(IC$19*IC47)+(ID$19*ID47)+(IE$19*IE47)+(IF$19*IF47)+(IG$19*IG47)+(IH$19*IH47)+(II$19*II47)+(IJ$19*IJ47)+(IK$19*IK47)+(IL$19*IL47)) -> 0 | JO47: =IF(OR('Set UP'!$C33=0,'Set UP'!$D33=0,'Set UP'!$E33=0),"",(IO$19*IO47)+(IP$19*IP47)+(IQ$19*IQ47)+(IR$19*IR47)+(IS$19*IS47)+(IT$19*IT47)+(IU$19*IU47)+(IV$19*IV47)+(IW$19*IW47)+(IX$19*IX47)+(IY$19*IY47)+(IZ$19*IZ47)+(JA$19*JA47)+(JB$19*JB47)+(JC$19*JC47)+(JD$19*JD47)+(JE$19*JE47)+(JF$19*JF47)+(JG$19*JG47)+(JH$19*JH47)+(JI$19*JI47)+(JJ$19*JJ47)+(JK$19*JK47)+(JL$19*JL47)+(JM$19*JM47)) -> 0 | JP47: =IF(OR('Set UP'!$C33=0,'Set UP'!$D33=0,'Set UP'!$E33=0),"",(AF47+BG47+CH47+DI47+EJ47+FK47+GL47+HM47+IN47+JO47)) -> 295 | JQ47: =IF(OR('Set UP'!$C33=0,'Set UP'!$D33=0,'Set UP'!$E33=0),"",RANK(JP47,$JP$21:$JP$60,0)) -> 1 | JR47: =IF(OR('Set UP'!K33<>1,'Set UP'!C33=0,'Set UP'!D33=0,'Set UP'!E33=0,'Set UP'!F33=0),"",$JP47) -> 295 | JS47: =IF(OR('Set UP'!K33<>1,'Set UP'!C33=0,'Set UP'!D33=0,'Set UP'!E33=0,'Set UP'!F33=0),"",RANK(JR47,$JR$21:$JR$60,0)) -> 1 | JT47: =IF(OR('Set UP'!K33<>2,'Set UP'!C33=0,'Set UP'!D33=0,'Set UP'!E33=0,'Set UP'!F33=0),"",$JP47) ->  | JU47: =IF(OR('Set UP'!K33<>2,'Set UP'!C33=0,'Set UP'!D33=0,'Set UP'!E33=0,'Set UP'!F33=0),"",RANK(JT47,$JT$21:$JT$60,0)) ->  | JV47: =IF(OR('Set UP'!F33<>"F",'Set UP'!C33=0,'Set UP'!D33=0,'Set UP'!E33=0),"",$JP47) ->  | JW47: =IF(OR('Set UP'!F33<>"F",'Set UP'!C33=0,'Set UP'!D33=0,'Set UP'!E33=0),"",RANK(JV47,$JV$21:$JV$60,0)) ->  | JX47: =IF(OR('Set UP'!F33<>"NS",'Set UP'!C33=0,'Set UP'!D33=0,'Set UP'!E33=0),"",$JP47) ->  | JY47: =IF(OR('Set UP'!F33<>"NS",'Set UP'!C33=0,'Set UP'!D33=0,'Set UP'!E33=0),"",RANK(JX47,$JX$21:$JX$60,0)) ->  | JZ47: =IF(OR('Set UP'!$C33=0,'Set UP'!$D33=0,'Set UP'!$E33=0,JP47=0),"",JP47/MAX(JP$21:JP$60)*1000) -> 1000
B48: 28 | C48: =IF(OR('Set UP'!$C34=0,'Set UP'!$D34=0,'Set UP'!$E34=0,'Set UP'!F34=0)," --",'Set UP'!C34) -> 1460 | D48: =IF(OR('Set UP'!$C34=0,'Set UP'!$D34=0,'Set UP'!$E34=0,'Set UP'!F34=0)," --",'Set UP'!D34&" "&'Set UP'!E34) -> Bristol University A | E48: =IF(OR('Set UP'!$C34=0,'Set UP'!$D34=0,'Set UP'!$E34=0,'Set UP'!F34=0)," --",'Set UP'!F34) -> S | F48: 3 | G48: 3 | H48: 0 | I48: 2 | J48: 0 | K48: 0 | L48: 0 | AF48: =IF(OR('Set UP'!$C34=0,'Set UP'!$D34=0,'Set UP'!$E34=0),"",(F$19*F48)+(G$19*G48)+(H$19*H48)+(I$19*I48)+(J$19*J48)+(K$19*K48)+(L$19*L48)+(M$19*M48)+(N$19*N48)+(O$19*O48)+(P$19*P48)+(Q$19*Q48)+(R$19*R48)+(S$19*S48)+(T$19*T48)+(U$19*U48)+(V$19*V48)+(W$19*W48)+(X$19*X48)+(Y$19*Y48)+(Z$19*Z48)+(AA$19*AA48)+(AB$19*AB48)+(AC$19*AC48)+(AD$19*AD48)) -> 9.5 | AG48: 2 | AH48: 2 | AI48: 2 | AJ48: 6 | AK48: 8 | AL48: 6 | AM48: 3 | AN48: 8 | BG48: =IF(OR('Set UP'!$C34=0,'Set UP'!$D34=0,'Set UP'!$E34=0),"",(AG$19*AG48)+(AH$19*AH48)+(AI$19*AI48)+(AJ$19*AJ48)+(AK$19*AK48)+(AL$19*AL48)+(AM$19*AM48)+(AN$19*AN48)+(AO$19*AO48)+(AP$19*AP48)+(AQ$19*AQ48)+(AR$19*AR48)+(AS$19*AS48)+(AT$19*AT48)+(AU$19*AU48)+(AV$19*AV48)+(AW$19*AW48)+(AX$19*AX48)+(AY$19*AY48)+(AZ$19*AZ48)+(BA$19*BA48)+(BB$19*BB48)+(BC$19*BC48)+(BD$19*BD48)+(BE$19*BE48)) -> 47 | BH48: 8 | BI48: 4 | BJ48: 0 | BK48: 0 | BL48: 9 | BM48: 6 | BN48: 0 | CH48: =IF(OR('Set UP'!$C34=0,'Set UP'!$D34=0,'Set UP'!$E34=0),"",(BH$19*BH48)+(BI$19*BI48)+(BJ$19*BJ48)+(BK$19*BK48)+(BL$19*BL48)+(BM$19*BM48)+(BN$19*BN48)+(BO$19*BO48)+(BP$19*BP48)+(BQ$19*BQ48)+(BR$19*BR48)+(BS$19*BS48)+(BT$19*BT48)+(BU$19*BU48)+(BV$19*BV48)+(BW$19*BW48)+(BX$19*BX48)+(BY$19*BY48)+(BZ$19*BZ48)+(CA$19*CA48)+(CB$19*CB48)+(CC$19*CC48)+(CD$19*CD48)+(CE$19*CE48)+(CF$19*CF48)) -> 32 | CI48: 7 | CJ48: 10 | CK48: 9 | CL48: 6 | CM48: 9 | CN48: 2 | CO48: 1 | DI48: =IF(OR('Set UP'!$C34=0,'Set UP'!$D34=0,'Set UP'!$E34=0),"",(CI$19*CI48)+(CJ$19*CJ48)+(CK$19*CK48)+(CL$19*CL48)+(CM$19*CM48)+(CN$19*CN48)+(CO$19*CO48)+(CP$19*CP48)+(CQ$19*CQ48)+(CR$19*CR48)+(CS$19*CS48)+(CT$19*CT48)+(CU$19*CU48)+(CV$19*CV48)+(CW$19*CW48)+(CX$19*CX48)+(CY$19*CY48)+(CZ$19*CZ48)+(DA$19*DA48)+(DB$19*DB48)+(DC$19*DC48)+(DD$19*DD48)+(DE$19*DE48)+(DF$19*DF48)+(DG$19*DG48)) -> 57.5 | DJ48: 10 | DK48: 0 | DL48: 0 | DM48: 10 | DN48: 10 | DO48: 10 | DP48: 4 | DQ48: 6 | DR48: 0 | DS48: 5 | EJ48: =IF(OR('Set UP'!$C34=0,'Set UP'!$D34=0,'Set UP'!$E34=0),"",(DJ$19*DJ48)+(DK$19*DK48)+(DL$19*DL48)+(DM$19*DM48)+(DN$19*DN48)+(DO$19*DO48)+(DP$19*DP48)+(DQ$19*DQ48)+(DR$19*DR48)+(DS$19*DS48)+(DT$19*DT48)+(DU$19*DU48)+(DV$19*DV48)+(DW$19*DW48)+(DX$19*DX48)+(DY$19*DY48)+(DZ$19*DZ48)+(EA$19*EA48)+(EB$19*EB48)+(EC$19*EC48)+(ED$19*ED48)+(EE$19*EE48)+(EF$19*EF48)+(EG$19*EG48)+(EH$19*EH48)) -> 46.5 | EK48: 9 | EL48: 6 | EM48: 6 | EN48: 6 | FK48: =IF(OR('Set UP'!$C34=0,'Set UP'!$D34=0,'Set UP'!$E34=0),"",(EK$19*EK48)+(EL$19*EL48)+(EM$19*EM48)+(EN$19*EN48)+(EO$19*EO48)+(EP$19*EP48)+(EQ$19*EQ48)+(ER$19*ER48)+(ES$19*ES48)+(ET$19*ET48)+(EU$19*EU48)+(EV$19*EV48)+(EW$19*EW48)+(EX$19*EX48)+(EY$19*EY48)+(EZ$19*EZ48)+(FA$19*FA48)+(FB$19*FB48)+(FC$19*FC48)+(FD$19*FD48)+(FE$19*FE48)+(FF$19*FF48)+(FG$19*FG48)+(FH$19*FH48)+(FI$19*FI48)) -> 54 | GL48: =IF(OR('Set UP'!$C34=0,'Set UP'!$D34=0,'Set UP'!$E34=0),"",(FL$19*FL48)+(FM$19*FM48)+(FN$19*FN48)+(FO$19*FO48)+(FP$19*FP48)+(FQ$19*FQ48)+(FR$19*FR48)+(FS$19*FS48)+(FT$19*FT48)+(FU$19*FU48)+(FV$19*FV48)+(FW$19*FW48)+(FX$19*FX48)+(FY$19*FY48)+(FZ$19*FZ48)+(GA$19*GA48)+(GB$19*GB48)+(GC$19*GC48)+(GD$19*GD48)+(GE$19*GE48)+(GF$19*GF48)+(GG$19*GG48)+(GH$19*GH48)+(GI$19*GI48)+(GJ$19*GJ48)) -> 0 | HM48: =IF(OR('Set UP'!$C34=0,'Set UP'!$D34=0,'Set UP'!$E34=0),"",(GM$19*GM48)+(GN$19*GN48)+(GO$19*GO48)+(GP$19*GP48)+(GQ$19*GQ48)+(GR$19*GR48)+(GS$19*GS48)+(GT$19*GT48)+(GU$19*GU48)+(GV$19*GV48)+(GW$19*GW48)+(GX$19*GX48)+(GY$19*GY48)+(GZ$19*GZ48)+(HA$19*HA48)+(HB$19*HB48)+(HC$19*HC48)+(HD$19*HD48)+(HE$19*HE48)+(HF$19*HF48)+(HG$19*HG48)+(HH$19*HH48)+(HI$19*HI48)+(HJ$19*HJ48)+(HK$19*HK48)) -> 0 | IN48: =IF(OR('Set UP'!$C34=0,'Set UP'!$D34=0,'Set UP'!$E34=0),"",(HN$19*HN48)+(HO$19*HO48)+(HP$19*HP48)+(HQ$19*HQ48)+(HR$19*HR48)+(HS$19*HS48)+(HT$19*HT48)+(HU$19*HU48)+(HV$19*HV48)+(HW$19*HW48)+(HX$19*HX48)+(HY$19*HY48)+(HZ$19*HZ48)+(IA$19*IA48)+(IB$19*IB48)+(IC$19*IC48)+(ID$19*ID48)+(IE$19*IE48)+(IF$19*IF48)+(IG$19*IG48)+(IH$19*IH48)+(II$19*II48)+(IJ$19*IJ48)+(IK$19*IK48)+(IL$19*IL48)) -> 0 | JO48: =IF(OR('Set UP'!$C34=0,'Set UP'!$D34=0,'Set UP'!$E34=0),"",(IO$19*IO48)+(IP$19*IP48)+(IQ$19*IQ48)+(IR$19*IR48)+(IS$19*IS48)+(IT$19*IT48)+(IU$19*IU48)+(IV$19*IV48)+(IW$19*IW48)+(IX$19*IX48)+(IY$19*IY48)+(IZ$19*IZ48)+(JA$19*JA48)+(JB$19*JB48)+(JC$19*JC48)+(JD$19*JD48)+(JE$19*JE48)+(JF$19*JF48)+(JG$19*JG48)+(JH$19*JH48)+(JI$19*JI48)+(JJ$19*JJ48)+(JK$19*JK48)+(JL$19*JL48)+(JM$19*JM48)) -> 0 | JP48: =IF(OR('Set UP'!$C34=0,'Set UP'!$D34=0,'Set UP'!$E34=0),"",(AF48+BG48+CH48+DI48+EJ48+FK48+GL48+HM48+IN48+JO48)) -> 246.5 | JQ48: =IF(OR('Set UP'!$C34=0,'Set UP'!$D34=0,'Set UP'!$E34=0),"",RANK(JP48,$JP$21:$JP$60,0)) -> 12 | JR48: =IF(OR('Set UP'!K34<>1,'Set UP'!C34=0,'Set UP'!D34=0,'Set UP'!E34=0,'Set UP'!F34=0),"",$JP48) -> 246.5 | JS48: =IF(OR('Set UP'!K34<>1,'Set UP'!C34=0,'Set UP'!D34=0,'Set UP'!E34=0,'Set UP'!F34=0),"",RANK(JR48,$JR$21:$JR$60,0)) -> 6 | JT48: =IF(OR('Set UP'!K34<>2,'Set UP'!C34=0,'Set UP'!D34=0,'Set UP'!E34=0,'Set UP'!F34=0),"",$JP48) ->  | JU48: =IF(OR('Set UP'!K34<>2,'Set UP'!C34=0,'Set UP'!D34=0,'Set UP'!E34=0,'Set UP'!F34=0),"",RANK(JT48,$JT$21:$JT$60,0)) ->  | JV48: =IF(OR('Set UP'!F34<>"F",'Set UP'!C34=0,'Set UP'!D34=0,'Set UP'!E34=0),"",$JP48) ->  | JW48: =IF(OR('Set UP'!F34<>"F",'Set UP'!C34=0,'Set UP'!D34=0,'Set UP'!E34=0),"",RANK(JV48,$JV$21:$JV$60,0)) ->  | JX48: =IF(OR('Set UP'!F34<>"NS",'Set UP'!C34=0,'Set UP'!D34=0,'Set UP'!E34=0),"",$JP48) ->  | JY48: =IF(OR('Set UP'!F34<>"NS",'Set UP'!C34=0,'Set UP'!D34=0,'Set UP'!E34=0),"",RANK(JX48,$JX$21:$JX$60,0)) ->  | JZ48: =IF(OR('Set UP'!$C34=0,'Set UP'!$D34=0,'Set UP'!$E34=0,JP48=0),"",JP48/MAX(JP$21:JP$60)*1000) -> 835.5932203
B49: 29 | C49: =IF(OR('Set UP'!$C35=0,'Set UP'!$D35=0,'Set UP'!$E35=0,'Set UP'!F35=0)," --",'Set UP'!C35) -> 1437 | D49: =IF(OR('Set UP'!$C35=0,'Set UP'!$D35=0,'Set UP'!$E35=0,'Set UP'!F35=0)," --",'Set UP'!D35&" "&'Set UP'!E35) -> Swansea Universities Lifesaving A | E49: =IF(OR('Set UP'!$C35=0,'Set UP'!$D35=0,'Set UP'!$E35=0,'Set UP'!F35=0)," --",'Set UP'!F35) -> S | F49: 0 | G49: 0 | H49: 0 | I49: 7 | J49: 3 | K49: 5 | L49: 2 | AF49: =IF(OR('Set UP'!$C35=0,'Set UP'!$D35=0,'Set UP'!$E35=0),"",(F$19*F49)+(G$19*G49)+(H$19*H49)+(I$19*I49)+(J$19*J49)+(K$19*K49)+(L$19*L49)+(M$19*M49)+(N$19*N49)+(O$19*O49)+(P$19*P49)+(Q$19*Q49)+(R$19*R49)+(S$19*S49)+(T$19*T49)+(U$19*U49)+(V$19*V49)+(W$19*W49)+(X$19*X49)+(Y$19*Y49)+(Z$19*Z49)+(AA$19*AA49)+(AB$19*AB49)+(AC$19*AC49)+(AD$19*AD49)) -> 19.5 | AG49: 5 | AH49: 2 | AI49: 2 | AJ49: 6 | AK49: 5 | AL49: 5 | AM49: 0 | AN49: 6 | BG49: =IF(OR('Set UP'!$C35=0,'Set UP'!$D35=0,'Set UP'!$E35=0),"",(AG$19*AG49)+(AH$19*AH49)+(AI$19*AI49)+(AJ$19*AJ49)+(AK$19*AK49)+(AL$19*AL49)+(AM$19*AM49)+(AN$19*AN49)+(AO$19*AO49)+(AP$19*AP49)+(AQ$19*AQ49)+(AR$19*AR49)+(AS$19*AS49)+(AT$19*AT49)+(AU$19*AU49)+(AV$19*AV49)+(AW$19*AW49)+(AX$19*AX49)+(AY$19*AY49)+(AZ$19*AZ49)+(BA$19*BA49)+(BB$19*BB49)+(BC$19*BC49)+(BD$19*BD49)+(BE$19*BE49)) -> 38 | BH49: 0 | BI49: 0 | BJ49: 0 | BK49: 0 | BL49: 8 | BM49: 6 | BN49: 0 | CH49: =IF(OR('Set UP'!$C35=0,'Set UP'!$D35=0,'Set UP'!$E35=0),"",(BH$19*BH49)+(BI$19*BI49)+(BJ$19*BJ49)+(BK$19*BK49)+(BL$19*BL49)+(BM$19*BM49)+(BN$19*BN49)+(BO$19*BO49)+(BP$19*BP49)+(BQ$19*BQ49)+(BR$19*BR49)+(BS$19*BS49)+(BT$19*BT49)+(BU$19*BU49)+(BV$19*BV49)+(BW$19*BW49)+(BX$19*BX49)+(BY$19*BY49)+(BZ$19*BZ49)+(CA$19*CA49)+(CB$19*CB49)+(CC$19*CC49)+(CD$19*CD49)+(CE$19*CE49)+(CF$19*CF49)) -> 17 | CI49: 3 | CJ49: 8 | CK49: 6 | CL49: 5 | CM49: 7 | CN49: 5 | CO49: 4 | DI49: =IF(OR('Set UP'!$C35=0,'Set UP'!$D35=0,'Set UP'!$E35=0),"",(CI$19*CI49)+(CJ$19*CJ49)+(CK$19*CK49)+(CL$19*CL49)+(CM$19*CM49)+(CN$19*CN49)+(CO$19*CO49)+(CP$19*CP49)+(CQ$19*CQ49)+(CR$19*CR49)+(CS$19*CS49)+(CT$19*CT49)+(CU$19*CU49)+(CV$19*CV49)+(CW$19*CW49)+(CX$19*CX49)+(CY$19*CY49)+(CZ$19*CZ49)+(DA$19*DA49)+(DB$19*DB49)+(DC$19*DC49)+(DD$19*DD49)+(DE$19*DE49)+(DF$19*DF49)+(DG$19*DG49)) -> 47.5 | DJ49: 10 | DK49: 0 | DL49: 0 | DM49: 10 | DN49: 5 | DO49: 2 | DP49: 0 | DQ49: 0 | DR49: 10 | DS49: 0 | EJ49: =IF(OR('Set UP'!$C35=0,'Set UP'!$D35=0,'Set UP'!$E35=0),"",(DJ$19*DJ49)+(DK$19*DK49)+(DL$19*DL49)+(DM$19*DM49)+(DN$19*DN49)+(DO$19*DO49)+(DP$19*DP49)+(DQ$19*DQ49)+(DR$19*DR49)+(DS$19*DS49)+(DT$19*DT49)+(DU$19*DU49)+(DV$19*DV49)+(DW$19*DW49)+(DX$19*DX49)+(DY$19*DY49)+(DZ$19*DZ49)+(EA$19*EA49)+(EB$19*EB49)+(EC$19*EC49)+(ED$19*ED49)+(EE$19*EE49)+(EF$19*EF49)+(EG$19*EG49)+(EH$19*EH49)) -> 34.5 | EK49: 2 | EL49: 1 | EM49: 0 | EN49: 2 | FK49: =IF(OR('Set UP'!$C35=0,'Set UP'!$D35=0,'Set UP'!$E35=0),"",(EK$19*EK49)+(EL$19*EL49)+(EM$19*EM49)+(EN$19*EN49)+(EO$19*EO49)+(EP$19*EP49)+(EQ$19*EQ49)+(ER$19*ER49)+(ES$19*ES49)+(ET$19*ET49)+(EU$19*EU49)+(EV$19*EV49)+(EW$19*EW49)+(EX$19*EX49)+(EY$19*EY49)+(EZ$19*EZ49)+(FA$19*FA49)+(FB$19*FB49)+(FC$19*FC49)+(FD$19*FD49)+(FE$19*FE49)+(FF$19*FF49)+(FG$19*FG49)+(FH$19*FH49)+(FI$19*FI49)) -> 10.5 | GL49: =IF(OR('Set UP'!$C35=0,'Set UP'!$D35=0,'Set UP'!$E35=0),"",(FL$19*FL49)+(FM$19*FM49)+(FN$19*FN49)+(FO$19*FO49)+(FP$19*FP49)+(FQ$19*FQ49)+(FR$19*FR49)+(FS$19*FS49)+(FT$19*FT49)+(FU$19*FU49)+(FV$19*FV49)+(FW$19*FW49)+(FX$19*FX49)+(FY$19*FY49)+(FZ$19*FZ49)+(GA$19*GA49)+(GB$19*GB49)+(GC$19*GC49)+(GD$19*GD49)+(GE$19*GE49)+(GF$19*GF49)+(GG$19*GG49)+(GH$19*GH49)+(GI$19*GI49)+(GJ$19*GJ49)) -> 0 | HM49: =IF(OR('Set UP'!$C35=0,'Set UP'!$D35=0,'Set UP'!$E35=0),"",(GM$19*GM49)+(GN$19*GN49)+(GO$19*GO49)+(GP$19*GP49)+(GQ$19*GQ49)+(GR$19*GR49)+(GS$19*GS49)+(GT$19*GT49)+(GU$19*GU49)+(GV$19*GV49)+(GW$19*GW49)+(GX$19*GX49)+(GY$19*GY49)+(GZ$19*GZ49)+(HA$19*HA49)+(HB$19*HB49)+(HC$19*HC49)+(HD$19*HD49)+(HE$19*HE49)+(HF$19*HF49)+(HG$19*HG49)+(HH$19*HH49)+(HI$19*HI49)+(HJ$19*HJ49)+(HK$19*HK49)) -> 0 | IN49: =IF(OR('Set UP'!$C35=0,'Set UP'!$D35=0,'Set UP'!$E35=0),"",(HN$19*HN49)+(HO$19*HO49)+(HP$19*HP49)+(HQ$19*HQ49)+(HR$19*HR49)+(HS$19*HS49)+(HT$19*HT49)+(HU$19*HU49)+(HV$19*HV49)+(HW$19*HW49)+(HX$19*HX49)+(HY$19*HY49)+(HZ$19*HZ49)+(IA$19*IA49)+(IB$19*IB49)+(IC$19*IC49)+(ID$19*ID49)+(IE$19*IE49)+(IF$19*IF49)+(IG$19*IG49)+(IH$19*IH49)+(II$19*II49)+(IJ$19*IJ49)+(IK$19*IK49)+(IL$19*IL49)) -> 0 | JO49: =IF(OR('Set UP'!$C35=0,'Set UP'!$D35=0,'Set UP'!$E35=0),"",(IO$19*IO49)+(IP$19*IP49)+(IQ$19*IQ49)+(IR$19*IR49)+(IS$19*IS49)+(IT$19*IT49)+(IU$19*IU49)+(IV$19*IV49)+(IW$19*IW49)+(IX$19*IX49)+(IY$19*IY49)+(IZ$19*IZ49)+(JA$19*JA49)+(JB$19*JB49)+(JC$19*JC49)+(JD$19*JD49)+(JE$19*JE49)+(JF$19*JF49)+(JG$19*JG49)+(JH$19*JH49)+(JI$19*JI49)+(JJ$19*JJ49)+(JK$19*JK49)+(JL$19*JL49)+(JM$19*JM49)) -> 0 | JP49: =IF(OR('Set UP'!$C35=0,'Set UP'!$D35=0,'Set UP'!$E35=0),"",(AF49+BG49+CH49+DI49+EJ49+FK49+GL49+HM49+IN49+JO49)) -> 167 | JQ49: =IF(OR('Set UP'!$C35=0,'Set UP'!$D35=0,'Set UP'!$E35=0),"",RANK(JP49,$JP$21:$JP$60,0)) -> 24 | JR49: =IF(OR('Set UP'!K35<>1,'Set UP'!C35=0,'Set UP'!D35=0,'Set UP'!E35=0,'Set UP'!F35=0),"",$JP49) -> 167 | JS49: =IF(OR('Set UP'!K35<>1,'Set UP'!C35=0,'Set UP'!D35=0,'Set UP'!E35=0,'Set UP'!F35=0),"",RANK(JR49,$JR$21:$JR$60,0)) -> 9 | JT49: =IF(OR('Set UP'!K35<>2,'Set UP'!C35=0,'Set UP'!D35=0,'Set UP'!E35=0,'Set UP'!F35=0),"",$JP49) ->  | JU49: =IF(OR('Set UP'!K35<>2,'Set UP'!C35=0,'Set UP'!D35=0,'Set UP'!E35=0,'Set UP'!F35=0),"",RANK(JT49,$JT$21:$JT$60,0)) ->  | JV49: =IF(OR('Set UP'!F35<>"F",'Set UP'!C35=0,'Set UP'!D35=0,'Set UP'!E35=0),"",$JP49) ->  | JW49: =IF(OR('Set UP'!F35<>"F",'Set UP'!C35=0,'Set UP'!D35=0,'Set UP'!E35=0),"",RANK(JV49,$JV$21:$JV$60,0)) ->  | JX49: =IF(OR('Set UP'!F35<>"NS",'Set UP'!C35=0,'Set UP'!D35=0,'Set UP'!E35=0),"",$JP49) ->  | JY49: =IF(OR('Set UP'!F35<>"NS",'Set UP'!C35=0,'Set UP'!D35=0,'Set UP'!E35=0),"",RANK(JX49,$JX$21:$JX$60,0)) ->  | JZ49: =IF(OR('Set UP'!$C35=0,'Set UP'!$D35=0,'Set UP'!$E35=0,JP49=0),"",JP49/MAX(JP$21:JP$60)*1000) -> 566.1016949
B50: 30 | C50: =IF(OR('Set UP'!$C36=0,'Set UP'!$D36=0,'Set UP'!$E36=0,'Set UP'!F36=0)," --",'Set UP'!C36) -> 1425 | D50: =IF(OR('Set UP'!$C36=0,'Set UP'!$D36=0,'Set UP'!$E36=0,'Set UP'!F36=0)," --",'Set UP'!D36&" "&'Set UP'!E36) -> London Universities A | E50: =IF(OR('Set UP'!$C36=0,'Set UP'!$D36=0,'Set UP'!$E36=0,'Set UP'!F36=0)," --",'Set UP'!F36) -> S | F50: 6 | G50: 5 | H50: 0 | I50: 0 | J50: 0 | K50: 0 | L50: 0 | AF50: =IF(OR('Set UP'!$C36=0,'Set UP'!$D36=0,'Set UP'!$E36=0),"",(F$19*F50)+(G$19*G50)+(H$19*H50)+(I$19*I50)+(J$19*J50)+(K$19*K50)+(L$19*L50)+(M$19*M50)+(N$19*N50)+(O$19*O50)+(P$19*P50)+(Q$19*Q50)+(R$19*R50)+(S$19*S50)+(T$19*T50)+(U$19*U50)+(V$19*V50)+(W$19*W50)+(X$19*X50)+(Y$19*Y50)+(Z$19*Z50)+(AA$19*AA50)+(AB$19*AB50)+(AC$19*AC50)+(AD$19*AD50)) -> 13.5 | AG50: 5 | AH50: 6 | AI50: 8 | AJ50: 8 | AK50: 9 | AL50: 8 | AM50: 8 | AN50: 8 | BG50: =IF(OR('Set UP'!$C36=0,'Set UP'!$D36=0,'Set UP'!$E36=0),"",(AG$19*AG50)+(AH$19*AH50)+(AI$19*AI50)+(AJ$19*AJ50)+(AK$19*AK50)+(AL$19*AL50)+(AM$19*AM50)+(AN$19*AN50)+(AO$19*AO50)+(AP$19*AP50)+(AQ$19*AQ50)+(AR$19*AR50)+(AS$19*AS50)+(AT$19*AT50)+(AU$19*AU50)+(AV$19*AV50)+(AW$19*AW50)+(AX$19*AX50)+(AY$19*AY50)+(AZ$19*AZ50)+(BA$19*BA50)+(BB$19*BB50)+(BC$19*BC50)+(BD$19*BD50)+(BE$19*BE50)) -> 69 | BH50: 8 | BI50: 2 | BJ50: 10 | BK50: 0 | BL50: 9 | BM50: 7 | BN50: 0 | CH50: =IF(OR('Set UP'!$C36=0,'Set UP'!$D36=0,'Set UP'!$E36=0),"",(BH$19*BH50)+(BI$19*BI50)+(BJ$19*BJ50)+(BK$19*BK50)+(BL$19*BL50)+(BM$19*BM50)+(BN$19*BN50)+(BO$19*BO50)+(BP$19*BP50)+(BQ$19*BQ50)+(BR$19*BR50)+(BS$19*BS50)+(BT$19*BT50)+(BU$19*BU50)+(BV$19*BV50)+(BW$19*BW50)+(BX$19*BX50)+(BY$19*BY50)+(BZ$19*BZ50)+(CA$19*CA50)+(CB$19*CB50)+(CC$19*CC50)+(CD$19*CD50)+(CE$19*CE50)+(CF$19*CF50)) -> 40.5 | CI50: 8 | CJ50: 9 | CK50: 6 | CL50: 5 | CM50: 6 | CN50: 2 | CO50: 4 | DI50: =IF(OR('Set UP'!$C36=0,'Set UP'!$D36=0,'Set UP'!$E36=0),"",(CI$19*CI50)+(CJ$19*CJ50)+(CK$19*CK50)+(CL$19*CL50)+(CM$19*CM50)+(CN$19*CN50)+(CO$19*CO50)+(CP$19*CP50)+(CQ$19*CQ50)+(CR$19*CR50)+(CS$19*CS50)+(CT$19*CT50)+(CU$19*CU50)+(CV$19*CV50)+(CW$19*CW50)+(CX$19*CX50)+(CY$19*CY50)+(CZ$19*CZ50)+(DA$19*DA50)+(DB$19*DB50)+(DC$19*DC50)+(DD$19*DD50)+(DE$19*DE50)+(DF$19*DF50)+(DG$19*DG50)) -> 53 | DJ50: 10 | DK50: 0 | DL50: 0 | DM50: 10 | DN50: 10 | DO50: 10 | DP50: 4 | DQ50: 5 | DR50: 10 | DS50: 0 | EJ50: =IF(OR('Set UP'!$C36=0,'Set UP'!$D36=0,'Set UP'!$E36=0),"",(DJ$19*DJ50)+(DK$19*DK50)+(DL$19*DL50)+(DM$19*DM50)+(DN$19*DN50)+(DO$19*DO50)+(DP$19*DP50)+(DQ$19*DQ50)+(DR$19*DR50)+(DS$19*DS50)+(DT$19*DT50)+(DU$19*DU50)+(DV$19*DV50)+(DW$19*DW50)+(DX$19*DX50)+(DY$19*DY50)+(DZ$19*DZ50)+(EA$19*EA50)+(EB$19*EB50)+(EC$19*EC50)+(ED$19*ED50)+(EE$19*EE50)+(EF$19*EF50)+(EG$19*EG50)+(EH$19*EH50)) -> 54.5 | EK50: 9 | EL50: 8 | EM50: 7 | EN50: 7 | FK50: =IF(OR('Set UP'!$C36=0,'Set UP'!$D36=0,'Set UP'!$E36=0),"",(EK$19*EK50)+(EL$19*EL50)+(EM$19*EM50)+(EN$19*EN50)+(EO$19*EO50)+(EP$19*EP50)+(EQ$19*EQ50)+(ER$19*ER50)+(ES$19*ES50)+(ET$19*ET50)+(EU$19*EU50)+(EV$19*EV50)+(EW$19*EW50)+(EX$19*EX50)+(EY$19*EY50)+(EZ$19*EZ50)+(FA$19*FA50)+(FB$19*FB50)+(FC$19*FC50)+(FD$19*FD50)+(FE$19*FE50)+(FF$19*FF50)+(FG$19*FG50)+(FH$19*FH50)+(FI$19*FI50)) -> 60 | GL50: =IF(OR('Set UP'!$C36=0,'Set UP'!$D36=0,'Set UP'!$E36=0),"",(FL$19*FL50)+(FM$19*FM50)+(FN$19*FN50)+(FO$19*FO50)+(FP$19*FP50)+(FQ$19*FQ50)+(FR$19*FR50)+(FS$19*FS50)+(FT$19*FT50)+(FU$19*FU50)+(FV$19*FV50)+(FW$19*FW50)+(FX$19*FX50)+(FY$19*FY50)+(FZ$19*FZ50)+(GA$19*GA50)+(GB$19*GB50)+(GC$19*GC50)+(GD$19*GD50)+(GE$19*GE50)+(GF$19*GF50)+(GG$19*GG50)+(GH$19*GH50)+(GI$19*GI50)+(GJ$19*GJ50)) -> 0 | HM50: =IF(OR('Set UP'!$C36=0,'Set UP'!$D36=0,'Set UP'!$E36=0),"",(GM$19*GM50)+(GN$19*GN50)+(GO$19*GO50)+(GP$19*GP50)+(GQ$19*GQ50)+(GR$19*GR50)+(GS$19*GS50)+(GT$19*GT50)+(GU$19*GU50)+(GV$19*GV50)+(GW$19*GW50)+(GX$19*GX50)+(GY$19*GY50)+(GZ$19*GZ50)+(HA$19*HA50)+(HB$19*HB50)+(HC$19*HC50)+(HD$19*HD50)+(HE$19*HE50)+(HF$19*HF50)+(HG$19*HG50)+(HH$19*HH50)+(HI$19*HI50)+(HJ$19*HJ50)+(HK$19*HK50)) -> 0 | IN50: =IF(OR('Set UP'!$C36=0,'Set UP'!$D36=0,'Set UP'!$E36=0),"",(HN$19*HN50)+(HO$19*HO50)+(HP$19*HP50)+(HQ$19*HQ50)+(HR$19*HR50)+(HS$19*HS50)+(HT$19*HT50)+(HU$19*HU50)+(HV$19*HV50)+(HW$19*HW50)+(HX$19*HX50)+(HY$19*HY50)+(HZ$19*HZ50)+(IA$19*IA50)+(IB$19*IB50)+(IC$19*IC50)+(ID$19*ID50)+(IE$19*IE50)+(IF$19*IF50)+(IG$19*IG50)+(IH$19*IH50)+(II$19*II50)+(IJ$19*IJ50)+(IK$19*IK50)+(IL$19*IL50)) -> 0 | JO50: =IF(OR('Set UP'!$C36=0,'Set UP'!$D36=0,'Set UP'!$E36=0),"",(IO$19*IO50)+(IP$19*IP50)+(IQ$19*IQ50)+(IR$19*IR50)+(IS$19*IS50)+(IT$19*IT50)+(IU$19*IU50)+(IV$19*IV50)+(IW$19*IW50)+(IX$19*IX50)+(IY$19*IY50)+(IZ$19*IZ50)+(JA$19*JA50)+(JB$19*JB50)+(JC$19*JC50)+(JD$19*JD50)+(JE$19*JE50)+(JF$19*JF50)+(JG$19*JG50)+(JH$19*JH50)+(JI$19*JI50)+(JJ$19*JJ50)+(JK$19*JK50)+(JL$19*JL50)+(JM$19*JM50)) -> 0 | JP50: =IF(OR('Set UP'!$C36=0,'Set UP'!$D36=0,'Set UP'!$E36=0),"",(AF50+BG50+CH50+DI50+EJ50+FK50+GL50+HM50+IN50+JO50)) -> 290.5 | JQ50: =IF(OR('Set UP'!$C36=0,'Set UP'!$D36=0,'Set UP'!$E36=0),"",RANK(JP50,$JP$21:$JP$60,0)) -> 2 | JR50: =IF(OR('Set UP'!K36<>1,'Set UP'!C36=0,'Set UP'!D36=0,'Set UP'!E36=0,'Set UP'!F36=0),"",$JP50) -> 290.5 | JS50: =IF(OR('Set UP'!K36<>1,'Set UP'!C36=0,'Set UP'!D36=0,'Set UP'!E36=0,'Set UP'!F36=0),"",RANK(JR50,$JR$21:$JR$60,0)) -> 2 | JT50: =IF(OR('Set UP'!K36<>2,'Set UP'!C36=0,'Set UP'!D36=0,'Set UP'!E36=0,'Set UP'!F36=0),"",$JP50) ->  | JU50: =IF(OR('Set UP'!K36<>2,'Set UP'!C36=0,'Set UP'!D36=0,'Set UP'!E36=0,'Set UP'!F36=0),"",RANK(JT50,$JT$21:$JT$60,0)) ->  | JV50: =IF(OR('Set UP'!F36<>"F",'Set UP'!C36=0,'Set UP'!D36=0,'Set UP'!E36=0),"",$JP50) ->  | JW50: =IF(OR('Set UP'!F36<>"F",'Set UP'!C36=0,'Set UP'!D36=0,'Set UP'!E36=0),"",RANK(JV50,$JV$21:$JV$60,0)) ->  | JX50: =IF(OR('Set UP'!F36<>"NS",'Set UP'!C36=0,'Set UP'!D36=0,'Set UP'!E36=0),"",$JP50) ->  | JY50: =IF(OR('Set UP'!F36<>"NS",'Set UP'!C36=0,'Set UP'!D36=0,'Set UP'!E36=0),"",RANK(JX50,$JX$21:$JX$60,0)) ->  | JZ50: =IF(OR('Set UP'!$C36=0,'Set UP'!$D36=0,'Set UP'!$E36=0,JP50=0),"",JP50/MAX(JP$21:JP$60)*1000) -> 984.7457627
B51: 31 | C51: =IF(OR('Set UP'!$C37=0,'Set UP'!$D37=0,'Set UP'!$E37=0,'Set UP'!F37=0)," --",'Set UP'!C37) -> -- | D51: =IF(OR('Set UP'!$C37=0,'Set UP'!$D37=0,'Set UP'!$E37=0,'Set UP'!F37=0)," --",'Set UP'!D37&" "&'Set UP'!E37) -> -- | E51: =IF(OR('Set UP'!$C37=0,'Set UP'!$D37=0,'Set UP'!$E37=0,'Set UP'!F37=0)," --",'Set UP'!F37) -> -- | AF51: =IF(OR('Set UP'!$C37=0,'Set UP'!$D37=0,'Set UP'!$E37=0),"",(F$19*F51)+(G$19*G51)+(H$19*H51)+(I$19*I51)+(J$19*J51)+(K$19*K51)+(L$19*L51)+(M$19*M51)+(N$19*N51)+(O$19*O51)+(P$19*P51)+(Q$19*Q51)+(R$19*R51)+(S$19*S51)+(T$19*T51)+(U$19*U51)+(V$19*V51)+(W$19*W51)+(X$19*X51)+(Y$19*Y51)+(Z$19*Z51)+(AA$19*AA51)+(AB$19*AB51)+(AC$19*AC51)+(AD$19*AD51)) ->  | BG51: =IF(OR('Set UP'!$C37=0,'Set UP'!$D37=0,'Set UP'!$E37=0),"",(AG$19*AG51)+(AH$19*AH51)+(AI$19*AI51)+(AJ$19*AJ51)+(AK$19*AK51)+(AL$19*AL51)+(AM$19*AM51)+(AN$19*AN51)+(AO$19*AO51)+(AP$19*AP51)+(AQ$19*AQ51)+(AR$19*AR51)+(AS$19*AS51)+(AT$19*AT51)+(AU$19*AU51)+(AV$19*AV51)+(AW$19*AW51)+(AX$19*AX51)+(AY$19*AY51)+(AZ$19*AZ51)+(BA$19*BA51)+(BB$19*BB51)+(BC$19*BC51)+(BD$19*BD51)+(BE$19*BE51)) ->  | CH51: =IF(OR('Set UP'!$C37=0,'Set UP'!$D37=0,'Set UP'!$E37=0),"",(BH$19*BH51)+(BI$19*BI51)+(BJ$19*BJ51)+(BK$19*BK51)+(BL$19*BL51)+(BM$19*BM51)+(BN$19*BN51)+(BO$19*BO51)+(BP$19*BP51)+(BQ$19*BQ51)+(BR$19*BR51)+(BS$19*BS51)+(BT$19*BT51)+(BU$19*BU51)+(BV$19*BV51)+(BW$19*BW51)+(BX$19*BX51)+(BY$19*BY51)+(BZ$19*BZ51)+(CA$19*CA51)+(CB$19*CB51)+(CC$19*CC51)+(CD$19*CD51)+(CE$19*CE51)+(CF$19*CF51)) ->  | DI51: =IF(OR('Set UP'!$C37=0,'Set UP'!$D37=0,'Set UP'!$E37=0),"",(CI$19*CI51)+(CJ$19*CJ51)+(CK$19*CK51)+(CL$19*CL51)+(CM$19*CM51)+(CN$19*CN51)+(CO$19*CO51)+(CP$19*CP51)+(CQ$19*CQ51)+(CR$19*CR51)+(CS$19*CS51)+(CT$19*CT51)+(CU$19*CU51)+(CV$19*CV51)+(CW$19*CW51)+(CX$19*CX51)+(CY$19*CY51)+(CZ$19*CZ51)+(DA$19*DA51)+(DB$19*DB51)+(DC$19*DC51)+(DD$19*DD51)+(DE$19*DE51)+(DF$19*DF51)+(DG$19*DG51)) ->  | EJ51: =IF(OR('Set UP'!$C37=0,'Set UP'!$D37=0,'Set UP'!$E37=0),"",(DJ$19*DJ51)+(DK$19*DK51)+(DL$19*DL51)+(DM$19*DM51)+(DN$19*DN51)+(DO$19*DO51)+(DP$19*DP51)+(DQ$19*DQ51)+(DR$19*DR51)+(DS$19*DS51)+(DT$19*DT51)+(DU$19*DU51)+(DV$19*DV51)+(DW$19*DW51)+(DX$19*DX51)+(DY$19*DY51)+(DZ$19*DZ51)+(EA$19*EA51)+(EB$19*EB51)+(EC$19*EC51)+(ED$19*ED51)+(EE$19*EE51)+(EF$19*EF51)+(EG$19*EG51)+(EH$19*EH51)) ->  | FK51: =IF(OR('Set UP'!$C37=0,'Set UP'!$D37=0,'Set UP'!$E37=0),"",(EK$19*EK51)+(EL$19*EL51)+(EM$19*EM51)+(EN$19*EN51)+(EO$19*EO51)+(EP$19*EP51)+(EQ$19*EQ51)+(ER$19*ER51)+(ES$19*ES51)+(ET$19*ET51)+(EU$19*EU51)+(EV$19*EV51)+(EW$19*EW51)+(EX$19*EX51)+(EY$19*EY51)+(EZ$19*EZ51)+(FA$19*FA51)+(FB$19*FB51)+(FC$19*FC51)+(FD$19*FD51)+(FE$19*FE51)+(FF$19*FF51)+(FG$19*FG51)+(FH$19*FH51)+(FI$19*FI51)) ->  | GL51: =IF(OR('Set UP'!$C37=0,'Set UP'!$D37=0,'Set UP'!$E37=0),"",(FL$19*FL51)+(FM$19*FM51)+(FN$19*FN51)+(FO$19*FO51)+(FP$19*FP51)+(FQ$19*FQ51)+(FR$19*FR51)+(FS$19*FS51)+(FT$19*FT51)+(FU$19*FU51)+(FV$19*FV51)+(FW$19*FW51)+(FX$19*FX51)+(FY$19*FY51)+(FZ$19*FZ51)+(GA$19*GA51)+(GB$19*GB51)+(GC$19*GC51)+(GD$19*GD51)+(GE$19*GE51)+(GF$19*GF51)+(GG$19*GG51)+(GH$19*GH51)+(GI$19*GI51)+(GJ$19*GJ51)) ->  | HM51: =IF(OR('Set UP'!$C37=0,'Set UP'!$D37=0,'Set UP'!$E37=0),"",(GM$19*GM51)+(GN$19*GN51)+(GO$19*GO51)+(GP$19*GP51)+(GQ$19*GQ51)+(GR$19*GR51)+(GS$19*GS51)+(GT$19*GT51)+(GU$19*GU51)+(GV$19*GV51)+(GW$19*GW51)+(GX$19*GX51)+(GY$19*GY51)+(GZ$19*GZ51)+(HA$19*HA51)+(HB$19*HB51)+(HC$19*HC51)+(HD$19*HD51)+(HE$19*HE51)+(HF$19*HF51)+(HG$19*HG51)+(HH$19*HH51)+(HI$19*HI51)+(HJ$19*HJ51)+(HK$19*HK51)) ->  | IN51: =IF(OR('Set UP'!$C37=0,'Set UP'!$D37=0,'Set UP'!$E37=0),"",(HN$19*HN51)+(HO$19*HO51)+(HP$19*HP51)+(HQ$19*HQ51)+(HR$19*HR51)+(HS$19*HS51)+(HT$19*HT51)+(HU$19*HU51)+(HV$19*HV51)+(HW$19*HW51)+(HX$19*HX51)+(HY$19*HY51)+(HZ$19*HZ51)+(IA$19*IA51)+(IB$19*IB51)+(IC$19*IC51)+(ID$19*ID51)+(IE$19*IE51)+(IF$19*IF51)+(IG$19*IG51)+(IH$19*IH51)+(II$19*II51)+(IJ$19*IJ51)+(IK$19*IK51)+(IL$19*IL51)) ->  | JO51: =IF(OR('Set UP'!$C37=0,'Set UP'!$D37=0,'Set UP'!$E37=0),"",(IO$19*IO51)+(IP$19*IP51)+(IQ$19*IQ51)+(IR$19*IR51)+(IS$19*IS51)+(IT$19*IT51)+(IU$19*IU51)+(IV$19*IV51)+(IW$19*IW51)+(IX$19*IX51)+(IY$19*IY51)+(IZ$19*IZ51)+(JA$19*JA51)+(JB$19*JB51)+(JC$19*JC51)+(JD$19*JD51)+(JE$19*JE51)+(JF$19*JF51)+(JG$19*JG51)+(JH$19*JH51)+(JI$19*JI51)+(JJ$19*JJ51)+(JK$19*JK51)+(JL$19*JL51)+(JM$19*JM51)) ->  | JP51: =IF(OR('Set UP'!$C37=0,'Set UP'!$D37=0,'Set UP'!$E37=0),"",(AF51+BG51+CH51+DI51+EJ51+FK51+GL51+HM51+IN51+JO51)) ->  | JQ51: =IF(OR('Set UP'!$C37=0,'Set UP'!$D37=0,'Set UP'!$E37=0),"",RANK(JP51,$JP$21:$JP$60,0)) ->  | JR51: =IF(OR('Set UP'!K37<>1,'Set UP'!C37=0,'Set UP'!D37=0,'Set UP'!E37=0,'Set UP'!F37=0),"",$JP51) ->  | JS51: =IF(OR('Set UP'!K37<>1,'Set UP'!C37=0,'Set UP'!D37=0,'Set UP'!E37=0,'Set UP'!F37=0),"",RANK(JR51,$JR$21:$JR$60,0)) ->  | JT51: =IF(OR('Set UP'!K37<>2,'Set UP'!C37=0,'Set UP'!D37=0,'Set UP'!E37=0,'Set UP'!F37=0),"",$JP51) ->  | JU51: =IF(OR('Set UP'!K37<>2,'Set UP'!C37=0,'Set UP'!D37=0,'Set UP'!E37=0,'Set UP'!F37=0),"",RANK(JT51,$JT$21:$JT$60,0)) ->  | JV51: =IF(OR('Set UP'!F37<>"F",'Set UP'!C37=0,'Set UP'!D37=0,'Set UP'!E37=0),"",$JP51) ->  | JW51: =IF(OR('Set UP'!F37<>"F",'Set UP'!C37=0,'Set UP'!D37=0,'Set UP'!E37=0),"",RANK(JV51,$JV$21:$JV$60,0)) ->  | JX51: =IF(OR('Set UP'!F37<>"NS",'Set UP'!C37=0,'Set UP'!D37=0,'Set UP'!E37=0),"",$JP51) ->  | JY51: =IF(OR('Set UP'!F37<>"NS",'Set UP'!C37=0,'Set UP'!D37=0,'Set UP'!E37=0),"",RANK(JX51,$JX$21:$JX$60,0)) ->  | JZ51: =IF(OR('Set UP'!$C37=0,'Set UP'!$D37=0,'Set UP'!$E37=0,JP51=0),"",JP51/MAX(JP$21:JP$60)*1000) -> 
B52: 32 | C52: =IF(OR('Set UP'!$C38=0,'Set UP'!$D38=0,'Set UP'!$E38=0,'Set UP'!F38=0)," --",'Set UP'!C38) -> -- | D52: =IF(OR('Set UP'!$C38=0,'Set UP'!$D38=0,'Set UP'!$E38=0,'Set UP'!F38=0)," --",'Set UP'!D38&" "&'Set UP'!E38) -> -- | E52: =IF(OR('Set UP'!$C38=0,'Set UP'!$D38=0,'Set UP'!$E38=0,'Set UP'!F38=0)," --",'Set UP'!F38) -> -- | AF52: =IF(OR('Set UP'!$C38=0,'Set UP'!$D38=0,'Set UP'!$E38=0),"",(F$19*F52)+(G$19*G52)+(H$19*H52)+(I$19*I52)+(J$19*J52)+(K$19*K52)+(L$19*L52)+(M$19*M52)+(N$19*N52)+(O$19*O52)+(P$19*P52)+(Q$19*Q52)+(R$19*R52)+(S$19*S52)+(T$19*T52)+(U$19*U52)+(V$19*V52)+(W$19*W52)+(X$19*X52)+(Y$19*Y52)+(Z$19*Z52)+(AA$19*AA52)+(AB$19*AB52)+(AC$19*AC52)+(AD$19*AD52)) ->  | BG52: =IF(OR('Set UP'!$C38=0,'Set UP'!$D38=0,'Set UP'!$E38=0),"",(AG$19*AG52)+(AH$19*AH52)+(AI$19*AI52)+(AJ$19*AJ52)+(AK$19*AK52)+(AL$19*AL52)+(AM$19*AM52)+(AN$19*AN52)+(AO$19*AO52)+(AP$19*AP52)+(AQ$19*AQ52)+(AR$19*AR52)+(AS$19*AS52)+(AT$19*AT52)+(AU$19*AU52)+(AV$19*AV52)+(AW$19*AW52)+(AX$19*AX52)+(AY$19*AY52)+(AZ$19*AZ52)+(BA$19*BA52)+(BB$19*BB52)+(BC$19*BC52)+(BD$19*BD52)+(BE$19*BE52)) ->  | CH52: =IF(OR('Set UP'!$C38=0,'Set UP'!$D38=0,'Set UP'!$E38=0),"",(BH$19*BH52)+(BI$19*BI52)+(BJ$19*BJ52)+(BK$19*BK52)+(BL$19*BL52)+(BM$19*BM52)+(BN$19*BN52)+(BO$19*BO52)+(BP$19*BP52)+(BQ$19*BQ52)+(BR$19*BR52)+(BS$19*BS52)+(BT$19*BT52)+(BU$19*BU52)+(BV$19*BV52)+(BW$19*BW52)+(BX$19*BX52)+(BY$19*BY52)+(BZ$19*BZ52)+(CA$19*CA52)+(CB$19*CB52)+(CC$19*CC52)+(CD$19*CD52)+(CE$19*CE52)+(CF$19*CF52)) ->  | DI52: =IF(OR('Set UP'!$C38=0,'Set UP'!$D38=0,'Set UP'!$E38=0),"",(CI$19*CI52)+(CJ$19*CJ52)+(CK$19*CK52)+(CL$19*CL52)+(CM$19*CM52)+(CN$19*CN52)+(CO$19*CO52)+(CP$19*CP52)+(CQ$19*CQ52)+(CR$19*CR52)+(CS$19*CS52)+(CT$19*CT52)+(CU$19*CU52)+(CV$19*CV52)+(CW$19*CW52)+(CX$19*CX52)+(CY$19*CY52)+(CZ$19*CZ52)+(DA$19*DA52)+(DB$19*DB52)+(DC$19*DC52)+(DD$19*DD52)+(DE$19*DE52)+(DF$19*DF52)+(DG$19*DG52)) ->  | EJ52: =IF(OR('Set UP'!$C38=0,'Set UP'!$D38=0,'Set UP'!$E38=0),"",(DJ$19*DJ52)+(DK$19*DK52)+(DL$19*DL52)+(DM$19*DM52)+(DN$19*DN52)+(DO$19*DO52)+(DP$19*DP52)+(DQ$19*DQ52)+(DR$19*DR52)+(DS$19*DS52)+(DT$19*DT52)+(DU$19*DU52)+(DV$19*DV52)+(DW$19*DW52)+(DX$19*DX52)+(DY$19*DY52)+(DZ$19*DZ52)+(EA$19*EA52)+(EB$19*EB52)+(EC$19*EC52)+(ED$19*ED52)+(EE$19*EE52)+(EF$19*EF52)+(EG$19*EG52)+(EH$19*EH52)) ->  | FK52: =IF(OR('Set UP'!$C38=0,'Set UP'!$D38=0,'Set UP'!$E38=0),"",(EK$19*EK52)+(EL$19*EL52)+(EM$19*EM52)+(EN$19*EN52)+(EO$19*EO52)+(EP$19*EP52)+(EQ$19*EQ52)+(ER$19*ER52)+(ES$19*ES52)+(ET$19*ET52)+(EU$19*EU52)+(EV$19*EV52)+(EW$19*EW52)+(EX$19*EX52)+(EY$19*EY52)+(EZ$19*EZ52)+(FA$19*FA52)+(FB$19*FB52)+(FC$19*FC52)+(FD$19*FD52)+(FE$19*FE52)+(FF$19*FF52)+(FG$19*FG52)+(FH$19*FH52)+(FI$19*FI52)) ->  | GL52: =IF(OR('Set UP'!$C38=0,'Set UP'!$D38=0,'Set UP'!$E38=0),"",(FL$19*FL52)+(FM$19*FM52)+(FN$19*FN52)+(FO$19*FO52)+(FP$19*FP52)+(FQ$19*FQ52)+(FR$19*FR52)+(FS$19*FS52)+(FT$19*FT52)+(FU$19*FU52)+(FV$19*FV52)+(FW$19*FW52)+(FX$19*FX52)+(FY$19*FY52)+(FZ$19*FZ52)+(GA$19*GA52)+(GB$19*GB52)+(GC$19*GC52)+(GD$19*GD52)+(GE$19*GE52)+(GF$19*GF52)+(GG$19*GG52)+(GH$19*GH52)+(GI$19*GI52)+(GJ$19*GJ52)) ->  | HM52: =IF(OR('Set UP'!$C38=0,'Set UP'!$D38=0,'Set UP'!$E38=0),"",(GM$19*GM52)+(GN$19*GN52)+(GO$19*GO52)+(GP$19*GP52)+(GQ$19*GQ52)+(GR$19*GR52)+(GS$19*GS52)+(GT$19*GT52)+(GU$19*GU52)+(GV$19*GV52)+(GW$19*GW52)+(GX$19*GX52)+(GY$19*GY52)+(GZ$19*GZ52)+(HA$19*HA52)+(HB$19*HB52)+(HC$19*HC52)+(HD$19*HD52)+(HE$19*HE52)+(HF$19*HF52)+(HG$19*HG52)+(HH$19*HH52)+(HI$19*HI52)+(HJ$19*HJ52)+(HK$19*HK52)) ->  | IN52: =IF(OR('Set UP'!$C38=0,'Set UP'!$D38=0,'Set UP'!$E38=0),"",(HN$19*HN52)+(HO$19*HO52)+(HP$19*HP52)+(HQ$19*HQ52)+(HR$19*HR52)+(HS$19*HS52)+(HT$19*HT52)+(HU$19*HU52)+(HV$19*HV52)+(HW$19*HW52)+(HX$19*HX52)+(HY$19*HY52)+(HZ$19*HZ52)+(IA$19*IA52)+(IB$19*IB52)+(IC$19*IC52)+(ID$19*ID52)+(IE$19*IE52)+(IF$19*IF52)+(IG$19*IG52)+(IH$19*IH52)+(II$19*II52)+(IJ$19*IJ52)+(IK$19*IK52)+(IL$19*IL52)) ->  | JO52: =IF(OR('Set UP'!$C38=0,'Set UP'!$D38=0,'Set UP'!$E38=0),"",(IO$19*IO52)+(IP$19*IP52)+(IQ$19*IQ52)+(IR$19*IR52)+(IS$19*IS52)+(IT$19*IT52)+(IU$19*IU52)+(IV$19*IV52)+(IW$19*IW52)+(IX$19*IX52)+(IY$19*IY52)+(IZ$19*IZ52)+(JA$19*JA52)+(JB$19*JB52)+(JC$19*JC52)+(JD$19*JD52)+(JE$19*JE52)+(JF$19*JF52)+(JG$19*JG52)+(JH$19*JH52)+(JI$19*JI52)+(JJ$19*JJ52)+(JK$19*JK52)+(JL$19*JL52)+(JM$19*JM52)) ->  | JP52: =IF(OR('Set UP'!$C38=0,'Set UP'!$D38=0,'Set UP'!$E38=0),"",(AF52+BG52+CH52+DI52+EJ52+FK52+GL52+HM52+IN52+JO52)) ->  | JQ52: =IF(OR('Set UP'!$C38=0,'Set UP'!$D38=0,'Set UP'!$E38=0),"",RANK(JP52,$JP$21:$JP$60,0)) ->  | JR52: =IF(OR('Set UP'!K38<>1,'Set UP'!C38=0,'Set UP'!D38=0,'Set UP'!E38=0,'Set UP'!F38=0),"",$JP52) ->  | JS52: =IF(OR('Set UP'!K38<>1,'Set UP'!C38=0,'Set UP'!D38=0,'Set UP'!E38=0,'Set UP'!F38=0),"",RANK(JR52,$JR$21:$JR$60,0)) ->  | JT52: =IF(OR('Set UP'!K38<>2,'Set UP'!C38=0,'Set UP'!D38=0,'Set UP'!E38=0,'Set UP'!F38=0),"",$JP52) ->  | JU52: =IF(OR('Set UP'!K38<>2,'Set UP'!C38=0,'Set UP'!D38=0,'Set UP'!E38=0,'Set UP'!F38=0),"",RANK(JT52,$JT$21:$JT$60,0)) ->  | JV52: =IF(OR('Set UP'!F38<>"F",'Set UP'!C38=0,'Set UP'!D38=0,'Set UP'!E38=0),"",$JP52) ->  | JW52: =IF(OR('Set UP'!F38<>"F",'Set UP'!C38=0,'Set UP'!D38=0,'Set UP'!E38=0),"",RANK(JV52,$JV$21:$JV$60,0)) ->  | JX52: =IF(OR('Set UP'!F38<>"NS",'Set UP'!C38=0,'Set UP'!D38=0,'Set UP'!E38=0),"",$JP52) ->  | JY52: =IF(OR('Set UP'!F38<>"NS",'Set UP'!C38=0,'Set UP'!D38=0,'Set UP'!E38=0),"",RANK(JX52,$JX$21:$JX$60,0)) ->  | JZ52: =IF(OR('Set UP'!$C38=0,'Set UP'!$D38=0,'Set UP'!$E38=0,JP52=0),"",JP52/MAX(JP$21:JP$60)*1000) -> 
B53: 33 | C53: =IF(OR('Set UP'!$C39=0,'Set UP'!$D39=0,'Set UP'!$E39=0,'Set UP'!F39=0)," --",'Set UP'!C39) -> -- | D53: =IF(OR('Set UP'!$C39=0,'Set UP'!$D39=0,'Set UP'!$E39=0,'Set UP'!F39=0)," --",'Set UP'!D39&" "&'Set UP'!E39) -> -- | E53: =IF(OR('Set UP'!$C39=0,'Set UP'!$D39=0,'Set UP'!$E39=0,'Set UP'!F39=0)," --",'Set UP'!F39) -> -- | AF53: =IF(OR('Set UP'!$C39=0,'Set UP'!$D39=0,'Set UP'!$E39=0),"",(F$19*F53)+(G$19*G53)+(H$19*H53)+(I$19*I53)+(J$19*J53)+(K$19*K53)+(L$19*L53)+(M$19*M53)+(N$19*N53)+(O$19*O53)+(P$19*P53)+(Q$19*Q53)+(R$19*R53)+(S$19*S53)+(T$19*T53)+(U$19*U53)+(V$19*V53)+(W$19*W53)+(X$19*X53)+(Y$19*Y53)+(Z$19*Z53)+(AA$19*AA53)+(AB$19*AB53)+(AC$19*AC53)+(AD$19*AD53)) ->  | BG53: =IF(OR('Set UP'!$C39=0,'Set UP'!$D39=0,'Set UP'!$E39=0),"",(AG$19*AG53)+(AH$19*AH53)+(AI$19*AI53)+(AJ$19*AJ53)+(AK$19*AK53)+(AL$19*AL53)+(AM$19*AM53)+(AN$19*AN53)+(AO$19*AO53)+(AP$19*AP53)+(AQ$19*AQ53)+(AR$19*AR53)+(AS$19*AS53)+(AT$19*AT53)+(AU$19*AU53)+(AV$19*AV53)+(AW$19*AW53)+(AX$19*AX53)+(AY$19*AY53)+(AZ$19*AZ53)+(BA$19*BA53)+(BB$19*BB53)+(BC$19*BC53)+(BD$19*BD53)+(BE$19*BE53)) ->  | CH53: =IF(OR('Set UP'!$C39=0,'Set UP'!$D39=0,'Set UP'!$E39=0),"",(BH$19*BH53)+(BI$19*BI53)+(BJ$19*BJ53)+(BK$19*BK53)+(BL$19*BL53)+(BM$19*BM53)+(BN$19*BN53)+(BO$19*BO53)+(BP$19*BP53)+(BQ$19*BQ53)+(BR$19*BR53)+(BS$19*BS53)+(BT$19*BT53)+(BU$19*BU53)+(BV$19*BV53)+(BW$19*BW53)+(BX$19*BX53)+(BY$19*BY53)+(BZ$19*BZ53)+(CA$19*CA53)+(CB$19*CB53)+(CC$19*CC53)+(CD$19*CD53)+(CE$19*CE53)+(CF$19*CF53)) ->  | DI53: =IF(OR('Set UP'!$C39=0,'Set UP'!$D39=0,'Set UP'!$E39=0),"",(CI$19*CI53)+(CJ$19*CJ53)+(CK$19*CK53)+(CL$19*CL53)+(CM$19*CM53)+(CN$19*CN53)+(CO$19*CO53)+(CP$19*CP53)+(CQ$19*CQ53)+(CR$19*CR53)+(CS$19*CS53)+(CT$19*CT53)+(CU$19*CU53)+(CV$19*CV53)+(CW$19*CW53)+(CX$19*CX53)+(CY$19*CY53)+(CZ$19*CZ53)+(DA$19*DA53)+(DB$19*DB53)+(DC$19*DC53)+(DD$19*DD53)+(DE$19*DE53)+(DF$19*DF53)+(DG$19*DG53)) ->  | EJ53: =IF(OR('Set UP'!$C39=0,'Set UP'!$D39=0,'Set UP'!$E39=0),"",(DJ$19*DJ53)+(DK$19*DK53)+(DL$19*DL53)+(DM$19*DM53)+(DN$19*DN53)+(DO$19*DO53)+(DP$19*DP53)+(DQ$19*DQ53)+(DR$19*DR53)+(DS$19*DS53)+(DT$19*DT53)+(DU$19*DU53)+(DV$19*DV53)+(DW$19*DW53)+(DX$19*DX53)+(DY$19*DY53)+(DZ$19*DZ53)+(EA$19*EA53)+(EB$19*EB53)+(EC$19*EC53)+(ED$19*ED53)+(EE$19*EE53)+(EF$19*EF53)+(EG$19*EG53)+(EH$19*EH53)) ->  | FK53: =IF(OR('Set UP'!$C39=0,'Set UP'!$D39=0,'Set UP'!$E39=0),"",(EK$19*EK53)+(EL$19*EL53)+(EM$19*EM53)+(EN$19*EN53)+(EO$19*EO53)+(EP$19*EP53)+(EQ$19*EQ53)+(ER$19*ER53)+(ES$19*ES53)+(ET$19*ET53)+(EU$19*EU53)+(EV$19*EV53)+(EW$19*EW53)+(EX$19*EX53)+(EY$19*EY53)+(EZ$19*EZ53)+(FA$19*FA53)+(FB$19*FB53)+(FC$19*FC53)+(FD$19*FD53)+(FE$19*FE53)+(FF$19*FF53)+(FG$19*FG53)+(FH$19*FH53)+(FI$19*FI53)) ->  | GL53: =IF(OR('Set UP'!$C39=0,'Set UP'!$D39=0,'Set UP'!$E39=0),"",(FL$19*FL53)+(FM$19*FM53)+(FN$19*FN53)+(FO$19*FO53)+(FP$19*FP53)+(FQ$19*FQ53)+(FR$19*FR53)+(FS$19*FS53)+(FT$19*FT53)+(FU$19*FU53)+(FV$19*FV53)+(FW$19*FW53)+(FX$19*FX53)+(FY$19*FY53)+(FZ$19*FZ53)+(GA$19*GA53)+(GB$19*GB53)+(GC$19*GC53)+(GD$19*GD53)+(GE$19*GE53)+(GF$19*GF53)+(GG$19*GG53)+(GH$19*GH53)+(GI$19*GI53)+(GJ$19*GJ53)) ->  | HM53: =IF(OR('Set UP'!$C39=0,'Set UP'!$D39=0,'Set UP'!$E39=0),"",(GM$19*GM53)+(GN$19*GN53)+(GO$19*GO53)+(GP$19*GP53)+(GQ$19*GQ53)+(GR$19*GR53)+(GS$19*GS53)+(GT$19*GT53)+(GU$19*GU53)+(GV$19*GV53)+(GW$19*GW53)+(GX$19*GX53)+(GY$19*GY53)+(GZ$19*GZ53)+(HA$19*HA53)+(HB$19*HB53)+(HC$19*HC53)+(HD$19*HD53)+(HE$19*HE53)+(HF$19*HF53)+(HG$19*HG53)+(HH$19*HH53)+(HI$19*HI53)+(HJ$19*HJ53)+(HK$19*HK53)) ->  | IN53: =IF(OR('Set UP'!$C39=0,'Set UP'!$D39=0,'Set UP'!$E39=0),"",(HN$19*HN53)+(HO$19*HO53)+(HP$19*HP53)+(HQ$19*HQ53)+(HR$19*HR53)+(HS$19*HS53)+(HT$19*HT53)+(HU$19*HU53)+(HV$19*HV53)+(HW$19*HW53)+(HX$19*HX53)+(HY$19*HY53)+(HZ$19*HZ53)+(IA$19*IA53)+(IB$19*IB53)+(IC$19*IC53)+(ID$19*ID53)+(IE$19*IE53)+(IF$19*IF53)+(IG$19*IG53)+(IH$19*IH53)+(II$19*II53)+(IJ$19*IJ53)+(IK$19*IK53)+(IL$19*IL53)) ->  | JO53: =IF(OR('Set UP'!$C39=0,'Set UP'!$D39=0,'Set UP'!$E39=0),"",(IO$19*IO53)+(IP$19*IP53)+(IQ$19*IQ53)+(IR$19*IR53)+(IS$19*IS53)+(IT$19*IT53)+(IU$19*IU53)+(IV$19*IV53)+(IW$19*IW53)+(IX$19*IX53)+(IY$19*IY53)+(IZ$19*IZ53)+(JA$19*JA53)+(JB$19*JB53)+(JC$19*JC53)+(JD$19*JD53)+(JE$19*JE53)+(JF$19*JF53)+(JG$19*JG53)+(JH$19*JH53)+(JI$19*JI53)+(JJ$19*JJ53)+(JK$19*JK53)+(JL$19*JL53)+(JM$19*JM53)) ->  | JP53: =IF(OR('Set UP'!$C39=0,'Set UP'!$D39=0,'Set UP'!$E39=0),"",(AF53+BG53+CH53+DI53+EJ53+FK53+GL53+HM53+IN53+JO53)) ->  | JQ53: =IF(OR('Set UP'!$C39=0,'Set UP'!$D39=0,'Set UP'!$E39=0),"",RANK(JP53,$JP$21:$JP$60,0)) ->  | JR53: =IF(OR('Set UP'!K39<>1,'Set UP'!C39=0,'Set UP'!D39=0,'Set UP'!E39=0,'Set UP'!F39=0),"",$JP53) ->  | JS53: =IF(OR('Set UP'!K39<>1,'Set UP'!C39=0,'Set UP'!D39=0,'Set UP'!E39=0,'Set UP'!F39=0),"",RANK(JR53,$JR$21:$JR$60,0)) ->  | JT53: =IF(OR('Set UP'!K39<>2,'Set UP'!C39=0,'Set UP'!D39=0,'Set UP'!E39=0,'Set UP'!F39=0),"",$JP53) ->  | JU53: =IF(OR('Set UP'!K39<>2,'Set UP'!C39=0,'Set UP'!D39=0,'Set UP'!E39=0,'Set UP'!F39=0),"",RANK(JT53,$JT$21:$JT$60,0)) ->  | JV53: =IF(OR('Set UP'!F39<>"F",'Set UP'!C39=0,'Set UP'!D39=0,'Set UP'!E39=0),"",$JP53) ->  | JW53: =IF(OR('Set UP'!F39<>"F",'Set UP'!C39=0,'Set UP'!D39=0,'Set UP'!E39=0),"",RANK(JV53,$JV$21:$JV$60,0)) ->  | JX53: =IF(OR('Set UP'!F39<>"NS",'Set UP'!C39=0,'Set UP'!D39=0,'Set UP'!E39=0),"",$JP53) ->  | JY53: =IF(OR('Set UP'!F39<>"NS",'Set UP'!C39=0,'Set UP'!D39=0,'Set UP'!E39=0),"",RANK(JX53,$JX$21:$JX$60,0)) ->  | JZ53: =IF(OR('Set UP'!$C39=0,'Set UP'!$D39=0,'Set UP'!$E39=0,JP53=0),"",JP53/MAX(JP$21:JP$60)*1000) -> 
B54: 34 | C54: =IF(OR('Set UP'!$C40=0,'Set UP'!$D40=0,'Set UP'!$E40=0,'Set UP'!F40=0)," --",'Set UP'!C40) -> -- | D54: =IF(OR('Set UP'!$C40=0,'Set UP'!$D40=0,'Set UP'!$E40=0,'Set UP'!F40=0)," --",'Set UP'!D40&" "&'Set UP'!E40) -> -- | E54: =IF(OR('Set UP'!$C40=0,'Set UP'!$D40=0,'Set UP'!$E40=0,'Set UP'!F40=0)," --",'Set UP'!F40) -> -- | AF54: =IF(OR('Set UP'!$C40=0,'Set UP'!$D40=0,'Set UP'!$E40=0),"",(F$19*F54)+(G$19*G54)+(H$19*H54)+(I$19*I54)+(J$19*J54)+(K$19*K54)+(L$19*L54)+(M$19*M54)+(N$19*N54)+(O$19*O54)+(P$19*P54)+(Q$19*Q54)+(R$19*R54)+(S$19*S54)+(T$19*T54)+(U$19*U54)+(V$19*V54)+(W$19*W54)+(X$19*X54)+(Y$19*Y54)+(Z$19*Z54)+(AA$19*AA54)+(AB$19*AB54)+(AC$19*AC54)+(AD$19*AD54)) ->  | BG54: =IF(OR('Set UP'!$C40=0,'Set UP'!$D40=0,'Set UP'!$E40=0),"",(AG$19*AG54)+(AH$19*AH54)+(AI$19*AI54)+(AJ$19*AJ54)+(AK$19*AK54)+(AL$19*AL54)+(AM$19*AM54)+(AN$19*AN54)+(AO$19*AO54)+(AP$19*AP54)+(AQ$19*AQ54)+(AR$19*AR54)+(AS$19*AS54)+(AT$19*AT54)+(AU$19*AU54)+(AV$19*AV54)+(AW$19*AW54)+(AX$19*AX54)+(AY$19*AY54)+(AZ$19*AZ54)+(BA$19*BA54)+(BB$19*BB54)+(BC$19*BC54)+(BD$19*BD54)+(BE$19*BE54)) ->  | CH54: =IF(OR('Set UP'!$C40=0,'Set UP'!$D40=0,'Set UP'!$E40=0),"",(BH$19*BH54)+(BI$19*BI54)+(BJ$19*BJ54)+(BK$19*BK54)+(BL$19*BL54)+(BM$19*BM54)+(BN$19*BN54)+(BO$19*BO54)+(BP$19*BP54)+(BQ$19*BQ54)+(BR$19*BR54)+(BS$19*BS54)+(BT$19*BT54)+(BU$19*BU54)+(BV$19*BV54)+(BW$19*BW54)+(BX$19*BX54)+(BY$19*BY54)+(BZ$19*BZ54)+(CA$19*CA54)+(CB$19*CB54)+(CC$19*CC54)+(CD$19*CD54)+(CE$19*CE54)+(CF$19*CF54)) ->  | DI54: =IF(OR('Set UP'!$C40=0,'Set UP'!$D40=0,'Set UP'!$E40=0),"",(CI$19*CI54)+(CJ$19*CJ54)+(CK$19*CK54)+(CL$19*CL54)+(CM$19*CM54)+(CN$19*CN54)+(CO$19*CO54)+(CP$19*CP54)+(CQ$19*CQ54)+(CR$19*CR54)+(CS$19*CS54)+(CT$19*CT54)+(CU$19*CU54)+(CV$19*CV54)+(CW$19*CW54)+(CX$19*CX54)+(CY$19*CY54)+(CZ$19*CZ54)+(DA$19*DA54)+(DB$19*DB54)+(DC$19*DC54)+(DD$19*DD54)+(DE$19*DE54)+(DF$19*DF54)+(DG$19*DG54)) ->  | EJ54: =IF(OR('Set UP'!$C40=0,'Set UP'!$D40=0,'Set UP'!$E40=0),"",(DJ$19*DJ54)+(DK$19*DK54)+(DL$19*DL54)+(DM$19*DM54)+(DN$19*DN54)+(DO$19*DO54)+(DP$19*DP54)+(DQ$19*DQ54)+(DR$19*DR54)+(DS$19*DS54)+(DT$19*DT54)+(DU$19*DU54)+(DV$19*DV54)+(DW$19*DW54)+(DX$19*DX54)+(DY$19*DY54)+(DZ$19*DZ54)+(EA$19*EA54)+(EB$19*EB54)+(EC$19*EC54)+(ED$19*ED54)+(EE$19*EE54)+(EF$19*EF54)+(EG$19*EG54)+(EH$19*EH54)) ->  | FK54: =IF(OR('Set UP'!$C40=0,'Set UP'!$D40=0,'Set UP'!$E40=0),"",(EK$19*EK54)+(EL$19*EL54)+(EM$19*EM54)+(EN$19*EN54)+(EO$19*EO54)+(EP$19*EP54)+(EQ$19*EQ54)+(ER$19*ER54)+(ES$19*ES54)+(ET$19*ET54)+(EU$19*EU54)+(EV$19*EV54)+(EW$19*EW54)+(EX$19*EX54)+(EY$19*EY54)+(EZ$19*EZ54)+(FA$19*FA54)+(FB$19*FB54)+(FC$19*FC54)+(FD$19*FD54)+(FE$19*FE54)+(FF$19*FF54)+(FG$19*FG54)+(FH$19*FH54)+(FI$19*FI54)) ->  | GL54: =IF(OR('Set UP'!$C40=0,'Set UP'!$D40=0,'Set UP'!$E40=0),"",(FL$19*FL54)+(FM$19*FM54)+(FN$19*FN54)+(FO$19*FO54)+(FP$19*FP54)+(FQ$19*FQ54)+(FR$19*FR54)+(FS$19*FS54)+(FT$19*FT54)+(FU$19*FU54)+(FV$19*FV54)+(FW$19*FW54)+(FX$19*FX54)+(FY$19*FY54)+(FZ$19*FZ54)+(GA$19*GA54)+(GB$19*GB54)+(GC$19*GC54)+(GD$19*GD54)+(GE$19*GE54)+(GF$19*GF54)+(GG$19*GG54)+(GH$19*GH54)+(GI$19*GI54)+(GJ$19*GJ54)) ->  | HM54: =IF(OR('Set UP'!$C40=0,'Set UP'!$D40=0,'Set UP'!$E40=0),"",(GM$19*GM54)+(GN$19*GN54)+(GO$19*GO54)+(GP$19*GP54)+(GQ$19*GQ54)+(GR$19*GR54)+(GS$19*GS54)+(GT$19*GT54)+(GU$19*GU54)+(GV$19*GV54)+(GW$19*GW54)+(GX$19*GX54)+(GY$19*GY54)+(GZ$19*GZ54)+(HA$19*HA54)+(HB$19*HB54)+(HC$19*HC54)+(HD$19*HD54)+(HE$19*HE54)+(HF$19*HF54)+(HG$19*HG54)+(HH$19*HH54)+(HI$19*HI54)+(HJ$19*HJ54)+(HK$19*HK54)) ->  | IN54: =IF(OR('Set UP'!$C40=0,'Set UP'!$D40=0,'Set UP'!$E40=0),"",(HN$19*HN54)+(HO$19*HO54)+(HP$19*HP54)+(HQ$19*HQ54)+(HR$19*HR54)+(HS$19*HS54)+(HT$19*HT54)+(HU$19*HU54)+(HV$19*HV54)+(HW$19*HW54)+(HX$19*HX54)+(HY$19*HY54)+(HZ$19*HZ54)+(IA$19*IA54)+(IB$19*IB54)+(IC$19*IC54)+(ID$19*ID54)+(IE$19*IE54)+(IF$19*IF54)+(IG$19*IG54)+(IH$19*IH54)+(II$19*II54)+(IJ$19*IJ54)+(IK$19*IK54)+(IL$19*IL54)) ->  | JO54: =IF(OR('Set UP'!$C40=0,'Set UP'!$D40=0,'Set UP'!$E40=0),"",(IO$19*IO54)+(IP$19*IP54)+(IQ$19*IQ54)+(IR$19*IR54)+(IS$19*IS54)+(IT$19*IT54)+(IU$19*IU54)+(IV$19*IV54)+(IW$19*IW54)+(IX$19*IX54)+(IY$19*IY54)+(IZ$19*IZ54)+(JA$19*JA54)+(JB$19*JB54)+(JC$19*JC54)+(JD$19*JD54)+(JE$19*JE54)+(JF$19*JF54)+(JG$19*JG54)+(JH$19*JH54)+(JI$19*JI54)+(JJ$19*JJ54)+(JK$19*JK54)+(JL$19*JL54)+(JM$19*JM54)) ->  | JP54: =IF(OR('Set UP'!$C40=0,'Set UP'!$D40=0,'Set UP'!$E40=0),"",(AF54+BG54+CH54+DI54+EJ54+FK54+GL54+HM54+IN54+JO54)) ->  | JQ54: =IF(OR('Set UP'!$C40=0,'Set UP'!$D40=0,'Set UP'!$E40=0),"",RANK(JP54,$JP$21:$JP$60,0)) ->  | JR54: =IF(OR('Set UP'!K40<>1,'Set UP'!C40=0,'Set UP'!D40=0,'Set UP'!E40=0,'Set UP'!F40=0),"",$JP54) ->  | JS54: =IF(OR('Set UP'!K40<>1,'Set UP'!C40=0,'Set UP'!D40=0,'Set UP'!E40=0,'Set UP'!F40=0),"",RANK(JR54,$JR$21:$JR$60,0)) ->  | JT54: =IF(OR('Set UP'!K40<>2,'Set UP'!C40=0,'Set UP'!D40=0,'Set UP'!E40=0,'Set UP'!F40=0),"",$JP54) ->  | JU54: =IF(OR('Set UP'!K40<>2,'Set UP'!C40=0,'Set UP'!D40=0,'Set UP'!E40=0,'Set UP'!F40=0),"",RANK(JT54,$JT$21:$JT$60,0)) ->  | JV54: =IF(OR('Set UP'!F40<>"F",'Set UP'!C40=0,'Set UP'!D40=0,'Set UP'!E40=0),"",$JP54) ->  | JW54: =IF(OR('Set UP'!F40<>"F",'Set UP'!C40=0,'Set UP'!D40=0,'Set UP'!E40=0),"",RANK(JV54,$JV$21:$JV$60,0)) ->  | JX54: =IF(OR('Set UP'!F40<>"NS",'Set UP'!C40=0,'Set UP'!D40=0,'Set UP'!E40=0),"",$JP54) ->  | JY54: =IF(OR('Set UP'!F40<>"NS",'Set UP'!C40=0,'Set UP'!D40=0,'Set UP'!E40=0),"",RANK(JX54,$JX$21:$JX$60,0)) ->  | JZ54: =IF(OR('Set UP'!$C40=0,'Set UP'!$D40=0,'Set UP'!$E40=0,JP54=0),"",JP54/MAX(JP$21:JP$60)*1000) -> 
B55: 35 | C55: =IF(OR('Set UP'!$C41=0,'Set UP'!$D41=0,'Set UP'!$E41=0,'Set UP'!F41=0)," --",'Set UP'!C41) -> -- | D55: =IF(OR('Set UP'!$C41=0,'Set UP'!$D41=0,'Set UP'!$E41=0,'Set UP'!F41=0)," --",'Set UP'!D41&" "&'Set UP'!E41) -> -- | E55: =IF(OR('Set UP'!$C41=0,'Set UP'!$D41=0,'Set UP'!$E41=0,'Set UP'!F41=0)," --",'Set UP'!F41) -> -- | AF55: =IF(OR('Set UP'!$C41=0,'Set UP'!$D41=0,'Set UP'!$E41=0),"",(F$19*F55)+(G$19*G55)+(H$19*H55)+(I$19*I55)+(J$19*J55)+(K$19*K55)+(L$19*L55)+(M$19*M55)+(N$19*N55)+(O$19*O55)+(P$19*P55)+(Q$19*Q55)+(R$19*R55)+(S$19*S55)+(T$19*T55)+(U$19*U55)+(V$19*V55)+(W$19*W55)+(X$19*X55)+(Y$19*Y55)+(Z$19*Z55)+(AA$19*AA55)+(AB$19*AB55)+(AC$19*AC55)+(AD$19*AD55)) ->  | BG55: =IF(OR('Set UP'!$C41=0,'Set UP'!$D41=0,'Set UP'!$E41=0),"",(AG$19*AG55)+(AH$19*AH55)+(AI$19*AI55)+(AJ$19*AJ55)+(AK$19*AK55)+(AL$19*AL55)+(AM$19*AM55)+(AN$19*AN55)+(AO$19*AO55)+(AP$19*AP55)+(AQ$19*AQ55)+(AR$19*AR55)+(AS$19*AS55)+(AT$19*AT55)+(AU$19*AU55)+(AV$19*AV55)+(AW$19*AW55)+(AX$19*AX55)+(AY$19*AY55)+(AZ$19*AZ55)+(BA$19*BA55)+(BB$19*BB55)+(BC$19*BC55)+(BD$19*BD55)+(BE$19*BE55)) ->  | CH55: =IF(OR('Set UP'!$C41=0,'Set UP'!$D41=0,'Set UP'!$E41=0),"",(BH$19*BH55)+(BI$19*BI55)+(BJ$19*BJ55)+(BK$19*BK55)+(BL$19*BL55)+(BM$19*BM55)+(BN$19*BN55)+(BO$19*BO55)+(BP$19*BP55)+(BQ$19*BQ55)+(BR$19*BR55)+(BS$19*BS55)+(BT$19*BT55)+(BU$19*BU55)+(BV$19*BV55)+(BW$19*BW55)+(BX$19*BX55)+(BY$19*BY55)+(BZ$19*BZ55)+(CA$19*CA55)+(CB$19*CB55)+(CC$19*CC55)+(CD$19*CD55)+(CE$19*CE55)+(CF$19*CF55)) ->  | DI55: =IF(OR('Set UP'!$C41=0,'Set UP'!$D41=0,'Set UP'!$E41=0),"",(CI$19*CI55)+(CJ$19*CJ55)+(CK$19*CK55)+(CL$19*CL55)+(CM$19*CM55)+(CN$19*CN55)+(CO$19*CO55)+(CP$19*CP55)+(CQ$19*CQ55)+(CR$19*CR55)+(CS$19*CS55)+(CT$19*CT55)+(CU$19*CU55)+(CV$19*CV55)+(CW$19*CW55)+(CX$19*CX55)+(CY$19*CY55)+(CZ$19*CZ55)+(DA$19*DA55)+(DB$19*DB55)+(DC$19*DC55)+(DD$19*DD55)+(DE$19*DE55)+(DF$19*DF55)+(DG$19*DG55)) ->  | EJ55: =IF(OR('Set UP'!$C41=0,'Set UP'!$D41=0,'Set UP'!$E41=0),"",(DJ$19*DJ55)+(DK$19*DK55)+(DL$19*DL55)+(DM$19*DM55)+(DN$19*DN55)+(DO$19*DO55)+(DP$19*DP55)+(DQ$19*DQ55)+(DR$19*DR55)+(DS$19*DS55)+(DT$19*DT55)+(DU$19*DU55)+(DV$19*DV55)+(DW$19*DW55)+(DX$19*DX55)+(DY$19*DY55)+(DZ$19*DZ55)+(EA$19*EA55)+(EB$19*EB55)+(EC$19*EC55)+(ED$19*ED55)+(EE$19*EE55)+(EF$19*EF55)+(EG$19*EG55)+(EH$19*EH55)) ->  | FK55: =IF(OR('Set UP'!$C41=0,'Set UP'!$D41=0,'Set UP'!$E41=0),"",(EK$19*EK55)+(EL$19*EL55)+(EM$19*EM55)+(EN$19*EN55)+(EO$19*EO55)+(EP$19*EP55)+(EQ$19*EQ55)+(ER$19*ER55)+(ES$19*ES55)+(ET$19*ET55)+(EU$19*EU55)+(EV$19*EV55)+(EW$19*EW55)+(EX$19*EX55)+(EY$19*EY55)+(EZ$19*EZ55)+(FA$19*FA55)+(FB$19*FB55)+(FC$19*FC55)+(FD$19*FD55)+(FE$19*FE55)+(FF$19*FF55)+(FG$19*FG55)+(FH$19*FH55)+(FI$19*FI55)) ->  | GL55: =IF(OR('Set UP'!$C41=0,'Set UP'!$D41=0,'Set UP'!$E41=0),"",(FL$19*FL55)+(FM$19*FM55)+(FN$19*FN55)+(FO$19*FO55)+(FP$19*FP55)+(FQ$19*FQ55)+(FR$19*FR55)+(FS$19*FS55)+(FT$19*FT55)+(FU$19*FU55)+(FV$19*FV55)+(FW$19*FW55)+(FX$19*FX55)+(FY$19*FY55)+(FZ$19*FZ55)+(GA$19*GA55)+(GB$19*GB55)+(GC$19*GC55)+(GD$19*GD55)+(GE$19*GE55)+(GF$19*GF55)+(GG$19*GG55)+(GH$19*GH55)+(GI$19*GI55)+(GJ$19*GJ55)) ->  | HM55: =IF(OR('Set UP'!$C41=0,'Set UP'!$D41=0,'Set UP'!$E41=0),"",(GM$19*GM55)+(GN$19*GN55)+(GO$19*GO55)+(GP$19*GP55)+(GQ$19*GQ55)+(GR$19*GR55)+(GS$19*GS55)+(GT$19*GT55)+(GU$19*GU55)+(GV$19*GV55)+(GW$19*GW55)+(GX$19*GX55)+(GY$19*GY55)+(GZ$19*GZ55)+(HA$19*HA55)+(HB$19*HB55)+(HC$19*HC55)+(HD$19*HD55)+(HE$19*HE55)+(HF$19*HF55)+(HG$19*HG55)+(HH$19*HH55)+(HI$19*HI55)+(HJ$19*HJ55)+(HK$19*HK55)) ->  | IN55: =IF(OR('Set UP'!$C41=0,'Set UP'!$D41=0,'Set UP'!$E41=0),"",(HN$19*HN55)+(HO$19*HO55)+(HP$19*HP55)+(HQ$19*HQ55)+(HR$19*HR55)+(HS$19*HS55)+(HT$19*HT55)+(HU$19*HU55)+(HV$19*HV55)+(HW$19*HW55)+(HX$19*HX55)+(HY$19*HY55)+(HZ$19*HZ55)+(IA$19*IA55)+(IB$19*IB55)+(IC$19*IC55)+(ID$19*ID55)+(IE$19*IE55)+(IF$19*IF55)+(IG$19*IG55)+(IH$19*IH55)+(II$19*II55)+(IJ$19*IJ55)+(IK$19*IK55)+(IL$19*IL55)) ->  | JO55: =IF(OR('Set UP'!$C41=0,'Set UP'!$D41=0,'Set UP'!$E41=0),"",(IO$19*IO55)+(IP$19*IP55)+(IQ$19*IQ55)+(IR$19*IR55)+(IS$19*IS55)+(IT$19*IT55)+(IU$19*IU55)+(IV$19*IV55)+(IW$19*IW55)+(IX$19*IX55)+(IY$19*IY55)+(IZ$19*IZ55)+(JA$19*JA55)+(JB$19*JB55)+(JC$19*JC55)+(JD$19*JD55)+(JE$19*JE55)+(JF$19*JF55)+(JG$19*JG55)+(JH$19*JH55)+(JI$19*JI55)+(JJ$19*JJ55)+(JK$19*JK55)+(JL$19*JL55)+(JM$19*JM55)) ->  | JP55: =IF(OR('Set UP'!$C41=0,'Set UP'!$D41=0,'Set UP'!$E41=0),"",(AF55+BG55+CH55+DI55+EJ55+FK55+GL55+HM55+IN55+JO55)) ->  | JQ55: =IF(OR('Set UP'!$C41=0,'Set UP'!$D41=0,'Set UP'!$E41=0),"",RANK(JP55,$JP$21:$JP$60,0)) ->  | JR55: =IF(OR('Set UP'!K41<>1,'Set UP'!C41=0,'Set UP'!D41=0,'Set UP'!E41=0,'Set UP'!F41=0),"",$JP55) ->  | JS55: =IF(OR('Set UP'!K41<>1,'Set UP'!C41=0,'Set UP'!D41=0,'Set UP'!E41=0,'Set UP'!F41=0),"",RANK(JR55,$JR$21:$JR$60,0)) ->  | JT55: =IF(OR('Set UP'!K41<>2,'Set UP'!C41=0,'Set UP'!D41=0,'Set UP'!E41=0,'Set UP'!F41=0),"",$JP55) ->  | JU55: =IF(OR('Set UP'!K41<>2,'Set UP'!C41=0,'Set UP'!D41=0,'Set UP'!E41=0,'Set UP'!F41=0),"",RANK(JT55,$JT$21:$JT$60,0)) ->  | JV55: =IF(OR('Set UP'!F41<>"F",'Set UP'!C41=0,'Set UP'!D41=0,'Set UP'!E41=0),"",$JP55) ->  | JW55: =IF(OR('Set UP'!F41<>"F",'Set UP'!C41=0,'Set UP'!D41=0,'Set UP'!E41=0),"",RANK(JV55,$JV$21:$JV$60,0)) ->  | JX55: =IF(OR('Set UP'!F41<>"NS",'Set UP'!C41=0,'Set UP'!D41=0,'Set UP'!E41=0),"",$JP55) ->  | JY55: =IF(OR('Set UP'!F41<>"NS",'Set UP'!C41=0,'Set UP'!D41=0,'Set UP'!E41=0),"",RANK(JX55,$JX$21:$JX$60,0)) ->  | JZ55: =IF(OR('Set UP'!$C41=0,'Set UP'!$D41=0,'Set UP'!$E41=0,JP55=0),"",JP55/MAX(JP$21:JP$60)*1000) -> 
B56: 36 | C56: =IF(OR('Set UP'!$C42=0,'Set UP'!$D42=0,'Set UP'!$E42=0,'Set UP'!F42=0)," --",'Set UP'!C42) -> -- | D56: =IF(OR('Set UP'!$C42=0,'Set UP'!$D42=0,'Set UP'!$E42=0,'Set UP'!F42=0)," --",'Set UP'!D42&" "&'Set UP'!E42) -> -- | E56: =IF(OR('Set UP'!$C42=0,'Set UP'!$D42=0,'Set UP'!$E42=0,'Set UP'!F42=0)," --",'Set UP'!F42) -> -- | AF56: =IF(OR('Set UP'!$C42=0,'Set UP'!$D42=0,'Set UP'!$E42=0),"",(F$19*F56)+(G$19*G56)+(H$19*H56)+(I$19*I56)+(J$19*J56)+(K$19*K56)+(L$19*L56)+(M$19*M56)+(N$19*N56)+(O$19*O56)+(P$19*P56)+(Q$19*Q56)+(R$19*R56)+(S$19*S56)+(T$19*T56)+(U$19*U56)+(V$19*V56)+(W$19*W56)+(X$19*X56)+(Y$19*Y56)+(Z$19*Z56)+(AA$19*AA56)+(AB$19*AB56)+(AC$19*AC56)+(AD$19*AD56)) ->  | BG56: =IF(OR('Set UP'!$C42=0,'Set UP'!$D42=0,'Set UP'!$E42=0),"",(AG$19*AG56)+(AH$19*AH56)+(AI$19*AI56)+(AJ$19*AJ56)+(AK$19*AK56)+(AL$19*AL56)+(AM$19*AM56)+(AN$19*AN56)+(AO$19*AO56)+(AP$19*AP56)+(AQ$19*AQ56)+(AR$19*AR56)+(AS$19*AS56)+(AT$19*AT56)+(AU$19*AU56)+(AV$19*AV56)+(AW$19*AW56)+(AX$19*AX56)+(AY$19*AY56)+(AZ$19*AZ56)+(BA$19*BA56)+(BB$19*BB56)+(BC$19*BC56)+(BD$19*BD56)+(BE$19*BE56)) ->  | CH56: =IF(OR('Set UP'!$C42=0,'Set UP'!$D42=0,'Set UP'!$E42=0),"",(BH$19*BH56)+(BI$19*BI56)+(BJ$19*BJ56)+(BK$19*BK56)+(BL$19*BL56)+(BM$19*BM56)+(BN$19*BN56)+(BO$19*BO56)+(BP$19*BP56)+(BQ$19*BQ56)+(BR$19*BR56)+(BS$19*BS56)+(BT$19*BT56)+(BU$19*BU56)+(BV$19*BV56)+(BW$19*BW56)+(BX$19*BX56)+(BY$19*BY56)+(BZ$19*BZ56)+(CA$19*CA56)+(CB$19*CB56)+(CC$19*CC56)+(CD$19*CD56)+(CE$19*CE56)+(CF$19*CF56)) ->  | DI56: =IF(OR('Set UP'!$C42=0,'Set UP'!$D42=0,'Set UP'!$E42=0),"",(CI$19*CI56)+(CJ$19*CJ56)+(CK$19*CK56)+(CL$19*CL56)+(CM$19*CM56)+(CN$19*CN56)+(CO$19*CO56)+(CP$19*CP56)+(CQ$19*CQ56)+(CR$19*CR56)+(CS$19*CS56)+(CT$19*CT56)+(CU$19*CU56)+(CV$19*CV56)+(CW$19*CW56)+(CX$19*CX56)+(CY$19*CY56)+(CZ$19*CZ56)+(DA$19*DA56)+(DB$19*DB56)+(DC$19*DC56)+(DD$19*DD56)+(DE$19*DE56)+(DF$19*DF56)+(DG$19*DG56)) ->  | EJ56: =IF(OR('Set UP'!$C42=0,'Set UP'!$D42=0,'Set UP'!$E42=0),"",(DJ$19*DJ56)+(DK$19*DK56)+(DL$19*DL56)+(DM$19*DM56)+(DN$19*DN56)+(DO$19*DO56)+(DP$19*DP56)+(DQ$19*DQ56)+(DR$19*DR56)+(DS$19*DS56)+(DT$19*DT56)+(DU$19*DU56)+(DV$19*DV56)+(DW$19*DW56)+(DX$19*DX56)+(DY$19*DY56)+(DZ$19*DZ56)+(EA$19*EA56)+(EB$19*EB56)+(EC$19*EC56)+(ED$19*ED56)+(EE$19*EE56)+(EF$19*EF56)+(EG$19*EG56)+(EH$19*EH56)) ->  | FK56: =IF(OR('Set UP'!$C42=0,'Set UP'!$D42=0,'Set UP'!$E42=0),"",(EK$19*EK56)+(EL$19*EL56)+(EM$19*EM56)+(EN$19*EN56)+(EO$19*EO56)+(EP$19*EP56)+(EQ$19*EQ56)+(ER$19*ER56)+(ES$19*ES56)+(ET$19*ET56)+(EU$19*EU56)+(EV$19*EV56)+(EW$19*EW56)+(EX$19*EX56)+(EY$19*EY56)+(EZ$19*EZ56)+(FA$19*FA56)+(FB$19*FB56)+(FC$19*FC56)+(FD$19*FD56)+(FE$19*FE56)+(FF$19*FF56)+(FG$19*FG56)+(FH$19*FH56)+(FI$19*FI56)) ->  | GL56: =IF(OR('Set UP'!$C42=0,'Set UP'!$D42=0,'Set UP'!$E42=0),"",(FL$19*FL56)+(FM$19*FM56)+(FN$19*FN56)+(FO$19*FO56)+(FP$19*FP56)+(FQ$19*FQ56)+(FR$19*FR56)+(FS$19*FS56)+(FT$19*FT56)+(FU$19*FU56)+(FV$19*FV56)+(FW$19*FW56)+(FX$19*FX56)+(FY$19*FY56)+(FZ$19*FZ56)+(GA$19*GA56)+(GB$19*GB56)+(GC$19*GC56)+(GD$19*GD56)+(GE$19*GE56)+(GF$19*GF56)+(GG$19*GG56)+(GH$19*GH56)+(GI$19*GI56)+(GJ$19*GJ56)) ->  | HM56: =IF(OR('Set UP'!$C42=0,'Set UP'!$D42=0,'Set UP'!$E42=0),"",(GM$19*GM56)+(GN$19*GN56)+(GO$19*GO56)+(GP$19*GP56)+(GQ$19*GQ56)+(GR$19*GR56)+(GS$19*GS56)+(GT$19*GT56)+(GU$19*GU56)+(GV$19*GV56)+(GW$19*GW56)+(GX$19*GX56)+(GY$19*GY56)+(GZ$19*GZ56)+(HA$19*HA56)+(HB$19*HB56)+(HC$19*HC56)+(HD$19*HD56)+(HE$19*HE56)+(HF$19*HF56)+(HG$19*HG56)+(HH$19*HH56)+(HI$19*HI56)+(HJ$19*HJ56)+(HK$19*HK56)) ->  | IN56: =IF(OR('Set UP'!$C42=0,'Set UP'!$D42=0,'Set UP'!$E42=0),"",(HN$19*HN56)+(HO$19*HO56)+(HP$19*HP56)+(HQ$19*HQ56)+(HR$19*HR56)+(HS$19*HS56)+(HT$19*HT56)+(HU$19*HU56)+(HV$19*HV56)+(HW$19*HW56)+(HX$19*HX56)+(HY$19*HY56)+(HZ$19*HZ56)+(IA$19*IA56)+(IB$19*IB56)+(IC$19*IC56)+(ID$19*ID56)+(IE$19*IE56)+(IF$19*IF56)+(IG$19*IG56)+(IH$19*IH56)+(II$19*II56)+(IJ$19*IJ56)+(IK$19*IK56)+(IL$19*IL56)) ->  | JO56: =IF(OR('Set UP'!$C42=0,'Set UP'!$D42=0,'Set UP'!$E42=0),"",(IO$19*IO56)+(IP$19*IP56)+(IQ$19*IQ56)+(IR$19*IR56)+(IS$19*IS56)+(IT$19*IT56)+(IU$19*IU56)+(IV$19*IV56)+(IW$19*IW56)+(IX$19*IX56)+(IY$19*IY56)+(IZ$19*IZ56)+(JA$19*JA56)+(JB$19*JB56)+(JC$19*JC56)+(JD$19*JD56)+(JE$19*JE56)+(JF$19*JF56)+(JG$19*JG56)+(JH$19*JH56)+(JI$19*JI56)+(JJ$19*JJ56)+(JK$19*JK56)+(JL$19*JL56)+(JM$19*JM56)) ->  | JP56: =IF(OR('Set UP'!$C42=0,'Set UP'!$D42=0,'Set UP'!$E42=0),"",(AF56+BG56+CH56+DI56+EJ56+FK56+GL56+HM56+IN56+JO56)) ->  | JQ56: =IF(OR('Set UP'!$C42=0,'Set UP'!$D42=0,'Set UP'!$E42=0),"",RANK(JP56,$JP$21:$JP$60,0)) ->  | JR56: =IF(OR('Set UP'!K42<>1,'Set UP'!C42=0,'Set UP'!D42=0,'Set UP'!E42=0,'Set UP'!F42=0),"",$JP56) ->  | JS56: =IF(OR('Set UP'!K42<>1,'Set UP'!C42=0,'Set UP'!D42=0,'Set UP'!E42=0,'Set UP'!F42=0),"",RANK(JR56,$JR$21:$JR$60,0)) ->  | JT56: =IF(OR('Set UP'!K42<>2,'Set UP'!C42=0,'Set UP'!D42=0,'Set UP'!E42=0,'Set UP'!F42=0),"",$JP56) ->  | JU56: =IF(OR('Set UP'!K42<>2,'Set UP'!C42=0,'Set UP'!D42=0,'Set UP'!E42=0,'Set UP'!F42=0),"",RANK(JT56,$JT$21:$JT$60,0)) ->  | JV56: =IF(OR('Set UP'!F42<>"F",'Set UP'!C42=0,'Set UP'!D42=0,'Set UP'!E42=0),"",$JP56) ->  | JW56: =IF(OR('Set UP'!F42<>"F",'Set UP'!C42=0,'Set UP'!D42=0,'Set UP'!E42=0),"",RANK(JV56,$JV$21:$JV$60,0)) ->  | JX56: =IF(OR('Set UP'!F42<>"NS",'Set UP'!C42=0,'Set UP'!D42=0,'Set UP'!E42=0),"",$JP56) ->  | JY56: =IF(OR('Set UP'!F42<>"NS",'Set UP'!C42=0,'Set UP'!D42=0,'Set UP'!E42=0),"",RANK(JX56,$JX$21:$JX$60,0)) ->  | JZ56: =IF(OR('Set UP'!$C42=0,'Set UP'!$D42=0,'Set UP'!$E42=0,JP56=0),"",JP56/MAX(JP$21:JP$60)*1000) -> 
B57: 37 | C57: =IF(OR('Set UP'!$C43=0,'Set UP'!$D43=0,'Set UP'!$E43=0,'Set UP'!F43=0)," --",'Set UP'!C43) -> -- | D57: =IF(OR('Set UP'!$C43=0,'Set UP'!$D43=0,'Set UP'!$E43=0,'Set UP'!F43=0)," --",'Set UP'!D43&" "&'Set UP'!E43) -> -- | E57: =IF(OR('Set UP'!$C43=0,'Set UP'!$D43=0,'Set UP'!$E43=0,'Set UP'!F43=0)," --",'Set UP'!F43) -> -- | AF57: =IF(OR('Set UP'!$C43=0,'Set UP'!$D43=0,'Set UP'!$E43=0),"",(F$19*F57)+(G$19*G57)+(H$19*H57)+(I$19*I57)+(J$19*J57)+(K$19*K57)+(L$19*L57)+(M$19*M57)+(N$19*N57)+(O$19*O57)+(P$19*P57)+(Q$19*Q57)+(R$19*R57)+(S$19*S57)+(T$19*T57)+(U$19*U57)+(V$19*V57)+(W$19*W57)+(X$19*X57)+(Y$19*Y57)+(Z$19*Z57)+(AA$19*AA57)+(AB$19*AB57)+(AC$19*AC57)+(AD$19*AD57)) ->  | BG57: =IF(OR('Set UP'!$C43=0,'Set UP'!$D43=0,'Set UP'!$E43=0),"",(AG$19*AG57)+(AH$19*AH57)+(AI$19*AI57)+(AJ$19*AJ57)+(AK$19*AK57)+(AL$19*AL57)+(AM$19*AM57)+(AN$19*AN57)+(AO$19*AO57)+(AP$19*AP57)+(AQ$19*AQ57)+(AR$19*AR57)+(AS$19*AS57)+(AT$19*AT57)+(AU$19*AU57)+(AV$19*AV57)+(AW$19*AW57)+(AX$19*AX57)+(AY$19*AY57)+(AZ$19*AZ57)+(BA$19*BA57)+(BB$19*BB57)+(BC$19*BC57)+(BD$19*BD57)+(BE$19*BE57)) ->  | CH57: =IF(OR('Set UP'!$C43=0,'Set UP'!$D43=0,'Set UP'!$E43=0),"",(BH$19*BH57)+(BI$19*BI57)+(BJ$19*BJ57)+(BK$19*BK57)+(BL$19*BL57)+(BM$19*BM57)+(BN$19*BN57)+(BO$19*BO57)+(BP$19*BP57)+(BQ$19*BQ57)+(BR$19*BR57)+(BS$19*BS57)+(BT$19*BT57)+(BU$19*BU57)+(BV$19*BV57)+(BW$19*BW57)+(BX$19*BX57)+(BY$19*BY57)+(BZ$19*BZ57)+(CA$19*CA57)+(CB$19*CB57)+(CC$19*CC57)+(CD$19*CD57)+(CE$19*CE57)+(CF$19*CF57)) ->  | DI57: =IF(OR('Set UP'!$C43=0,'Set UP'!$D43=0,'Set UP'!$E43=0),"",(CI$19*CI57)+(CJ$19*CJ57)+(CK$19*CK57)+(CL$19*CL57)+(CM$19*CM57)+(CN$19*CN57)+(CO$19*CO57)+(CP$19*CP57)+(CQ$19*CQ57)+(CR$19*CR57)+(CS$19*CS57)+(CT$19*CT57)+(CU$19*CU57)+(CV$19*CV57)+(CW$19*CW57)+(CX$19*CX57)+(CY$19*CY57)+(CZ$19*CZ57)+(DA$19*DA57)+(DB$19*DB57)+(DC$19*DC57)+(DD$19*DD57)+(DE$19*DE57)+(DF$19*DF57)+(DG$19*DG57)) ->  | EJ57: =IF(OR('Set UP'!$C43=0,'Set UP'!$D43=0,'Set UP'!$E43=0),"",(DJ$19*DJ57)+(DK$19*DK57)+(DL$19*DL57)+(DM$19*DM57)+(DN$19*DN57)+(DO$19*DO57)+(DP$19*DP57)+(DQ$19*DQ57)+(DR$19*DR57)+(DS$19*DS57)+(DT$19*DT57)+(DU$19*DU57)+(DV$19*DV57)+(DW$19*DW57)+(DX$19*DX57)+(DY$19*DY57)+(DZ$19*DZ57)+(EA$19*EA57)+(EB$19*EB57)+(EC$19*EC57)+(ED$19*ED57)+(EE$19*EE57)+(EF$19*EF57)+(EG$19*EG57)+(EH$19*EH57)) ->  | FK57: =IF(OR('Set UP'!$C43=0,'Set UP'!$D43=0,'Set UP'!$E43=0),"",(EK$19*EK57)+(EL$19*EL57)+(EM$19*EM57)+(EN$19*EN57)+(EO$19*EO57)+(EP$19*EP57)+(EQ$19*EQ57)+(ER$19*ER57)+(ES$19*ES57)+(ET$19*ET57)+(EU$19*EU57)+(EV$19*EV57)+(EW$19*EW57)+(EX$19*EX57)+(EY$19*EY57)+(EZ$19*EZ57)+(FA$19*FA57)+(FB$19*FB57)+(FC$19*FC57)+(FD$19*FD57)+(FE$19*FE57)+(FF$19*FF57)+(FG$19*FG57)+(FH$19*FH57)+(FI$19*FI57)) ->  | GL57: =IF(OR('Set UP'!$C43=0,'Set UP'!$D43=0,'Set UP'!$E43=0),"",(FL$19*FL57)+(FM$19*FM57)+(FN$19*FN57)+(FO$19*FO57)+(FP$19*FP57)+(FQ$19*FQ57)+(FR$19*FR57)+(FS$19*FS57)+(FT$19*FT57)+(FU$19*FU57)+(FV$19*FV57)+(FW$19*FW57)+(FX$19*FX57)+(FY$19*FY57)+(FZ$19*FZ57)+(GA$19*GA57)+(GB$19*GB57)+(GC$19*GC57)+(GD$19*GD57)+(GE$19*GE57)+(GF$19*GF57)+(GG$19*GG57)+(GH$19*GH57)+(GI$19*GI57)+(GJ$19*GJ57)) ->  | HM57: =IF(OR('Set UP'!$C43=0,'Set UP'!$D43=0,'Set UP'!$E43=0),"",(GM$19*GM57)+(GN$19*GN57)+(GO$19*GO57)+(GP$19*GP57)+(GQ$19*GQ57)+(GR$19*GR57)+(GS$19*GS57)+(GT$19*GT57)+(GU$19*GU57)+(GV$19*GV57)+(GW$19*GW57)+(GX$19*GX57)+(GY$19*GY57)+(GZ$19*GZ57)+(HA$19*HA57)+(HB$19*HB57)+(HC$19*HC57)+(HD$19*HD57)+(HE$19*HE57)+(HF$19*HF57)+(HG$19*HG57)+(HH$19*HH57)+(HI$19*HI57)+(HJ$19*HJ57)+(HK$19*HK57)) ->  | IN57: =IF(OR('Set UP'!$C43=0,'Set UP'!$D43=0,'Set UP'!$E43=0),"",(HN$19*HN57)+(HO$19*HO57)+(HP$19*HP57)+(HQ$19*HQ57)+(HR$19*HR57)+(HS$19*HS57)+(HT$19*HT57)+(HU$19*HU57)+(HV$19*HV57)+(HW$19*HW57)+(HX$19*HX57)+(HY$19*HY57)+(HZ$19*HZ57)+(IA$19*IA57)+(IB$19*IB57)+(IC$19*IC57)+(ID$19*ID57)+(IE$19*IE57)+(IF$19*IF57)+(IG$19*IG57)+(IH$19*IH57)+(II$19*II57)+(IJ$19*IJ57)+(IK$19*IK57)+(IL$19*IL57)) ->  | JO57: =IF(OR('Set UP'!$C43=0,'Set UP'!$D43=0,'Set UP'!$E43=0),"",(IO$19*IO57)+(IP$19*IP57)+(IQ$19*IQ57)+(IR$19*IR57)+(IS$19*IS57)+(IT$19*IT57)+(IU$19*IU57)+(IV$19*IV57)+(IW$19*IW57)+(IX$19*IX57)+(IY$19*IY57)+(IZ$19*IZ57)+(JA$19*JA57)+(JB$19*JB57)+(JC$19*JC57)+(JD$19*JD57)+(JE$19*JE57)+(JF$19*JF57)+(JG$19*JG57)+(JH$19*JH57)+(JI$19*JI57)+(JJ$19*JJ57)+(JK$19*JK57)+(JL$19*JL57)+(JM$19*JM57)) ->  | JP57: =IF(OR('Set UP'!$C43=0,'Set UP'!$D43=0,'Set UP'!$E43=0),"",(AF57+BG57+CH57+DI57+EJ57+FK57+GL57+HM57+IN57+JO57)) ->  | JQ57: =IF(OR('Set UP'!$C43=0,'Set UP'!$D43=0,'Set UP'!$E43=0),"",RANK(JP57,$JP$21:$JP$60,0)) ->  | JR57: =IF(OR('Set UP'!K43<>1,'Set UP'!C43=0,'Set UP'!D43=0,'Set UP'!E43=0,'Set UP'!F43=0),"",$JP57) ->  | JS57: =IF(OR('Set UP'!K43<>1,'Set UP'!C43=0,'Set UP'!D43=0,'Set UP'!E43=0,'Set UP'!F43=0),"",RANK(JR57,$JR$21:$JR$60,0)) ->  | JT57: =IF(OR('Set UP'!K43<>2,'Set UP'!C43=0,'Set UP'!D43=0,'Set UP'!E43=0,'Set UP'!F43=0),"",$JP57) ->  | JU57: =IF(OR('Set UP'!K43<>2,'Set UP'!C43=0,'Set UP'!D43=0,'Set UP'!E43=0,'Set UP'!F43=0),"",RANK(JT57,$JT$21:$JT$60,0)) ->  | JV57: =IF(OR('Set UP'!F43<>"F",'Set UP'!C43=0,'Set UP'!D43=0,'Set UP'!E43=0),"",$JP57) ->  | JW57: =IF(OR('Set UP'!F43<>"F",'Set UP'!C43=0,'Set UP'!D43=0,'Set UP'!E43=0),"",RANK(JV57,$JV$21:$JV$60,0)) ->  | JX57: =IF(OR('Set UP'!F43<>"NS",'Set UP'!C43=0,'Set UP'!D43=0,'Set UP'!E43=0),"",$JP57) ->  | JY57: =IF(OR('Set UP'!F43<>"NS",'Set UP'!C43=0,'Set UP'!D43=0,'Set UP'!E43=0),"",RANK(JX57,$JX$21:$JX$60,0)) ->  | JZ57: =IF(OR('Set UP'!$C43=0,'Set UP'!$D43=0,'Set UP'!$E43=0,JP57=0),"",JP57/MAX(JP$21:JP$60)*1000) -> 
B58: 38 | C58: =IF(OR('Set UP'!$C44=0,'Set UP'!$D44=0,'Set UP'!$E44=0,'Set UP'!F44=0)," --",'Set UP'!C44) -> -- | D58: =IF(OR('Set UP'!$C44=0,'Set UP'!$D44=0,'Set UP'!$E44=0,'Set UP'!F44=0)," --",'Set UP'!D44&" "&'Set UP'!E44) -> -- | E58: =IF(OR('Set UP'!$C44=0,'Set UP'!$D44=0,'Set UP'!$E44=0,'Set UP'!F44=0)," --",'Set UP'!F44) -> -- | AF58: =IF(OR('Set UP'!$C44=0,'Set UP'!$D44=0,'Set UP'!$E44=0),"",(F$19*F58)+(G$19*G58)+(H$19*H58)+(I$19*I58)+(J$19*J58)+(K$19*K58)+(L$19*L58)+(M$19*M58)+(N$19*N58)+(O$19*O58)+(P$19*P58)+(Q$19*Q58)+(R$19*R58)+(S$19*S58)+(T$19*T58)+(U$19*U58)+(V$19*V58)+(W$19*W58)+(X$19*X58)+(Y$19*Y58)+(Z$19*Z58)+(AA$19*AA58)+(AB$19*AB58)+(AC$19*AC58)+(AD$19*AD58)) ->  | BG58: =IF(OR('Set UP'!$C44=0,'Set UP'!$D44=0,'Set UP'!$E44=0),"",(AG$19*AG58)+(AH$19*AH58)+(AI$19*AI58)+(AJ$19*AJ58)+(AK$19*AK58)+(AL$19*AL58)+(AM$19*AM58)+(AN$19*AN58)+(AO$19*AO58)+(AP$19*AP58)+(AQ$19*AQ58)+(AR$19*AR58)+(AS$19*AS58)+(AT$19*AT58)+(AU$19*AU58)+(AV$19*AV58)+(AW$19*AW58)+(AX$19*AX58)+(AY$19*AY58)+(AZ$19*AZ58)+(BA$19*BA58)+(BB$19*BB58)+(BC$19*BC58)+(BD$19*BD58)+(BE$19*BE58)) ->  | CH58: =IF(OR('Set UP'!$C44=0,'Set UP'!$D44=0,'Set UP'!$E44=0),"",(BH$19*BH58)+(BI$19*BI58)+(BJ$19*BJ58)+(BK$19*BK58)+(BL$19*BL58)+(BM$19*BM58)+(BN$19*BN58)+(BO$19*BO58)+(BP$19*BP58)+(BQ$19*BQ58)+(BR$19*BR58)+(BS$19*BS58)+(BT$19*BT58)+(BU$19*BU58)+(BV$19*BV58)+(BW$19*BW58)+(BX$19*BX58)+(BY$19*BY58)+(BZ$19*BZ58)+(CA$19*CA58)+(CB$19*CB58)+(CC$19*CC58)+(CD$19*CD58)+(CE$19*CE58)+(CF$19*CF58)) ->  | DI58: =IF(OR('Set UP'!$C44=0,'Set UP'!$D44=0,'Set UP'!$E44=0),"",(CI$19*CI58)+(CJ$19*CJ58)+(CK$19*CK58)+(CL$19*CL58)+(CM$19*CM58)+(CN$19*CN58)+(CO$19*CO58)+(CP$19*CP58)+(CQ$19*CQ58)+(CR$19*CR58)+(CS$19*CS58)+(CT$19*CT58)+(CU$19*CU58)+(CV$19*CV58)+(CW$19*CW58)+(CX$19*CX58)+(CY$19*CY58)+(CZ$19*CZ58)+(DA$19*DA58)+(DB$19*DB58)+(DC$19*DC58)+(DD$19*DD58)+(DE$19*DE58)+(DF$19*DF58)+(DG$19*DG58)) ->  | EJ58: =IF(OR('Set UP'!$C44=0,'Set UP'!$D44=0,'Set UP'!$E44=0),"",(DJ$19*DJ58)+(DK$19*DK58)+(DL$19*DL58)+(DM$19*DM58)+(DN$19*DN58)+(DO$19*DO58)+(DP$19*DP58)+(DQ$19*DQ58)+(DR$19*DR58)+(DS$19*DS58)+(DT$19*DT58)+(DU$19*DU58)+(DV$19*DV58)+(DW$19*DW58)+(DX$19*DX58)+(DY$19*DY58)+(DZ$19*DZ58)+(EA$19*EA58)+(EB$19*EB58)+(EC$19*EC58)+(ED$19*ED58)+(EE$19*EE58)+(EF$19*EF58)+(EG$19*EG58)+(EH$19*EH58)) ->  | FK58: =IF(OR('Set UP'!$C44=0,'Set UP'!$D44=0,'Set UP'!$E44=0),"",(EK$19*EK58)+(EL$19*EL58)+(EM$19*EM58)+(EN$19*EN58)+(EO$19*EO58)+(EP$19*EP58)+(EQ$19*EQ58)+(ER$19*ER58)+(ES$19*ES58)+(ET$19*ET58)+(EU$19*EU58)+(EV$19*EV58)+(EW$19*EW58)+(EX$19*EX58)+(EY$19*EY58)+(EZ$19*EZ58)+(FA$19*FA58)+(FB$19*FB58)+(FC$19*FC58)+(FD$19*FD58)+(FE$19*FE58)+(FF$19*FF58)+(FG$19*FG58)+(FH$19*FH58)+(FI$19*FI58)) ->  | GL58: =IF(OR('Set UP'!$C44=0,'Set UP'!$D44=0,'Set UP'!$E44=0),"",(FL$19*FL58)+(FM$19*FM58)+(FN$19*FN58)+(FO$19*FO58)+(FP$19*FP58)+(FQ$19*FQ58)+(FR$19*FR58)+(FS$19*FS58)+(FT$19*FT58)+(FU$19*FU58)+(FV$19*FV58)+(FW$19*FW58)+(FX$19*FX58)+(FY$19*FY58)+(FZ$19*FZ58)+(GA$19*GA58)+(GB$19*GB58)+(GC$19*GC58)+(GD$19*GD58)+(GE$19*GE58)+(GF$19*GF58)+(GG$19*GG58)+(GH$19*GH58)+(GI$19*GI58)+(GJ$19*GJ58)) ->  | HM58: =IF(OR('Set UP'!$C44=0,'Set UP'!$D44=0,'Set UP'!$E44=0),"",(GM$19*GM58)+(GN$19*GN58)+(GO$19*GO58)+(GP$19*GP58)+(GQ$19*GQ58)+(GR$19*GR58)+(GS$19*GS58)+(GT$19*GT58)+(GU$19*GU58)+(GV$19*GV58)+(GW$19*GW58)+(GX$19*GX58)+(GY$19*GY58)+(GZ$19*GZ58)+(HA$19*HA58)+(HB$19*HB58)+(HC$19*HC58)+(HD$19*HD58)+(HE$19*HE58)+(HF$19*HF58)+(HG$19*HG58)+(HH$19*HH58)+(HI$19*HI58)+(HJ$19*HJ58)+(HK$19*HK58)) ->  | IN58: =IF(OR('Set UP'!$C44=0,'Set UP'!$D44=0,'Set UP'!$E44=0),"",(HN$19*HN58)+(HO$19*HO58)+(HP$19*HP58)+(HQ$19*HQ58)+(HR$19*HR58)+(HS$19*HS58)+(HT$19*HT58)+(HU$19*HU58)+(HV$19*HV58)+(HW$19*HW58)+(HX$19*HX58)+(HY$19*HY58)+(HZ$19*HZ58)+(IA$19*IA58)+(IB$19*IB58)+(IC$19*IC58)+(ID$19*ID58)+(IE$19*IE58)+(IF$19*IF58)+(IG$19*IG58)+(IH$19*IH58)+(II$19*II58)+(IJ$19*IJ58)+(IK$19*IK58)+(IL$19*IL58)) ->  | JO58: =IF(OR('Set UP'!$C44=0,'Set UP'!$D44=0,'Set UP'!$E44=0),"",(IO$19*IO58)+(IP$19*IP58)+(IQ$19*IQ58)+(IR$19*IR58)+(IS$19*IS58)+(IT$19*IT58)+(IU$19*IU58)+(IV$19*IV58)+(IW$19*IW58)+(IX$19*IX58)+(IY$19*IY58)+(IZ$19*IZ58)+(JA$19*JA58)+(JB$19*JB58)+(JC$19*JC58)+(JD$19*JD58)+(JE$19*JE58)+(JF$19*JF58)+(JG$19*JG58)+(JH$19*JH58)+(JI$19*JI58)+(JJ$19*JJ58)+(JK$19*JK58)+(JL$19*JL58)+(JM$19*JM58)) ->  | JP58: =IF(OR('Set UP'!$C44=0,'Set UP'!$D44=0,'Set UP'!$E44=0),"",(AF58+BG58+CH58+DI58+EJ58+FK58+GL58+HM58+IN58+JO58)) ->  | JQ58: =IF(OR('Set UP'!$C44=0,'Set UP'!$D44=0,'Set UP'!$E44=0),"",RANK(JP58,$JP$21:$JP$60,0)) ->  | JR58: =IF(OR('Set UP'!K44<>1,'Set UP'!C44=0,'Set UP'!D44=0,'Set UP'!E44=0,'Set UP'!F44=0),"",$JP58) ->  | JS58: =IF(OR('Set UP'!K44<>1,'Set UP'!C44=0,'Set UP'!D44=0,'Set UP'!E44=0,'Set UP'!F44=0),"",RANK(JR58,$JR$21:$JR$60,0)) ->  | JT58: =IF(OR('Set UP'!K44<>2,'Set UP'!C44=0,'Set UP'!D44=0,'Set UP'!E44=0,'Set UP'!F44=0),"",$JP58) ->  | JU58: =IF(OR('Set UP'!K44<>2,'Set UP'!C44=0,'Set UP'!D44=0,'Set UP'!E44=0,'Set UP'!F44=0),"",RANK(JT58,$JT$21:$JT$60,0)) ->  | JV58: =IF(OR('Set UP'!F44<>"F",'Set UP'!C44=0,'Set UP'!D44=0,'Set UP'!E44=0),"",$JP58) ->  | JW58: =IF(OR('Set UP'!F44<>"F",'Set UP'!C44=0,'Set UP'!D44=0,'Set UP'!E44=0),"",RANK(JV58,$JV$21:$JV$60,0)) ->  | JX58: =IF(OR('Set UP'!F44<>"NS",'Set UP'!C44=0,'Set UP'!D44=0,'Set UP'!E44=0),"",$JP58) ->  | JY58: =IF(OR('Set UP'!F44<>"NS",'Set UP'!C44=0,'Set UP'!D44=0,'Set UP'!E44=0),"",RANK(JX58,$JX$21:$JX$60,0)) ->  | JZ58: =IF(OR('Set UP'!$C44=0,'Set UP'!$D44=0,'Set UP'!$E44=0,JP58=0),"",JP58/MAX(JP$21:JP$60)*1000) -> 
B59: 39 | C59: =IF(OR('Set UP'!$C45=0,'Set UP'!$D45=0,'Set UP'!$E45=0,'Set UP'!F45=0)," --",'Set UP'!C45) -> -- | D59: =IF(OR('Set UP'!$C45=0,'Set UP'!$D45=0,'Set UP'!$E45=0,'Set UP'!F45=0)," --",'Set UP'!D45&" "&'Set UP'!E45) -> -- | E59: =IF(OR('Set UP'!$C45=0,'Set UP'!$D45=0,'Set UP'!$E45=0,'Set UP'!F45=0)," --",'Set UP'!F45) -> -- | AF59: =IF(OR('Set UP'!$C45=0,'Set UP'!$D45=0,'Set UP'!$E45=0),"",(F$19*F59)+(G$19*G59)+(H$19*H59)+(I$19*I59)+(J$19*J59)+(K$19*K59)+(L$19*L59)+(M$19*M59)+(N$19*N59)+(O$19*O59)+(P$19*P59)+(Q$19*Q59)+(R$19*R59)+(S$19*S59)+(T$19*T59)+(U$19*U59)+(V$19*V59)+(W$19*W59)+(X$19*X59)+(Y$19*Y59)+(Z$19*Z59)+(AA$19*AA59)+(AB$19*AB59)+(AC$19*AC59)+(AD$19*AD59)) ->  | BG59: =IF(OR('Set UP'!$C45=0,'Set UP'!$D45=0,'Set UP'!$E45=0),"",(AG$19*AG59)+(AH$19*AH59)+(AI$19*AI59)+(AJ$19*AJ59)+(AK$19*AK59)+(AL$19*AL59)+(AM$19*AM59)+(AN$19*AN59)+(AO$19*AO59)+(AP$19*AP59)+(AQ$19*AQ59)+(AR$19*AR59)+(AS$19*AS59)+(AT$19*AT59)+(AU$19*AU59)+(AV$19*AV59)+(AW$19*AW59)+(AX$19*AX59)+(AY$19*AY59)+(AZ$19*AZ59)+(BA$19*BA59)+(BB$19*BB59)+(BC$19*BC59)+(BD$19*BD59)+(BE$19*BE59)) ->  | CH59: =IF(OR('Set UP'!$C45=0,'Set UP'!$D45=0,'Set UP'!$E45=0),"",(BH$19*BH59)+(BI$19*BI59)+(BJ$19*BJ59)+(BK$19*BK59)+(BL$19*BL59)+(BM$19*BM59)+(BN$19*BN59)+(BO$19*BO59)+(BP$19*BP59)+(BQ$19*BQ59)+(BR$19*BR59)+(BS$19*BS59)+(BT$19*BT59)+(BU$19*BU59)+(BV$19*BV59)+(BW$19*BW59)+(BX$19*BX59)+(BY$19*BY59)+(BZ$19*BZ59)+(CA$19*CA59)+(CB$19*CB59)+(CC$19*CC59)+(CD$19*CD59)+(CE$19*CE59)+(CF$19*CF59)) ->  | DI59: =IF(OR('Set UP'!$C45=0,'Set UP'!$D45=0,'Set UP'!$E45=0),"",(CI$19*CI59)+(CJ$19*CJ59)+(CK$19*CK59)+(CL$19*CL59)+(CM$19*CM59)+(CN$19*CN59)+(CO$19*CO59)+(CP$19*CP59)+(CQ$19*CQ59)+(CR$19*CR59)+(CS$19*CS59)+(CT$19*CT59)+(CU$19*CU59)+(CV$19*CV59)+(CW$19*CW59)+(CX$19*CX59)+(CY$19*CY59)+(CZ$19*CZ59)+(DA$19*DA59)+(DB$19*DB59)+(DC$19*DC59)+(DD$19*DD59)+(DE$19*DE59)+(DF$19*DF59)+(DG$19*DG59)) ->  | EJ59: =IF(OR('Set UP'!$C45=0,'Set UP'!$D45=0,'Set UP'!$E45=0),"",(DJ$19*DJ59)+(DK$19*DK59)+(DL$19*DL59)+(DM$19*DM59)+(DN$19*DN59)+(DO$19*DO59)+(DP$19*DP59)+(DQ$19*DQ59)+(DR$19*DR59)+(DS$19*DS59)+(DT$19*DT59)+(DU$19*DU59)+(DV$19*DV59)+(DW$19*DW59)+(DX$19*DX59)+(DY$19*DY59)+(DZ$19*DZ59)+(EA$19*EA59)+(EB$19*EB59)+(EC$19*EC59)+(ED$19*ED59)+(EE$19*EE59)+(EF$19*EF59)+(EG$19*EG59)+(EH$19*EH59)) ->  | FK59: =IF(OR('Set UP'!$C45=0,'Set UP'!$D45=0,'Set UP'!$E45=0),"",(EK$19*EK59)+(EL$19*EL59)+(EM$19*EM59)+(EN$19*EN59)+(EO$19*EO59)+(EP$19*EP59)+(EQ$19*EQ59)+(ER$19*ER59)+(ES$19*ES59)+(ET$19*ET59)+(EU$19*EU59)+(EV$19*EV59)+(EW$19*EW59)+(EX$19*EX59)+(EY$19*EY59)+(EZ$19*EZ59)+(FA$19*FA59)+(FB$19*FB59)+(FC$19*FC59)+(FD$19*FD59)+(FE$19*FE59)+(FF$19*FF59)+(FG$19*FG59)+(FH$19*FH59)+(FI$19*FI59)) ->  | GL59: =IF(OR('Set UP'!$C45=0,'Set UP'!$D45=0,'Set UP'!$E45=0),"",(FL$19*FL59)+(FM$19*FM59)+(FN$19*FN59)+(FO$19*FO59)+(FP$19*FP59)+(FQ$19*FQ59)+(FR$19*FR59)+(FS$19*FS59)+(FT$19*FT59)+(FU$19*FU59)+(FV$19*FV59)+(FW$19*FW59)+(FX$19*FX59)+(FY$19*FY59)+(FZ$19*FZ59)+(GA$19*GA59)+(GB$19*GB59)+(GC$19*GC59)+(GD$19*GD59)+(GE$19*GE59)+(GF$19*GF59)+(GG$19*GG59)+(GH$19*GH59)+(GI$19*GI59)+(GJ$19*GJ59)) ->  | HM59: =IF(OR('Set UP'!$C45=0,'Set UP'!$D45=0,'Set UP'!$E45=0),"",(GM$19*GM59)+(GN$19*GN59)+(GO$19*GO59)+(GP$19*GP59)+(GQ$19*GQ59)+(GR$19*GR59)+(GS$19*GS59)+(GT$19*GT59)+(GU$19*GU59)+(GV$19*GV59)+(GW$19*GW59)+(GX$19*GX59)+(GY$19*GY59)+(GZ$19*GZ59)+(HA$19*HA59)+(HB$19*HB59)+(HC$19*HC59)+(HD$19*HD59)+(HE$19*HE59)+(HF$19*HF59)+(HG$19*HG59)+(HH$19*HH59)+(HI$19*HI59)+(HJ$19*HJ59)+(HK$19*HK59)) ->  | IN59: =IF(OR('Set UP'!$C45=0,'Set UP'!$D45=0,'Set UP'!$E45=0),"",(HN$19*HN59)+(HO$19*HO59)+(HP$19*HP59)+(HQ$19*HQ59)+(HR$19*HR59)+(HS$19*HS59)+(HT$19*HT59)+(HU$19*HU59)+(HV$19*HV59)+(HW$19*HW59)+(HX$19*HX59)+(HY$19*HY59)+(HZ$19*HZ59)+(IA$19*IA59)+(IB$19*IB59)+(IC$19*IC59)+(ID$19*ID59)+(IE$19*IE59)+(IF$19*IF59)+(IG$19*IG59)+(IH$19*IH59)+(II$19*II59)+(IJ$19*IJ59)+(IK$19*IK59)+(IL$19*IL59)) ->  | JO59: =IF(OR('Set UP'!$C45=0,'Set UP'!$D45=0,'Set UP'!$E45=0),"",(IO$19*IO59)+(IP$19*IP59)+(IQ$19*IQ59)+(IR$19*IR59)+(IS$19*IS59)+(IT$19*IT59)+(IU$19*IU59)+(IV$19*IV59)+(IW$19*IW59)+(IX$19*IX59)+(IY$19*IY59)+(IZ$19*IZ59)+(JA$19*JA59)+(JB$19*JB59)+(JC$19*JC59)+(JD$19*JD59)+(JE$19*JE59)+(JF$19*JF59)+(JG$19*JG59)+(JH$19*JH59)+(JI$19*JI59)+(JJ$19*JJ59)+(JK$19*JK59)+(JL$19*JL59)+(JM$19*JM59)) ->  | JP59: =IF(OR('Set UP'!$C45=0,'Set UP'!$D45=0,'Set UP'!$E45=0),"",(AF59+BG59+CH59+DI59+EJ59+FK59+GL59+HM59+IN59+JO59)) ->  | JQ59: =IF(OR('Set UP'!$C45=0,'Set UP'!$D45=0,'Set UP'!$E45=0),"",RANK(JP59,$JP$21:$JP$60,0)) ->  | JR59: =IF(OR('Set UP'!K45<>1,'Set UP'!C45=0,'Set UP'!D45=0,'Set UP'!E45=0,'Set UP'!F45=0),"",$JP59) ->  | JS59: =IF(OR('Set UP'!K45<>1,'Set UP'!C45=0,'Set UP'!D45=0,'Set UP'!E45=0,'Set UP'!F45=0),"",RANK(JR59,$JR$21:$JR$60,0)) ->  | JT59: =IF(OR('Set UP'!K45<>2,'Set UP'!C45=0,'Set UP'!D45=0,'Set UP'!E45=0,'Set UP'!F45=0),"",$JP59) ->  | JU59: =IF(OR('Set UP'!K45<>2,'Set UP'!C45=0,'Set UP'!D45=0,'Set UP'!E45=0,'Set UP'!F45=0),"",RANK(JT59,$JT$21:$JT$60,0)) ->  | JV59: =IF(OR('Set UP'!F45<>"F",'Set UP'!C45=0,'Set UP'!D45=0,'Set UP'!E45=0),"",$JP59) ->  | JW59: =IF(OR('Set UP'!F45<>"F",'Set UP'!C45=0,'Set UP'!D45=0,'Set UP'!E45=0),"",RANK(JV59,$JV$21:$JV$60,0)) ->  | JX59: =IF(OR('Set UP'!F45<>"NS",'Set UP'!C45=0,'Set UP'!D45=0,'Set UP'!E45=0),"",$JP59) ->  | JY59: =IF(OR('Set UP'!F45<>"NS",'Set UP'!C45=0,'Set UP'!D45=0,'Set UP'!E45=0),"",RANK(JX59,$JX$21:$JX$60,0)) ->  | JZ59: =IF(OR('Set UP'!$C45=0,'Set UP'!$D45=0,'Set UP'!$E45=0,JP59=0),"",JP59/MAX(JP$21:JP$60)*1000) -> 
B60: 40 | C60: =IF(OR('Set UP'!$C46=0,'Set UP'!$D46=0,'Set UP'!$E46=0,'Set UP'!F46=0)," --",'Set UP'!C46) -> -- | D60: =IF(OR('Set UP'!$C46=0,'Set UP'!$D46=0,'Set UP'!$E46=0,'Set UP'!F46=0)," --",'Set UP'!D46&" "&'Set UP'!E46) -> -- | E60: =IF(OR('Set UP'!$C46=0,'Set UP'!$D46=0,'Set UP'!$E46=0,'Set UP'!F46=0)," --",'Set UP'!F46) -> -- | AF60: =IF(OR('Set UP'!$C46=0,'Set UP'!$D46=0,'Set UP'!$E46=0),"",(F$19*F60)+(G$19*G60)+(H$19*H60)+(I$19*I60)+(J$19*J60)+(K$19*K60)+(L$19*L60)+(M$19*M60)+(N$19*N60)+(O$19*O60)+(P$19*P60)+(Q$19*Q60)+(R$19*R60)+(S$19*S60)+(T$19*T60)+(U$19*U60)+(V$19*V60)+(W$19*W60)+(X$19*X60)+(Y$19*Y60)+(Z$19*Z60)+(AA$19*AA60)+(AB$19*AB60)+(AC$19*AC60)+(AD$19*AD60)) ->  | BG60: =IF(OR('Set UP'!$C46=0,'Set UP'!$D46=0,'Set UP'!$E46=0),"",(AG$19*AG60)+(AH$19*AH60)+(AI$19*AI60)+(AJ$19*AJ60)+(AK$19*AK60)+(AL$19*AL60)+(AM$19*AM60)+(AN$19*AN60)+(AO$19*AO60)+(AP$19*AP60)+(AQ$19*AQ60)+(AR$19*AR60)+(AS$19*AS60)+(AT$19*AT60)+(AU$19*AU60)+(AV$19*AV60)+(AW$19*AW60)+(AX$19*AX60)+(AY$19*AY60)+(AZ$19*AZ60)+(BA$19*BA60)+(BB$19*BB60)+(BC$19*BC60)+(BD$19*BD60)+(BE$19*BE60)) ->  | CH60: =IF(OR('Set UP'!$C46=0,'Set UP'!$D46=0,'Set UP'!$E46=0),"",(BH$19*BH60)+(BI$19*BI60)+(BJ$19*BJ60)+(BK$19*BK60)+(BL$19*BL60)+(BM$19*BM60)+(BN$19*BN60)+(BO$19*BO60)+(BP$19*BP60)+(BQ$19*BQ60)+(BR$19*BR60)+(BS$19*BS60)+(BT$19*BT60)+(BU$19*BU60)+(BV$19*BV60)+(BW$19*BW60)+(BX$19*BX60)+(BY$19*BY60)+(BZ$19*BZ60)+(CA$19*CA60)+(CB$19*CB60)+(CC$19*CC60)+(CD$19*CD60)+(CE$19*CE60)+(CF$19*CF60)) ->  | DI60: =IF(OR('Set UP'!$C46=0,'Set UP'!$D46=0,'Set UP'!$E46=0),"",(CI$19*CI60)+(CJ$19*CJ60)+(CK$19*CK60)+(CL$19*CL60)+(CM$19*CM60)+(CN$19*CN60)+(CO$19*CO60)+(CP$19*CP60)+(CQ$19*CQ60)+(CR$19*CR60)+(CS$19*CS60)+(CT$19*CT60)+(CU$19*CU60)+(CV$19*CV60)+(CW$19*CW60)+(CX$19*CX60)+(CY$19*CY60)+(CZ$19*CZ60)+(DA$19*DA60)+(DB$19*DB60)+(DC$19*DC60)+(DD$19*DD60)+(DE$19*DE60)+(DF$19*DF60)+(DG$19*DG60)) ->  | EJ60: =IF(OR('Set UP'!$C46=0,'Set UP'!$D46=0,'Set UP'!$E46=0),"",(DJ$19*DJ60)+(DK$19*DK60)+(DL$19*DL60)+(DM$19*DM60)+(DN$19*DN60)+(DO$19*DO60)+(DP$19*DP60)+(DQ$19*DQ60)+(DR$19*DR60)+(DS$19*DS60)+(DT$19*DT60)+(DU$19*DU60)+(DV$19*DV60)+(DW$19*DW60)+(DX$19*DX60)+(DY$19*DY60)+(DZ$19*DZ60)+(EA$19*EA60)+(EB$19*EB60)+(EC$19*EC60)+(ED$19*ED60)+(EE$19*EE60)+(EF$19*EF60)+(EG$19*EG60)+(EH$19*EH60)) ->  | FK60: =IF(OR('Set UP'!$C46=0,'Set UP'!$D46=0,'Set UP'!$E46=0),"",(EK$19*EK60)+(EL$19*EL60)+(EM$19*EM60)+(EN$19*EN60)+(EO$19*EO60)+(EP$19*EP60)+(EQ$19*EQ60)+(ER$19*ER60)+(ES$19*ES60)+(ET$19*ET60)+(EU$19*EU60)+(EV$19*EV60)+(EW$19*EW60)+(EX$19*EX60)+(EY$19*EY60)+(EZ$19*EZ60)+(FA$19*FA60)+(FB$19*FB60)+(FC$19*FC60)+(FD$19*FD60)+(FE$19*FE60)+(FF$19*FF60)+(FG$19*FG60)+(FH$19*FH60)+(FI$19*FI60)) ->  | GL60: =IF(OR('Set UP'!$C46=0,'Set UP'!$D46=0,'Set UP'!$E46=0),"",(FL$19*FL60)+(FM$19*FM60)+(FN$19*FN60)+(FO$19*FO60)+(FP$19*FP60)+(FQ$19*FQ60)+(FR$19*FR60)+(FS$19*FS60)+(FT$19*FT60)+(FU$19*FU60)+(FV$19*FV60)+(FW$19*FW60)+(FX$19*FX60)+(FY$19*FY60)+(FZ$19*FZ60)+(GA$19*GA60)+(GB$19*GB60)+(GC$19*GC60)+(GD$19*GD60)+(GE$19*GE60)+(GF$19*GF60)+(GG$19*GG60)+(GH$19*GH60)+(GI$19*GI60)+(GJ$19*GJ60)) ->  | HM60: =IF(OR('Set UP'!$C46=0,'Set UP'!$D46=0,'Set UP'!$E46=0),"",(GM$19*GM60)+(GN$19*GN60)+(GO$19*GO60)+(GP$19*GP60)+(GQ$19*GQ60)+(GR$19*GR60)+(GS$19*GS60)+(GT$19*GT60)+(GU$19*GU60)+(GV$19*GV60)+(GW$19*GW60)+(GX$19*GX60)+(GY$19*GY60)+(GZ$19*GZ60)+(HA$19*HA60)+(HB$19*HB60)+(HC$19*HC60)+(HD$19*HD60)+(HE$19*HE60)+(HF$19*HF60)+(HG$19*HG60)+(HH$19*HH60)+(HI$19*HI60)+(HJ$19*HJ60)+(HK$19*HK60)) ->  | IN60: =IF(OR('Set UP'!$C46=0,'Set UP'!$D46=0,'Set UP'!$E46=0),"",(HN$19*HN60)+(HO$19*HO60)+(HP$19*HP60)+(HQ$19*HQ60)+(HR$19*HR60)+(HS$19*HS60)+(HT$19*HT60)+(HU$19*HU60)+(HV$19*HV60)+(HW$19*HW60)+(HX$19*HX60)+(HY$19*HY60)+(HZ$19*HZ60)+(IA$19*IA60)+(IB$19*IB60)+(IC$19*IC60)+(ID$19*ID60)+(IE$19*IE60)+(IF$19*IF60)+(IG$19*IG60)+(IH$19*IH60)+(II$19*II60)+(IJ$19*IJ60)+(IK$19*IK60)+(IL$19*IL60)) ->  | JO60: =IF(OR('Set UP'!$C46=0,'Set UP'!$D46=0,'Set UP'!$E46=0),"",(IO$19*IO60)+(IP$19*IP60)+(IQ$19*IQ60)+(IR$19*IR60)+(IS$19*IS60)+(IT$19*IT60)+(IU$19*IU60)+(IV$19*IV60)+(IW$19*IW60)+(IX$19*IX60)+(IY$19*IY60)+(IZ$19*IZ60)+(JA$19*JA60)+(JB$19*JB60)+(JC$19*JC60)+(JD$19*JD60)+(JE$19*JE60)+(JF$19*JF60)+(JG$19*JG60)+(JH$19*JH60)+(JI$19*JI60)+(JJ$19*JJ60)+(JK$19*JK60)+(JL$19*JL60)+(JM$19*JM60)) ->  | JP60: =IF(OR('Set UP'!$C46=0,'Set UP'!$D46=0,'Set UP'!$E46=0),"",(AF60+BG60+CH60+DI60+EJ60+FK60+GL60+HM60+IN60+JO60)) ->  | JQ60: =IF(OR('Set UP'!$C46=0,'Set UP'!$D46=0,'Set UP'!$E46=0),"",RANK(JP60,$JP$21:$JP$60,0)) ->  | JR60: =IF(OR('Set UP'!K46<>1,'Set UP'!C46=0,'Set UP'!D46=0,'Set UP'!E46=0,'Set UP'!F46=0),"",$JP60) ->  | JS60: =IF(OR('Set UP'!K46<>1,'Set UP'!C46=0,'Set UP'!D46=0,'Set UP'!E46=0,'Set UP'!F46=0),"",RANK(JR60,$JR$21:$JR$60,0)) ->  | JT60: =IF(OR('Set UP'!K46<>2,'Set UP'!C46=0,'Set UP'!D46=0,'Set UP'!E46=0,'Set UP'!F46=0),"",$JP60) ->  | JU60: =IF(OR('Set UP'!K46<>2,'Set UP'!C46=0,'Set UP'!D46=0,'Set UP'!E46=0,'Set UP'!F46=0),"",RANK(JT60,$JT$21:$JT$60,0)) ->  | JV60: =IF(OR('Set UP'!F46<>"F",'Set UP'!C46=0,'Set UP'!D46=0,'Set UP'!E46=0),"",$JP60) ->  | JW60: =IF(OR('Set UP'!F46<>"F",'Set UP'!C46=0,'Set UP'!D46=0,'Set UP'!E46=0),"",RANK(JV60,$JV$21:$JV$60,0)) ->  | JX60: =IF(OR('Set UP'!F46<>"NS",'Set UP'!C46=0,'Set UP'!D46=0,'Set UP'!E46=0),"",$JP60) ->  | JY60: =IF(OR('Set UP'!F46<>"NS",'Set UP'!C46=0,'Set UP'!D46=0,'Set UP'!E46=0),"",RANK(JX60,$JX$21:$JX$60,0)) ->  | JZ60: =IF(OR('Set UP'!$C46=0,'Set UP'!$D46=0,'Set UP'!$E46=0,JP60=0),"",JP60/MAX(JP$21:JP$60)*1000) -> 
AF61: =IF(OR('Set UP'!$C47=0,'Set UP'!$D47=0,'Set UP'!$E47=0),"",(F$19*F61)+(G$19*G61)+(H$19*H61)+(I$19*I61)+(J$19*J61)+(K$19*K61)+(L$19*L61)+(M$19*M61)+(N$19*N61)+(O$19*O61)+(P$19*P61)+(Q$19*Q61)+(R$19*R61)+(S$19*S61)+(T$19*T61)) ->  | JV61: =IF(OR('Set UP'!F47<>"F",'Set UP'!E47=0,'Set UP'!G47=0,'Set UP'!H47=0),"",$JP61) ->  | JX61: =IF(OR('Set UP'!F47<>"NS",'Set UP'!C47=0,'Set UP'!D47=0,'Set UP'!E47=0),"",$JP61) ->  | JY61: =IF(OR('Set UP'!F47<>"NS",'Set UP'!C47=0,'Set UP'!D47=0,'Set UP'!E47=0),"",RANK(JX61,$JX$21:$JX$60,0)) ->  | JZ61: =IF(OR('Set UP'!$C47=0,'Set UP'!$D47=0,'Set UP'!$E47=0),"",JP61/MAX(JP$21:JP$60)*1000) -> 

Sheet SERC

Sheet Wet Incident
E1: JUDGE START HIDE ROW | F1: 1 | AG1: 2 | BH1: 3 | CI1: 4 | DJ1: 5 | EK1: 6 | FL1: 7 | GM1: 8 | HN1: 9 | IO1: 10 | JP1: 11 | JR1: h | JT1: h | JV1: h | JX1: h | JZ1: e
D2: No. Judges Required(1 to 10) | E2: 5
D3: Judge 1 Citeria (1 to 25) | E3: 4
D4: Judge 2 Citeria (1 to 25) | E4: 5
D5: Judge 3 Citeria (1 to 25) | E5: 12
D6: Judge 4 Citeria (1 to 25) | E6: 9
D7: Judge 5 Citeria (1 to 25) | E7: 10
D8: Judge 6 Citeria (1 to 25)
D9: Judge 7 Citeria (1 to 25)
D10: Judge 8 Citeria (1 to 25)
D11: Judge 9 Citeria (1 to 25)
D12: Judge 10 Citeria (1 to 25)
D15: ='Set UP'!Q7 -> Dry Incident
D16: Club to Highlight | F16: JUDGE 1 | AG16: JUDGE 2 | BH16: JUDGE 3 | CI16: JUDGE 4 | DJ16: JUDGE 5 | EK16: JUDGE 6 | FL16: Judge 7 | GM16: Judge 8 | HN16: Judge 9 | IO16: Judge 10 | JP16: ¬ OVERALL TOTAL | JQ16: ¬ POSITION (COMPETITION) | JR16: ¬ OVERALL (A LEAGUE RANK) | JS16: ¬ POSITION ( A LEAGUE) | JT16: ¬ OVERALL (B LEAGUE RANK) | JU16: POSITION ( BLEAGUE) | JV16: ¬ OVERALL (FRESHERS LEAGUE RANK) | JW16: POSITION ( FRESHERS LEAGUE) | JX16: ¬ OVERALL (Non- Student RANK) | JY16: POSITION ( Non-Students LEAGUE) | JZ16: Lifesaving Points (Competition)
F17: Captaincy and overall | AG17: Unconscious breathing | BH17: Unconscious non-breathing & diabetic hypoglycaemic & concerned bystander | CI17: Non swimmer & weak swimmer | DJ17: Hysterical/ asthmatic & phone | EK17: Judge 6 Description <Enter Here> | FL17: Judge 7 Description <Enter Here> | GM17: Judge 8 Description <Enter Here> | HN17: Judge 9 Description <Enter Here> | IO17: Judge 10 Description <Enter Here>
F18: effective control of scenario | G18: effective captaincy | H18: effective prioritisation of casualties | I18: effective communication | J18: Mark Category 6 <Enter Here> | K18: Mark Category 6 <Enter Here> | L18: Mark Category 7 <Enter Here> | M18: Mark Category 8 <Enter Here> | N18: Mark Category 9 <Enter Here> | O18: Mark Category 10 <Enter Here> | P18: Mark Category 11 <Enter Here> | Q18: Mark Category 12 <Enter Here> | R18: Mark Category 13 <Enter Here> | S18: Mark Category 14<Enter Here> | T18: Mark Category 15 <Enter Here> | U18: Mark Category 16<Enter Here> | V18: Mark Category 17<Enter Here> | W18: Mark Category 18<Enter Here> | X18: Mark Category 19 <Enter Here> | Y18: Mark Category 20 <Enter Here> | Z18: Mark Category 21 <Enter Here> | AA18: Mark Category 22<Enter Here> | AB18: Mark Category 23 <Enter Here> | AC18: Mark Category 24<Enter Here> | AD18: Mark Category 25 <Enter Here> | AE18: Do not fill in required for hidding process | AF18: ¬ JUDGE 1 TOTAL | AG18: identification and speed of rescue | AH18: effective rescue and safe landing (including quality) | AI18: assessment | AJ18: effective treatment (recovery position) | AK18: aftercare (rechecking breathing) | AL18: Mark Category 6 <Enter Here> | AM18: Mark Category 7 <Enter Here> | AN18: Mark Category 8 <Enter Here> | AO18: Mark Category 9 <Enter Here> | AP18: Mark Category 10 <Enter Here> | AQ18: Mark Category 11 <Enter Here> | AR18: Mark Category 12 <Enter Here> | AS18: Mark Category 13 <Enter Here> | AT18: Mark Category 14<Enter Here> | AU18: Mark Category 15 <Enter Here> | AV18: Mark Category 16<Enter Here> | AW18: Mark Category 17<Enter Here> | AX18: Mark Category 18<Enter Here> | AY18: Mark Category 19 <Enter Here> | AZ18: Mark Category 20 <Enter Here> | BA18: Mark Category 21 <Enter Here> | BB18: Mark Category 22<Enter Here> | BC18: Mark Category 23 <Enter Here> | BD18: Mark Category 24<Enter Here> | BE18: Mark Category 25 <Enter Here> | BF18: Do not fill in required for hidding process | BG18: ¬ JUDGE 2 TOTAL | BH18: identification | BI18: effective rescue and safe landing (including quality) | BJ18: assessment | BK18: early CPR (time to first breath) | BL18: effectiveness of CPR (including 5 initial breaths) | BM18: continuous CPR | BN18: identification | BO18: treatment of casualty | BP18: aftercare | BQ18: questioning | BR18: Identification as a bystander, approach, and questioning | BS18: reassurance and aftercare | BT18: Mark Category 13 <Enter Here> | BU18: Mark Category 14<Enter Here> | BV18: Mark Category 15 <Enter Here> | BW18: Mark Category 16<Enter Here> | BX18: Mark Category 17<Enter Here> | BY18: Mark Category 18<Enter Here> | BZ18: Mark Category 19 <Enter Here> | CA18: Mark Category 20 <Enter Here> | CB18: Mark Category 21 <Enter Here> | CC18: Mark Category 22<Enter Here> | CD18: Mark Category 23 <Enter Here> | CE18: Mark Category 24<Enter Here> | CF18: Mark Category 25 <Enter Here> | CG18: Do not fill in required for hidding process | CH18: ¬ JUDGE 3 TOTAL | CI18: identification and speed of rescue | CJ18: safe and effective rescue of casualty (including use of aids) | CK18: aftercare and treatment for shock | CL18: questioning | CM18: identification and speed of rescue | CN18: attempt to prevent casualty from being locked | CO18: safe and effective rescue (including use of aids) | CP18: aftercare | CQ18: questioning | CR18: Mark Category 10 <Enter Here> | CS18: Mark Category 11 <Enter Here> | CT18: Mark Category 12 <Enter Here> | CU18: Mark Category 13 <Enter Here> | CV18: Mark Category 14<Enter Here> | CW18: Mark Category 15 <Enter Here> | CX18: Mark Category 16<Enter Here> | CY18: Mark Category 17<Enter Here> | CZ18: Mark Category 18<Enter Here> | DA18: Mark Category 19 <Enter Here> | DB18: Mark Category 20 <Enter Here> | DC18: Mark Category 21 <Enter Here> | DD18: Mark Category 22<Enter Here> | DE18: Mark Category 23 <Enter Here> | DF18: Mark Category 24<Enter Here> | DG18: Mark Category 25 <Enter Here> | DH18: Do not fill in required for hidding process | DI18: ¬ JUDGE 4 TOTAL | DJ18: idenfitifcation | DK18: treatment of casualty | DL18: reassurance and aftercare | DM18: questioning | DN18: speed to phoning 999 (-1 point for every 10s after 25s) | DO18: emergency services requested (more than just an ambulance) | DP18: exact location given | DQ18: details of what has happened | DR18: information about unconscious x2 given (including details of casualties, treatments given, etc) | DS18: other information given (including details of other casualties, number of casualties, treatments given, trained lifesavers, etc.) | DT18: Mark Category 11 <Enter Here> | DU18: Mark Category 12 <Enter Here> | DV18: Mark Category 13 <Enter Here> | DW18: Mark Category 14<Enter Here> | DX18: Mark Category 15 <Enter Here> | DY18: Mark Category 16<Enter Here> | DZ18: Mark Category 17<Enter Here> | EA18: Mark Category 18<Enter Here> | EB18: Mark Category 19 <Enter Here> | EC18: Mark Category 20 <Enter Here> | ED18: Mark Category 21 <Enter Here> | EE18: Mark Category 22<Enter Here> | EF18: Mark Category 23 <Enter Here> | EG18: Mark Category 24<Enter Here> | EH18: Mark Category 25 <Enter Here> | EI18: Do not fill in required for hidding process | EJ18: ¬ JUDGE 5 TOTAL | EK18: Mark Category 1 <Enter Here> | EL18: Mark Category 2 <Enter Here> | EM18: Mark Category 3 <Enter Here> | EN18: Mark Category 4 <Enter Here> | EO18: Mark Category 6 <Enter Here> | EP18: Mark Category 6 <Enter Here> | EQ18: Mark Category 7 <Enter Here> | ER18: Mark Category 8 <Enter Here> | ES18: Mark Category 9 <Enter Here> | ET18: Mark Category 10 <Enter Here> | EU18: Mark Category 11 <Enter Here> | EV18: Mark Category 12 <Enter Here> | EW18: Mark Category 13 <Enter Here> | EX18: Mark Category 14<Enter Here> | EY18: Mark Category 15 <Enter Here> | EZ18: Mark Category 16<Enter Here> | FA18: Mark Category 17<Enter Here> | FB18: Mark Category 18<Enter Here> | FC18: Mark Category 19 <Enter Here> | FD18: Mark Category 20 <Enter Here> | FE18: Mark Category 21 <Enter Here> | FF18: Mark Category 22<Enter Here> | FG18: Mark Category 23 <Enter Here> | FH18: Mark Category 24<Enter Here> | FI18: Mark Category 25 <Enter Here> | FJ18: Do not fill in required for hidding process | FK18: ¬ JUDGE 6 TOTAL | FL18: Mark Category 1 <Enter Here> | FM18: Mark Category 2 <Enter Here> | FN18: Mark Category 3 <Enter Here> | FO18: Mark Category 4 <Enter Here> | FP18: Mark Category 5 <Enter Here> | FQ18: Mark Category 6 <Enter Here> | FR18: Mark Category 7 <Enter Here> | FS18: Mark Category 8 <Enter Here> | FT18: Mark Category 9 <Enter Here> | FU18: Mark Category 10 <Enter Here> | FV18: Mark Category 11 <Enter Here> | FW18: Mark Category 12 <Enter Here> | FX18: Mark Category 13 <Enter Here> | FY18: Mark Category 14<Enter Here> | FZ18: Mark Category 15 <Enter Here> | GA18: Mark Category 16<Enter Here> | GB18: Mark Category 17<Enter Here> | GC18: Mark Category 18<Enter Here> | GD18: Mark Category 19 <Enter Here> | GE18: Mark Category 20 <Enter Here> | GF18: Mark Category 21 <Enter Here> | GG18: Mark Category 22<Enter Here> | GH18: Mark Category 23 <Enter Here> | GI18: Mark Category 24<Enter Here> | GJ18: Mark Category 25 <Enter Here> | GK18: Do not fill in required for hidding process | GL18: ¬ JUDGE 7 TOTAL | GM18: Mark Category 1 <Enter Here> | GN18: Mark Category 2 <Enter Here> | GO18: Mark Category 3 <Enter Here> | GP18: Mark Category 4 <Enter Here> | GQ18: Mark Category 5 <Enter Here> | GR18: Mark Category 6 <Enter Here> | GS18: Mark Category 7 <Enter Here> | GT18: Mark Category 8 <Enter Here> | GU18: Mark Category 9 <Enter Here> | GV18: Mark Category 10 <Enter Here> | GW18: Mark Category 11 <Enter Here> | GX18: Mark Category 12 <Enter Here> | GY18: Mark Category 13 <Enter Here> | GZ18: Mark Category 14<Enter Here> | HA18: Mark Category 15 <Enter Here> | HB18: Mark Category 16<Enter Here> | HC18: Mark Category 17<Enter Here> | HD18: Mark Category 18<Enter Here> | HE18: Mark Category 19 <Enter Here> | HF18: Mark Category 20 <Enter Here> | HG18: Mark Category 21 <Enter Here> | HH18: Mark Category 22<Enter Here> | HI18: Mark Category 23 <Enter Here> | HJ18: Mark Category 24<Enter Here> | HK18: Mark Category 25 <Enter Here> | HL18: Do not fill in required for hidding process | HM18: ¬ JUDGE 8 TOTAL | HN18: Mark Category 1 <Enter Here> | HO18: Mark Category 2 <Enter Here> | HP18: Mark Category 3 <Enter Here> | HQ18: Mark Category 4 <Enter Here> | HR18: Mark Category 5 <Enter Here> | HS18: Mark Category 6 <Enter Here> | HT18: Mark Category 7 <Enter Here> | HU18: Mark Category 8 <Enter Here> | HV18: Mark Category 9 <Enter Here> | HW18: Mark Category 10 <Enter Here> | HX18: Mark Category 11 <Enter Here> | HY18: Mark Category 12 <Enter Here> | HZ18: Mark Category 13 <Enter Here> | IA18: Mark Category 14<Enter Here> | IB18: Mark Category 15 <Enter Here> | IC18: Mark Category 16<Enter Here> | ID18: Mark Category 17<Enter Here> | IE18: Mark Category 18<Enter Here> | IF18: Mark Category 19 <Enter Here> | IG18: Mark Category 20 <Enter Here> | IH18: Mark Category 21 <Enter Here> | II18: Mark Category 22<Enter Here> | IJ18: Mark Category 23 <Enter Here> | IK18: Mark Category 24<Enter Here> | IL18: Mark Category 25 <Enter Here> | IM18: Do not fill in required for hidding process | IN18: ¬ JUDGE 9 TOTAL | IO18: Mark Category 1 <Enter Here> | IP18: Mark Category 2 <Enter Here> | IQ18: Mark Category 3 <Enter Here> | IR18: Mark Category 4 <Enter Here> | IS18: Mark Category 5 <Enter Here> | IT18: Mark Category 6 <Enter Here> | IU18: Mark Category 7 <Enter Here> | IV18: Mark Category 8 <Enter Here> | IW18: Mark Category 9 <Enter Here> | IX18: Mark Category 10 <Enter Here> | IY18: Mark Category 11 <Enter Here> | IZ18: Mark Category 12 <Enter Here> | JA18: Mark Category 13 <Enter Here> | JB18: Mark Category 14<Enter Here> | JC18: Mark Category 15 <Enter Here> | JD18: Mark Category 16<Enter Here> | JE18: Mark Category 17<Enter Here> | JF18: Mark Category 18<Enter Here> | JG18: Mark Category 19 <Enter Here> | JH18: Mark Category 20 <Enter Here> | JI18: Mark Category 21 <Enter Here> | JJ18: Mark Category 22<Enter Here> | JK18: Mark Category 23 <Enter Here> | JL18: Mark Category 24<Enter Here> | JM18: Mark Category 25 <Enter Here> | JN18: Do not fill in required for hidding process | JO18: ¬ JUDGE 10 TOTAL
E19: MARK WEIGHTING → | F19: 1.5 | G19: 1.5 | H19: 3 | I19: 1.5 | AG19: 1.5 | AH19: 1.5 | AI19: 1 | AJ19: 1 | AK19: 1 | BH19: 0.5 | BI19: 1 | BJ19: 1 | BK19: 1.5 | BL19: 1.5 | BM19: 1.5 | BN19: 1.5 | BO19: 1.5 | BP19: 1 | BQ19: 0.5 | BR19: 1 | BS19: 1 | CI19: 2.5 | CJ19: 3 | CK19: 1.5 | CL19: 0.5 | CM19: 2 | CN19: 1 | CO19: 2.5 | CP19: 1 | CQ19: 0.5 | DJ19: 1 | DK19: 1.5 | DL19: 1.5 | DM19: 0.5 | DN19: 1.5 | DO19: 1 | DP19: 1 | DQ19: 0.5 | DR19: 2 | DS19: 1.5
C20: WEB | D20: TEAM | E20: CLASS
B21: 1 | C21: =IF(OR('Set UP'!$C7=0,'Set UP'!$D7=0,'Set UP'!$E7=0,'Set UP'!F7=0)," --",'Set UP'!C7) -> 1418 | D21: =IF(OR('Set UP'!$C7=0,'Set UP'!$D7=0,'Set UP'!$E7=0,'Set UP'!F7=0)," --",'Set UP'!D7&" "&'Set UP'!E7) -> Bradford On Avon Lifesaving Club B | E21: =IF(OR('Set UP'!$C7=0,'Set UP'!$D7=0,'Set UP'!$E7=0,'Set UP'!F7=0)," --",'Set UP'!F7) -> NS | F21: 2 | G21: 1 | H21: 4 | I21: 2 | AF21: =IF(OR('Set UP'!$C7=0,'Set UP'!$D7=0,'Set UP'!$E7=0),"",(F$19*F21)+(G$19*G21)+(H$19*H21)+(I$19*I21)+(J$19*J21)+(K$19*K21)+(L$19*L21)+(M$19*M21)+(N$19*N21)+(O$19*O21)+(P$19*P21)+(Q$19*Q21)+(R$19*R21)+(S$19*S21)+(T$19*T21)+(U$19*U21)+(V$19*V21)+(W$19*W21)+(X$19*X21)+(Y$19*Y21)+(Z$19*Z21)+(AA$19*AA21)+(AB$19*AB21)+(AC$19*AC21)+(AD$19*AD21)) -> 19.5 | AG21: 2 | AH21: 1 | AI21: 5 | AJ21: 0 | AK21: 0 | BG21: =IF(OR('Set UP'!$C7=0,'Set UP'!$D7=0,'Set UP'!$E7=0),"",(AG$19*AG21)+(AH$19*AH21)+(AI$19*AI21)+(AJ$19*AJ21)+(AK$19*AK21)+(AL$19*AL21)+(AM$19*AM21)+(AN$19*AN21)+(AO$19*AO21)+(AP$19*AP21)+(AQ$19*AQ21)+(AR$19*AR21)+(AS$19*AS21)+(AT$19*AT21)+(AU$19*AU21)+(AV$19*AV21)+(AW$19*AW21)+(AX$19*AX21)+(AY$19*AY21)+(AZ$19*AZ21)+(BA$19*BA21)+(BB$19*BB21)+(BC$19*BC21)+(BD$19*BD21)+(BE$19*BE21)) -> 9.5 | BH21: 0 | BI21: 0 | BJ21: 0 | BK21: 0 | BL21: 0 | BM21: 0 | BN21: 0 | BO21: 1 | BP21: 0 | BQ21: 3 | BR21: 4 | BS21: 1 | CH21: =IF(OR('Set UP'!$C7=0,'Set UP'!$D7=0,'Set UP'!$E7=0),"",(BH$19*BH21)+(BI$19*BI21)+(BJ$19*BJ21)+(BK$19*BK21)+(BL$19*BL21)+(BM$19*BM21)+(BN$19*BN21)+(BO$19*BO21)+(BP$19*BP21)+(BQ$19*BQ21)+(BR$19*BR21)+(BS$19*BS21)+(BT$19*BT21)+(BU$19*BU21)+(BV$19*BV21)+(BW$19*BW21)+(BX$19*BX21)+(BY$19*BY21)+(BZ$19*BZ21)+(CA$19*CA21)+(CB$19*CB21)+(CC$19*CC21)+(CD$19*CD21)+(CE$19*CE21)+(CF$19*CF21)) -> 8 | CI21: 7 | CJ21: 2 | CK21: 0 | CL21: 1 | CM21: 7 | CN21: 3 | CO21: 4 | CP21: 0 | CQ21: 1 | DI21: =IF(OR('Set UP'!$C7=0,'Set UP'!$D7=0,'Set UP'!$E7=0),"",(CI$19*CI21)+(CJ$19*CJ21)+(CK$19*CK21)+(CL$19*CL21)+(CM$19*CM21)+(CN$19*CN21)+(CO$19*CO21)+(CP$19*CP21)+(CQ$19*CQ21)+(CR$19*CR21)+(CS$19*CS21)+(CT$19*CT21)+(CU$19*CU21)+(CV$19*CV21)+(CW$19*CW21)+(CX$19*CX21)+(CY$19*CY21)+(CZ$19*CZ21)+(DA$19*DA21)+(DB$19*DB21)+(DC$19*DC21)+(DD$19*DD21)+(DE$19*DE21)+(DF$19*DF21)+(DG$19*DG21)) -> 51.5 | DJ21: 1 | DK21: 1 | DL21: 2 | DM21: 1 | DN21: 0 | DO21: 0 | DP21: 0 | DQ21: 0 | DR21: 0 | DS21: 0 | EJ21: =IF(OR('Set UP'!$C7=0,'Set UP'!$D7=0,'Set UP'!$E7=0),"",(DJ$19*DJ21)+(DK$19*DK21)+(DL$19*DL21)+(DM$19*DM21)+(DN$19*DN21)+(DO$19*DO21)+(DP$19*DP21)+(DQ$19*DQ21)+(DR$19*DR21)+(DS$19*DS21)+(DT$19*DT21)+(DU$19*DU21)+(DV$19*DV21)+(DW$19*DW21)+(DX$19*DX21)+(DY$19*DY21)+(DZ$19*DZ21)+(EA$19*EA21)+(EB$19*EB21)+(EC$19*EC21)+(ED$19*ED21)+(EE$19*EE21)+(EF$19*EF21)+(EG$19*EG21)+(EH$19*EH21)) -> 6 | FK21: =IF(OR('Set UP'!$C7=0,'Set UP'!$D7=0,'Set UP'!$E7=0),"",(EK$19*EK21)+(EL$19*EL21)+(EM$19*EM21)+(EN$19*EN21)+(EO$19*EO21)+(EP$19*EP21)+(EQ$19*EQ21)+(ER$19*ER21)+(ES$19*ES21)+(ET$19*ET21)+(EU$19*EU21)+(EV$19*EV21)+(EW$19*EW21)+(EX$19*EX21)+(EY$19*EY21)+(EZ$19*EZ21)+(FA$19*FA21)+(FB$19*FB21)+(FC$19*FC21)+(FD$19*FD21)+(FE$19*FE21)+(FF$19*FF21)+(FG$19*FG21)+(FH$19*FH21)+(FI$19*FI21)) -> 0 | GL21: =IF(OR('Set UP'!$C7=0,'Set UP'!$D7=0,'Set UP'!$E7=0),"",(FL$19*FL21)+(FM$19*FM21)+(FN$19*FN21)+(FO$19*FO21)+(FP$19*FP21)+(FQ$19*FQ21)+(FR$19*FR21)+(FS$19*FS21)+(FT$19*FT21)+(FU$19*FU21)+(FV$19*FV21)+(FW$19*FW21)+(FX$19*FX21)+(FY$19*FY21)+(FZ$19*FZ21)+(GA$19*GA21)+(GB$19*GB21)+(GC$19*GC21)+(GD$19*GD21)+(GE$19*GE21)+(GF$19*GF21)+(GG$19*GG21)+(GH$19*GH21)+(GI$19*GI21)+(GJ$19*GJ21)) -> 0 | HM21: =IF(OR('Set UP'!$C7=0,'Set UP'!$D7=0,'Set UP'!$E7=0),"",(GM$19*GM21)+(GN$19*GN21)+(GO$19*GO21)+(GP$19*GP21)+(GQ$19*GQ21)+(GR$19*GR21)+(GS$19*GS21)+(GT$19*GT21)+(GU$19*GU21)+(GV$19*GV21)+(GW$19*GW21)+(GX$19*GX21)+(GY$19*GY21)+(GZ$19*GZ21)+(HA$19*HA21)+(HB$19*HB21)+(HC$19*HC21)+(HD$19*HD21)+(HE$19*HE21)+(HF$19*HF21)+(HG$19*HG21)+(HH$19*HH21)+(HI$19*HI21)+(HJ$19*HJ21)+(HK$19*HK21)) -> 0 | IN21: =IF(OR('Set UP'!$C7=0,'Set UP'!$D7=0,'Set UP'!$E7=0),"",(HN$19*HN21)+(HO$19*HO21)+(HP$19*HP21)+(HQ$19*HQ21)+(HR$19*HR21)+(HS$19*HS21)+(HT$19*HT21)+(HU$19*HU21)+(HV$19*HV21)+(HW$19*HW21)+(HX$19*HX21)+(HY$19*HY21)+(HZ$19*HZ21)+(IA$19*IA21)+(IB$19*IB21)+(IC$19*IC21)+(ID$19*ID21)+(IE$19*IE21)+(IF$19*IF21)+(IG$19*IG21)+(IH$19*IH21)+(II$19*II21)+(IJ$19*IJ21)+(IK$19*IK21)+(IL$19*IL21)) -> 0 | JO21: =IF(OR('Set UP'!$C7=0,'Set UP'!$D7=0,'Set UP'!$E7=0),"",(IO$19*IO21)+(IP$19*IP21)+(IQ$19*IQ21)+(IR$19*IR21)+(IS$19*IS21)+(IT$19*IT21)+(IU$19*IU21)+(IV$19*IV21)+(IW$19*IW21)+(IX$19*IX21)+(IY$19*IY21)+(IZ$19*IZ21)+(JA$19*JA21)+(JB$19*JB21)+(JC$19*JC21)+(JD$19*JD21)+(JE$19*JE21)+(JF$19*JF21)+(JG$19*JG21)+(JH$19*JH21)+(JI$19*JI21)+(JJ$19*JJ21)+(JK$19*JK21)+(JL$19*JL21)+(JM$19*JM21)) -> 0 | JP21: =IF(OR('Set UP'!$C7=0,'Set UP'!$D7=0,'Set UP'!$E7=0),"",(AF21+BG21+CH21+DI21+EJ21+FK21+GL21+HM21+JO21+IN21)) -> 94.5 | JQ21: =IF(OR('Set UP'!$C7=0,'Set UP'!$D7=0,'Set UP'!$E7=0),"",RANK(JP21,$JP$21:$JP$60,0)) -> 25 | JR21: =IF(OR('Set UP'!K7<>1,'Set UP'!C7=0,'Set UP'!D7=0,'Set UP'!E7=0,'Set UP'!F7=0),"",$JP21) ->  | JS21: =IF(OR('Set UP'!K7<>1,'Set UP'!C7=0,'Set UP'!D7=0,'Set UP'!E7=0,'Set UP'!F7=0),"",RANK(JR21,$JR$21:$JR$60,0)) ->  | JT21: =IF(OR('Set UP'!K7<>2,'Set UP'!C7=0,'Set UP'!D7=0,'Set UP'!E7=0,'Set UP'!F7=0),"",$JP21) ->  | JU21: =IF(OR('Set UP'!K7<>2,'Set UP'!C7=0,'Set UP'!D7=0,'Set UP'!E7=0,'Set UP'!F7=0),"",RANK(JT21,$JT$21:$JT$60,0)) ->  | JV21: =IF(OR('Set UP'!F7<>"F",'Set UP'!C7=0,'Set UP'!D7=0,'Set UP'!E7=0),"",$JP21) ->  | JW21: =IF(OR('Set UP'!F7<>"F",'Set UP'!C7=0,'Set UP'!D7=0,'Set UP'!E7=0),"",RANK(JV21,$JV$21:$JV$60,0)) ->  | JX21: =IF(OR('Set UP'!F7<>"NS",'Set UP'!C7=0,'Set UP'!D7=0,'Set UP'!E7=0),"",$JP21) -> 94.5 | JY21: =IF(OR('Set UP'!F7<>"NS",'Set UP'!C7=0,'Set UP'!D7=0,'Set UP'!E7=0),"",RANK(JX21,$JX$21:$JX$60,0)) -> 5 | JZ21: =IF(OR('Set UP'!$C7=0,'Set UP'!$D7=0,'Set UP'!$E7=0,JP21=0),"",JP21/MAX(JP$21:JP$60)*1000) -> 319.2567568
B22: 2 | C22: =IF(OR('Set UP'!$C8=0,'Set UP'!$D8=0,'Set UP'!$E8=0,'Set UP'!F8=0)," --",'Set UP'!C8) -> 1419 | D22: =IF(OR('Set UP'!$C8=0,'Set UP'!$D8=0,'Set UP'!$E8=0,'Set UP'!F8=0)," --",'Set UP'!D8&" "&'Set UP'!E8) -> Bradford On Avon Lifesaving Club A | E22: =IF(OR('Set UP'!$C8=0,'Set UP'!$D8=0,'Set UP'!$E8=0,'Set UP'!F8=0)," --",'Set UP'!F8) -> NS | F22: 3 | G22: 3 | H22: 5 | I22: 7 | AF22: =IF(OR('Set UP'!$C8=0,'Set UP'!$D8=0,'Set UP'!$E8=0),"",(F$19*F22)+(G$19*G22)+(H$19*H22)+(I$19*I22)+(J$19*J22)+(K$19*K22)+(L$19*L22)+(M$19*M22)+(N$19*N22)+(O$19*O22)+(P$19*P22)+(Q$19*Q22)+(R$19*R22)+(S$19*S22)+(T$19*T22)+(U$19*U22)+(V$19*V22)+(W$19*W22)+(X$19*X22)+(Y$19*Y22)+(Z$19*Z22)+(AA$19*AA22)+(AB$19*AB22)+(AC$19*AC22)+(AD$19*AD22)) -> 34.5 | AG22: 2 | AH22: 0 | AI22: 0 | AJ22: 0 | AK22: 0 | BG22: =IF(OR('Set UP'!$C8=0,'Set UP'!$D8=0,'Set UP'!$E8=0),"",(AG$19*AG22)+(AH$19*AH22)+(AI$19*AI22)+(AJ$19*AJ22)+(AK$19*AK22)+(AL$19*AL22)+(AM$19*AM22)+(AN$19*AN22)+(AO$19*AO22)+(AP$19*AP22)+(AQ$19*AQ22)+(AR$19*AR22)+(AS$19*AS22)+(AT$19*AT22)+(AU$19*AU22)+(AV$19*AV22)+(AW$19*AW22)+(AX$19*AX22)+(AY$19*AY22)+(AZ$19*AZ22)+(BA$19*BA22)+(BB$19*BB22)+(BC$19*BC22)+(BD$19*BD22)+(BE$19*BE22)) -> 3 | BH22: 0 | BI22: 0 | BJ22: 0 | BK22: 0 | BL22: 0 | BM22: 0 | BN22: 8 | BO22: 8 | BP22: 5 | BQ22: 3 | BR22: 4 | BS22: 2 | CH22: =IF(OR('Set UP'!$C8=0,'Set UP'!$D8=0,'Set UP'!$E8=0),"",(BH$19*BH22)+(BI$19*BI22)+(BJ$19*BJ22)+(BK$19*BK22)+(BL$19*BL22)+(BM$19*BM22)+(BN$19*BN22)+(BO$19*BO22)+(BP$19*BP22)+(BQ$19*BQ22)+(BR$19*BR22)+(BS$19*BS22)+(BT$19*BT22)+(BU$19*BU22)+(BV$19*BV22)+(BW$19*BW22)+(BX$19*BX22)+(BY$19*BY22)+(BZ$19*BZ22)+(CA$19*CA22)+(CB$19*CB22)+(CC$19*CC22)+(CD$19*CD22)+(CE$19*CE22)+(CF$19*CF22)) -> 36.5 | CI22: 6 | CJ22: 1 | CK22: 0 | CL22: 0 | CM22: 6 | CN22: 0 | CO22: 2 | CP22: 0 | CQ22: 2 | DI22: =IF(OR('Set UP'!$C8=0,'Set UP'!$D8=0,'Set UP'!$E8=0),"",(CI$19*CI22)+(CJ$19*CJ22)+(CK$19*CK22)+(CL$19*CL22)+(CM$19*CM22)+(CN$19*CN22)+(CO$19*CO22)+(CP$19*CP22)+(CQ$19*CQ22)+(CR$19*CR22)+(CS$19*CS22)+(CT$19*CT22)+(CU$19*CU22)+(CV$19*CV22)+(CW$19*CW22)+(CX$19*CX22)+(CY$19*CY22)+(CZ$19*CZ22)+(DA$19*DA22)+(DB$19*DB22)+(DC$19*DC22)+(DD$19*DD22)+(DE$19*DE22)+(DF$19*DF22)+(DG$19*DG22)) -> 36 | DJ22: 2 | DK22: 0 | DL22: 0 | DM22: 2 | DN22: 0 | DO22: 3 | DP22: 0 | DQ22: 0 | DR22: 0 | DS22: 0 | EJ22: =IF(OR('Set UP'!$C8=0,'Set UP'!$D8=0,'Set UP'!$E8=0),"",(DJ$19*DJ22)+(DK$19*DK22)+(DL$19*DL22)+(DM$19*DM22)+(DN$19*DN22)+(DO$19*DO22)+(DP$19*DP22)+(DQ$19*DQ22)+(DR$19*DR22)+(DS$19*DS22)+(DT$19*DT22)+(DU$19*DU22)+(DV$19*DV22)+(DW$19*DW22)+(DX$19*DX22)+(DY$19*DY22)+(DZ$19*DZ22)+(EA$19*EA22)+(EB$19*EB22)+(EC$19*EC22)+(ED$19*ED22)+(EE$19*EE22)+(EF$19*EF22)+(EG$19*EG22)+(EH$19*EH22)) -> 6 | FK22: =IF(OR('Set UP'!$C8=0,'Set UP'!$D8=0,'Set UP'!$E8=0),"",(EK$19*EK22)+(EL$19*EL22)+(EM$19*EM22)+(EN$19*EN22)+(EO$19*EO22)+(EP$19*EP22)+(EQ$19*EQ22)+(ER$19*ER22)+(ES$19*ES22)+(ET$19*ET22)+(EU$19*EU22)+(EV$19*EV22)+(EW$19*EW22)+(EX$19*EX22)+(EY$19*EY22)+(EZ$19*EZ22)+(FA$19*FA22)+(FB$19*FB22)+(FC$19*FC22)+(FD$19*FD22)+(FE$19*FE22)+(FF$19*FF22)+(FG$19*FG22)+(FH$19*FH22)+(FI$19*FI22)) -> 0 | GL22: =IF(OR('Set UP'!$C8=0,'Set UP'!$D8=0,'Set UP'!$E8=0),"",(FL$19*FL22)+(FM$19*FM22)+(FN$19*FN22)+(FO$19*FO22)+(FP$19*FP22)+(FQ$19*FQ22)+(FR$19*FR22)+(FS$19*FS22)+(FT$19*FT22)+(FU$19*FU22)+(FV$19*FV22)+(FW$19*FW22)+(FX$19*FX22)+(FY$19*FY22)+(FZ$19*FZ22)+(GA$19*GA22)+(GB$19*GB22)+(GC$19*GC22)+(GD$19*GD22)+(GE$19*GE22)+(GF$19*GF22)+(GG$19*GG22)+(GH$19*GH22)+(GI$19*GI22)+(GJ$19*GJ22)) -> 0 | HM22: =IF(OR('Set UP'!$C8=0,'Set UP'!$D8=0,'Set UP'!$E8=0),"",(GM$19*GM22)+(GN$19*GN22)+(GO$19*GO22)+(GP$19*GP22)+(GQ$19*GQ22)+(GR$19*GR22)+(GS$19*GS22)+(GT$19*GT22)+(GU$19*GU22)+(GV$19*GV22)+(GW$19*GW22)+(GX$19*GX22)+(GY$19*GY22)+(GZ$19*GZ22)+(HA$19*HA22)+(HB$19*HB22)+(HC$19*HC22)+(HD$19*HD22)+(HE$19*HE22)+(HF$19*HF22)+(HG$19*HG22)+(HH$19*HH22)+(HI$19*HI22)+(HJ$19*HJ22)+(HK$19*HK22)) -> 0 | IN22: =IF(OR('Set UP'!$C8=0,'Set UP'!$D8=0,'Set UP'!$E8=0),"",(HN$19*HN22)+(HO$19*HO22)+(HP$19*HP22)+(HQ$19*HQ22)+(HR$19*HR22)+(HS$19*HS22)+(HT$19*HT22)+(HU$19*HU22)+(HV$19*HV22)+(HW$19*HW22)+(HX$19*HX22)+(HY$19*HY22)+(HZ$19*HZ22)+(IA$19*IA22)+(IB$19*IB22)+(IC$19*IC22)+(ID$19*ID22)+(IE$19*IE22)+(IF$19*IF22)+(IG$19*IG22)+(IH$19*IH22)+(II$19*II22)+(IJ$19*IJ22)+(IK$19*IK22)+(IL$19*IL22)) -> 0 | JO22: =IF(OR('Set UP'!$C8=0,'Set UP'!$D8=0,'Set UP'!$E8=0),"",(IO$19*IO22)+(IP$19*IP22)+(IQ$19*IQ22)+(IR$19*IR22)+(IS$19*IS22)+(IT$19*IT22)+(IU$19*IU22)+(IV$19*IV22)+(IW$19*IW22)+(IX$19*IX22)+(IY$19*IY22)+(IZ$19*IZ22)+(JA$19*JA22)+(JB$19*JB22)+(JC$19*JC22)+(JD$19*JD22)+(JE$19*JE22)+(JF$19*JF22)+(JG$19*JG22)+(JH$19*JH22)+(JI$19*JI22)+(JJ$19*JJ22)+(JK$19*JK22)+(JL$19*JL22)+(JM$19*JM22)) -> 0 | JP22: =IF(OR('Set UP'!$C8=0,'Set UP'!$D8=0,'Set UP'!$E8=0),"",(AF22+BG22+CH22+DI22+EJ22+FK22+GL22+HM22+JO22+IN22)) -> 116 | JQ22: =IF(OR('Set UP'!$C8=0,'Set UP'!$D8=0,'Set UP'!$E8=0),"",RANK(JP22,$JP$21:$JP$60,0)) -> 20 | JR22: =IF(OR('Set UP'!K8<>1,'Set UP'!C8=0,'Set UP'!D8=0,'Set UP'!E8=0,'Set UP'!F8=0),"",$JP22) ->  | JS22: =IF(OR('Set UP'!K8<>1,'Set UP'!C8=0,'Set UP'!D8=0,'Set UP'!E8=0,'Set UP'!F8=0),"",RANK(JR22,$JR$21:$JR$60,0)) ->  | JT22: =IF(OR('Set UP'!K8<>2,'Set UP'!C8=0,'Set UP'!D8=0,'Set UP'!E8=0,'Set UP'!F8=0),"",$JP22) ->  | JU22: =IF(OR('Set UP'!K8<>2,'Set UP'!C8=0,'Set UP'!D8=0,'Set UP'!E8=0,'Set UP'!F8=0),"",RANK(JT22,$JT$21:$JT$60,0)) ->  | JV22: =IF(OR('Set UP'!F8<>"F",'Set UP'!C8=0,'Set UP'!D8=0,'Set UP'!E8=0),"",$JP22) ->  | JW22: =IF(OR('Set UP'!F8<>"F",'Set UP'!C8=0,'Set UP'!D8=0,'Set UP'!E8=0),"",RANK(JV22,$JV$21:$JV$60,0)) ->  | JX22: =IF(OR('Set UP'!F8<>"NS",'Set UP'!C8=0,'Set UP'!D8=0,'Set UP'!E8=0),"",$JP22) -> 116 | JY22: =IF(OR('Set UP'!F8<>"NS",'Set UP'!C8=0,'Set UP'!D8=0,'Set UP'!E8=0),"",RANK(JX22,$JX$21:$JX$60,0)) -> 3 | JZ22: =IF(OR('Set UP'!$C8=0,'Set UP'!$D8=0,'Set UP'!$E8=0,JP22=0),"",JP22/MAX(JP$21:JP$60)*1000) -> 391.8918919
B23: 3 | C23: =IF(OR('Set UP'!$C9=0,'Set UP'!$D9=0,'Set UP'!$E9=0,'Set UP'!F9=0)," --",'Set UP'!C9) -> 1417 | D23: =IF(OR('Set UP'!$C9=0,'Set UP'!$D9=0,'Set UP'!$E9=0,'Set UP'!F9=0)," --",'Set UP'!D9&" "&'Set UP'!E9) -> Bradford On Avon Lifesaving Club C | E23: =IF(OR('Set UP'!$C9=0,'Set UP'!$D9=0,'Set UP'!$E9=0,'Set UP'!F9=0)," --",'Set UP'!F9) -> NS | F23: 6 | G23: 7 | H23: 10 | I23: 6 | AF23: =IF(OR('Set UP'!$C9=0,'Set UP'!$D9=0,'Set UP'!$E9=0),"",(F$19*F23)+(G$19*G23)+(H$19*H23)+(I$19*I23)+(J$19*J23)+(K$19*K23)+(L$19*L23)+(M$19*M23)+(N$19*N23)+(O$19*O23)+(P$19*P23)+(Q$19*Q23)+(R$19*R23)+(S$19*S23)+(T$19*T23)+(U$19*U23)+(V$19*V23)+(W$19*W23)+(X$19*X23)+(Y$19*Y23)+(Z$19*Z23)+(AA$19*AA23)+(AB$19*AB23)+(AC$19*AC23)+(AD$19*AD23)) -> 58.5 | AG23: 4 | AH23: 4 | AI23: 0 | AJ23: 0 | AK23: 0 | BG23: =IF(OR('Set UP'!$C9=0,'Set UP'!$D9=0,'Set UP'!$E9=0),"",(AG$19*AG23)+(AH$19*AH23)+(AI$19*AI23)+(AJ$19*AJ23)+(AK$19*AK23)+(AL$19*AL23)+(AM$19*AM23)+(AN$19*AN23)+(AO$19*AO23)+(AP$19*AP23)+(AQ$19*AQ23)+(AR$19*AR23)+(AS$19*AS23)+(AT$19*AT23)+(AU$19*AU23)+(AV$19*AV23)+(AW$19*AW23)+(AX$19*AX23)+(AY$19*AY23)+(AZ$19*AZ23)+(BA$19*BA23)+(BB$19*BB23)+(BC$19*BC23)+(BD$19*BD23)+(BE$19*BE23)) -> 12 | BH23: 0 | BI23: 0 | BJ23: 0 | BK23: 0 | BL23: 0 | BM23: 0 | BN23: 1 | BO23: 0 | BP23: 0 | BQ23: 0 | BR23: 3 | BS23: 0 | CH23: =IF(OR('Set UP'!$C9=0,'Set UP'!$D9=0,'Set UP'!$E9=0),"",(BH$19*BH23)+(BI$19*BI23)+(BJ$19*BJ23)+(BK$19*BK23)+(BL$19*BL23)+(BM$19*BM23)+(BN$19*BN23)+(BO$19*BO23)+(BP$19*BP23)+(BQ$19*BQ23)+(BR$19*BR23)+(BS$19*BS23)+(BT$19*BT23)+(BU$19*BU23)+(BV$19*BV23)+(BW$19*BW23)+(BX$19*BX23)+(BY$19*BY23)+(BZ$19*BZ23)+(CA$19*CA23)+(CB$19*CB23)+(CC$19*CC23)+(CD$19*CD23)+(CE$19*CE23)+(CF$19*CF23)) -> 4.5 | CI23: 6 | CJ23: 1 | CK23: 0 | CL23: 0 | CM23: 5 | CN23: 0 | CO23: 2 | CP23: 0 | CQ23: 0 | DI23: =IF(OR('Set UP'!$C9=0,'Set UP'!$D9=0,'Set UP'!$E9=0),"",(CI$19*CI23)+(CJ$19*CJ23)+(CK$19*CK23)+(CL$19*CL23)+(CM$19*CM23)+(CN$19*CN23)+(CO$19*CO23)+(CP$19*CP23)+(CQ$19*CQ23)+(CR$19*CR23)+(CS$19*CS23)+(CT$19*CT23)+(CU$19*CU23)+(CV$19*CV23)+(CW$19*CW23)+(CX$19*CX23)+(CY$19*CY23)+(CZ$19*CZ23)+(DA$19*DA23)+(DB$19*DB23)+(DC$19*DC23)+(DD$19*DD23)+(DE$19*DE23)+(DF$19*DF23)+(DG$19*DG23)) -> 33 | DJ23: 2 | DK23: 0 | DL23: 2 | DM23: 2 | DN23: 0 | DO23: 0 | DP23: 0 | DQ23: 0 | DR23: 0 | DS23: 0 | EJ23: =IF(OR('Set UP'!$C9=0,'Set UP'!$D9=0,'Set UP'!$E9=0),"",(DJ$19*DJ23)+(DK$19*DK23)+(DL$19*DL23)+(DM$19*DM23)+(DN$19*DN23)+(DO$19*DO23)+(DP$19*DP23)+(DQ$19*DQ23)+(DR$19*DR23)+(DS$19*DS23)+(DT$19*DT23)+(DU$19*DU23)+(DV$19*DV23)+(DW$19*DW23)+(DX$19*DX23)+(DY$19*DY23)+(DZ$19*DZ23)+(EA$19*EA23)+(EB$19*EB23)+(EC$19*EC23)+(ED$19*ED23)+(EE$19*EE23)+(EF$19*EF23)+(EG$19*EG23)+(EH$19*EH23)) -> 6 | FK23: =IF(OR('Set UP'!$C9=0,'Set UP'!$D9=0,'Set UP'!$E9=0),"",(EK$19*EK23)+(EL$19*EL23)+(EM$19*EM23)+(EN$19*EN23)+(EO$19*EO23)+(EP$19*EP23)+(EQ$19*EQ23)+(ER$19*ER23)+(ES$19*ES23)+(ET$19*ET23)+(EU$19*EU23)+(EV$19*EV23)+(EW$19*EW23)+(EX$19*EX23)+(EY$19*EY23)+(EZ$19*EZ23)+(FA$19*FA23)+(FB$19*FB23)+(FC$19*FC23)+(FD$19*FD23)+(FE$19*FE23)+(FF$19*FF23)+(FG$19*FG23)+(FH$19*FH23)+(FI$19*FI23)) -> 0 | GL23: =IF(OR('Set UP'!$C9=0,'Set UP'!$D9=0,'Set UP'!$E9=0),"",(FL$19*FL23)+(FM$19*FM23)+(FN$19*FN23)+(FO$19*FO23)+(FP$19*FP23)+(FQ$19*FQ23)+(FR$19*FR23)+(FS$19*FS23)+(FT$19*FT23)+(FU$19*FU23)+(FV$19*FV23)+(FW$19*FW23)+(FX$19*FX23)+(FY$19*FY23)+(FZ$19*FZ23)+(GA$19*GA23)+(GB$19*GB23)+(GC$19*GC23)+(GD$19*GD23)+(GE$19*GE23)+(GF$19*GF23)+(GG$19*GG23)+(GH$19*GH23)+(GI$19*GI23)+(GJ$19*GJ23)) -> 0 | HM23: =IF(OR('Set UP'!$C9=0,'Set UP'!$D9=0,'Set UP'!$E9=0),"",(GM$19*GM23)+(GN$19*GN23)+(GO$19*GO23)+(GP$19*GP23)+(GQ$19*GQ23)+(GR$19*GR23)+(GS$19*GS23)+(GT$19*GT23)+(GU$19*GU23)+(GV$19*GV23)+(GW$19*GW23)+(GX$19*GX23)+(GY$19*GY23)+(GZ$19*GZ23)+(HA$19*HA23)+(HB$19*HB23)+(HC$19*HC23)+(HD$19*HD23)+(HE$19*HE23)+(HF$19*HF23)+(HG$19*HG23)+(HH$19*HH23)+(HI$19*HI23)+(HJ$19*HJ23)+(HK$19*HK23)) -> 0 | IN23: =IF(OR('Set UP'!$C9=0,'Set UP'!$D9=0,'Set UP'!$E9=0),"",(HN$19*HN23)+(HO$19*HO23)+(HP$19*HP23)+(HQ$19*HQ23)+(HR$19*HR23)+(HS$19*HS23)+(HT$19*HT23)+(HU$19*HU23)+(HV$19*HV23)+(HW$19*HW23)+(HX$19*HX23)+(HY$19*HY23)+(HZ$19*HZ23)+(IA$19*IA23)+(IB$19*IB23)+(IC$19*IC23)+(ID$19*ID23)+(IE$19*IE23)+(IF$19*IF23)+(IG$19*IG23)+(IH$19*IH23)+(II$19*II23)+(IJ$19*IJ23)+(IK$19*IK23)+(IL$19*IL23)) -> 0 | JO23: =IF(OR('Set UP'!$C9=0,'Set UP'!$D9=0,'Set UP'!$E9=0),"",(IO$19*IO23)+(IP$19*IP23)+(IQ$19*IQ23)+(IR$19*IR23)+(IS$19*IS23)+(IT$19*IT23)+(IU$19*IU23)+(IV$19*IV23)+(IW$19*IW23)+(IX$19*IX23)+(IY$19*IY23)+(IZ$19*IZ23)+(JA$19*JA23)+(JB$19*JB23)+(JC$19*JC23)+(JD$19*JD23)+(JE$19*JE23)+(JF$19*JF23)+(JG$19*JG23)+(JH$19*JH23)+(JI$19*JI23)+(JJ$19*JJ23)+(JK$19*JK23)+(JL$19*JL23)+(JM$19*JM23)) -> 0 | JP23: =IF(OR('Set UP'!$C9=0,'Set UP'!$D9=0,'Set UP'!$E9=0),"",(AF23+BG23+CH23+DI23+EJ23+FK23+GL23+HM23+JO23+IN23)) -> 114 | JQ23: =IF(OR('Set UP'!$C9=0,'Set UP'!$D9=0,'Set UP'!$E9=0),"",RANK(JP23,$JP$21:$JP$60,0)) -> 23 | JR23: =IF(OR('Set UP'!K9<>1,'Set UP'!C9=0,'Set UP'!D9=0,'Set UP'!E9=0,'Set UP'!F9=0),"",$JP23) ->  | JS23: =IF(OR('Set UP'!K9<>1,'Set UP'!C9=0,'Set UP'!D9=0,'Set UP'!E9=0,'Set UP'!F9=0),"",RANK(JR23,$JR$21:$JR$60,0)) ->  | JT23: =IF(OR('Set UP'!K9<>2,'Set UP'!C9=0,'Set UP'!D9=0,'Set UP'!E9=0,'Set UP'!F9=0),"",$JP23) ->  | JU23: =IF(OR('Set UP'!K9<>2,'Set UP'!C9=0,'Set UP'!D9=0,'Set UP'!E9=0,'Set UP'!F9=0),"",RANK(JT23,$JT$21:$JT$60,0)) ->  | JV23: =IF(OR('Set UP'!F9<>"F",'Set UP'!C9=0,'Set UP'!D9=0,'Set UP'!E9=0),"",$JP23) ->  | JW23: =IF(OR('Set UP'!F9<>"F",'Set UP'!C9=0,'Set UP'!D9=0,'Set UP'!E9=0),"",RANK(JV23,$JV$21:$JV$60,0)) ->  | JX23: =IF(OR('Set UP'!F9<>"NS",'Set UP'!C9=0,'Set UP'!D9=0,'Set UP'!E9=0),"",$JP23) -> 114 | JY23: =IF(OR('Set UP'!F9<>"NS",'Set UP'!C9=0,'Set UP'!D9=0,'Set UP'!E9=0),"",RANK(JX23,$JX$21:$JX$60,0)) -> 4 | JZ23: =IF(OR('Set UP'!$C9=0,'Set UP'!$D9=0,'Set UP'!$E9=0,JP23=0),"",JP23/MAX(JP$21:JP$60)*1000) -> 385.1351351
